Workbook

Sheet INTRO
B2: Joint request for selected PC medicines v.4.2
B4: As part of global efforts to accelerate expansion of preventive chemotherapy (PC) for control and elimination of lymphatic filariasis, schistosomiasis and soil-transmitted helminthiases, the World Health Organization (WHO) facilitates the supply of albendazole 400 mg tablets (GSK) to national lymphatic filariasis elimination programmes and national soil-transmitted helminth control programmes; diethylcarbamazine citrate 100 mg tablets (Eisai) to national lymphatic filariasis elimination programmes; mebendazole 500 mg tablets (J&J) for national soil-transmitted helminth control programmes; and praziquantel 600 mg tablets (Merck KGaA) for school-age children to national schistosomiasis control programmes. WHO also collaborates to supply ivermectin 3 mg tablets (Merck) for onchocerciasis and lymphatic filariasis donation programmes. This Excel-based tool is designed to assist countries in quantifying the number of tablets of relevant PC medicines required to reach the planned target population and districts for the year of request. Output of the tool is a joint request for PC medicines, which can be printed, signed and submitted to WHO to request these medicines.
B6: Structure of the application (worksheets):
B8: INTRO | C8: This worksheet includes guides on how to complete the joint request for selected PC medicines and information about the status of PC for endemic diseases in the country.
B9: COUNTRY_INFO | C9: This worksheet includes information about administrative structure of the country, population by age group, status of endemicity for each disease, population requiring PC and planned interventions.
B10: DEC, ALB_MBD, PZQ and IVM | C10: These worksheets include information about endemic districts targeted for treatment with specified PC medicines, treatment plan, and number of tablets required and requested.
B11: SUMMARY | C11: This worksheet includes summary of number of tablets requested, information about stock, and date for submission of requested medicines. Before generating the report (run macros) please select the medicine for which the report is needed. Follow the same rule to see the number of people to be treated for the specific disease. This worksheet should be printed and submitted as a joint request for selected PC medicines (see the instruction for submission in the SUMMARY worksheet).
B13: Instruction for data entry
B15: Most of the cells in the above-mentioned worksheets include formula that are calculated automatically according to the treatment policy recommended by WHO for each disease. See the link https://www.who.int/publications/i/item/9789241599993.
B17: Please enter your data into the cells according to their colour code:
C19: White - cell is not protected. Please enter the value of the requested indicator.
C21: Yellow - cell is protected and includes name of indicator. No data entry required.
C23: Orange - cell is not protected and includes a drop-down menu. Please select the value from the drop-down list.
C26: Green - cell is not protected and includes formula. Please change the value only if your data are different from those that are calculated automatically.
C29: Blue - cell is protected and includes formula. No data entry required.
B31: Country data
B33: COUNTRY | E33: Uganda
E34: 5
B35: Year for request of the medicine | E35: 2024
B37: Is country endemic for lymphatic filariasis (LF)? | E37: Endemic
B39: Is country endemic for onchocerciasis (ONCHO)? | E39: Endemic
B41: Is country endemic for soil-transmitted helminthiases (STH)? | E41: Endemic
B43: Is country endemic for schistosomiasis (SCH)? | E43: Endemic
B45: How many administrative units in the country? | E45: 146
B47: If demographical data at the second administrative level are not available by age group, please enter the proportion (%) of population by age group in the country. If data are available, please leave these cells blank.
B48: 1-4 years age | C48: Preschool-age children (PreSAC) | E48: 0.142
B49: 5-14 years age | C49: School-age children (SAC) | E49: 0.302
B50: 15 years + | C50: Adults | E50: 0.521
B51: 15-49 years | C51: Women of reproductive age (WRA) | E51: 0.247

Sheet COUNTRY_INFO
A1: COUNTRY INFORMATION
A2: Administrative structure, population by age group, status of endemicity and planned interventions
A4: TOTAL | D4: =SUBTOTAL(9,D$10:D$1010) -> 46972357 | E4: =SUBTOTAL(9,E$10:E$1010) -> 6670074 | F4: 14185647 | G4: 24472596 | L4: =SUBTOTAL(9,L$10:L$1010) -> 0 | M4: 1577609 | N4: 6196216 | O4: 13177862 | P4: 10777921 | Q4: 28389352 | R4: 0 | S4: 5352830 | T4: 6755481 | U4: 12108311
A6: Country administrative structure | D6: Population | H6: Endemicity | L6: Population requiring PC | V6: Number of treatment rounds planned for the year | Z6: Criteria to apply for IVM+DEC+ALB therapy | AA6: Epidemiological surveys planned for the year
A7: Country | B7: Province/State | C7: District | D7: Total | E7: PreSAC | F7: SAC | G7: Adults | H7: LF | I7: Oncho | J7: STH | K7: SCH | L7: LF | M7: ONCHO | N7: STH | R7: SCH | V7: LF | W7: Oncho | X7: STH | Y7: SCH | Z7: LF | AA7: LF | AB7: Oncho | AC7: STH | AD7: SCH
N8: PreSAC | O8: SAC | P8: WRA | Q8: TOTAL | R8: PreSAC | S8: SAC | T8: Adults | U8: TOTAL
A10: =IF(INTRO!$E$33<>0,INTRO!$E$33, " ") -> Uganda | B10: Central | C10: Buikwe | D10: 588203 | E10: =IF(INTRO!$E$48="","",ROUND($D10*INTRO!$E$48,0)) -> 83525 | F10: =IF(INTRO!$E$49="","",ROUND($D10*INTRO!$E$49,0)) -> 177637 | G10: =IF(INTRO!$E$50="","",ROUND($D10*INTRO!$E$50,0)) -> 306454 | H10: 0 | I10: 0 | J10: 3 | K10: 3 | L10: =IF(INTRO!$E$37="Endemic",IF($H10>0,IF($H10=4,"Unknown",IF($H10=99,"Stopped",$D10)),0),"Not required") -> 0 | M10: 0 | N10: =IF(INTRO!$E$41="Endemic", IF($J10>1, IF($J10=4, "Unknown", IF($J10=99, "Surveillance", E10)), 0),"Not required") -> 83525 | O10: =IF(INTRO!$E$41="Endemic", IF($J10>1, IF($J10=4, "Unknown", IF($J10=99, "Surveillance", F10)), 0),"Not required") -> 177637 | P10: =IF(INTRO!$E$41="Endemic", IF($J10>1, IF($J10=4, "Unknown", IF($J10=99, "Surveillance", ROUND(D10*INTRO!$E$51,0))), 0),"Not required") -> 145286 | Q10: =IF(INTRO!$E$41="Endemic", IF($J10>1, IF($J10=4, "Unknown", IF($J10=99, "Surveillance", SUM($N10:$P10))), 0),"Not required") -> 406448 | R10: 0 | S10: 106129 | T10: 106960 | U10: =IF(INTRO!$E$43="Endemic", IF($K10>1, IF($K10=4, "Unknown", IF($K10=99, "Surveillance", SUM($R10:$T10))), 0),"Not required") -> 213089 | V10: 0 | W10: 0 | X10: 1 | Y10: 1
A11: =IF(INTRO!$E$33<>0,INTRO!$E$33, " ") -> Uganda | B11: Central | C11: Bukomansimbi | D11: 203619 | E11: =IF(INTRO!$E$48="","",ROUND($D11*INTRO!$E$48,0)) -> 28914 | F11: =IF(INTRO!$E$49="","",ROUND($D11*INTRO!$E$49,0)) -> 61493 | G11: =IF(INTRO!$E$50="","",ROUND($D11*INTRO!$E$50,0)) -> 106085 | H11: 0 | I11: 0 | J11: 3 | K11: 0 | L11: =IF(INTRO!$E$37="Endemic",IF($H11>0,IF($H11=4,"Unknown",IF($H11=99,"Stopped",$D11)),0),"Not required") -> 0 | M11: 0 | N11: =IF(INTRO!$E$41="Endemic", IF($J11>1, IF($J11=4, "Unknown", IF($J11=99, "Surveillance", E11)), 0),"Not required") -> 28914 | O11: =IF(INTRO!$E$41="Endemic", IF($J11>1, IF($J11=4, "Unknown", IF($J11=99, "Surveillance", F11)), 0),"Not required") -> 61493 | P11: =IF(INTRO!$E$41="Endemic", IF($J11>1, IF($J11=4, "Unknown", IF($J11=99, "Surveillance", ROUND(D11*INTRO!$E$51,0))), 0),"Not required") -> 50294 | Q11: =IF(INTRO!$E$41="Endemic", IF($J11>1, IF($J11=4, "Unknown", IF($J11=99, "Surveillance", SUM($N11:$P11))), 0),"Not required") -> 140701 | R11: 0 | S11: 0 | T11: 0 | U11: =IF(INTRO!$E$43="Endemic", IF($K11>1, IF($K11=4, "Unknown", IF($K11=99, "Surveillance", SUM($R11:$T11))), 0),"Not required") -> 0 | V11: 0 | W11: 0 | X11: 1 | Y11: 0
A12: =IF(INTRO!$E$33<>0,INTRO!$E$33, " ") -> Uganda | B12: Central | C12: Butambala | D12: 135411 | E12: =IF(INTRO!$E$48="","",ROUND($D12*INTRO!$E$48,0)) -> 19228 | F12: =IF(INTRO!$E$49="","",ROUND($D12*INTRO!$E$49,0)) -> 40894 | G12: =IF(INTRO!$E$50="","",ROUND($D12*INTRO!$E$50,0)) -> 70549 | H12: 0 | I12: 0 | J12: 3 | K12: 0 | L12: =IF(INTRO!$E$37="Endemic",IF($H12>0,IF($H12=4,"Unknown",IF($H12=99,"Stopped",$D12)),0),"Not required") -> 0 | M12: 0 | N12: =IF(INTRO!$E$41="Endemic", IF($J12>1, IF($J12=4, "Unknown", IF($J12=99, "Surveillance", E12)), 0),"Not required") -> 19228 | O12: =IF(INTRO!$E$41="Endemic", IF($J12>1, IF($J12=4, "Unknown", IF($J12=99, "Surveillance", F12)), 0),"Not required") -> 40894 | P12: =IF(INTRO!$E$41="Endemic", IF($J12>1, IF($J12=4, "Unknown", IF($J12=99, "Surveillance", ROUND(D12*INTRO!$E$51,0))), 0),"Not required") -> 33447 | Q12: =IF(INTRO!$E$41="Endemic", IF($J12>1, IF($J12=4, "Unknown", IF($J12=99, "Surveillance", SUM($N12:$P12))), 0),"Not required") -> 93569 | R12: 0 | S12: 0 | T12: 0 | U12: =IF(INTRO!$E$43="Endemic", IF($K12>1, IF($K12=4, "Unknown", IF($K12=99, "Surveillance", SUM($R12:$T12))), 0),"Not required") -> 0 | V12: 0 | W12: 0 | X12: 1 | Y12: 0
A13: =IF(INTRO!$E$33<>0,INTRO!$E$33, " ") -> Uganda | B13: Central | C13: Buvuma | D13: 121257 | E13: =IF(INTRO!$E$48="","",ROUND($D13*INTRO!$E$48,0)) -> 17218 | F13: =IF(INTRO!$E$49="","",ROUND($D13*INTRO!$E$49,0)) -> 36620 | G13: =IF(INTRO!$E$50="","",ROUND($D13*INTRO!$E$50,0)) -> 63175 | H13: 0 | I13: 0 | J13: 3 | K13: 31 | L13: =IF(INTRO!$E$37="Endemic",IF($H13>0,IF($H13=4,"Unknown",IF($H13=99,"Stopped",$D13)),0),"Not required") -> 0 | M13: 0 | N13: =IF(INTRO!$E$41="Endemic", IF($J13>1, IF($J13=4, "Unknown", IF($J13=99, "Surveillance", E13)), 0),"Not required") -> 17218 | O13: =IF(INTRO!$E$41="Endemic", IF($J13>1, IF($J13=4, "Unknown", IF($J13=99, "Surveillance", F13)), 0),"Not required") -> 36620 | P13: =IF(INTRO!$E$41="Endemic", IF($J13>1, IF($J13=4, "Unknown", IF($J13=99, "Surveillance", ROUND(D13*INTRO!$E$51,0))), 0),"Not required") -> 29950 | Q13: =IF(INTRO!$E$41="Endemic", IF($J13>1, IF($J13=4, "Unknown", IF($J13=99, "Surveillance", SUM($N13:$P13))), 0),"Not required") -> 83788 | R13: 0 | S13: 36620 | T13: 63175 | U13: =IF(INTRO!$E$43="Endemic", IF($K13>1, IF($K13=4, "Unknown", IF($K13=99, "Surveillance", SUM($R13:$T13))), 0),"Not required") -> 99795 | V13: 0 | W13: 0 | X13: 1 | Y13: 1
A14: =IF(INTRO!$E$33<>0,INTRO!$E$33, " ") -> Uganda | B14: Central | C14: Gomba | D14: 215757 | E14: =IF(INTRO!$E$48="","",ROUND($D14*INTRO!$E$48,0)) -> 30637 | F14: =IF(INTRO!$E$49="","",ROUND($D14*INTRO!$E$49,0)) -> 65159 | G14: =IF(INTRO!$E$50="","",ROUND($D14*INTRO!$E$50,0)) -> 112409 | H14: 0 | I14: 0 | J14: 3 | K14: 21 | L14: =IF(INTRO!$E$37="Endemic",IF($H14>0,IF($H14=4,"Unknown",IF($H14=99,"Stopped",$D14)),0),"Not required") -> 0 | M14: 0 | N14: =IF(INTRO!$E$41="Endemic", IF($J14>1, IF($J14=4, "Unknown", IF($J14=99, "Surveillance", E14)), 0),"Not required") -> 30637 | O14: =IF(INTRO!$E$41="Endemic", IF($J14>1, IF($J14=4, "Unknown", IF($J14=99, "Surveillance", F14)), 0),"Not required") -> 65159 | P14: =IF(INTRO!$E$41="Endemic", IF($J14>1, IF($J14=4, "Unknown", IF($J14=99, "Surveillance", ROUND(D14*INTRO!$E$51,0))), 0),"Not required") -> 53292 | Q14: =IF(INTRO!$E$41="Endemic", IF($J14>1, IF($J14=4, "Unknown", IF($J14=99, "Surveillance", SUM($N14:$P14))), 0),"Not required") -> 149088 | R14: 0 | S14: 16970 | T14: 22519 | U14: =IF(INTRO!$E$43="Endemic", IF($K14>1, IF($K14=4, "Unknown", IF($K14=99, "Surveillance", SUM($R14:$T14))), 0),"Not required") -> 39489 | V14: 0 | W14: 0 | X14: 1 | Y14: 1
A15: =IF(INTRO!$E$33<>0,INTRO!$E$33, " ") -> Uganda | B15: Central | C15: Kalangala | D15: 71991 | E15: =IF(INTRO!$E$48="","",ROUND($D15*INTRO!$E$48,0)) -> 10223 | F15: =IF(INTRO!$E$49="","",ROUND($D15*INTRO!$E$49,0)) -> 21741 | G15: =IF(INTRO!$E$50="","",ROUND($D15*INTRO!$E$50,0)) -> 37507 | H15: 0 | I15: 0 | J15: 3 | K15: 31 | L15: =IF(INTRO!$E$37="Endemic",IF($H15>0,IF($H15=4,"Unknown",IF($H15=99,"Stopped",$D15)),0),"Not required") -> 0 | M15: 0 | N15: =IF(INTRO!$E$41="Endemic", IF($J15>1, IF($J15=4, "Unknown", IF($J15=99, "Surveillance", E15)), 0),"Not required") -> 10223 | O15: =IF(INTRO!$E$41="Endemic", IF($J15>1, IF($J15=4, "Unknown", IF($J15=99, "Surveillance", F15)), 0),"Not required") -> 21741 | P15: =IF(INTRO!$E$41="Endemic", IF($J15>1, IF($J15=4, "Unknown", IF($J15=99, "Surveillance", ROUND(D15*INTRO!$E$51,0))), 0),"Not required") -> 17782 | Q15: =IF(INTRO!$E$41="Endemic", IF($J15>1, IF($J15=4, "Unknown", IF($J15=99, "Surveillance", SUM($N15:$P15))), 0),"Not required") -> 49746 | R15: 0 | S15: 8343 | T15: 37507 | U15: =IF(INTRO!$E$43="Endemic", IF($K15>1, IF($K15=4, "Unknown", IF($K15=99, "Surveillance", SUM($R15:$T15))), 0),"Not required") -> 45850 | V15: 0 | W15: 0 | X15: 1 | Y15: 1
A16: =IF(INTRO!$E$33<>0,INTRO!$E$33, " ") -> Uganda | B16: Central | C16: Kalungu | D16: 248176 | E16: =IF(INTRO!$E$48="","",ROUND($D16*INTRO!$E$48,0)) -> 35241 | F16: =IF(INTRO!$E$49="","",ROUND($D16*INTRO!$E$49,0)) -> 74949 | G16: =IF(INTRO!$E$50="","",ROUND($D16*INTRO!$E$50,0)) -> 129300 | H16: 0 | I16: 0 | J16: 21 | K16: 11 | L16: =IF(INTRO!$E$37="Endemic",IF($H16>0,IF($H16=4,"Unknown",IF($H16=99,"Stopped",$D16)),0),"Not required") -> 0 | M16: 0 | N16: =IF(INTRO!$E$41="Endemic", IF($J16>1, IF($J16=4, "Unknown", IF($J16=99, "Surveillance", E16)), 0),"Not required") -> 35241 | O16: =IF(INTRO!$E$41="Endemic", IF($J16>1, IF($J16=4, "Unknown", IF($J16=99, "Surveillance", F16)), 0),"Not required") -> 74949 | P16: =IF(INTRO!$E$41="Endemic", IF($J16>1, IF($J16=4, "Unknown", IF($J16=99, "Surveillance", ROUND(D16*INTRO!$E$51,0))), 0),"Not required") -> 61299 | Q16: =IF(INTRO!$E$41="Endemic", IF($J16>1, IF($J16=4, "Unknown", IF($J16=99, "Surveillance", SUM($N16:$P16))), 0),"Not required") -> 171489 | R16: 0 | S16: 24035 | T16: 0 | U16: =IF(INTRO!$E$43="Endemic", IF($K16>1, IF($K16=4, "Unknown", IF($K16=99, "Surveillance", SUM($R16:$T16))), 0),"Not required") -> 24035 | V16: 0 | W16: 0 | X16: 1 | Y16: 1
A17: =IF(INTRO!$E$33<>0,INTRO!$E$33, " ") -> Uganda | B17: Central | C17: Kampala | D17: 2043608 | E17: =IF(INTRO!$E$48="","",ROUND($D17*INTRO!$E$48,0)) -> 290192 | F17: =IF(INTRO!$E$49="","",ROUND($D17*INTRO!$E$49,0)) -> 617170 | G17: =IF(INTRO!$E$50="","",ROUND($D17*INTRO!$E$50,0)) -> 1064720 | H17: 0 | I17: 0 | J17: 3 | K17: 0 | L17: =IF(INTRO!$E$37="Endemic",IF($H17>0,IF($H17=4,"Unknown",IF($H17=99,"Stopped",$D17)),0),"Not required") -> 0 | M17: 0 | N17: =IF(INTRO!$E$41="Endemic", IF($J17>1, IF($J17=4, "Unknown", IF($J17=99, "Surveillance", E17)), 0),"Not required") -> 290192 | O17: =IF(INTRO!$E$41="Endemic", IF($J17>1, IF($J17=4, "Unknown", IF($J17=99, "Surveillance", F17)), 0),"Not required") -> 617170 | P17: =IF(INTRO!$E$41="Endemic", IF($J17>1, IF($J17=4, "Unknown", IF($J17=99, "Surveillance", ROUND(D17*INTRO!$E$51,0))), 0),"Not required") -> 504771 | Q17: =IF(INTRO!$E$41="Endemic", IF($J17>1, IF($J17=4, "Unknown", IF($J17=99, "Surveillance", SUM($N17:$P17))), 0),"Not required") -> 1412133 | R17: 0 | S17: 0 | T17: 0 | U17: =IF(INTRO!$E$43="Endemic", IF($K17>1, IF($K17=4, "Unknown", IF($K17=99, "Surveillance", SUM($R17:$T17))), 0),"Not required") -> 0 | V17: 0 | W17: 0 | X17: 1 | Y17: 0
A18: =IF(INTRO!$E$33<>0,INTRO!$E$33, " ") -> Uganda | B18: Central | C18: Kassanda | D18: 371014 | E18: =IF(INTRO!$E$48="","",ROUND($D18*INTRO!$E$48,0)) -> 52684 | F18: =IF(INTRO!$E$49="","",ROUND($D18*INTRO!$E$49,0)) -> 112046 | G18: =IF(INTRO!$E$50="","",ROUND($D18*INTRO!$E$50,0)) -> 193298 | H18: 0 | I18: 0 | J18: 21 | K18: 21 | L18: =IF(INTRO!$E$37="Endemic",IF($H18>0,IF($H18=4,"Unknown",IF($H18=99,"Stopped",$D18)),0),"Not required") -> 0 | M18: 0 | N18: =IF(INTRO!$E$41="Endemic", IF($J18>1, IF($J18=4, "Unknown", IF($J18=99, "Surveillance", E18)), 0),"Not required") -> 52684 | O18: =IF(INTRO!$E$41="Endemic", IF($J18>1, IF($J18=4, "Unknown", IF($J18=99, "Surveillance", F18)), 0),"Not required") -> 112046 | P18: =IF(INTRO!$E$41="Endemic", IF($J18>1, IF($J18=4, "Unknown", IF($J18=99, "Surveillance", ROUND(D18*INTRO!$E$51,0))), 0),"Not required") -> 91640 | Q18: =IF(INTRO!$E$41="Endemic", IF($J18>1, IF($J18=4, "Unknown", IF($J18=99, "Surveillance", SUM($N18:$P18))), 0),"Not required") -> 256370 | R18: 0 | S18: 56116 | T18: 38724 | U18: =IF(INTRO!$E$43="Endemic", IF($K18>1, IF($K18=4, "Unknown", IF($K18=99, "Surveillance", SUM($R18:$T18))), 0),"Not required") -> 94840 | V18: 0 | W18: 0 | X18: 1 | Y18: 1
A19: =IF(INTRO!$E$33<>0,INTRO!$E$33, " ") -> Uganda | B19: Central | C19: Kayunga | D19: 498983 | E19: =IF(INTRO!$E$48="","",ROUND($D19*INTRO!$E$48,0)) -> 70856 | F19: =IF(INTRO!$E$49="","",ROUND($D19*INTRO!$E$49,0)) -> 150693 | G19: =IF(INTRO!$E$50="","",ROUND($D19*INTRO!$E$50,0)) -> 259970 | H19: 0 | I19: 0 | J19: 3 | K19: 3 | L19: =IF(INTRO!$E$37="Endemic",IF($H19>0,IF($H19=4,"Unknown",IF($H19=99,"Stopped",$D19)),0),"Not required") -> 0 | M19: 0 | N19: =IF(INTRO!$E$41="Endemic", IF($J19>1, IF($J19=4, "Unknown", IF($J19=99, "Surveillance", E19)), 0),"Not required") -> 70856 | O19: =IF(INTRO!$E$41="Endemic", IF($J19>1, IF($J19=4, "Unknown", IF($J19=99, "Surveillance", F19)), 0),"Not required") -> 150693 | P19: =IF(INTRO!$E$41="Endemic", IF($J19>1, IF($J19=4, "Unknown", IF($J19=99, "Surveillance", ROUND(D19*INTRO!$E$51,0))), 0),"Not required") -> 123249 | Q19: =IF(INTRO!$E$41="Endemic", IF($J19>1, IF($J19=4, "Unknown", IF($J19=99, "Surveillance", SUM($N19:$P19))), 0),"Not required") -> 344798 | R19: 0 | S19: 75254 | T19: 259970 | U19: =IF(INTRO!$E$43="Endemic", IF($K19>1, IF($K19=4, "Unknown", IF($K19=99, "Surveillance", SUM($R19:$T19))), 0),"Not required") -> 335224 | V19: 0 | W19: 0 | X19: 1 | Y19: 1
A20: =IF(INTRO!$E$33<>0,INTRO!$E$33, " ") -> Uganda | B20: Central | C20: Kiboga | D20: 199773 | E20: =IF(INTRO!$E$48="","",ROUND($D20*INTRO!$E$48,0)) -> 28368 | F20: =IF(INTRO!$E$49="","",ROUND($D20*INTRO!$E$49,0)) -> 60331 | G20: =IF(INTRO!$E$50="","",ROUND($D20*INTRO!$E$50,0)) -> 104082 | H20: 0 | I20: 0 | J20: 3 | K20: 0 | L20: =IF(INTRO!$E$37="Endemic",IF($H20>0,IF($H20=4,"Unknown",IF($H20=99,"Stopped",$D20)),0),"Not required") -> 0 | M20: 0 | N20: =IF(INTRO!$E$41="Endemic", IF($J20>1, IF($J20=4, "Unknown", IF($J20=99, "Surveillance", E20)), 0),"Not required") -> 28368 | O20: =IF(INTRO!$E$41="Endemic", IF($J20>1, IF($J20=4, "Unknown", IF($J20=99, "Surveillance", F20)), 0),"Not required") -> 60331 | P20: =IF(INTRO!$E$41="Endemic", IF($J20>1, IF($J20=4, "Unknown", IF($J20=99, "Surveillance", ROUND(D20*INTRO!$E$51,0))), 0),"Not required") -> 49344 | Q20: =IF(INTRO!$E$41="Endemic", IF($J20>1, IF($J20=4, "Unknown", IF($J20=99, "Surveillance", SUM($N20:$P20))), 0),"Not required") -> 138043 | R20: 0 | S20: 0 | T20: 0 | U20: =IF(INTRO!$E$43="Endemic", IF($K20>1, IF($K20=4, "Unknown", IF($K20=99, "Surveillance", SUM($R20:$T20))), 0),"Not required") -> 0 | V20: 0 | W20: 0 | X20: 1 | Y20: 0
A21: =IF(INTRO!$E$33<>0,INTRO!$E$33, " ") -> Uganda | B21: Central | C21: Kyankwanzi | D21: 289373 | E21: =IF(INTRO!$E$48="","",ROUND($D21*INTRO!$E$48,0)) -> 41091 | F21: =IF(INTRO!$E$49="","",ROUND($D21*INTRO!$E$49,0)) -> 87391 | G21: =IF(INTRO!$E$50="","",ROUND($D21*INTRO!$E$50,0)) -> 150763 | H21: 0 | I21: 0 | J21: 3 | K21: 0 | L21: =IF(INTRO!$E$37="Endemic",IF($H21>0,IF($H21=4,"Unknown",IF($H21=99,"Stopped",$D21)),0),"Not required") -> 0 | M21: 0 | N21: =IF(INTRO!$E$41="Endemic", IF($J21>1, IF($J21=4, "Unknown", IF($J21=99, "Surveillance", E21)), 0),"Not required") -> 41091 | O21: =IF(INTRO!$E$41="Endemic", IF($J21>1, IF($J21=4, "Unknown", IF($J21=99, "Surveillance", F21)), 0),"Not required") -> 87391 | P21: =IF(INTRO!$E$41="Endemic", IF($J21>1, IF($J21=4, "Unknown", IF($J21=99, "Surveillance", ROUND(D21*INTRO!$E$51,0))), 0),"Not required") -> 71475 | Q21: =IF(INTRO!$E$41="Endemic", IF($J21>1, IF($J21=4, "Unknown", IF($J21=99, "Surveillance", SUM($N21:$P21))), 0),"Not required") -> 199957 | R21: 0 | S21: 0 | T21: 0 | U21: =IF(INTRO!$E$43="Endemic", IF($K21>1, IF($K21=4, "Unknown", IF($K21=99, "Surveillance", SUM($R21:$T21))), 0),"Not required") -> 0 | V21: 0 | W21: 0 | X21: 1 | Y21: 0
A22: =IF(INTRO!$E$33<>0,INTRO!$E$33, " ") -> Uganda | B22: Central | C22: Kyotera | D22: 218239 | E22: =IF(INTRO!$E$48="","",ROUND($D22*INTRO!$E$48,0)) -> 30990 | F22: =IF(INTRO!$E$49="","",ROUND($D22*INTRO!$E$49,0)) -> 65908 | G22: =IF(INTRO!$E$50="","",ROUND($D22*INTRO!$E$50,0)) -> 113703 | H22: 0 | I22: 0 | J22: 21 | K22: 11 | L22: =IF(INTRO!$E$37="Endemic",IF($H22>0,IF($H22=4,"Unknown",IF($H22=99,"Stopped",$D22)),0),"Not required") -> 0 | M22: 0 | N22: =IF(INTRO!$E$41="Endemic", IF($J22>1, IF($J22=4, "Unknown", IF($J22=99, "Surveillance", E22)), 0),"Not required") -> 30990 | O22: =IF(INTRO!$E$41="Endemic", IF($J22>1, IF($J22=4, "Unknown", IF($J22=99, "Surveillance", F22)), 0),"Not required") -> 65908 | P22: =IF(INTRO!$E$41="Endemic", IF($J22>1, IF($J22=4, "Unknown", IF($J22=99, "Surveillance", ROUND(D22*INTRO!$E$51,0))), 0),"Not required") -> 53905 | Q22: =IF(INTRO!$E$41="Endemic", IF($J22>1, IF($J22=4, "Unknown", IF($J22=99, "Surveillance", SUM($N22:$P22))), 0),"Not required") -> 150803 | R22: 0 | S22: 21786 | T22: 0 | U22: =IF(INTRO!$E$43="Endemic", IF($K22>1, IF($K22=4, "Unknown", IF($K22=99, "Surveillance", SUM($R22:$T22))), 0),"Not required") -> 21786 | V22: 0 | W22: 0 | X22: 1 | Y22: 1
A23: =IF(INTRO!$E$33<>0,INTRO!$E$33, " ") -> Uganda | B23: Central | C23: Luwero | D23: 615904 | E23: =IF(INTRO!$E$48="","",ROUND($D23*INTRO!$E$48,0)) -> 87458 | F23: =IF(INTRO!$E$49="","",ROUND($D23*INTRO!$E$49,0)) -> 186003 | G23: =IF(INTRO!$E$50="","",ROUND($D23*INTRO!$E$50,0)) -> 320886 | H23: 0 | I23: 0 | J23: 3 | K23: 0 | L23: =IF(INTRO!$E$37="Endemic",IF($H23>0,IF($H23=4,"Unknown",IF($H23=99,"Stopped",$D23)),0),"Not required") -> 0 | M23: 0 | N23: =IF(INTRO!$E$41="Endemic", IF($J23>1, IF($J23=4, "Unknown", IF($J23=99, "Surveillance", E23)), 0),"Not required") -> 87458 | O23: =IF(INTRO!$E$41="Endemic", IF($J23>1, IF($J23=4, "Unknown", IF($J23=99, "Surveillance", F23)), 0),"Not required") -> 186003 | P23: =IF(INTRO!$E$41="Endemic", IF($J23>1, IF($J23=4, "Unknown", IF($J23=99, "Surveillance", ROUND(D23*INTRO!$E$51,0))), 0),"Not required") -> 152128 | Q23: =IF(INTRO!$E$41="Endemic", IF($J23>1, IF($J23=4, "Unknown", IF($J23=99, "Surveillance", SUM($N23:$P23))), 0),"Not required") -> 425589 | R23: 0 | S23: 0 | T23: 0 | U23: =IF(INTRO!$E$43="Endemic", IF($K23>1, IF($K23=4, "Unknown", IF($K23=99, "Surveillance", SUM($R23:$T23))), 0),"Not required") -> 0 | V23: 0 | W23: 0 | X23: 1 | Y23: 0
A24: =IF(INTRO!$E$33<>0,INTRO!$E$33, " ") -> Uganda | B24: Central | C24: Lwengo | D24: 371260 | E24: =IF(INTRO!$E$48="","",ROUND($D24*INTRO!$E$48,0)) -> 52719 | F24: =IF(INTRO!$E$49="","",ROUND($D24*INTRO!$E$49,0)) -> 112121 | G24: =IF(INTRO!$E$50="","",ROUND($D24*INTRO!$E$50,0)) -> 193426 | H24: 0 | I24: 0 | J24: 3 | K24: 0 | L24: =IF(INTRO!$E$37="Endemic",IF($H24>0,IF($H24=4,"Unknown",IF($H24=99,"Stopped",$D24)),0),"Not required") -> 0 | M24: 0 | N24: =IF(INTRO!$E$41="Endemic", IF($J24>1, IF($J24=4, "Unknown", IF($J24=99, "Surveillance", E24)), 0),"Not required") -> 52719 | O24: =IF(INTRO!$E$41="Endemic", IF($J24>1, IF($J24=4, "Unknown", IF($J24=99, "Surveillance", F24)), 0),"Not required") -> 112121 | P24: =IF(INTRO!$E$41="Endemic", IF($J24>1, IF($J24=4, "Unknown", IF($J24=99, "Surveillance", ROUND(D24*INTRO!$E$51,0))), 0),"Not required") -> 91701 | Q24: =IF(INTRO!$E$41="Endemic", IF($J24>1, IF($J24=4, "Unknown", IF($J24=99, "Surveillance", SUM($N24:$P24))), 0),"Not required") -> 256541 | R24: 0 | S24: 0 | T24: 0 | U24: =IF(INTRO!$E$43="Endemic", IF($K24>1, IF($K24=4, "Unknown", IF($K24=99, "Surveillance", SUM($R24:$T24))), 0),"Not required") -> 0 | V24: 0 | W24: 0 | X24: 1 | Y24: 0
A25: =IF(INTRO!$E$33<>0,INTRO!$E$33, " ") -> Uganda | B25: Central | C25: Lyantonde | D25: 127469 | E25: =IF(INTRO!$E$48="","",ROUND($D25*INTRO!$E$48,0)) -> 18101 | F25: =IF(INTRO!$E$49="","",ROUND($D25*INTRO!$E$49,0)) -> 38496 | G25: =IF(INTRO!$E$50="","",ROUND($D25*INTRO!$E$50,0)) -> 66411 | H25: 0 | I25: 0 | J25: 3 | K25: 0 | L25: =IF(INTRO!$E$37="Endemic",IF($H25>0,IF($H25=4,"Unknown",IF($H25=99,"Stopped",$D25)),0),"Not required") -> 0 | M25: 0 | N25: =IF(INTRO!$E$41="Endemic", IF($J25>1, IF($J25=4, "Unknown", IF($J25=99, "Surveillance", E25)), 0),"Not required") -> 18101 | O25: =IF(INTRO!$E$41="Endemic", IF($J25>1, IF($J25=4, "Unknown", IF($J25=99, "Surveillance", F25)), 0),"Not required") -> 38496 | P25: =IF(INTRO!$E$41="Endemic", IF($J25>1, IF($J25=4, "Unknown", IF($J25=99, "Surveillance", ROUND(D25*INTRO!$E$51,0))), 0),"Not required") -> 31485 | Q25: =IF(INTRO!$E$41="Endemic", IF($J25>1, IF($J25=4, "Unknown", IF($J25=99, "Surveillance", SUM($N25:$P25))), 0),"Not required") -> 88082 | R25: 0 | S25: 0 | T25: 0 | U25: =IF(INTRO!$E$43="Endemic", IF($K25>1, IF($K25=4, "Unknown", IF($K25=99, "Surveillance", SUM($R25:$T25))), 0),"Not required") -> 0 | V25: 0 | W25: 0 | X25: 1 | Y25: 0
A26: =IF(INTRO!$E$33<>0,INTRO!$E$33, " ") -> Uganda | B26: Central | C26: Masaka | D26: 259889 | E26: =IF(INTRO!$E$48="","",ROUND($D26*INTRO!$E$48,0)) -> 36904 | F26: =IF(INTRO!$E$49="","",ROUND($D26*INTRO!$E$49,0)) -> 78486 | G26: =IF(INTRO!$E$50="","",ROUND($D26*INTRO!$E$50,0)) -> 135402 | H26: 0 | I26: 0 | J26: 3 | K26: 3 | L26: =IF(INTRO!$E$37="Endemic",IF($H26>0,IF($H26=4,"Unknown",IF($H26=99,"Stopped",$D26)),0),"Not required") -> 0 | M26: 0 | N26: =IF(INTRO!$E$41="Endemic", IF($J26>1, IF($J26=4, "Unknown", IF($J26=99, "Surveillance", E26)), 0),"Not required") -> 36904 | O26: =IF(INTRO!$E$41="Endemic", IF($J26>1, IF($J26=4, "Unknown", IF($J26=99, "Surveillance", F26)), 0),"Not required") -> 78486 | P26: =IF(INTRO!$E$41="Endemic", IF($J26>1, IF($J26=4, "Unknown", IF($J26=99, "Surveillance", ROUND(D26*INTRO!$E$51,0))), 0),"Not required") -> 64193 | Q26: =IF(INTRO!$E$41="Endemic", IF($J26>1, IF($J26=4, "Unknown", IF($J26=99, "Surveillance", SUM($N26:$P26))), 0),"Not required") -> 179583 | R26: 0 | S26: 44225 | T26: 135402 | U26: =IF(INTRO!$E$43="Endemic", IF($K26>1, IF($K26=4, "Unknown", IF($K26=99, "Surveillance", SUM($R26:$T26))), 0),"Not required") -> 179627 | V26: 0 | W26: 0 | X26: 1 | Y26: 1
A27: =IF(INTRO!$E$33<>0,INTRO!$E$33, " ") -> Uganda | B27: Central | C27: Masaka City | D27: 139940 | E27: =IF(INTRO!$E$48="","",ROUND($D27*INTRO!$E$48,0)) -> 19871 | F27: =IF(INTRO!$E$49="","",ROUND($D27*INTRO!$E$49,0)) -> 42262 | G27: =IF(INTRO!$E$50="","",ROUND($D27*INTRO!$E$50,0)) -> 72909 | H27: 0 | I27: 0 | J27: 3 | K27: 0 | L27: =IF(INTRO!$E$37="Endemic",IF($H27>0,IF($H27=4,"Unknown",IF($H27=99,"Stopped",$D27)),0),"Not required") -> 0 | M27: 0 | N27: =IF(INTRO!$E$41="Endemic", IF($J27>1, IF($J27=4, "Unknown", IF($J27=99, "Surveillance", E27)), 0),"Not required") -> 19871 | O27: =IF(INTRO!$E$41="Endemic", IF($J27>1, IF($J27=4, "Unknown", IF($J27=99, "Surveillance", F27)), 0),"Not required") -> 42262 | P27: =IF(INTRO!$E$41="Endemic", IF($J27>1, IF($J27=4, "Unknown", IF($J27=99, "Surveillance", ROUND(D27*INTRO!$E$51,0))), 0),"Not required") -> 34565 | Q27: =IF(INTRO!$E$41="Endemic", IF($J27>1, IF($J27=4, "Unknown", IF($J27=99, "Surveillance", SUM($N27:$P27))), 0),"Not required") -> 96698 | R27: 0 | S27: 0 | T27: 0 | U27: =IF(INTRO!$E$43="Endemic", IF($K27>1, IF($K27=4, "Unknown", IF($K27=99, "Surveillance", SUM($R27:$T27))), 0),"Not required") -> 0 | V27: 0 | W27: 0 | X27: 1 | Y27: 0
A28: =IF(INTRO!$E$33<>0,INTRO!$E$33, " ") -> Uganda | B28: Central | C28: Mityana | D28: 446483 | E28: =IF(INTRO!$E$48="","",ROUND($D28*INTRO!$E$48,0)) -> 63401 | F28: =IF(INTRO!$E$49="","",ROUND($D28*INTRO!$E$49,0)) -> 134838 | G28: =IF(INTRO!$E$50="","",ROUND($D28*INTRO!$E$50,0)) -> 232618 | H28: 0 | I28: 0 | J28: 3 | K28: 3 | L28: =IF(INTRO!$E$37="Endemic",IF($H28>0,IF($H28=4,"Unknown",IF($H28=99,"Stopped",$D28)),0),"Not required") -> 0 | M28: 0 | N28: =IF(INTRO!$E$41="Endemic", IF($J28>1, IF($J28=4, "Unknown", IF($J28=99, "Surveillance", E28)), 0),"Not required") -> 63401 | O28: =IF(INTRO!$E$41="Endemic", IF($J28>1, IF($J28=4, "Unknown", IF($J28=99, "Surveillance", F28)), 0),"Not required") -> 134838 | P28: =IF(INTRO!$E$41="Endemic", IF($J28>1, IF($J28=4, "Unknown", IF($J28=99, "Surveillance", ROUND(D28*INTRO!$E$51,0))), 0),"Not required") -> 110281 | Q28: =IF(INTRO!$E$41="Endemic", IF($J28>1, IF($J28=4, "Unknown", IF($J28=99, "Surveillance", SUM($N28:$P28))), 0),"Not required") -> 308520 | R28: 0 | S28: 16442 | T28: 33001 | U28: =IF(INTRO!$E$43="Endemic", IF($K28>1, IF($K28=4, "Unknown", IF($K28=99, "Surveillance", SUM($R28:$T28))), 0),"Not required") -> 49443 | V28: 0 | W28: 0 | X28: 1 | Y28: 1
A29: =IF(INTRO!$E$33<>0,INTRO!$E$33, " ") -> Uganda | B29: Central | C29: Mpigi | D29: 339002 | E29: =IF(INTRO!$E$48="","",ROUND($D29*INTRO!$E$48,0)) -> 48138 | F29: =IF(INTRO!$E$49="","",ROUND($D29*INTRO!$E$49,0)) -> 102379 | G29: =IF(INTRO!$E$50="","",ROUND($D29*INTRO!$E$50,0)) -> 176620 | H29: 0 | I29: 0 | J29: 3 | K29: 21 | L29: =IF(INTRO!$E$37="Endemic",IF($H29>0,IF($H29=4,"Unknown",IF($H29=99,"Stopped",$D29)),0),"Not required") -> 0 | M29: 0 | N29: =IF(INTRO!$E$41="Endemic", IF($J29>1, IF($J29=4, "Unknown", IF($J29=99, "Surveillance", E29)), 0),"Not required") -> 48138 | O29: =IF(INTRO!$E$41="Endemic", IF($J29>1, IF($J29=4, "Unknown", IF($J29=99, "Surveillance", F29)), 0),"Not required") -> 102379 | P29: =IF(INTRO!$E$41="Endemic", IF($J29>1, IF($J29=4, "Unknown", IF($J29=99, "Surveillance", ROUND(D29*INTRO!$E$51,0))), 0),"Not required") -> 83733 | Q29: =IF(INTRO!$E$41="Endemic", IF($J29>1, IF($J29=4, "Unknown", IF($J29=99, "Surveillance", SUM($N29:$P29))), 0),"Not required") -> 234250 | R29: 0 | S29: 31547 | T29: 35382 | U29: =IF(INTRO!$E$43="Endemic", IF($K29>1, IF($K29=4, "Unknown", IF($K29=99, "Surveillance", SUM($R29:$T29))), 0),"Not required") -> 66929 | V29: 0 | W29: 0 | X29: 1 | Y29: 1
A30: =IF(INTRO!$E$33<>0,INTRO!$E$33, " ") -> Uganda | B30: Central | C30: Mubende | D30: 557402 | E30: =IF(INTRO!$E$48="","",ROUND($D30*INTRO!$E$48,0)) -> 79151 | F30: =IF(INTRO!$E$49="","",ROUND($D30*INTRO!$E$49,0)) -> 168335 | G30: =IF(INTRO!$E$50="","",ROUND($D30*INTRO!$E$50,0)) -> 290406 | H30: 0 | I30: 0 | J30: 3 | K30: 11 | L30: =IF(INTRO!$E$37="Endemic",IF($H30>0,IF($H30=4,"Unknown",IF($H30=99,"Stopped",$D30)),0),"Not required") -> 0 | M30: 0 | N30: =IF(INTRO!$E$41="Endemic", IF($J30>1, IF($J30=4, "Unknown", IF($J30=99, "Surveillance", E30)), 0),"Not required") -> 79151 | O30: =IF(INTRO!$E$41="Endemic", IF($J30>1, IF($J30=4, "Unknown", IF($J30=99, "Surveillance", F30)), 0),"Not required") -> 168335 | P30: =IF(INTRO!$E$41="Endemic", IF($J30>1, IF($J30=4, "Unknown", IF($J30=99, "Surveillance", ROUND(D30*INTRO!$E$51,0))), 0),"Not required") -> 137678 | Q30: =IF(INTRO!$E$41="Endemic", IF($J30>1, IF($J30=4, "Unknown", IF($J30=99, "Surveillance", SUM($N30:$P30))), 0),"Not required") -> 385164 | R30: 0 | S30: 55642 | T30: 0 | U30: =IF(INTRO!$E$43="Endemic", IF($K30>1, IF($K30=4, "Unknown", IF($K30=99, "Surveillance", SUM($R30:$T30))), 0),"Not required") -> 55642 | V30: 0 | W30: 0 | X30: 1 | Y30: 1
A31: =IF(INTRO!$E$33<>0,INTRO!$E$33, " ") -> Uganda | B31: Central | C31: Mukono | D31: 808452 | E31: =IF(INTRO!$E$48="","",ROUND($D31*INTRO!$E$48,0)) -> 114800 | F31: =IF(INTRO!$E$49="","",ROUND($D31*INTRO!$E$49,0)) -> 244153 | G31: =IF(INTRO!$E$50="","",ROUND($D31*INTRO!$E$50,0)) -> 421203 | H31: 0 | I31: 0 | J31: 3 | K31: 3 | L31: =IF(INTRO!$E$37="Endemic",IF($H31>0,IF($H31=4,"Unknown",IF($H31=99,"Stopped",$D31)),0),"Not required") -> 0 | M31: 0 | N31: =IF(INTRO!$E$41="Endemic", IF($J31>1, IF($J31=4, "Unknown", IF($J31=99, "Surveillance", E31)), 0),"Not required") -> 114800 | O31: =IF(INTRO!$E$41="Endemic", IF($J31>1, IF($J31=4, "Unknown", IF($J31=99, "Surveillance", F31)), 0),"Not required") -> 244153 | P31: =IF(INTRO!$E$41="Endemic", IF($J31>1, IF($J31=4, "Unknown", IF($J31=99, "Surveillance", ROUND(D31*INTRO!$E$51,0))), 0),"Not required") -> 199688 | Q31: =IF(INTRO!$E$41="Endemic", IF($J31>1, IF($J31=4, "Unknown", IF($J31=99, "Surveillance", SUM($N31:$P31))), 0),"Not required") -> 558641 | R31: 0 | S31: 33881 | T31: 30385 | U31: =IF(INTRO!$E$43="Endemic", IF($K31>1, IF($K31=4, "Unknown", IF($K31=99, "Surveillance", SUM($R31:$T31))), 0),"Not required") -> 64266 | V31: 0 | W31: 0 | X31: 1 | Y31: 1
A32: =IF(INTRO!$E$33<>0,INTRO!$E$33, " ") -> Uganda | B32: Central | C32: Nakaseke | D32: 266479 | E32: =IF(INTRO!$E$48="","",ROUND($D32*INTRO!$E$48,0)) -> 37840 | F32: =IF(INTRO!$E$49="","",ROUND($D32*INTRO!$E$49,0)) -> 80477 | G32: =IF(INTRO!$E$50="","",ROUND($D32*INTRO!$E$50,0)) -> 138836 | H32: 0 | I32: 0 | J32: 3 | K32: 0 | L32: =IF(INTRO!$E$37="Endemic",IF($H32>0,IF($H32=4,"Unknown",IF($H32=99,"Stopped",$D32)),0),"Not required") -> 0 | M32: 0 | N32: =IF(INTRO!$E$41="Endemic", IF($J32>1, IF($J32=4, "Unknown", IF($J32=99, "Surveillance", E32)), 0),"Not required") -> 37840 | O32: =IF(INTRO!$E$41="Endemic", IF($J32>1, IF($J32=4, "Unknown", IF($J32=99, "Surveillance", F32)), 0),"Not required") -> 80477 | P32: =IF(INTRO!$E$41="Endemic", IF($J32>1, IF($J32=4, "Unknown", IF($J32=99, "Surveillance", ROUND(D32*INTRO!$E$51,0))), 0),"Not required") -> 65820 | Q32: =IF(INTRO!$E$41="Endemic", IF($J32>1, IF($J32=4, "Unknown", IF($J32=99, "Surveillance", SUM($N32:$P32))), 0),"Not required") -> 184137 | R32: 0 | S32: 0 | T32: 0 | U32: =IF(INTRO!$E$43="Endemic", IF($K32>1, IF($K32=4, "Unknown", IF($K32=99, "Surveillance", SUM($R32:$T32))), 0),"Not required") -> 0 | V32: 0 | W32: 0 | X32: 1 | Y32: 0
A33: =IF(INTRO!$E$33<>0,INTRO!$E$33, " ") -> Uganda | B33: Central | C33: Nakasongola | D33: 245123 | E33: =IF(INTRO!$E$48="","",ROUND($D33*INTRO!$E$48,0)) -> 34807 | F33: =IF(INTRO!$E$49="","",ROUND($D33*INTRO!$E$49,0)) -> 74027 | G33: =IF(INTRO!$E$50="","",ROUND($D33*INTRO!$E$50,0)) -> 127709 | H33: 0 | I33: 0 | J33: 11 | K33: 11 | L33: =IF(INTRO!$E$37="Endemic",IF($H33>0,IF($H33=4,"Unknown",IF($H33=99,"Stopped",$D33)),0),"Not required") -> 0 | M33: 0 | N33: =IF(INTRO!$E$41="Endemic", IF($J33>1, IF($J33=4, "Unknown", IF($J33=99, "Surveillance", E33)), 0),"Not required") -> 34807 | O33: =IF(INTRO!$E$41="Endemic", IF($J33>1, IF($J33=4, "Unknown", IF($J33=99, "Surveillance", F33)), 0),"Not required") -> 74027 | P33: =IF(INTRO!$E$41="Endemic", IF($J33>1, IF($J33=4, "Unknown", IF($J33=99, "Surveillance", ROUND(D33*INTRO!$E$51,0))), 0),"Not required") -> 60545 | Q33: =IF(INTRO!$E$41="Endemic", IF($J33>1, IF($J33=4, "Unknown", IF($J33=99, "Surveillance", SUM($N33:$P33))), 0),"Not required") -> 169379 | R33: 0 | S33: 24470 | T33: 0 | U33: =IF(INTRO!$E$43="Endemic", IF($K33>1, IF($K33=4, "Unknown", IF($K33=99, "Surveillance", SUM($R33:$T33))), 0),"Not required") -> 24470 | V33: 0 | W33: 0 | X33: 1 | Y33: 1
A34: =IF(INTRO!$E$33<>0,INTRO!$E$33, " ") -> Uganda | B34: Central | C34: Rakai | D34: 479958 | E34: =IF(INTRO!$E$48="","",ROUND($D34*INTRO!$E$48,0)) -> 68154 | F34: =IF(INTRO!$E$49="","",ROUND($D34*INTRO!$E$49,0)) -> 144947 | G34: =IF(INTRO!$E$50="","",ROUND($D34*INTRO!$E$50,0)) -> 250058 | H34: 0 | I34: 0 | J34: 11 | K34: 21 | L34: =IF(INTRO!$E$37="Endemic",IF($H34>0,IF($H34=4,"Unknown",IF($H34=99,"Stopped",$D34)),0),"Not required") -> 0 | M34: 0 | N34: =IF(INTRO!$E$41="Endemic", IF($J34>1, IF($J34=4, "Unknown", IF($J34=99, "Surveillance", E34)), 0),"Not required") -> 68154 | O34: =IF(INTRO!$E$41="Endemic", IF($J34>1, IF($J34=4, "Unknown", IF($J34=99, "Surveillance", F34)), 0),"Not required") -> 144947 | P34: =IF(INTRO!$E$41="Endemic", IF($J34>1, IF($J34=4, "Unknown", IF($J34=99, "Surveillance", ROUND(D34*INTRO!$E$51,0))), 0),"Not required") -> 118550 | Q34: =IF(INTRO!$E$41="Endemic", IF($J34>1, IF($J34=4, "Unknown", IF($J34=99, "Surveillance", SUM($N34:$P34))), 0),"Not required") -> 331651 | R34: 0 | S34: 84713 | T34: 50094 | U34: =IF(INTRO!$E$43="Endemic", IF($K34>1, IF($K34=4, "Unknown", IF($K34=99, "Surveillance", SUM($R34:$T34))), 0),"Not required") -> 134807 | V34: 0 | W34: 0 | X34: 1 | Y34: 1
A35: =IF(INTRO!$E$33<>0,INTRO!$E$33, " ") -> Uganda | B35: Central | C35: Sembabule | D35: 340997 | E35: =IF(INTRO!$E$48="","",ROUND($D35*INTRO!$E$48,0)) -> 48422 | F35: =IF(INTRO!$E$49="","",ROUND($D35*INTRO!$E$49,0)) -> 102981 | G35: =IF(INTRO!$E$50="","",ROUND($D35*INTRO!$E$50,0)) -> 177659 | H35: 0 | I35: 0 | J35: 3 | K35: 0 | L35: =IF(INTRO!$E$37="Endemic",IF($H35>0,IF($H35=4,"Unknown",IF($H35=99,"Stopped",$D35)),0),"Not required") -> 0 | M35: 0 | N35: =IF(INTRO!$E$41="Endemic", IF($J35>1, IF($J35=4, "Unknown", IF($J35=99, "Surveillance", E35)), 0),"Not required") -> 48422 | O35: =IF(INTRO!$E$41="Endemic", IF($J35>1, IF($J35=4, "Unknown", IF($J35=99, "Surveillance", F35)), 0),"Not required") -> 102981 | P35: =IF(INTRO!$E$41="Endemic", IF($J35>1, IF($J35=4, "Unknown", IF($J35=99, "Surveillance", ROUND(D35*INTRO!$E$51,0))), 0),"Not required") -> 84226 | Q35: =IF(INTRO!$E$41="Endemic", IF($J35>1, IF($J35=4, "Unknown", IF($J35=99, "Surveillance", SUM($N35:$P35))), 0),"Not required") -> 235629 | R35: 0 | S35: 0 | T35: 0 | U35: =IF(INTRO!$E$43="Endemic", IF($K35>1, IF($K35=4, "Unknown", IF($K35=99, "Surveillance", SUM($R35:$T35))), 0),"Not required") -> 0 | V35: 0 | W35: 0 | X35: 1 | Y35: 0
A36: =IF(INTRO!$E$33<>0,INTRO!$E$33, " ") -> Uganda | B36: Central | C36: Wakiso | D36: 2706057 | E36: =IF(INTRO!$E$48="","",ROUND($D36*INTRO!$E$48,0)) -> 384260 | F36: =IF(INTRO!$E$49="","",ROUND($D36*INTRO!$E$49,0)) -> 817229 | G36: =IF(INTRO!$E$50="","",ROUND($D36*INTRO!$E$50,0)) -> 1409856 | H36: 0 | I36: 0 | J36: 3 | K36: 3 | L36: =IF(INTRO!$E$37="Endemic",IF($H36>0,IF($H36=4,"Unknown",IF($H36=99,"Stopped",$D36)),0),"Not required") -> 0 | M36: 0 | N36: =IF(INTRO!$E$41="Endemic", IF($J36>1, IF($J36=4, "Unknown", IF($J36=99, "Surveillance", E36)), 0),"Not required") -> 384260 | O36: =IF(INTRO!$E$41="Endemic", IF($J36>1, IF($J36=4, "Unknown", IF($J36=99, "Surveillance", F36)), 0),"Not required") -> 817229 | P36: =IF(INTRO!$E$41="Endemic", IF($J36>1, IF($J36=4, "Unknown", IF($J36=99, "Surveillance", ROUND(D36*INTRO!$E$51,0))), 0),"Not required") -> 668396 | Q36: 107238 | R36: 0 | S36: 152545 | T36: 152182 | U36: =IF(INTRO!$E$43="Endemic", IF($K36>1, IF($K36=4, "Unknown", IF($K36=99, "Surveillance", SUM($R36:$T36))), 0),"Not required") -> 304727 | V36: 0 | W36: 0 | X36: 1 | Y36: 1
A37: =IF(INTRO!$E$33<>0,INTRO!$E$33, " ") -> Uganda | B37: Eastern | C37: Amuria | D37: 246663 | E37: =IF(INTRO!$E$48="","",ROUND($D37*INTRO!$E$48,0)) -> 35026 | F37: =IF(INTRO!$E$49="","",ROUND($D37*INTRO!$E$49,0)) -> 74492 | G37: =IF(INTRO!$E$50="","",ROUND($D37*INTRO!$E$50,0)) -> 128511 | H37: 99 | I37: 0 | J37: 3 | K37: 0 | L37: =IF(INTRO!$E$37="Endemic",IF($H37>0,IF($H37=4,"Unknown",IF($H37=99,"Stopped",$D37)),0),"Not required") -> Stopped | M37: 0 | N37: =IF(INTRO!$E$41="Endemic", IF($J37>1, IF($J37=4, "Unknown", IF($J37=99, "Surveillance", E37)), 0),"Not required") -> 35026 | O37: =IF(INTRO!$E$41="Endemic", IF($J37>1, IF($J37=4, "Unknown", IF($J37=99, "Surveillance", F37)), 0),"Not required") -> 74492 | P37: =IF(INTRO!$E$41="Endemic", IF($J37>1, IF($J37=4, "Unknown", IF($J37=99, "Surveillance", ROUND(D37*INTRO!$E$51,0))), 0),"Not required") -> 60926 | Q37: =IF(INTRO!$E$41="Endemic", IF($J37>1, IF($J37=4, "Unknown", IF($J37=99, "Surveillance", SUM($N37:$P37))), 0),"Not required") -> 170444 | R37: 0 | S37: 0 | T37: 0 | U37: =IF(INTRO!$E$43="Endemic", IF($K37>1, IF($K37=4, "Unknown", IF($K37=99, "Surveillance", SUM($R37:$T37))), 0),"Not required") -> 0 | V37: 0 | W37: 0 | X37: 1 | Y37: 0
A38: =IF(INTRO!$E$33<>0,INTRO!$E$33, " ") -> Uganda | B38: Eastern | C38: Budaka | D38: 280942 | E38: =IF(INTRO!$E$48="","",ROUND($D38*INTRO!$E$48,0)) -> 39894 | F38: =IF(INTRO!$E$49="","",ROUND($D38*INTRO!$E$49,0)) -> 84844 | G38: =IF(INTRO!$E$50="","",ROUND($D38*INTRO!$E$50,0)) -> 146371 | H38: 99 | I38: 0 | J38: 21 | K38: 21 | L38: =IF(INTRO!$E$37="Endemic",IF($H38>0,IF($H38=4,"Unknown",IF($H38=99,"Stopped",$D38)),0),"Not required") -> Stopped | M38: 0 | N38: =IF(INTRO!$E$41="Endemic", IF($J38>1, IF($J38=4, "Unknown", IF($J38=99, "Surveillance", E38)), 0),"Not required") -> 39894 | O38: =IF(INTRO!$E$41="Endemic", IF($J38>1, IF($J38=4, "Unknown", IF($J38=99, "Surveillance", F38)), 0),"Not required") -> 84844 | P38: =IF(INTRO!$E$41="Endemic", IF($J38>1, IF($J38=4, "Unknown", IF($J38=99, "Surveillance", ROUND(D38*INTRO!$E$51,0))), 0),"Not required") -> 69393 | Q38: =IF(INTRO!$E$41="Endemic", IF($J38>1, IF($J38=4, "Unknown", IF($J38=99, "Surveillance", SUM($N38:$P38))), 0),"Not required") -> 194131 | R38: 0 | S38: 80440 | T38: 29322 | U38: =IF(INTRO!$E$43="Endemic", IF($K38>1, IF($K38=4, "Unknown", IF($K38=99, "Surveillance", SUM($R38:$T38))), 0),"Not required") -> 109762 | V38: 0 | W38: 0 | X38: 1 | Y38: 1
A39: =IF(INTRO!$E$33<>0,INTRO!$E$33, " ") -> Uganda | B39: Eastern | C39: Bududa | D39: 285321 | E39: =IF(INTRO!$E$48="","",ROUND($D39*INTRO!$E$48,0)) -> 40516 | F39: =IF(INTRO!$E$49="","",ROUND($D39*INTRO!$E$49,0)) -> 86167 | G39: =IF(INTRO!$E$50="","",ROUND($D39*INTRO!$E$50,0)) -> 148652 | H39: 0 | I39: 99 | J39: 3 | K39: 0 | L39: =IF(INTRO!$E$37="Endemic",IF($H39>0,IF($H39=4,"Unknown",IF($H39=99,"Stopped",$D39)),0),"Not required") -> 0 | M39: 0 | N39: =IF(INTRO!$E$41="Endemic", IF($J39>1, IF($J39=4, "Unknown", IF($J39=99, "Surveillance", E39)), 0),"Not required") -> 40516 | O39: =IF(INTRO!$E$41="Endemic", IF($J39>1, IF($J39=4, "Unknown", IF($J39=99, "Surveillance", F39)), 0),"Not required") -> 86167 | P39: =IF(INTRO!$E$41="Endemic", IF($J39>1, IF($J39=4, "Unknown", IF($J39=99, "Surveillance", ROUND(D39*INTRO!$E$51,0))), 0),"Not required") -> 70474 | Q39: =IF(INTRO!$E$41="Endemic", IF($J39>1, IF($J39=4, "Unknown", IF($J39=99, "Surveillance", SUM($N39:$P39))), 0),"Not required") -> 197157 | R39: 0 | S39: 0 | T39: 0 | U39: =IF(INTRO!$E$43="Endemic", IF($K39>1, IF($K39=4, "Unknown", IF($K39=99, "Surveillance", SUM($R39:$T39))), 0),"Not required") -> 0 | V39: 0 | W39: 0 | X39: 1 | Y39: 0
A40: =IF(INTRO!$E$33<>0,INTRO!$E$33, " ") -> Uganda | B40: Eastern | C40: Bugiri | D40: 525765 | E40: =IF(INTRO!$E$48="","",ROUND($D40*INTRO!$E$48,0)) -> 74659 | F40: =IF(INTRO!$E$49="","",ROUND($D40*INTRO!$E$49,0)) -> 158781 | G40: =IF(INTRO!$E$50="","",ROUND($D40*INTRO!$E$50,0)) -> 273924 | H40: 99 | I40: 0 | J40: 21 | K40: 21 | L40: =IF(INTRO!$E$37="Endemic",IF($H40>0,IF($H40=4,"Unknown",IF($H40=99,"Stopped",$D40)),0),"Not required") -> Stopped | M40: 0 | N40: =IF(INTRO!$E$41="Endemic", IF($J40>1, IF($J40=4, "Unknown", IF($J40=99, "Surveillance", E40)), 0),"Not required") -> 74659 | O40: =IF(INTRO!$E$41="Endemic", IF($J40>1, IF($J40=4, "Unknown", IF($J40=99, "Surveillance", F40)), 0),"Not required") -> 158781 | P40: =IF(INTRO!$E$41="Endemic", IF($J40>1, IF($J40=4, "Unknown", IF($J40=99, "Surveillance", ROUND(D40*INTRO!$E$51,0))), 0),"Not required") -> 129864 | Q40: =IF(INTRO!$E$41="Endemic", IF($J40>1, IF($J40=4, "Unknown", IF($J40=99, "Surveillance", SUM($N40:$P40))), 0),"Not required") -> 363304 | R40: 0 | S40: 40178 | T40: 54875 | U40: =IF(INTRO!$E$43="Endemic", IF($K40>1, IF($K40=4, "Unknown", IF($K40=99, "Surveillance", SUM($R40:$T40))), 0),"Not required") -> 95053 | V40: 0 | W40: 0 | X40: 1 | Y40: 1
A41: =IF(INTRO!$E$33<>0,INTRO!$E$33, " ") -> Uganda | B41: Eastern | C41: Bugweri | D41: 227607 | E41: =IF(INTRO!$E$48="","",ROUND($D41*INTRO!$E$48,0)) -> 32320 | F41: =IF(INTRO!$E$49="","",ROUND($D41*INTRO!$E$49,0)) -> 68737 | G41: =IF(INTRO!$E$50="","",ROUND($D41*INTRO!$E$50,0)) -> 118583 | H41: 99 | I41: 0 | J41: 3 | K41: 11 | L41: =IF(INTRO!$E$37="Endemic",IF($H41>0,IF($H41=4,"Unknown",IF($H41=99,"Stopped",$D41)),0),"Not required") -> Stopped | M41: 0 | N41: =IF(INTRO!$E$41="Endemic", IF($J41>1, IF($J41=4, "Unknown", IF($J41=99, "Surveillance", E41)), 0),"Not required") -> 32320 | O41: =IF(INTRO!$E$41="Endemic", IF($J41>1, IF($J41=4, "Unknown", IF($J41=99, "Surveillance", F41)), 0),"Not required") -> 68737 | P41: =IF(INTRO!$E$41="Endemic", IF($J41>1, IF($J41=4, "Unknown", IF($J41=99, "Surveillance", ROUND(D41*INTRO!$E$51,0))), 0),"Not required") -> 56219 | Q41: =IF(INTRO!$E$41="Endemic", IF($J41>1, IF($J41=4, "Unknown", IF($J41=99, "Surveillance", SUM($N41:$P41))), 0),"Not required") -> 157276 | R41: 0 | S41: 22721 | T41: 0 | U41: =IF(INTRO!$E$43="Endemic", IF($K41>1, IF($K41=4, "Unknown", IF($K41=99, "Surveillance", SUM($R41:$T41))), 0),"Not required") -> 22721 | V41: 0 | W41: 0 | X41: 1 | Y41: 1
A42: =IF(INTRO!$E$33<>0,INTRO!$E$33, " ") -> Uganda | B42: Eastern | C42: Bukedea | D42: 254628 | E42: =IF(INTRO!$E$48="","",ROUND($D42*INTRO!$E$48,0)) -> 36157 | F42: =IF(INTRO!$E$49="","",ROUND($D42*INTRO!$E$49,0)) -> 76898 | G42: =IF(INTRO!$E$50="","",ROUND($D42*INTRO!$E$50,0)) -> 132661 | H42: 99 | I42: 0 | J42: 11 | K42: 11 | L42: =IF(INTRO!$E$37="Endemic",IF($H42>0,IF($H42=4,"Unknown",IF($H42=99,"Stopped",$D42)),0),"Not required") -> Stopped | M42: 0 | N42: =IF(INTRO!$E$41="Endemic", IF($J42>1, IF($J42=4, "Unknown", IF($J42=99, "Surveillance", E42)), 0),"Not required") -> 36157 | O42: =IF(INTRO!$E$41="Endemic", IF($J42>1, IF($J42=4, "Unknown", IF($J42=99, "Surveillance", F42)), 0),"Not required") -> 76898 | P42: =IF(INTRO!$E$41="Endemic", IF($J42>1, IF($J42=4, "Unknown", IF($J42=99, "Surveillance", ROUND(D42*INTRO!$E$51,0))), 0),"Not required") -> 62893 | Q42: =IF(INTRO!$E$41="Endemic", IF($J42>1, IF($J42=4, "Unknown", IF($J42=99, "Surveillance", SUM($N42:$P42))), 0),"Not required") -> 175948 | R42: 0 | S42: 25418 | T42: 0 | U42: =IF(INTRO!$E$43="Endemic", IF($K42>1, IF($K42=4, "Unknown", IF($K42=99, "Surveillance", SUM($R42:$T42))), 0),"Not required") -> 25418 | V42: 0 | W42: 0 | X42: 1 | Y42: 1
A43: =IF(INTRO!$E$33<>0,INTRO!$E$33, " ") -> Uganda | B43: Eastern | C43: Bukwo | D43: 120300 | E43: =IF(INTRO!$E$48="","",ROUND($D43*INTRO!$E$48,0)) -> 17083 | F43: =IF(INTRO!$E$49="","",ROUND($D43*INTRO!$E$49,0)) -> 36331 | G43: =IF(INTRO!$E$50="","",ROUND($D43*INTRO!$E$50,0)) -> 62676 | H43: 0 | I43: 0 | J43: 3 | K43: 0 | L43: =IF(INTRO!$E$37="Endemic",IF($H43>0,IF($H43=4,"Unknown",IF($H43=99,"Stopped",$D43)),0),"Not required") -> 0 | M43: 0 | N43: =IF(INTRO!$E$41="Endemic", IF($J43>1, IF($J43=4, "Unknown", IF($J43=99, "Surveillance", E43)), 0),"Not required") -> 17083 | O43: =IF(INTRO!$E$41="Endemic", IF($J43>1, IF($J43=4, "Unknown", IF($J43=99, "Surveillance", F43)), 0),"Not required") -> 36331 | P43: =IF(INTRO!$E$41="Endemic", IF($J43>1, IF($J43=4, "Unknown", IF($J43=99, "Surveillance", ROUND(D43*INTRO!$E$51,0))), 0),"Not required") -> 29714 | Q43: =IF(INTRO!$E$41="Endemic", IF($J43>1, IF($J43=4, "Unknown", IF($J43=99, "Surveillance", SUM($N43:$P43))), 0),"Not required") -> 83128 | R43: 0 | S43: 0 | T43: 0 | U43: =IF(INTRO!$E$43="Endemic", IF($K43>1, IF($K43=4, "Unknown", IF($K43=99, "Surveillance", SUM($R43:$T43))), 0),"Not required") -> 0 | V43: 0 | W43: 0 | X43: 1 | Y43: 0
A44: =IF(INTRO!$E$33<>0,INTRO!$E$33, " ") -> Uganda | B44: Eastern | C44: Bulambuli | D44: 239003 | E44: =IF(INTRO!$E$48="","",ROUND($D44*INTRO!$E$48,0)) -> 33938 | F44: =IF(INTRO!$E$49="","",ROUND($D44*INTRO!$E$49,0)) -> 72179 | G44: =IF(INTRO!$E$50="","",ROUND($D44*INTRO!$E$50,0)) -> 124521 | H44: 0 | I44: 0 | J44: 3 | K44: 11 | L44: =IF(INTRO!$E$37="Endemic",IF($H44>0,IF($H44=4,"Unknown",IF($H44=99,"Stopped",$D44)),0),"Not required") -> 0 | M44: 0 | N44: =IF(INTRO!$E$41="Endemic", IF($J44>1, IF($J44=4, "Unknown", IF($J44=99, "Surveillance", E44)), 0),"Not required") -> 33938 | O44: =IF(INTRO!$E$41="Endemic", IF($J44>1, IF($J44=4, "Unknown", IF($J44=99, "Surveillance", F44)), 0),"Not required") -> 72179 | P44: =IF(INTRO!$E$41="Endemic", IF($J44>1, IF($J44=4, "Unknown", IF($J44=99, "Surveillance", ROUND(D44*INTRO!$E$51,0))), 0),"Not required") -> 59034 | Q44: =IF(INTRO!$E$41="Endemic", IF($J44>1, IF($J44=4, "Unknown", IF($J44=99, "Surveillance", SUM($N44:$P44))), 0),"Not required") -> 165151 | R44: 0 | S44: 23858 | T44: 0 | U44: =IF(INTRO!$E$43="Endemic", IF($K44>1, IF($K44=4, "Unknown", IF($K44=99, "Surveillance", SUM($R44:$T44))), 0),"Not required") -> 23858 | V44: 0 | W44: 0 | X44: 1 | Y44: 1
A45: =IF(INTRO!$E$33<>0,INTRO!$E$33, " ") -> Uganda | B45: Eastern | C45: Busia | D45: 438756 | E45: =IF(INTRO!$E$48="","",ROUND($D45*INTRO!$E$48,0)) -> 62303 | F45: =IF(INTRO!$E$49="","",ROUND($D45*INTRO!$E$49,0)) -> 132504 | G45: =IF(INTRO!$E$50="","",ROUND($D45*INTRO!$E$50,0)) -> 228592 | H45: 0 | I45: 0 | J45: 3 | K45: 3 | L45: =IF(INTRO!$E$37="Endemic",IF($H45>0,IF($H45=4,"Unknown",IF($H45=99,"Stopped",$D45)),0),"Not required") -> 0 | M45: 0 | N45: =IF(INTRO!$E$41="Endemic", IF($J45>1, IF($J45=4, "Unknown", IF($J45=99, "Surveillance", E45)), 0),"Not required") -> 62303 | O45: =IF(INTRO!$E$41="Endemic", IF($J45>1, IF($J45=4, "Unknown", IF($J45=99, "Surveillance", F45)), 0),"Not required") -> 132504 | P45: =IF(INTRO!$E$41="Endemic", IF($J45>1, IF($J45=4, "Unknown", IF($J45=99, "Surveillance", ROUND(D45*INTRO!$E$51,0))), 0),"Not required") -> 108373 | Q45: =IF(INTRO!$E$41="Endemic", IF($J45>1, IF($J45=4, "Unknown", IF($J45=99, "Surveillance", SUM($N45:$P45))), 0),"Not required") -> 303180 | R45: 0 | S45: 42578 | T45: 228592 | U45: =IF(INTRO!$E$43="Endemic", IF($K45>1, IF($K45=4, "Unknown", IF($K45=99, "Surveillance", SUM($R45:$T45))), 0),"Not required") -> 271170 | V45: 0 | W45: 0 | X45: 1 | Y45: 1
A46: =IF(INTRO!$E$33<>0,INTRO!$E$33, " ") -> Uganda | B46: Eastern | C46: Butaleja | D46: 331399 | E46: =IF(INTRO!$E$48="","",ROUND($D46*INTRO!$E$48,0)) -> 47059 | F46: =IF(INTRO!$E$49="","",ROUND($D46*INTRO!$E$49,0)) -> 100082 | G46: =IF(INTRO!$E$50="","",ROUND($D46*INTRO!$E$50,0)) -> 172659 | H46: 99 | I46: 0 | J46: 11 | K46: 31 | L46: =IF(INTRO!$E$37="Endemic",IF($H46>0,IF($H46=4,"Unknown",IF($H46=99,"Stopped",$D46)),0),"Not required") -> Stopped | M46: 0 | N46: =IF(INTRO!$E$41="Endemic", IF($J46>1, IF($J46=4, "Unknown", IF($J46=99, "Surveillance", E46)), 0),"Not required") -> 47059 | O46: =IF(INTRO!$E$41="Endemic", IF($J46>1, IF($J46=4, "Unknown", IF($J46=99, "Surveillance", F46)), 0),"Not required") -> 100082 | P46: =IF(INTRO!$E$41="Endemic", IF($J46>1, IF($J46=4, "Unknown", IF($J46=99, "Surveillance", ROUND(D46*INTRO!$E$51,0))), 0),"Not required") -> 81856 | Q46: =IF(INTRO!$E$41="Endemic", IF($J46>1, IF($J46=4, "Unknown", IF($J46=99, "Surveillance", SUM($N46:$P46))), 0),"Not required") -> 228997 | R46: 0 | S46: 92190 | T46: 172659 | U46: =IF(INTRO!$E$43="Endemic", IF($K46>1, IF($K46=4, "Unknown", IF($K46=99, "Surveillance", SUM($R46:$T46))), 0),"Not required") -> 264849 | V46: 0 | W46: 0 | X46: 1 | Y46: 1
A47: =IF(INTRO!$E$33<>0,INTRO!$E$33, " ") -> Uganda | B47: Eastern | C47: Butebo | D47: 194463 | E47: =IF(INTRO!$E$48="","",ROUND($D47*INTRO!$E$48,0)) -> 27614 | F47: =IF(INTRO!$E$49="","",ROUND($D47*INTRO!$E$49,0)) -> 58728 | G47: =IF(INTRO!$E$50="","",ROUND($D47*INTRO!$E$50,0)) -> 101315 | H47: 99 | I47: 0 | J47: 21 | K47: 31 | L47: =IF(INTRO!$E$37="Endemic",IF($H47>0,IF($H47=4,"Unknown",IF($H47=99,"Stopped",$D47)),0),"Not required") -> Stopped | M47: 0 | N47: =IF(INTRO!$E$41="Endemic", IF($J47>1, IF($J47=4, "Unknown", IF($J47=99, "Surveillance", E47)), 0),"Not required") -> 27614 | O47: =IF(INTRO!$E$41="Endemic", IF($J47>1, IF($J47=4, "Unknown", IF($J47=99, "Surveillance", F47)), 0),"Not required") -> 58728 | P47: =IF(INTRO!$E$41="Endemic", IF($J47>1, IF($J47=4, "Unknown", IF($J47=99, "Surveillance", ROUND(D47*INTRO!$E$51,0))), 0),"Not required") -> 48032 | Q47: =IF(INTRO!$E$41="Endemic", IF($J47>1, IF($J47=4, "Unknown", IF($J47=99, "Surveillance", SUM($N47:$P47))), 0),"Not required") -> 134374 | R47: 0 | S47: 44784 | T47: 20297 | U47: =IF(INTRO!$E$43="Endemic", IF($K47>1, IF($K47=4, "Unknown", IF($K47=99, "Surveillance", SUM($R47:$T47))), 0),"Not required") -> 65081 | V47: 0 | W47: 0 | X47: 1 | Y47: 1
A48: =IF(INTRO!$E$33<>0,INTRO!$E$33, " ") -> Uganda | B48: Eastern | C48: Buyende | D48: 431937 | E48: =IF(INTRO!$E$48="","",ROUND($D48*INTRO!$E$48,0)) -> 61335 | F48: =IF(INTRO!$E$49="","",ROUND($D48*INTRO!$E$49,0)) -> 130445 | G48: =IF(INTRO!$E$50="","",ROUND($D48*INTRO!$E$50,0)) -> 225039 | H48: 99 | I48: 0 | J48: 22 | K48: 3 | L48: =IF(INTRO!$E$37="Endemic",IF($H48>0,IF($H48=4,"Unknown",IF($H48=99,"Stopped",$D48)),0),"Not required") -> Stopped | M48: 0 | N48: =IF(INTRO!$E$41="Endemic", IF($J48>1, IF($J48=4, "Unknown", IF($J48=99, "Surveillance", E48)), 0),"Not required") -> 61335 | O48: =IF(INTRO!$E$41="Endemic", IF($J48>1, IF($J48=4, "Unknown", IF($J48=99, "Surveillance", F48)), 0),"Not required") -> 130445 | P48: =IF(INTRO!$E$41="Endemic", IF($J48>1, IF($J48=4, "Unknown", IF($J48=99, "Surveillance", ROUND(D48*INTRO!$E$51,0))), 0),"Not required") -> 106688 | Q48: =IF(INTRO!$E$41="Endemic", IF($J48>1, IF($J48=4, "Unknown", IF($J48=99, "Surveillance", SUM($N48:$P48))), 0),"Not required") -> 298468 | R48: 0 | S48: 130445 | T48: 225039 | U48: =IF(INTRO!$E$43="Endemic", IF($K48>1, IF($K48=4, "Unknown", IF($K48=99, "Surveillance", SUM($R48:$T48))), 0),"Not required") -> 355484 | V48: 0 | W48: 0 | X48: 1 | Y48: 1
A49: =IF(INTRO!$E$33<>0,INTRO!$E$33, " ") -> Uganda | B49: Eastern | C49: Iganga | D49: 454928 | E49: =IF(INTRO!$E$48="","",ROUND($D49*INTRO!$E$48,0)) -> 64600 | F49: =IF(INTRO!$E$49="","",ROUND($D49*INTRO!$E$49,0)) -> 137388 | G49: =IF(INTRO!$E$50="","",ROUND($D49*INTRO!$E$50,0)) -> 237017 | H49: 99 | I49: 0 | J49: 11 | K49: 11 | L49: =IF(INTRO!$E$37="Endemic",IF($H49>0,IF($H49=4,"Unknown",IF($H49=99,"Stopped",$D49)),0),"Not required") -> Stopped | M49: 0 | N49: =IF(INTRO!$E$41="Endemic", IF($J49>1, IF($J49=4, "Unknown", IF($J49=99, "Surveillance", E49)), 0),"Not required") -> 64600 | O49: =IF(INTRO!$E$41="Endemic", IF($J49>1, IF($J49=4, "Unknown", IF($J49=99, "Surveillance", F49)), 0),"Not required") -> 137388 | P49: =IF(INTRO!$E$41="Endemic", IF($J49>1, IF($J49=4, "Unknown", IF($J49=99, "Surveillance", ROUND(D49*INTRO!$E$51,0))), 0),"Not required") -> 112367 | Q49: =IF(INTRO!$E$41="Endemic", IF($J49>1, IF($J49=4, "Unknown", IF($J49=99, "Surveillance", SUM($N49:$P49))), 0),"Not required") -> 314355 | R49: 0 | S49: 122886 | T49: 0 | U49: =IF(INTRO!$E$43="Endemic", IF($K49>1, IF($K49=4, "Unknown", IF($K49=99, "Surveillance", SUM($R49:$T49))), 0),"Not required") -> 122886 | V49: 0 | W49: 0 | X49: 1 | Y49: 1
A50: =IF(INTRO!$E$33<>0,INTRO!$E$33, " ") -> Uganda | B50: Eastern | C50: Jinja | D50: 277840 | E50: =IF(INTRO!$E$48="","",ROUND($D50*INTRO!$E$48,0)) -> 39453 | F50: =IF(INTRO!$E$49="","",ROUND($D50*INTRO!$E$49,0)) -> 83908 | G50: =IF(INTRO!$E$50="","",ROUND($D50*INTRO!$E$50,0)) -> 144755 | H50: 0 | I50: 0 | J50: 11 | K50: 3 | L50: =IF(INTRO!$E$37="Endemic",IF($H50>0,IF($H50=4,"Unknown",IF($H50=99,"Stopped",$D50)),0),"Not required") -> 0 | M50: 0 | N50: =IF(INTRO!$E$41="Endemic", IF($J50>1, IF($J50=4, "Unknown", IF($J50=99, "Surveillance", E50)), 0),"Not required") -> 39453 | O50: =IF(INTRO!$E$41="Endemic", IF($J50>1, IF($J50=4, "Unknown", IF($J50=99, "Surveillance", F50)), 0),"Not required") -> 83908 | P50: =IF(INTRO!$E$41="Endemic", IF($J50>1, IF($J50=4, "Unknown", IF($J50=99, "Surveillance", ROUND(D50*INTRO!$E$51,0))), 0),"Not required") -> 68626 | Q50: =IF(INTRO!$E$41="Endemic", IF($J50>1, IF($J50=4, "Unknown", IF($J50=99, "Surveillance", SUM($N50:$P50))), 0),"Not required") -> 191987 | R50: 0 | S50: 83908 | T50: 144755 | U50: =IF(INTRO!$E$43="Endemic", IF($K50>1, IF($K50=4, "Unknown", IF($K50=99, "Surveillance", SUM($R50:$T50))), 0),"Not required") -> 228663 | V50: 0 | W50: 0 | X50: 1 | Y50: 1
A51: =IF(INTRO!$E$33<>0,INTRO!$E$33, " ") -> Uganda | B51: Eastern | C51: Jinja City | D51: 353298 | E51: =IF(INTRO!$E$48="","",ROUND($D51*INTRO!$E$48,0)) -> 50168 | F51: =IF(INTRO!$E$49="","",ROUND($D51*INTRO!$E$49,0)) -> 106696 | G51: =IF(INTRO!$E$50="","",ROUND($D51*INTRO!$E$50,0)) -> 184068 | H51: 0 | I51: 0 | J51: 11 | K51: 3 | L51: =IF(INTRO!$E$37="Endemic",IF($H51>0,IF($H51=4,"Unknown",IF($H51=99,"Stopped",$D51)),0),"Not required") -> 0 | M51: 0 | N51: =IF(INTRO!$E$41="Endemic", IF($J51>1, IF($J51=4, "Unknown", IF($J51=99, "Surveillance", E51)), 0),"Not required") -> 50168 | O51: =IF(INTRO!$E$41="Endemic", IF($J51>1, IF($J51=4, "Unknown", IF($J51=99, "Surveillance", F51)), 0),"Not required") -> 106696 | P51: =IF(INTRO!$E$41="Endemic", IF($J51>1, IF($J51=4, "Unknown", IF($J51=99, "Surveillance", ROUND(D51*INTRO!$E$51,0))), 0),"Not required") -> 87265 | Q51: =IF(INTRO!$E$41="Endemic", IF($J51>1, IF($J51=4, "Unknown", IF($J51=99, "Surveillance", SUM($N51:$P51))), 0),"Not required") -> 244129 | R51: 0 | S51: 106696 | T51: 184068 | U51: =IF(INTRO!$E$43="Endemic", IF($K51>1, IF($K51=4, "Unknown", IF($K51=99, "Surveillance", SUM($R51:$T51))), 0),"Not required") -> 290764 | V51: 0 | W51: 0 | X51: 1 | Y51: 1
A52: =IF(INTRO!$E$33<>0,INTRO!$E$33, " ") -> Uganda | B52: Eastern | C52: Kaberamaido | D52: 139903 | E52: =IF(INTRO!$E$48="","",ROUND($D52*INTRO!$E$48,0)) -> 19866 | F52: =IF(INTRO!$E$49="","",ROUND($D52*INTRO!$E$49,0)) -> 42251 | G52: =IF(INTRO!$E$50="","",ROUND($D52*INTRO!$E$50,0)) -> 72889 | H52: 99 | I52: 0 | J52: 11 | K52: 21 | L52: =IF(INTRO!$E$37="Endemic",IF($H52>0,IF($H52=4,"Unknown",IF($H52=99,"Stopped",$D52)),0),"Not required") -> Stopped | M52: 0 | N52: =IF(INTRO!$E$41="Endemic", IF($J52>1, IF($J52=4, "Unknown", IF($J52=99, "Surveillance", E52)), 0),"Not required") -> 19866 | O52: =IF(INTRO!$E$41="Endemic", IF($J52>1, IF($J52=4, "Unknown", IF($J52=99, "Surveillance", F52)), 0),"Not required") -> 42251 | P52: =IF(INTRO!$E$41="Endemic", IF($J52>1, IF($J52=4, "Unknown", IF($J52=99, "Surveillance", ROUND(D52*INTRO!$E$51,0))), 0),"Not required") -> 34556 | Q52: =IF(INTRO!$E$41="Endemic", IF($J52>1, IF($J52=4, "Unknown", IF($J52=99, "Surveillance", SUM($N52:$P52))), 0),"Not required") -> 96673 | R52: 0 | S52: 40592 | T52: 14602 | U52: =IF(INTRO!$E$43="Endemic", IF($K52>1, IF($K52=4, "Unknown", IF($K52=99, "Surveillance", SUM($R52:$T52))), 0),"Not required") -> 55194 | V52: 0 | W52: 0 | X52: 1 | Y52: 1
A53: =IF(INTRO!$E$33<>0,INTRO!$E$33, " ") -> Uganda | B53: Eastern | C53: Kalaki | D53: 147701 | E53: =IF(INTRO!$E$48="","",ROUND($D53*INTRO!$E$48,0)) -> 20974 | F53: =IF(INTRO!$E$49="","",ROUND($D53*INTRO!$E$49,0)) -> 44606 | G53: =IF(INTRO!$E$50="","",ROUND($D53*INTRO!$E$50,0)) -> 76952 | H53: 99 | I53: 0 | J53: 11 | K53: 11 | L53: =IF(INTRO!$E$37="Endemic",IF($H53>0,IF($H53=4,"Unknown",IF($H53=99,"Stopped",$D53)),0),"Not required") -> Stopped | M53: 0 | N53: =IF(INTRO!$E$41="Endemic", IF($J53>1, IF($J53=4, "Unknown", IF($J53=99, "Surveillance", E53)), 0),"Not required") -> 20974 | O53: =IF(INTRO!$E$41="Endemic", IF($J53>1, IF($J53=4, "Unknown", IF($J53=99, "Surveillance", F53)), 0),"Not required") -> 44606 | P53: =IF(INTRO!$E$41="Endemic", IF($J53>1, IF($J53=4, "Unknown", IF($J53=99, "Surveillance", ROUND(D53*INTRO!$E$51,0))), 0),"Not required") -> 36482 | Q53: =IF(INTRO!$E$41="Endemic", IF($J53>1, IF($J53=4, "Unknown", IF($J53=99, "Surveillance", SUM($N53:$P53))), 0),"Not required") -> 102062 | R53: 0 | S53: 19741 | T53: 0 | U53: =IF(INTRO!$E$43="Endemic", IF($K53>1, IF($K53=4, "Unknown", IF($K53=99, "Surveillance", SUM($R53:$T53))), 0),"Not required") -> 19741 | V53: 0 | W53: 0 | X53: 1 | Y53: 1
A54: =IF(INTRO!$E$33<>0,INTRO!$E$33, " ") -> Uganda | B54: Eastern | C54: Kaliro | D54: 319335 | E54: =IF(INTRO!$E$48="","",ROUND($D54*INTRO!$E$48,0)) -> 45346 | F54: =IF(INTRO!$E$49="","",ROUND($D54*INTRO!$E$49,0)) -> 96439 | G54: =IF(INTRO!$E$50="","",ROUND($D54*INTRO!$E$50,0)) -> 166374 | H54: 99 | I54: 0 | J54: 22 | K54: 11 | L54: =IF(INTRO!$E$37="Endemic",IF($H54>0,IF($H54=4,"Unknown",IF($H54=99,"Stopped",$D54)),0),"Not required") -> Stopped | M54: 0 | N54: =IF(INTRO!$E$41="Endemic", IF($J54>1, IF($J54=4, "Unknown", IF($J54=99, "Surveillance", E54)), 0),"Not required") -> 45346 | O54: =IF(INTRO!$E$41="Endemic", IF($J54>1, IF($J54=4, "Unknown", IF($J54=99, "Surveillance", F54)), 0),"Not required") -> 96439 | P54: =IF(INTRO!$E$41="Endemic", IF($J54>1, IF($J54=4, "Unknown", IF($J54=99, "Surveillance", ROUND(D54*INTRO!$E$51,0))), 0),"Not required") -> 78876 | Q54: =IF(INTRO!$E$41="Endemic", IF($J54>1, IF($J54=4, "Unknown", IF($J54=99, "Surveillance", SUM($N54:$P54))), 0),"Not required") -> 220661 | R54: 0 | S54: 95510 | T54: 0 | U54: =IF(INTRO!$E$43="Endemic", IF($K54>1, IF($K54=4, "Unknown", IF($K54=99, "Surveillance", SUM($R54:$T54))), 0),"Not required") -> 95510 | V54: 0 | W54: 0 | X54: 1 | Y54: 1
A55: =IF(INTRO!$E$33<>0,INTRO!$E$33, " ") -> Uganda | B55: Eastern | C55: Kamuli | D55: 660779 | E55: =IF(INTRO!$E$48="","",ROUND($D55*INTRO!$E$48,0)) -> 93831 | F55: =IF(INTRO!$E$49="","",ROUND($D55*INTRO!$E$49,0)) -> 199555 | G55: =IF(INTRO!$E$50="","",ROUND($D55*INTRO!$E$50,0)) -> 344266 | H55: 99 | I55: 0 | J55: 22 | K55: 31 | L55: =IF(INTRO!$E$37="Endemic",IF($H55>0,IF($H55=4,"Unknown",IF($H55=99,"Stopped",$D55)),0),"Not required") -> Stopped | M55: 0 | N55: =IF(INTRO!$E$41="Endemic", IF($J55>1, IF($J55=4, "Unknown", IF($J55=99, "Surveillance", E55)), 0),"Not required") -> 93831 | O55: =IF(INTRO!$E$41="Endemic", IF($J55>1, IF($J55=4, "Unknown", IF($J55=99, "Surveillance", F55)), 0),"Not required") -> 199555 | P55: =IF(INTRO!$E$41="Endemic", IF($J55>1, IF($J55=4, "Unknown", IF($J55=99, "Surveillance", ROUND(D55*INTRO!$E$51,0))), 0),"Not required") -> 163212 | Q55: =IF(INTRO!$E$41="Endemic", IF($J55>1, IF($J55=4, "Unknown", IF($J55=99, "Surveillance", SUM($N55:$P55))), 0),"Not required") -> 456598 | R55: 0 | S55: 158128 | T55: 44834 | U55: =IF(INTRO!$E$43="Endemic", IF($K55>1, IF($K55=4, "Unknown", IF($K55=99, "Surveillance", SUM($R55:$T55))), 0),"Not required") -> 202962 | V55: 0 | W55: 0 | X55: 1 | Y55: 1
A56: =IF(INTRO!$E$33<>0,INTRO!$E$33, " ") -> Uganda | B56: Eastern | C56: Kapchorwa | D56: 150370 | E56: =IF(INTRO!$E$48="","",ROUND($D56*INTRO!$E$48,0)) -> 21353 | F56: =IF(INTRO!$E$49="","",ROUND($D56*INTRO!$E$49,0)) -> 45412 | G56: =IF(INTRO!$E$50="","",ROUND($D56*INTRO!$E$50,0)) -> 78343 | H56: 0 | I56: 0 | J56: 3 | K56: 0 | L56: =IF(INTRO!$E$37="Endemic",IF($H56>0,IF($H56=4,"Unknown",IF($H56=99,"Stopped",$D56)),0),"Not required") -> 0 | M56: 0 | N56: =IF(INTRO!$E$41="Endemic", IF($J56>1, IF($J56=4, "Unknown", IF($J56=99, "Surveillance", E56)), 0),"Not required") -> 21353 | O56: =IF(INTRO!$E$41="Endemic", IF($J56>1, IF($J56=4, "Unknown", IF($J56=99, "Surveillance", F56)), 0),"Not required") -> 45412 | P56: =IF(INTRO!$E$41="Endemic", IF($J56>1, IF($J56=4, "Unknown", IF($J56=99, "Surveillance", ROUND(D56*INTRO!$E$51,0))), 0),"Not required") -> 37141 | Q56: =IF(INTRO!$E$41="Endemic", IF($J56>1, IF($J56=4, "Unknown", IF($J56=99, "Surveillance", SUM($N56:$P56))), 0),"Not required") -> 103906 | R56: 0 | S56: 0 | T56: 0 | U56: =IF(INTRO!$E$43="Endemic", IF($K56>1, IF($K56=4, "Unknown", IF($K56=99, "Surveillance", SUM($R56:$T56))), 0),"Not required") -> 0 | V56: 0 | W56: 0 | X56: 1 | Y56: 0
A57: =IF(INTRO!$E$33<>0,INTRO!$E$33, " ") -> Uganda | B57: Eastern | C57: Kapelebyong | D57: 118065 | E57: =IF(INTRO!$E$48="","",ROUND($D57*INTRO!$E$48,0)) -> 16765 | F57: =IF(INTRO!$E$49="","",ROUND($D57*INTRO!$E$49,0)) -> 35656 | G57: =IF(INTRO!$E$50="","",ROUND($D57*INTRO!$E$50,0)) -> 61512 | H57: 99 | I57: 0 | J57: 3 | K57: 0 | L57: =IF(INTRO!$E$37="Endemic",IF($H57>0,IF($H57=4,"Unknown",IF($H57=99,"Stopped",$D57)),0),"Not required") -> Stopped | M57: 0 | N57: =IF(INTRO!$E$41="Endemic", IF($J57>1, IF($J57=4, "Unknown", IF($J57=99, "Surveillance", E57)), 0),"Not required") -> 16765 | O57: =IF(INTRO!$E$41="Endemic", IF($J57>1, IF($J57=4, "Unknown", IF($J57=99, "Surveillance", F57)), 0),"Not required") -> 35656 | P57: =IF(INTRO!$E$41="Endemic", IF($J57>1, IF($J57=4, "Unknown", IF($J57=99, "Surveillance", ROUND(D57*INTRO!$E$51,0))), 0),"Not required") -> 29162 | Q57: =IF(INTRO!$E$41="Endemic", IF($J57>1, IF($J57=4, "Unknown", IF($J57=99, "Surveillance", SUM($N57:$P57))), 0),"Not required") -> 81583 | R57: 0 | S57: 0 | T57: 0 | U57: =IF(INTRO!$E$43="Endemic", IF($K57>1, IF($K57=4, "Unknown", IF($K57=99, "Surveillance", SUM($R57:$T57))), 0),"Not required") -> 0 | V57: 0 | W57: 0 | X57: 1 | Y57: 0
A58: =IF(INTRO!$E$33<>0,INTRO!$E$33, " ") -> Uganda | B58: Eastern | C58: Katakwi | D58: 223141 | E58: =IF(INTRO!$E$48="","",ROUND($D58*INTRO!$E$48,0)) -> 31686 | F58: =IF(INTRO!$E$49="","",ROUND($D58*INTRO!$E$49,0)) -> 67389 | G58: =IF(INTRO!$E$50="","",ROUND($D58*INTRO!$E$50,0)) -> 116256 | H58: 99 | I58: 0 | J58: 11 | K58: 11 | L58: =IF(INTRO!$E$37="Endemic",IF($H58>0,IF($H58=4,"Unknown",IF($H58=99,"Stopped",$D58)),0),"Not required") -> Stopped | M58: 0 | N58: =IF(INTRO!$E$41="Endemic", IF($J58>1, IF($J58=4, "Unknown", IF($J58=99, "Surveillance", E58)), 0),"Not required") -> 31686 | O58: =IF(INTRO!$E$41="Endemic", IF($J58>1, IF($J58=4, "Unknown", IF($J58=99, "Surveillance", F58)), 0),"Not required") -> 67389 | P58: =IF(INTRO!$E$41="Endemic", IF($J58>1, IF($J58=4, "Unknown", IF($J58=99, "Surveillance", ROUND(D58*INTRO!$E$51,0))), 0),"Not required") -> 55116 | Q58: =IF(INTRO!$E$41="Endemic", IF($J58>1, IF($J58=4, "Unknown", IF($J58=99, "Surveillance", SUM($N58:$P58))), 0),"Not required") -> 154191 | R58: 0 | S58: 24342 | T58: 0 | U58: =IF(INTRO!$E$43="Endemic", IF($K58>1, IF($K58=4, "Unknown", IF($K58=99, "Surveillance", SUM($R58:$T58))), 0),"Not required") -> 24342 | V58: 0 | W58: 0 | X58: 1 | Y58: 1
A59: =IF(INTRO!$E$33<>0,INTRO!$E$33, " ") -> Uganda | B59: Eastern | C59: Kibuku | D59: 273120 | E59: =IF(INTRO!$E$48="","",ROUND($D59*INTRO!$E$48,0)) -> 38783 | F59: =IF(INTRO!$E$49="","",ROUND($D59*INTRO!$E$49,0)) -> 82482 | G59: =IF(INTRO!$E$50="","",ROUND($D59*INTRO!$E$50,0)) -> 142296 | H59: 99 | I59: 0 | J59: 11 | K59: 21 | L59: =IF(INTRO!$E$37="Endemic",IF($H59>0,IF($H59=4,"Unknown",IF($H59=99,"Stopped",$D59)),0),"Not required") -> Stopped | M59: 0 | N59: =IF(INTRO!$E$41="Endemic", IF($J59>1, IF($J59=4, "Unknown", IF($J59=99, "Surveillance", E59)), 0),"Not required") -> 38783 | O59: =IF(INTRO!$E$41="Endemic", IF($J59>1, IF($J59=4, "Unknown", IF($J59=99, "Surveillance", F59)), 0),"Not required") -> 82482 | P59: =IF(INTRO!$E$41="Endemic", IF($J59>1, IF($J59=4, "Unknown", IF($J59=99, "Surveillance", ROUND(D59*INTRO!$E$51,0))), 0),"Not required") -> 67461 | Q59: =IF(INTRO!$E$41="Endemic", IF($J59>1, IF($J59=4, "Unknown", IF($J59=99, "Surveillance", SUM($N59:$P59))), 0),"Not required") -> 188726 | R59: 0 | S59: 42547 | T59: 28506 | U59: =IF(INTRO!$E$43="Endemic", IF($K59>1, IF($K59=4, "Unknown", IF($K59=99, "Surveillance", SUM($R59:$T59))), 0),"Not required") -> 71053 | V59: 0 | W59: 0 | X59: 1 | Y59: 1
A60: =IF(INTRO!$E$33<>0,INTRO!$E$33, " ") -> Uganda | B60: Eastern | C60: Kumi | D60: 347832 | E60: =IF(INTRO!$E$48="","",ROUND($D60*INTRO!$E$48,0)) -> 49392 | F60: =IF(INTRO!$E$49="","",ROUND($D60*INTRO!$E$49,0)) -> 105045 | G60: =IF(INTRO!$E$50="","",ROUND($D60*INTRO!$E$50,0)) -> 181220 | H60: 99 | I60: 0 | J60: 99 | K60: 99 | L60: =IF(INTRO!$E$37="Endemic",IF($H60>0,IF($H60=4,"Unknown",IF($H60=99,"Stopped",$D60)),0),"Not required") -> Stopped | M60: 0 | N60: =IF(INTRO!$E$41="Endemic", IF($J60>1, IF($J60=4, "Unknown", IF($J60=99, "Surveillance", E60)), 0),"Not required") -> Surveillance | O60: =IF(INTRO!$E$41="Endemic", IF($J60>1, IF($J60=4, "Unknown", IF($J60=99, "Surveillance", F60)), 0),"Not required") -> Surveillance | P60: =IF(INTRO!$E$41="Endemic", IF($J60>1, IF($J60=4, "Unknown", IF($J60=99, "Surveillance", ROUND(D60*INTRO!$E$51,0))), 0),"Not required") -> Surveillance | Q60: =IF(INTRO!$E$41="Endemic", IF($J60>1, IF($J60=4, "Unknown", IF($J60=99, "Surveillance", SUM($N60:$P60))), 0),"Not required") -> Surveillance | R60: 0 | S60: 0 | T60: 0 | U60: =IF(INTRO!$E$43="Endemic", IF($K60>1, IF($K60=4, "Unknown", IF($K60=99, "Surveillance", SUM($R60:$T60))), 0),"Not required") -> Surveillance | V60: 0 | W60: 0 | X60: 1 | Y60: 0
A61: =IF(INTRO!$E$33<>0,INTRO!$E$33, " ") -> Uganda | B61: Eastern | C61: Kween | D61: 128884 | E61: =IF(INTRO!$E$48="","",ROUND($D61*INTRO!$E$48,0)) -> 18302 | F61: =IF(INTRO!$E$49="","",ROUND($D61*INTRO!$E$49,0)) -> 38923 | G61: =IF(INTRO!$E$50="","",ROUND($D61*INTRO!$E$50,0)) -> 67149 | H61: 0 | I61: 0 | J61: 3 | K61: 11 | L61: =IF(INTRO!$E$37="Endemic",IF($H61>0,IF($H61=4,"Unknown",IF($H61=99,"Stopped",$D61)),0),"Not required") -> 0 | M61: 0 | N61: =IF(INTRO!$E$41="Endemic", IF($J61>1, IF($J61=4, "Unknown", IF($J61=99, "Surveillance", E61)), 0),"Not required") -> 18302 | O61: =IF(INTRO!$E$41="Endemic", IF($J61>1, IF($J61=4, "Unknown", IF($J61=99, "Surveillance", F61)), 0),"Not required") -> 38923 | P61: =IF(INTRO!$E$41="Endemic", IF($J61>1, IF($J61=4, "Unknown", IF($J61=99, "Surveillance", ROUND(D61*INTRO!$E$51,0))), 0),"Not required") -> 31834 | Q61: =IF(INTRO!$E$41="Endemic", IF($J61>1, IF($J61=4, "Unknown", IF($J61=99, "Surveillance", SUM($N61:$P61))), 0),"Not required") -> 89059 | R61: 0 | S61: 3696 | T61: 0 | U61: =IF(INTRO!$E$43="Endemic", IF($K61>1, IF($K61=4, "Unknown", IF($K61=99, "Surveillance", SUM($R61:$T61))), 0),"Not required") -> 3696 | V61: 0 | W61: 0 | X61: 1 | Y61: 1
A62: =IF(INTRO!$E$33<>0,INTRO!$E$33, " ") -> Uganda | B62: Eastern | C62: Luuka | D62: 325439 | E62: =IF(INTRO!$E$48="","",ROUND($D62*INTRO!$E$48,0)) -> 46212 | F62: =IF(INTRO!$E$49="","",ROUND($D62*INTRO!$E$49,0)) -> 98283 | G62: =IF(INTRO!$E$50="","",ROUND($D62*INTRO!$E$50,0)) -> 169554 | H62: 99 | I62: 0 | J62: 21 | K62: 11 | L62: =IF(INTRO!$E$37="Endemic",IF($H62>0,IF($H62=4,"Unknown",IF($H62=99,"Stopped",$D62)),0),"Not required") -> Stopped | M62: 0 | N62: =IF(INTRO!$E$41="Endemic", IF($J62>1, IF($J62=4, "Unknown", IF($J62=99, "Surveillance", E62)), 0),"Not required") -> 46212 | O62: =IF(INTRO!$E$41="Endemic", IF($J62>1, IF($J62=4, "Unknown", IF($J62=99, "Surveillance", F62)), 0),"Not required") -> 98283 | P62: =IF(INTRO!$E$41="Endemic", IF($J62>1, IF($J62=4, "Unknown", IF($J62=99, "Surveillance", ROUND(D62*INTRO!$E$51,0))), 0),"Not required") -> 80383 | Q62: =IF(INTRO!$E$41="Endemic", IF($J62>1, IF($J62=4, "Unknown", IF($J62=99, "Surveillance", SUM($N62:$P62))), 0),"Not required") -> 224878 | R62: 0 | S62: 91470 | T62: 0 | U62: =IF(INTRO!$E$43="Endemic", IF($K62>1, IF($K62=4, "Unknown", IF($K62=99, "Surveillance", SUM($R62:$T62))), 0),"Not required") -> 91470 | V62: 0 | W62: 0 | X62: 1 | Y62: 1
A63: =IF(INTRO!$E$33<>0,INTRO!$E$33, " ") -> Uganda | B63: Eastern | C63: Manafwa | D63: 226832 | E63: =IF(INTRO!$E$48="","",ROUND($D63*INTRO!$E$48,0)) -> 32210 | F63: =IF(INTRO!$E$49="","",ROUND($D63*INTRO!$E$49,0)) -> 68503 | G63: =IF(INTRO!$E$50="","",ROUND($D63*INTRO!$E$50,0)) -> 118179 | H63: 0 | I63: 99 | J63: 22 | K63: 21 | L63: =IF(INTRO!$E$37="Endemic",IF($H63>0,IF($H63=4,"Unknown",IF($H63=99,"Stopped",$D63)),0),"Not required") -> 0 | M63: 0 | N63: =IF(INTRO!$E$41="Endemic", IF($J63>1, IF($J63=4, "Unknown", IF($J63=99, "Surveillance", E63)), 0),"Not required") -> 32210 | O63: =IF(INTRO!$E$41="Endemic", IF($J63>1, IF($J63=4, "Unknown", IF($J63=99, "Surveillance", F63)), 0),"Not required") -> 68503 | P63: =IF(INTRO!$E$41="Endemic", IF($J63>1, IF($J63=4, "Unknown", IF($J63=99, "Surveillance", ROUND(D63*INTRO!$E$51,0))), 0),"Not required") -> 56028 | Q63: =IF(INTRO!$E$41="Endemic", IF($J63>1, IF($J63=4, "Unknown", IF($J63=99, "Surveillance", SUM($N63:$P63))), 0),"Not required") -> 156741 | R63: 0 | S63: 41593 | T63: 23675 | U63: =IF(INTRO!$E$43="Endemic", IF($K63>1, IF($K63=4, "Unknown", IF($K63=99, "Surveillance", SUM($R63:$T63))), 0),"Not required") -> 65268 | V63: 0 | W63: 0 | X63: 1 | Y63: 1
A64: =IF(INTRO!$E$33<>0,INTRO!$E$33, " ") -> Uganda | B64: Eastern | C64: Mayuge | D64: 645844 | E64: =IF(INTRO!$E$48="","",ROUND($D64*INTRO!$E$48,0)) -> 91710 | F64: =IF(INTRO!$E$49="","",ROUND($D64*INTRO!$E$49,0)) -> 195045 | G64: =IF(INTRO!$E$50="","",ROUND($D64*INTRO!$E$50,0)) -> 336485 | H64: 99 | I64: 0 | J64: 3 | K64: 31 | L64: =IF(INTRO!$E$37="Endemic",IF($H64>0,IF($H64=4,"Unknown",IF($H64=99,"Stopped",$D64)),0),"Not required") -> Stopped | M64: 0 | N64: =IF(INTRO!$E$41="Endemic", IF($J64>1, IF($J64=4, "Unknown", IF($J64=99, "Surveillance", E64)), 0),"Not required") -> 91710 | O64: =IF(INTRO!$E$41="Endemic", IF($J64>1, IF($J64=4, "Unknown", IF($J64=99, "Surveillance", F64)), 0),"Not required") -> 195045 | P64: =IF(INTRO!$E$41="Endemic", IF($J64>1, IF($J64=4, "Unknown", IF($J64=99, "Surveillance", ROUND(D64*INTRO!$E$51,0))), 0),"Not required") -> 159523 | Q64: =IF(INTRO!$E$41="Endemic", IF($J64>1, IF($J64=4, "Unknown", IF($J64=99, "Surveillance", SUM($N64:$P64))), 0),"Not required") -> 446278 | R64: 0 | S64: 95077 | T64: 237040 | U64: =IF(INTRO!$E$43="Endemic", IF($K64>1, IF($K64=4, "Unknown", IF($K64=99, "Surveillance", SUM($R64:$T64))), 0),"Not required") -> 332117 | V64: 0 | W64: 0 | X64: 1 | Y64: 1
A65: =IF(INTRO!$E$33<>0,INTRO!$E$33, " ") -> Uganda | B65: Eastern | C65: Mbale | D65: 478695 | E65: =IF(INTRO!$E$48="","",ROUND($D65*INTRO!$E$48,0)) -> 67975 | F65: =IF(INTRO!$E$49="","",ROUND($D65*INTRO!$E$49,0)) -> 144566 | G65: =IF(INTRO!$E$50="","",ROUND($D65*INTRO!$E$50,0)) -> 249400 | H65: 0 | I65: 99 | J65: 11 | K65: 31 | L65: =IF(INTRO!$E$37="Endemic",IF($H65>0,IF($H65=4,"Unknown",IF($H65=99,"Stopped",$D65)),0),"Not required") -> 0 | M65: 0 | N65: =IF(INTRO!$E$41="Endemic", IF($J65>1, IF($J65=4, "Unknown", IF($J65=99, "Surveillance", E65)), 0),"Not required") -> 67975 | O65: =IF(INTRO!$E$41="Endemic", IF($J65>1, IF($J65=4, "Unknown", IF($J65=99, "Surveillance", F65)), 0),"Not required") -> 144566 | P65: =IF(INTRO!$E$41="Endemic", IF($J65>1, IF($J65=4, "Unknown", IF($J65=99, "Surveillance", ROUND(D65*INTRO!$E$51,0))), 0),"Not required") -> 118238 | Q65: =IF(INTRO!$E$41="Endemic", IF($J65>1, IF($J65=4, "Unknown", IF($J65=99, "Surveillance", SUM($N65:$P65))), 0),"Not required") -> 330779 | R65: 0 | S65: 87720 | T65: 49811 | U65: =IF(INTRO!$E$43="Endemic", IF($K65>1, IF($K65=4, "Unknown", IF($K65=99, "Surveillance", SUM($R65:$T65))), 0),"Not required") -> 137531 | V65: 0 | W65: 0 | X65: 1 | Y65: 1
A66: =IF(INTRO!$E$33<>0,INTRO!$E$33, " ") -> Uganda | B66: Eastern | C66: Mbale City | D66: 185527 | E66: =IF(INTRO!$E$48="","",ROUND($D66*INTRO!$E$48,0)) -> 26345 | F66: =IF(INTRO!$E$49="","",ROUND($D66*INTRO!$E$49,0)) -> 56029 | G66: =IF(INTRO!$E$50="","",ROUND($D66*INTRO!$E$50,0)) -> 96660 | H66: 0 | I66: 0 | J66: 3 | K66: 3 | L66: =IF(INTRO!$E$37="Endemic",IF($H66>0,IF($H66=4,"Unknown",IF($H66=99,"Stopped",$D66)),0),"Not required") -> 0 | M66: 0 | N66: =IF(INTRO!$E$41="Endemic", IF($J66>1, IF($J66=4, "Unknown", IF($J66=99, "Surveillance", E66)), 0),"Not required") -> 26345 | O66: =IF(INTRO!$E$41="Endemic", IF($J66>1, IF($J66=4, "Unknown", IF($J66=99, "Surveillance", F66)), 0),"Not required") -> 56029 | P66: =IF(INTRO!$E$41="Endemic", IF($J66>1, IF($J66=4, "Unknown", IF($J66=99, "Surveillance", ROUND(D66*INTRO!$E$51,0))), 0),"Not required") -> 45825 | Q66: =IF(INTRO!$E$41="Endemic", IF($J66>1, IF($J66=4, "Unknown", IF($J66=99, "Surveillance", SUM($N66:$P66))), 0),"Not required") -> 128199 | R66: 0 | S66: 36120 | T66: 96660 | U66: =IF(INTRO!$E$43="Endemic", IF($K66>1, IF($K66=4, "Unknown", IF($K66=99, "Surveillance", SUM($R66:$T66))), 0),"Not required") -> 132780 | V66: 0 | W66: 0 | X66: 1 | Y66: 1
A67: =IF(INTRO!$E$33<>0,INTRO!$E$33, " ") -> Uganda | B67: Eastern | C67: Namayingo | D67: 300872 | E67: =IF(INTRO!$E$48="","",ROUND($D67*INTRO!$E$48,0)) -> 42724 | F67: =IF(INTRO!$E$49="","",ROUND($D67*INTRO!$E$49,0)) -> 90863 | G67: =IF(INTRO!$E$50="","",ROUND($D67*INTRO!$E$50,0)) -> 156754 | H67: 99 | I67: 0 | J67: 11 | K67: 31 | L67: =IF(INTRO!$E$37="Endemic",IF($H67>0,IF($H67=4,"Unknown",IF($H67=99,"Stopped",$D67)),0),"Not required") -> Stopped | M67: 0 | N67: =IF(INTRO!$E$41="Endemic", IF($J67>1, IF($J67=4, "Unknown", IF($J67=99, "Surveillance", E67)), 0),"Not required") -> 42724 | O67: =IF(INTRO!$E$41="Endemic", IF($J67>1, IF($J67=4, "Unknown", IF($J67=99, "Surveillance", F67)), 0),"Not required") -> 90863 | P67: =IF(INTRO!$E$41="Endemic", IF($J67>1, IF($J67=4, "Unknown", IF($J67=99, "Surveillance", ROUND(D67*INTRO!$E$51,0))), 0),"Not required") -> 74315 | Q67: =IF(INTRO!$E$41="Endemic", IF($J67>1, IF($J67=4, "Unknown", IF($J67=99, "Surveillance", SUM($N67:$P67))), 0),"Not required") -> 207902 | R67: 0 | S67: 90863 | T67: 156754 | U67: =IF(INTRO!$E$43="Endemic", IF($K67>1, IF($K67=4, "Unknown", IF($K67=99, "Surveillance", SUM($R67:$T67))), 0),"Not required") -> 247617 | V67: 0 | W67: 0 | X67: 1 | Y67: 1
A68: =IF(INTRO!$E$33<>0,INTRO!$E$33, " ") -> Uganda | B68: Eastern | C68: Namisindwa | D68: 248769 | E68: =IF(INTRO!$E$48="","",ROUND($D68*INTRO!$E$48,0)) -> 35325 | F68: =IF(INTRO!$E$49="","",ROUND($D68*INTRO!$E$49,0)) -> 75128 | G68: =IF(INTRO!$E$50="","",ROUND($D68*INTRO!$E$50,0)) -> 129609 | H68: 0 | I68: 0 | J68: 3 | K68: 11 | L68: =IF(INTRO!$E$37="Endemic",IF($H68>0,IF($H68=4,"Unknown",IF($H68=99,"Stopped",$D68)),0),"Not required") -> 0 | M68: 0 | N68: =IF(INTRO!$E$41="Endemic", IF($J68>1, IF($J68=4, "Unknown", IF($J68=99, "Surveillance", E68)), 0),"Not required") -> 35325 | O68: =IF(INTRO!$E$41="Endemic", IF($J68>1, IF($J68=4, "Unknown", IF($J68=99, "Surveillance", F68)), 0),"Not required") -> 75128 | P68: =IF(INTRO!$E$41="Endemic", IF($J68>1, IF($J68=4, "Unknown", IF($J68=99, "Surveillance", ROUND(D68*INTRO!$E$51,0))), 0),"Not required") -> 61446 | Q68: =IF(INTRO!$E$41="Endemic", IF($J68>1, IF($J68=4, "Unknown", IF($J68=99, "Surveillance", SUM($N68:$P68))), 0),"Not required") -> 171899 | R68: 0 | S68: 53907 | T68: 0 | U68: =IF(INTRO!$E$43="Endemic", IF($K68>1, IF($K68=4, "Unknown", IF($K68=99, "Surveillance", SUM($R68:$T68))), 0),"Not required") -> 53907 | V68: 0 | W68: 0 | X68: 1 | Y68: 1
A69: =IF(INTRO!$E$33<>0,INTRO!$E$33, " ") -> Uganda | B69: Eastern | C69: Namutumba | D69: 341351 | E69: =IF(INTRO!$E$48="","",ROUND($D69*INTRO!$E$48,0)) -> 48472 | F69: =IF(INTRO!$E$49="","",ROUND($D69*INTRO!$E$49,0)) -> 103088 | G69: =IF(INTRO!$E$50="","",ROUND($D69*INTRO!$E$50,0)) -> 177844 | H69: 99 | I69: 0 | J69: 21 | K69: 21 | L69: =IF(INTRO!$E$37="Endemic",IF($H69>0,IF($H69=4,"Unknown",IF($H69=99,"Stopped",$D69)),0),"Not required") -> Stopped | M69: 0 | N69: =IF(INTRO!$E$41="Endemic", IF($J69>1, IF($J69=4, "Unknown", IF($J69=99, "Surveillance", E69)), 0),"Not required") -> 48472 | O69: =IF(INTRO!$E$41="Endemic", IF($J69>1, IF($J69=4, "Unknown", IF($J69=99, "Surveillance", F69)), 0),"Not required") -> 103088 | P69: =IF(INTRO!$E$41="Endemic", IF($J69>1, IF($J69=4, "Unknown", IF($J69=99, "Surveillance", ROUND(D69*INTRO!$E$51,0))), 0),"Not required") -> 84314 | Q69: =IF(INTRO!$E$41="Endemic", IF($J69>1, IF($J69=4, "Unknown", IF($J69=99, "Surveillance", SUM($N69:$P69))), 0),"Not required") -> 235874 | R69: 0 | S69: 97822 | T69: 35628 | U69: =IF(INTRO!$E$43="Endemic", IF($K69>1, IF($K69=4, "Unknown", IF($K69=99, "Surveillance", SUM($R69:$T69))), 0),"Not required") -> 133450 | V69: 0 | W69: 0 | X69: 1 | Y69: 1
A70: =IF(INTRO!$E$33<>0,INTRO!$E$33, " ") -> Uganda | B70: Eastern | C70: Ngora | D70: 192046 | E70: =IF(INTRO!$E$48="","",ROUND($D70*INTRO!$E$48,0)) -> 27271 | F70: =IF(INTRO!$E$49="","",ROUND($D70*INTRO!$E$49,0)) -> 57998 | G70: =IF(INTRO!$E$50="","",ROUND($D70*INTRO!$E$50,0)) -> 100056 | H70: 99 | I70: 0 | J70: 99 | K70: 11 | L70: =IF(INTRO!$E$37="Endemic",IF($H70>0,IF($H70=4,"Unknown",IF($H70=99,"Stopped",$D70)),0),"Not required") -> Stopped | M70: 0 | N70: =IF(INTRO!$E$41="Endemic", IF($J70>1, IF($J70=4, "Unknown", IF($J70=99, "Surveillance", E70)), 0),"Not required") -> Surveillance | O70: =IF(INTRO!$E$41="Endemic", IF($J70>1, IF($J70=4, "Unknown", IF($J70=99, "Surveillance", F70)), 0),"Not required") -> Surveillance | P70: =IF(INTRO!$E$41="Endemic", IF($J70>1, IF($J70=4, "Unknown", IF($J70=99, "Surveillance", ROUND(D70*INTRO!$E$51,0))), 0),"Not required") -> Surveillance | Q70: =IF(INTRO!$E$41="Endemic", IF($J70>1, IF($J70=4, "Unknown", IF($J70=99, "Surveillance", SUM($N70:$P70))), 0),"Not required") -> Surveillance | R70: 0 | S70: 57998 | T70: 0 | U70: =IF(INTRO!$E$43="Endemic", IF($K70>1, IF($K70=4, "Unknown", IF($K70=99, "Surveillance", SUM($R70:$T70))), 0),"Not required") -> 57998 | V70: 0 | W70: 0 | X70: 1 | Y70: 1
A71: =IF(INTRO!$E$33<>0,INTRO!$E$33, " ") -> Uganda | B71: Eastern | C71: Pallisa | D71: 325892 | E71: =IF(INTRO!$E$48="","",ROUND($D71*INTRO!$E$48,0)) -> 46277 | F71: =IF(INTRO!$E$49="","",ROUND($D71*INTRO!$E$49,0)) -> 98419 | G71: =IF(INTRO!$E$50="","",ROUND($D71*INTRO!$E$50,0)) -> 169790 | H71: 99 | I71: 0 | J71: 11 | K71: 11 | L71: =IF(INTRO!$E$37="Endemic",IF($H71>0,IF($H71=4,"Unknown",IF($H71=99,"Stopped",$D71)),0),"Not required") -> Stopped | M71: 0 | N71: =IF(INTRO!$E$41="Endemic", IF($J71>1, IF($J71=4, "Unknown", IF($J71=99, "Surveillance", E71)), 0),"Not required") -> 46277 | O71: =IF(INTRO!$E$41="Endemic", IF($J71>1, IF($J71=4, "Unknown", IF($J71=99, "Surveillance", F71)), 0),"Not required") -> 98419 | P71: =IF(INTRO!$E$41="Endemic", IF($J71>1, IF($J71=4, "Unknown", IF($J71=99, "Surveillance", ROUND(D71*INTRO!$E$51,0))), 0),"Not required") -> 80495 | Q71: =IF(INTRO!$E$41="Endemic", IF($J71>1, IF($J71=4, "Unknown", IF($J71=99, "Surveillance", SUM($N71:$P71))), 0),"Not required") -> 225191 | R71: 0 | S71: 98419 | T71: 0 | U71: =IF(INTRO!$E$43="Endemic", IF($K71>1, IF($K71=4, "Unknown", IF($K71=99, "Surveillance", SUM($R71:$T71))), 0),"Not required") -> 98419 | V71: 0 | W71: 0 | X71: 1 | Y71: 1
A72: =IF(INTRO!$E$33<>0,INTRO!$E$33, " ") -> Uganda | B72: Eastern | C72: Serere | D72: 382289 | E72: =IF(INTRO!$E$48="","",ROUND($D72*INTRO!$E$48,0)) -> 54285 | F72: =IF(INTRO!$E$49="","",ROUND($D72*INTRO!$E$49,0)) -> 115451 | G72: =IF(INTRO!$E$50="","",ROUND($D72*INTRO!$E$50,0)) -> 199173 | H72: 99 | I72: 0 | J72: 11 | K72: 3 | L72: =IF(INTRO!$E$37="Endemic",IF($H72>0,IF($H72=4,"Unknown",IF($H72=99,"Stopped",$D72)),0),"Not required") -> Stopped | M72: 0 | N72: =IF(INTRO!$E$41="Endemic", IF($J72>1, IF($J72=4, "Unknown", IF($J72=99, "Surveillance", E72)), 0),"Not required") -> 54285 | O72: =IF(INTRO!$E$41="Endemic", IF($J72>1, IF($J72=4, "Unknown", IF($J72=99, "Surveillance", F72)), 0),"Not required") -> 115451 | P72: =IF(INTRO!$E$41="Endemic", IF($J72>1, IF($J72=4, "Unknown", IF($J72=99, "Surveillance", ROUND(D72*INTRO!$E$51,0))), 0),"Not required") -> 94425 | Q72: =IF(INTRO!$E$41="Endemic", IF($J72>1, IF($J72=4, "Unknown", IF($J72=99, "Surveillance", SUM($N72:$P72))), 0),"Not required") -> 264161 | R72: 0 | S72: 107859 | T72: 199173 | U72: =IF(INTRO!$E$43="Endemic", IF($K72>1, IF($K72=4, "Unknown", IF($K72=99, "Surveillance", SUM($R72:$T72))), 0),"Not required") -> 307032 | V72: 0 | W72: 0 | X72: 1 | Y72: 1
A73: =IF(INTRO!$E$33<>0,INTRO!$E$33, " ") -> Uganda | B73: Eastern | C73: Sironko | D73: 332428 | E73: =IF(INTRO!$E$48="","",ROUND($D73*INTRO!$E$48,0)) -> 47205 | F73: =IF(INTRO!$E$49="","",ROUND($D73*INTRO!$E$49,0)) -> 100393 | G73: =IF(INTRO!$E$50="","",ROUND($D73*INTRO!$E$50,0)) -> 173195 | H73: 0 | I73: 99 | J73: 99 | K73: 21 | L73: =IF(INTRO!$E$37="Endemic",IF($H73>0,IF($H73=4,"Unknown",IF($H73=99,"Stopped",$D73)),0),"Not required") -> 0 | M73: 0 | N73: =IF(INTRO!$E$41="Endemic", IF($J73>1, IF($J73=4, "Unknown", IF($J73=99, "Surveillance", E73)), 0),"Not required") -> Surveillance | O73: =IF(INTRO!$E$41="Endemic", IF($J73>1, IF($J73=4, "Unknown", IF($J73=99, "Surveillance", F73)), 0),"Not required") -> Surveillance | P73: =IF(INTRO!$E$41="Endemic", IF($J73>1, IF($J73=4, "Unknown", IF($J73=99, "Surveillance", ROUND(D73*INTRO!$E$51,0))), 0),"Not required") -> Surveillance | Q73: =IF(INTRO!$E$41="Endemic", IF($J73>1, IF($J73=4, "Unknown", IF($J73=99, "Surveillance", SUM($N73:$P73))), 0),"Not required") -> Surveillance | R73: 0 | S73: 100393 | T73: 34696 | U73: =IF(INTRO!$E$43="Endemic", IF($K73>1, IF($K73=4, "Unknown", IF($K73=99, "Surveillance", SUM($R73:$T73))), 0),"Not required") -> 135089 | V73: 0 | W73: 0 | X73: 1 | Y73: 1
A74: =IF(INTRO!$E$33<>0,INTRO!$E$33, " ") -> Uganda | B74: Eastern | C74: Soroti | D74: 333865 | E74: =IF(INTRO!$E$48="","",ROUND($D74*INTRO!$E$48,0)) -> 47409 | F74: =IF(INTRO!$E$49="","",ROUND($D74*INTRO!$E$49,0)) -> 100827 | G74: =IF(INTRO!$E$50="","",ROUND($D74*INTRO!$E$50,0)) -> 173944 | H74: 99 | I74: 0 | J74: 11 | K74: 11 | L74: =IF(INTRO!$E$37="Endemic",IF($H74>0,IF($H74=4,"Unknown",IF($H74=99,"Stopped",$D74)),0),"Not required") -> Stopped | M74: 0 | N74: =IF(INTRO!$E$41="Endemic", IF($J74>1, IF($J74=4, "Unknown", IF($J74=99, "Surveillance", E74)), 0),"Not required") -> 47409 | O74: =IF(INTRO!$E$41="Endemic", IF($J74>1, IF($J74=4, "Unknown", IF($J74=99, "Surveillance", F74)), 0),"Not required") -> 100827 | P74: =IF(INTRO!$E$41="Endemic", IF($J74>1, IF($J74=4, "Unknown", IF($J74=99, "Surveillance", ROUND(D74*INTRO!$E$51,0))), 0),"Not required") -> 82465 | Q74: =IF(INTRO!$E$41="Endemic", IF($J74>1, IF($J74=4, "Unknown", IF($J74=99, "Surveillance", SUM($N74:$P74))), 0),"Not required") -> 230701 | R74: 0 | S74: 100827 | T74: 0 | U74: =IF(INTRO!$E$43="Endemic", IF($K74>1, IF($K74=4, "Unknown", IF($K74=99, "Surveillance", SUM($R74:$T74))), 0),"Not required") -> 100827 | V74: 0 | W74: 0 | X74: 1 | Y74: 1
A75: =IF(INTRO!$E$33<>0,INTRO!$E$33, " ") -> Uganda | B75: Eastern | C75: Soroti City | D75: 66654 | E75: =IF(INTRO!$E$48="","",ROUND($D75*INTRO!$E$48,0)) -> 9465 | F75: =IF(INTRO!$E$49="","",ROUND($D75*INTRO!$E$49,0)) -> 20130 | G75: =IF(INTRO!$E$50="","",ROUND($D75*INTRO!$E$50,0)) -> 34727 | H75: 99 | I75: 0 | J75: 3 | K75: 0 | L75: =IF(INTRO!$E$37="Endemic",IF($H75>0,IF($H75=4,"Unknown",IF($H75=99,"Stopped",$D75)),0),"Not required") -> Stopped | M75: 0 | N75: =IF(INTRO!$E$41="Endemic", IF($J75>1, IF($J75=4, "Unknown", IF($J75=99, "Surveillance", E75)), 0),"Not required") -> 9465 | O75: =IF(INTRO!$E$41="Endemic", IF($J75>1, IF($J75=4, "Unknown", IF($J75=99, "Surveillance", F75)), 0),"Not required") -> 20130 | P75: =IF(INTRO!$E$41="Endemic", IF($J75>1, IF($J75=4, "Unknown", IF($J75=99, "Surveillance", ROUND(D75*INTRO!$E$51,0))), 0),"Not required") -> 16464 | Q75: =IF(INTRO!$E$41="Endemic", IF($J75>1, IF($J75=4, "Unknown", IF($J75=99, "Surveillance", SUM($N75:$P75))), 0),"Not required") -> 46059 | R75: 0 | S75: 0 | T75: 0 | U75: =IF(INTRO!$E$43="Endemic", IF($K75>1, IF($K75=4, "Unknown", IF($K75=99, "Surveillance", SUM($R75:$T75))), 0),"Not required") -> 0 | V75: 0 | W75: 0 | X75: 1 | Y75: 0
A76: =IF(INTRO!$E$33<>0,INTRO!$E$33, " ") -> Uganda | B76: Eastern | C76: Tororo | D76: 709465 | E76: =IF(INTRO!$E$48="","",ROUND($D76*INTRO!$E$48,0)) -> 100744 | F76: =IF(INTRO!$E$49="","",ROUND($D76*INTRO!$E$49,0)) -> 214258 | G76: =IF(INTRO!$E$50="","",ROUND($D76*INTRO!$E$50,0)) -> 369631 | H76: 99 | I76: 0 | J76: 11 | K76: 31 | L76: =IF(INTRO!$E$37="Endemic",IF($H76>0,IF($H76=4,"Unknown",IF($H76=99,"Stopped",$D76)),0),"Not required") -> Stopped | M76: 0 | N76: =IF(INTRO!$E$41="Endemic", IF($J76>1, IF($J76=4, "Unknown", IF($J76=99, "Surveillance", E76)), 0),"Not required") -> 100744 | O76: =IF(INTRO!$E$41="Endemic", IF($J76>1, IF($J76=4, "Unknown", IF($J76=99, "Surveillance", F76)), 0),"Not required") -> 214258 | P76: =IF(INTRO!$E$41="Endemic", IF($J76>1, IF($J76=4, "Unknown", IF($J76=99, "Surveillance", ROUND(D76*INTRO!$E$51,0))), 0),"Not required") -> 175238 | Q76: =IF(INTRO!$E$41="Endemic", IF($J76>1, IF($J76=4, "Unknown", IF($J76=99, "Surveillance", SUM($N76:$P76))), 0),"Not required") -> 490240 | R76: 0 | S76: 112851 | T76: 70241 | U76: =IF(INTRO!$E$43="Endemic", IF($K76>1, IF($K76=4, "Unknown", IF($K76=99, "Surveillance", SUM($R76:$T76))), 0),"Not required") -> 183092 | V76: 0 | W76: 0 | X76: 1 | Y76: 1
A77: =IF(INTRO!$E$33<>0,INTRO!$E$33, " ") -> Uganda | B77: Northern | C77: Abim | D77: 146965 | E77: =IF(INTRO!$E$48="","",ROUND($D77*INTRO!$E$48,0)) -> 20869 | F77: =IF(INTRO!$E$49="","",ROUND($D77*INTRO!$E$49,0)) -> 44383 | G77: =IF(INTRO!$E$50="","",ROUND($D77*INTRO!$E$50,0)) -> 76569 | H77: 99 | I77: 0 | J77: 3 | K77: 0 | L77: =IF(INTRO!$E$37="Endemic",IF($H77>0,IF($H77=4,"Unknown",IF($H77=99,"Stopped",$D77)),0),"Not required") -> Stopped | M77: 0 | N77: =IF(INTRO!$E$41="Endemic", IF($J77>1, IF($J77=4, "Unknown", IF($J77=99, "Surveillance", E77)), 0),"Not required") -> 20869 | O77: =IF(INTRO!$E$41="Endemic", IF($J77>1, IF($J77=4, "Unknown", IF($J77=99, "Surveillance", F77)), 0),"Not required") -> 44383 | P77: =IF(INTRO!$E$41="Endemic", IF($J77>1, IF($J77=4, "Unknown", IF($J77=99, "Surveillance", ROUND(D77*INTRO!$E$51,0))), 0),"Not required") -> 36300 | Q77: =IF(INTRO!$E$41="Endemic", IF($J77>1, IF($J77=4, "Unknown", IF($J77=99, "Surveillance", SUM($N77:$P77))), 0),"Not required") -> 101552 | R77: 0 | S77: 0 | T77: 0 | U77: =IF(INTRO!$E$43="Endemic", IF($K77>1, IF($K77=4, "Unknown", IF($K77=99, "Surveillance", SUM($R77:$T77))), 0),"Not required") -> 0 | V77: 0 | W77: 0 | X77: 1 | Y77: 0
A78: =IF(INTRO!$E$33<>0,INTRO!$E$33, " ") -> Uganda | B78: Northern | C78: Adjumani | D78: 313800 | E78: =IF(INTRO!$E$48="","",ROUND($D78*INTRO!$E$48,0)) -> 44560 | F78: =IF(INTRO!$E$49="","",ROUND($D78*INTRO!$E$49,0)) -> 94768 | G78: =IF(INTRO!$E$50="","",ROUND($D78*INTRO!$E$50,0)) -> 163490 | H78: 99 | I78: 1 | J78: 3 | K78: 3 | L78: =IF(INTRO!$E$37="Endemic",IF($H78>0,IF($H78=4,"Unknown",IF($H78=99,"Stopped",$D78)),0),"Not required") -> Stopped | M78: 32079 | N78: =IF(INTRO!$E$41="Endemic", IF($J78>1, IF($J78=4, "Unknown", IF($J78=99, "Surveillance", E78)), 0),"Not required") -> 44560 | O78: =IF(INTRO!$E$41="Endemic", IF($J78>1, IF($J78=4, "Unknown", IF($J78=99, "Surveillance", F78)), 0),"Not required") -> 94768 | P78: =IF(INTRO!$E$41="Endemic", IF($J78>1, IF($J78=4, "Unknown", IF($J78=99, "Surveillance", ROUND(D78*INTRO!$E$51,0))), 0),"Not required") -> 77509 | Q78: =IF(INTRO!$E$41="Endemic", IF($J78>1, IF($J78=4, "Unknown", IF($J78=99, "Surveillance", SUM($N78:$P78))), 0),"Not required") -> 216837 | R78: 0 | S78: 21183 | T78: 163490 | U78: =IF(INTRO!$E$43="Endemic", IF($K78>1, IF($K78=4, "Unknown", IF($K78=99, "Surveillance", SUM($R78:$T78))), 0),"Not required") -> 184673 | V78: 0 | W78: 2 | X78: 1 | Y78: 1
A79: =IF(INTRO!$E$33<>0,INTRO!$E$33, " ") -> Uganda | B79: Northern | C79: Agago | D79: 306620 | E79: =IF(INTRO!$E$48="","",ROUND($D79*INTRO!$E$48,0)) -> 43540 | F79: =IF(INTRO!$E$49="","",ROUND($D79*INTRO!$E$49,0)) -> 92599 | G79: =IF(INTRO!$E$50="","",ROUND($D79*INTRO!$E$50,0)) -> 159749 | H79: 99 | I79: 0 | J79: 99 | K79: 11 | L79: =IF(INTRO!$E$37="Endemic",IF($H79>0,IF($H79=4,"Unknown",IF($H79=99,"Stopped",$D79)),0),"Not required") -> Stopped | M79: 0 | N79: =IF(INTRO!$E$41="Endemic", IF($J79>1, IF($J79=4, "Unknown", IF($J79=99, "Surveillance", E79)), 0),"Not required") -> Surveillance | O79: =IF(INTRO!$E$41="Endemic", IF($J79>1, IF($J79=4, "Unknown", IF($J79=99, "Surveillance", F79)), 0),"Not required") -> Surveillance | P79: =IF(INTRO!$E$41="Endemic", IF($J79>1, IF($J79=4, "Unknown", IF($J79=99, "Surveillance", ROUND(D79*INTRO!$E$51,0))), 0),"Not required") -> Surveillance | Q79: =IF(INTRO!$E$41="Endemic", IF($J79>1, IF($J79=4, "Unknown", IF($J79=99, "Surveillance", SUM($N79:$P79))), 0),"Not required") -> Surveillance | R79: 0 | S79: 0 | T79: 0 | U79: =IF(INTRO!$E$43="Endemic", IF($K79>1, IF($K79=4, "Unknown", IF($K79=99, "Surveillance", SUM($R79:$T79))), 0),"Not required") -> 0 | V79: 0 | W79: 0 | X79: 1 | Y79: 0
A80: =IF(INTRO!$E$33<>0,INTRO!$E$33, " ") -> Uganda | B80: Northern | C80: Alebtong | D80: 303709 | E80: =IF(INTRO!$E$48="","",ROUND($D80*INTRO!$E$48,0)) -> 43127 | F80: =IF(INTRO!$E$49="","",ROUND($D80*INTRO!$E$49,0)) -> 91720 | G80: =IF(INTRO!$E$50="","",ROUND($D80*INTRO!$E$50,0)) -> 158232 | H80: 99 | I80: 0 | J80: 11 | K80: 3 | L80: =IF(INTRO!$E$37="Endemic",IF($H80>0,IF($H80=4,"Unknown",IF($H80=99,"Stopped",$D80)),0),"Not required") -> Stopped | M80: 0 | N80: =IF(INTRO!$E$41="Endemic", IF($J80>1, IF($J80=4, "Unknown", IF($J80=99, "Surveillance", E80)), 0),"Not required") -> 43127 | O80: =IF(INTRO!$E$41="Endemic", IF($J80>1, IF($J80=4, "Unknown", IF($J80=99, "Surveillance", F80)), 0),"Not required") -> 91720 | P80: =IF(INTRO!$E$41="Endemic", IF($J80>1, IF($J80=4, "Unknown", IF($J80=99, "Surveillance", ROUND(D80*INTRO!$E$51,0))), 0),"Not required") -> 75016 | Q80: =IF(INTRO!$E$41="Endemic", IF($J80>1, IF($J80=4, "Unknown", IF($J80=99, "Surveillance", SUM($N80:$P80))), 0),"Not required") -> 209863 | R80: 0 | S80: 89153 | T80: 158232 | U80: =IF(INTRO!$E$43="Endemic", IF($K80>1, IF($K80=4, "Unknown", IF($K80=99, "Surveillance", SUM($R80:$T80))), 0),"Not required") -> 247385 | V80: 0 | W80: 0 | X80: 1 | Y80: 1
A81: =IF(INTRO!$E$33<>0,INTRO!$E$33, " ") -> Uganda | B81: Northern | C81: Amolatar | D81: 198006 | E81: =IF(INTRO!$E$48="","",ROUND($D81*INTRO!$E$48,0)) -> 28117 | F81: =IF(INTRO!$E$49="","",ROUND($D81*INTRO!$E$49,0)) -> 59798 | G81: =IF(INTRO!$E$50="","",ROUND($D81*INTRO!$E$50,0)) -> 103161 | H81: 99 | I81: 0 | J81: 3 | K81: 3 | L81: =IF(INTRO!$E$37="Endemic",IF($H81>0,IF($H81=4,"Unknown",IF($H81=99,"Stopped",$D81)),0),"Not required") -> Stopped | M81: 0 | N81: =IF(INTRO!$E$41="Endemic", IF($J81>1, IF($J81=4, "Unknown", IF($J81=99, "Surveillance", E81)), 0),"Not required") -> 28117 | O81: =IF(INTRO!$E$41="Endemic", IF($J81>1, IF($J81=4, "Unknown", IF($J81=99, "Surveillance", F81)), 0),"Not required") -> 59798 | P81: =IF(INTRO!$E$41="Endemic", IF($J81>1, IF($J81=4, "Unknown", IF($J81=99, "Surveillance", ROUND(D81*INTRO!$E$51,0))), 0),"Not required") -> 48907 | Q81: =IF(INTRO!$E$41="Endemic", IF($J81>1, IF($J81=4, "Unknown", IF($J81=99, "Surveillance", SUM($N81:$P81))), 0),"Not required") -> 136822 | R81: 0 | S81: 59160 | T81: 103161 | U81: =IF(INTRO!$E$43="Endemic", IF($K81>1, IF($K81=4, "Unknown", IF($K81=99, "Surveillance", SUM($R81:$T81))), 0),"Not required") -> 162321 | V81: 0 | W81: 0 | X81: 1 | Y81: 1
A82: =IF(INTRO!$E$33<>0,INTRO!$E$33, " ") -> Uganda | B82: Northern | C82: Amudat | D82: 150629 | E82: =IF(INTRO!$E$48="","",ROUND($D82*INTRO!$E$48,0)) -> 21389 | F82: =IF(INTRO!$E$49="","",ROUND($D82*INTRO!$E$49,0)) -> 45490 | G82: =IF(INTRO!$E$50="","",ROUND($D82*INTRO!$E$50,0)) -> 78478 | H82: 99 | I82: 0 | J82: 3 | K82: 0 | L82: =IF(INTRO!$E$37="Endemic",IF($H82>0,IF($H82=4,"Unknown",IF($H82=99,"Stopped",$D82)),0),"Not required") -> Stopped | M82: 0 | N82: =IF(INTRO!$E$41="Endemic", IF($J82>1, IF($J82=4, "Unknown", IF($J82=99, "Surveillance", E82)), 0),"Not required") -> 21389 | O82: =IF(INTRO!$E$41="Endemic", IF($J82>1, IF($J82=4, "Unknown", IF($J82=99, "Surveillance", F82)), 0),"Not required") -> 45490 | P82: =IF(INTRO!$E$41="Endemic", IF($J82>1, IF($J82=4, "Unknown", IF($J82=99, "Surveillance", ROUND(D82*INTRO!$E$51,0))), 0),"Not required") -> 37205 | Q82: =IF(INTRO!$E$41="Endemic", IF($J82>1, IF($J82=4, "Unknown", IF($J82=99, "Surveillance", SUM($N82:$P82))), 0),"Not required") -> 104084 | R82: 0 | S82: 0 | T82: 0 | U82: =IF(INTRO!$E$43="Endemic", IF($K82>1, IF($K82=4, "Unknown", IF($K82=99, "Surveillance", SUM($R82:$T82))), 0),"Not required") -> 0 | V82: 0 | W82: 0 | X82: 1 | Y82: 0
A83: =IF(INTRO!$E$33<>0,INTRO!$E$33, " ") -> Uganda | B83: Northern | C83: Amuru | D83: 256783 | E83: =IF(INTRO!$E$48="","",ROUND($D83*INTRO!$E$48,0)) -> 36463 | F83: =IF(INTRO!$E$49="","",ROUND($D83*INTRO!$E$49,0)) -> 77548 | G83: =IF(INTRO!$E$50="","",ROUND($D83*INTRO!$E$50,0)) -> 133784 | H83: 99 | I83: 1 | J83: 3 | K83: 3 | L83: =IF(INTRO!$E$37="Endemic",IF($H83>0,IF($H83=4,"Unknown",IF($H83=99,"Stopped",$D83)),0),"Not required") -> Stopped | M83: 249590 | N83: =IF(INTRO!$E$41="Endemic", IF($J83>1, IF($J83=4, "Unknown", IF($J83=99, "Surveillance", E83)), 0),"Not required") -> 36463 | O83: =IF(INTRO!$E$41="Endemic", IF($J83>1, IF($J83=4, "Unknown", IF($J83=99, "Surveillance", F83)), 0),"Not required") -> 77548 | P83: =IF(INTRO!$E$41="Endemic", IF($J83>1, IF($J83=4, "Unknown", IF($J83=99, "Surveillance", ROUND(D83*INTRO!$E$51,0))), 0),"Not required") -> 63425 | Q83: =IF(INTRO!$E$41="Endemic", IF($J83>1, IF($J83=4, "Unknown", IF($J83=99, "Surveillance", SUM($N83:$P83))), 0),"Not required") -> 177436 | R83: 0 | S83: 66289 | T83: 133784 | U83: =IF(INTRO!$E$43="Endemic", IF($K83>1, IF($K83=4, "Unknown", IF($K83=99, "Surveillance", SUM($R83:$T83))), 0),"Not required") -> 200073 | V83: 0 | W83: 2 | X83: 1 | Y83: 1
A84: =IF(INTRO!$E$33<>0,INTRO!$E$33, " ") -> Uganda | B84: Northern | C84: Apac | D84: 249862 | E84: =IF(INTRO!$E$48="","",ROUND($D84*INTRO!$E$48,0)) -> 35480 | F84: =IF(INTRO!$E$49="","",ROUND($D84*INTRO!$E$49,0)) -> 75458 | G84: =IF(INTRO!$E$50="","",ROUND($D84*INTRO!$E$50,0)) -> 130178 | H84: 99 | I84: 0 | J84: 11 | K84: 3 | L84: =IF(INTRO!$E$37="Endemic",IF($H84>0,IF($H84=4,"Unknown",IF($H84=99,"Stopped",$D84)),0),"Not required") -> Stopped | M84: 0 | N84: =IF(INTRO!$E$41="Endemic", IF($J84>1, IF($J84=4, "Unknown", IF($J84=99, "Surveillance", E84)), 0),"Not required") -> 35480 | O84: =IF(INTRO!$E$41="Endemic", IF($J84>1, IF($J84=4, "Unknown", IF($J84=99, "Surveillance", F84)), 0),"Not required") -> 75458 | P84: =IF(INTRO!$E$41="Endemic", IF($J84>1, IF($J84=4, "Unknown", IF($J84=99, "Surveillance", ROUND(D84*INTRO!$E$51,0))), 0),"Not required") -> 61716 | Q84: =IF(INTRO!$E$41="Endemic", IF($J84>1, IF($J84=4, "Unknown", IF($J84=99, "Surveillance", SUM($N84:$P84))), 0),"Not required") -> 172654 | R84: 0 | S84: 75458 | T84: 130178 | U84: =IF(INTRO!$E$43="Endemic", IF($K84>1, IF($K84=4, "Unknown", IF($K84=99, "Surveillance", SUM($R84:$T84))), 0),"Not required") -> 205636 | V84: 0 | W84: 0 | X84: 1 | Y84: 1
A85: =IF(INTRO!$E$33<>0,INTRO!$E$33, " ") -> Uganda | B85: Northern | C85: Arua | D85: 180125 | E85: =IF(INTRO!$E$48="","",ROUND($D85*INTRO!$E$48,0)) -> 25578 | F85: =IF(INTRO!$E$49="","",ROUND($D85*INTRO!$E$49,0)) -> 54398 | G85: =IF(INTRO!$E$50="","",ROUND($D85*INTRO!$E$50,0)) -> 93845 | H85: 99 | I85: 99 | J85: 3 | K85: 3 | L85: =IF(INTRO!$E$37="Endemic",IF($H85>0,IF($H85=4,"Unknown",IF($H85=99,"Stopped",$D85)),0),"Not required") -> Stopped | M85: 0 | N85: =IF(INTRO!$E$41="Endemic", IF($J85>1, IF($J85=4, "Unknown", IF($J85=99, "Surveillance", E85)), 0),"Not required") -> 25578 | O85: =IF(INTRO!$E$41="Endemic", IF($J85>1, IF($J85=4, "Unknown", IF($J85=99, "Surveillance", F85)), 0),"Not required") -> 54398 | P85: =IF(INTRO!$E$41="Endemic", IF($J85>1, IF($J85=4, "Unknown", IF($J85=99, "Surveillance", ROUND(D85*INTRO!$E$51,0))), 0),"Not required") -> 44491 | Q85: =IF(INTRO!$E$41="Endemic", IF($J85>1, IF($J85=4, "Unknown", IF($J85=99, "Surveillance", SUM($N85:$P85))), 0),"Not required") -> 124467 | R85: 0 | S85: 44874 | T85: 93845 | U85: =IF(INTRO!$E$43="Endemic", IF($K85>1, IF($K85=4, "Unknown", IF($K85=99, "Surveillance", SUM($R85:$T85))), 0),"Not required") -> 138719 | V85: 0 | W85: 0 | X85: 1 | Y85: 1
A86: =IF(INTRO!$E$33<>0,INTRO!$E$33, " ") -> Uganda | B86: Northern | C86: Arua City | D86: 416288 | E86: =IF(INTRO!$E$48="","",ROUND($D86*INTRO!$E$48,0)) -> 59113 | F86: =IF(INTRO!$E$49="","",ROUND($D86*INTRO!$E$49,0)) -> 125719 | G86: =IF(INTRO!$E$50="","",ROUND($D86*INTRO!$E$50,0)) -> 216886 | H86: 99 | I86: 0 | J86: 3 | K86: 3 | L86: =IF(INTRO!$E$37="Endemic",IF($H86>0,IF($H86=4,"Unknown",IF($H86=99,"Stopped",$D86)),0),"Not required") -> Stopped | M86: 0 | N86: =IF(INTRO!$E$41="Endemic", IF($J86>1, IF($J86=4, "Unknown", IF($J86=99, "Surveillance", E86)), 0),"Not required") -> 59113 | O86: =IF(INTRO!$E$41="Endemic", IF($J86>1, IF($J86=4, "Unknown", IF($J86=99, "Surveillance", F86)), 0),"Not required") -> 125719 | P86: =IF(INTRO!$E$41="Endemic", IF($J86>1, IF($J86=4, "Unknown", IF($J86=99, "Surveillance", ROUND(D86*INTRO!$E$51,0))), 0),"Not required") -> 102823 | Q86: =IF(INTRO!$E$41="Endemic", IF($J86>1, IF($J86=4, "Unknown", IF($J86=99, "Surveillance", SUM($N86:$P86))), 0),"Not required") -> 287655 | R86: 0 | S86: 125719 | T86: 216886 | U86: =IF(INTRO!$E$43="Endemic", IF($K86>1, IF($K86=4, "Unknown", IF($K86=99, "Surveillance", SUM($R86:$T86))), 0),"Not required") -> 342605 | V86: 0 | W86: 0 | X86: 1 | Y86: 1
A87: =IF(INTRO!$E$33<>0,INTRO!$E$33, " ") -> Uganda | B87: Northern | C87: Dokolo | D87: 246089 | E87: =IF(INTRO!$E$48="","",ROUND($D87*INTRO!$E$48,0)) -> 34945 | F87: =IF(INTRO!$E$49="","",ROUND($D87*INTRO!$E$49,0)) -> 74319 | G87: =IF(INTRO!$E$50="","",ROUND($D87*INTRO!$E$50,0)) -> 128212 | H87: 99 | I87: 0 | J87: 11 | K87: 21 | L87: =IF(INTRO!$E$37="Endemic",IF($H87>0,IF($H87=4,"Unknown",IF($H87=99,"Stopped",$D87)),0),"Not required") -> Stopped | M87: 0 | N87: =IF(INTRO!$E$41="Endemic", IF($J87>1, IF($J87=4, "Unknown", IF($J87=99, "Surveillance", E87)), 0),"Not required") -> 34945 | O87: =IF(INTRO!$E$41="Endemic", IF($J87>1, IF($J87=4, "Unknown", IF($J87=99, "Surveillance", F87)), 0),"Not required") -> 74319 | P87: =IF(INTRO!$E$41="Endemic", IF($J87>1, IF($J87=4, "Unknown", IF($J87=99, "Surveillance", ROUND(D87*INTRO!$E$51,0))), 0),"Not required") -> 60784 | Q87: =IF(INTRO!$E$41="Endemic", IF($J87>1, IF($J87=4, "Unknown", IF($J87=99, "Surveillance", SUM($N87:$P87))), 0),"Not required") -> 170048 | R87: 0 | S87: 56148 | T87: 25685 | U87: =IF(INTRO!$E$43="Endemic", IF($K87>1, IF($K87=4, "Unknown", IF($K87=99, "Surveillance", SUM($R87:$T87))), 0),"Not required") -> 81833 | V87: 0 | W87: 0 | X87: 1 | Y87: 1
A88: =IF(INTRO!$E$33<>0,INTRO!$E$33, " ") -> Uganda | B88: Northern | C88: Gulu | D88: 169578 | E88: =IF(INTRO!$E$48="","",ROUND($D88*INTRO!$E$48,0)) -> 24080 | F88: =IF(INTRO!$E$49="","",ROUND($D88*INTRO!$E$49,0)) -> 51213 | G88: =IF(INTRO!$E$50="","",ROUND($D88*INTRO!$E$50,0)) -> 88350 | H88: 99 | I88: 1 | J88: 3 | K88: 21 | L88: =IF(INTRO!$E$37="Endemic",IF($H88>0,IF($H88=4,"Unknown",IF($H88=99,"Stopped",$D88)),0),"Not required") -> Stopped | M88: 148999 | N88: =IF(INTRO!$E$41="Endemic", IF($J88>1, IF($J88=4, "Unknown", IF($J88=99, "Surveillance", E88)), 0),"Not required") -> 24080 | O88: =IF(INTRO!$E$41="Endemic", IF($J88>1, IF($J88=4, "Unknown", IF($J88=99, "Surveillance", F88)), 0),"Not required") -> 51213 | P88: =IF(INTRO!$E$41="Endemic", IF($J88>1, IF($J88=4, "Unknown", IF($J88=99, "Surveillance", ROUND(D88*INTRO!$E$51,0))), 0),"Not required") -> 41886 | Q88: =IF(INTRO!$E$41="Endemic", IF($J88>1, IF($J88=4, "Unknown", IF($J88=99, "Surveillance", SUM($N88:$P88))), 0),"Not required") -> 117179 | R88: 0 | S88: 51213 | T88: 17699 | U88: =IF(INTRO!$E$43="Endemic", IF($K88>1, IF($K88=4, "Unknown", IF($K88=99, "Surveillance", SUM($R88:$T88))), 0),"Not required") -> 68912 | V88: 0 | W88: 2 | X88: 1 | Y88: 1
A89: =IF(INTRO!$E$33<>0,INTRO!$E$33, " ") -> Uganda | B89: Northern | C89: Gulu City | D89: 205250 | E89: =IF(INTRO!$E$48="","",ROUND($D89*INTRO!$E$48,0)) -> 29146 | F89: =IF(INTRO!$E$49="","",ROUND($D89*INTRO!$E$49,0)) -> 61986 | G89: =IF(INTRO!$E$50="","",ROUND($D89*INTRO!$E$50,0)) -> 106935 | H89: 99 | I89: 1 | J89: 3 | K89: 11 | L89: =IF(INTRO!$E$37="Endemic",IF($H89>0,IF($H89=4,"Unknown",IF($H89=99,"Stopped",$D89)),0),"Not required") -> Stopped | M89: 0 | N89: =IF(INTRO!$E$41="Endemic", IF($J89>1, IF($J89=4, "Unknown", IF($J89=99, "Surveillance", E89)), 0),"Not required") -> 29146 | O89: =IF(INTRO!$E$41="Endemic", IF($J89>1, IF($J89=4, "Unknown", IF($J89=99, "Surveillance", F89)), 0),"Not required") -> 61986 | P89: =IF(INTRO!$E$41="Endemic", IF($J89>1, IF($J89=4, "Unknown", IF($J89=99, "Surveillance", ROUND(D89*INTRO!$E$51,0))), 0),"Not required") -> 50697 | Q89: =IF(INTRO!$E$41="Endemic", IF($J89>1, IF($J89=4, "Unknown", IF($J89=99, "Surveillance", SUM($N89:$P89))), 0),"Not required") -> 141829 | R89: 0 | S89: 0 | T89: 0 | U89: =IF(INTRO!$E$43="Endemic", IF($K89>1, IF($K89=4, "Unknown", IF($K89=99, "Surveillance", SUM($R89:$T89))), 0),"Not required") -> 0 | V89: 0 | W89: 0 | X89: 1 | Y89: 1
A90: =IF(INTRO!$E$33<>0,INTRO!$E$33, " ") -> Uganda | B90: Northern | C90: Kaabong | D90: 148879 | E90: =IF(INTRO!$E$48="","",ROUND($D90*INTRO!$E$48,0)) -> 21141 | F90: =IF(INTRO!$E$49="","",ROUND($D90*INTRO!$E$49,0)) -> 44961 | G90: =IF(INTRO!$E$50="","",ROUND($D90*INTRO!$E$50,0)) -> 77566 | H90: 99 | I90: 0 | J90: 3 | K90: 0 | L90: =IF(INTRO!$E$37="Endemic",IF($H90>0,IF($H90=4,"Unknown",IF($H90=99,"Stopped",$D90)),0),"Not required") -> Stopped | M90: 0 | N90: =IF(INTRO!$E$41="Endemic", IF($J90>1, IF($J90=4, "Unknown", IF($J90=99, "Surveillance", E90)), 0),"Not required") -> 21141 | O90: =IF(INTRO!$E$41="Endemic", IF($J90>1, IF($J90=4, "Unknown", IF($J90=99, "Surveillance", F90)), 0),"Not required") -> 44961 | P90: =IF(INTRO!$E$41="Endemic", IF($J90>1, IF($J90=4, "Unknown", IF($J90=99, "Surveillance", ROUND(D90*INTRO!$E$51,0))), 0),"Not required") -> 36773 | Q90: =IF(INTRO!$E$41="Endemic", IF($J90>1, IF($J90=4, "Unknown", IF($J90=99, "Surveillance", SUM($N90:$P90))), 0),"Not required") -> 102875 | R90: 0 | S90: 0 | T90: 0 | U90: =IF(INTRO!$E$43="Endemic", IF($K90>1, IF($K90=4, "Unknown", IF($K90=99, "Surveillance", SUM($R90:$T90))), 0),"Not required") -> 0 | V90: 0 | W90: 0 | X90: 1 | Y90: 0
A91: =IF(INTRO!$E$33<>0,INTRO!$E$33, " ") -> Uganda | B91: Northern | C91: Karenga | D91: 79277 | E91: =IF(INTRO!$E$48="","",ROUND($D91*INTRO!$E$48,0)) -> 11257 | F91: =IF(INTRO!$E$49="","",ROUND($D91*INTRO!$E$49,0)) -> 23942 | G91: =IF(INTRO!$E$50="","",ROUND($D91*INTRO!$E$50,0)) -> 41303 | H91: 99 | I91: 0 | J91: 3 | K91: 0 | L91: =IF(INTRO!$E$37="Endemic",IF($H91>0,IF($H91=4,"Unknown",IF($H91=99,"Stopped",$D91)),0),"Not required") -> Stopped | M91: 0 | N91: =IF(INTRO!$E$41="Endemic", IF($J91>1, IF($J91=4, "Unknown", IF($J91=99, "Surveillance", E91)), 0),"Not required") -> 11257 | O91: =IF(INTRO!$E$41="Endemic", IF($J91>1, IF($J91=4, "Unknown", IF($J91=99, "Surveillance", F91)), 0),"Not required") -> 23942 | P91: =IF(INTRO!$E$41="Endemic", IF($J91>1, IF($J91=4, "Unknown", IF($J91=99, "Surveillance", ROUND(D91*INTRO!$E$51,0))), 0),"Not required") -> 19581 | Q91: =IF(INTRO!$E$41="Endemic", IF($J91>1, IF($J91=4, "Unknown", IF($J91=99, "Surveillance", SUM($N91:$P91))), 0),"Not required") -> 54780 | R91: 0 | S91: 0 | T91: 0 | U91: =IF(INTRO!$E$43="Endemic", IF($K91>1, IF($K91=4, "Unknown", IF($K91=99, "Surveillance", SUM($R91:$T91))), 0),"Not required") -> 0 | V91: 0 | W91: 0 | X91: 1 | Y91: 0
A92: =IF(INTRO!$E$33<>0,INTRO!$E$33, " ") -> Uganda | B92: Northern | C92: Kitgum | D92: 274976 | E92: =IF(INTRO!$E$48="","",ROUND($D92*INTRO!$E$48,0)) -> 39047 | F92: =IF(INTRO!$E$49="","",ROUND($D92*INTRO!$E$49,0)) -> 83043 | G92: =IF(INTRO!$E$50="","",ROUND($D92*INTRO!$E$50,0)) -> 143262 | H92: 99 | I92: 1 | J92: 3 | K92: 3 | L92: =IF(INTRO!$E$37="Endemic",IF($H92>0,IF($H92=4,"Unknown",IF($H92=99,"Stopped",$D92)),0),"Not required") -> Stopped | M92: 101222 | N92: =IF(INTRO!$E$41="Endemic", IF($J92>1, IF($J92=4, "Unknown", IF($J92=99, "Surveillance", E92)), 0),"Not required") -> 39047 | O92: =IF(INTRO!$E$41="Endemic", IF($J92>1, IF($J92=4, "Unknown", IF($J92=99, "Surveillance", F92)), 0),"Not required") -> 83043 | P92: =IF(INTRO!$E$41="Endemic", IF($J92>1, IF($J92=4, "Unknown", IF($J92=99, "Surveillance", ROUND(D92*INTRO!$E$51,0))), 0),"Not required") -> 67919 | Q92: =IF(INTRO!$E$41="Endemic", IF($J92>1, IF($J92=4, "Unknown", IF($J92=99, "Surveillance", SUM($N92:$P92))), 0),"Not required") -> 190009 | R92: 0 | S92: 48857 | T92: 143262 | U92: =IF(INTRO!$E$43="Endemic", IF($K92>1, IF($K92=4, "Unknown", IF($K92=99, "Surveillance", SUM($R92:$T92))), 0),"Not required") -> 192119 | V92: 0 | W92: 2 | X92: 1 | Y92: 1
A93: =IF(INTRO!$E$33<>0,INTRO!$E$33, " ") -> Uganda | B93: Northern | C93: Koboko | D93: 280570 | E93: =IF(INTRO!$E$48="","",ROUND($D93*INTRO!$E$48,0)) -> 39841 | F93: =IF(INTRO!$E$49="","",ROUND($D93*INTRO!$E$49,0)) -> 84732 | G93: =IF(INTRO!$E$50="","",ROUND($D93*INTRO!$E$50,0)) -> 146177 | H93: 99 | I93: 99 | J93: 99 | K93: 3 | L93: =IF(INTRO!$E$37="Endemic",IF($H93>0,IF($H93=4,"Unknown",IF($H93=99,"Stopped",$D93)),0),"Not required") -> Stopped | M93: 0 | N93: =IF(INTRO!$E$41="Endemic", IF($J93>1, IF($J93=4, "Unknown", IF($J93=99, "Surveillance", E93)), 0),"Not required") -> Surveillance | O93: =IF(INTRO!$E$41="Endemic", IF($J93>1, IF($J93=4, "Unknown", IF($J93=99, "Surveillance", F93)), 0),"Not required") -> Surveillance | P93: =IF(INTRO!$E$41="Endemic", IF($J93>1, IF($J93=4, "Unknown", IF($J93=99, "Surveillance", ROUND(D93*INTRO!$E$51,0))), 0),"Not required") -> Surveillance | Q93: =IF(INTRO!$E$41="Endemic", IF($J93>1, IF($J93=4, "Unknown", IF($J93=99, "Surveillance", SUM($N93:$P93))), 0),"Not required") -> Surveillance | R93: 0 | S93: 84732 | T93: 146177 | U93: =IF(INTRO!$E$43="Endemic", IF($K93>1, IF($K93=4, "Unknown", IF($K93=99, "Surveillance", SUM($R93:$T93))), 0),"Not required") -> 230909 | V93: 0 | W93: 0 | X93: 1 | Y93: 1
A94: =IF(INTRO!$E$33<>0,INTRO!$E$33, " ") -> Uganda | B94: Northern | C94: Kole | D94: 326010 | E94: =IF(INTRO!$E$48="","",ROUND($D94*INTRO!$E$48,0)) -> 46293 | F94: =IF(INTRO!$E$49="","",ROUND($D94*INTRO!$E$49,0)) -> 98455 | G94: =IF(INTRO!$E$50="","",ROUND($D94*INTRO!$E$50,0)) -> 169851 | H94: 99 | I94: 0 | J94: 3 | K94: 0 | L94: =IF(INTRO!$E$37="Endemic",IF($H94>0,IF($H94=4,"Unknown",IF($H94=99,"Stopped",$D94)),0),"Not required") -> Stopped | M94: 0 | N94: =IF(INTRO!$E$41="Endemic", IF($J94>1, IF($J94=4, "Unknown", IF($J94=99, "Surveillance", E94)), 0),"Not required") -> 46293 | O94: =IF(INTRO!$E$41="Endemic", IF($J94>1, IF($J94=4, "Unknown", IF($J94=99, "Surveillance", F94)), 0),"Not required") -> 98455 | P94: =IF(INTRO!$E$41="Endemic", IF($J94>1, IF($J94=4, "Unknown", IF($J94=99, "Surveillance", ROUND(D94*INTRO!$E$51,0))), 0),"Not required") -> 80524 | Q94: =IF(INTRO!$E$41="Endemic", IF($J94>1, IF($J94=4, "Unknown", IF($J94=99, "Surveillance", SUM($N94:$P94))), 0),"Not required") -> 225272 | R94: 0 | S94: 0 | T94: 0 | U94: =IF(INTRO!$E$43="Endemic", IF($K94>1, IF($K94=4, "Unknown", IF($K94=99, "Surveillance", SUM($R94:$T94))), 0),"Not required") -> 0 | V94: 0 | W94: 0 | X94: 1 | Y94: 0
A95: =IF(INTRO!$E$33<>0,INTRO!$E$33, " ") -> Uganda | B95: Northern | C95: Kotido | D95: 241143 | E95: =IF(INTRO!$E$48="","",ROUND($D95*INTRO!$E$48,0)) -> 34242 | F95: =IF(INTRO!$E$49="","",ROUND($D95*INTRO!$E$49,0)) -> 72825 | G95: =IF(INTRO!$E$50="","",ROUND($D95*INTRO!$E$50,0)) -> 125636 | H95: 99 | I95: 0 | J95: 3 | K95: 0 | L95: =IF(INTRO!$E$37="Endemic",IF($H95>0,IF($H95=4,"Unknown",IF($H95=99,"Stopped",$D95)),0),"Not required") -> Stopped | M95: 0 | N95: =IF(INTRO!$E$41="Endemic", IF($J95>1, IF($J95=4, "Unknown", IF($J95=99, "Surveillance", E95)), 0),"Not required") -> 34242 | O95: =IF(INTRO!$E$41="Endemic", IF($J95>1, IF($J95=4, "Unknown", IF($J95=99, "Surveillance", F95)), 0),"Not required") -> 72825 | P95: =IF(INTRO!$E$41="Endemic", IF($J95>1, IF($J95=4, "Unknown", IF($J95=99, "Surveillance", ROUND(D95*INTRO!$E$51,0))), 0),"Not required") -> 59562 | Q95: =IF(INTRO!$E$41="Endemic", IF($J95>1, IF($J95=4, "Unknown", IF($J95=99, "Surveillance", SUM($N95:$P95))), 0),"Not required") -> 166629 | R95: 0 | S95: 0 | T95: 0 | U95: =IF(INTRO!$E$43="Endemic", IF($K95>1, IF($K95=4, "Unknown", IF($K95=99, "Surveillance", SUM($R95:$T95))), 0),"Not required") -> 0 | V95: 0 | W95: 0 | X95: 1 | Y95: 0
A96: =IF(INTRO!$E$33<>0,INTRO!$E$33, " ") -> Uganda | B96: Northern | C96: Kwania | D96: 247203 | E96: =IF(INTRO!$E$48="","",ROUND($D96*INTRO!$E$48,0)) -> 35103 | F96: =IF(INTRO!$E$49="","",ROUND($D96*INTRO!$E$49,0)) -> 74655 | G96: =IF(INTRO!$E$50="","",ROUND($D96*INTRO!$E$50,0)) -> 128793 | H96: 99 | I96: 0 | J96: 11 | K96: 11 | L96: =IF(INTRO!$E$37="Endemic",IF($H96>0,IF($H96=4,"Unknown",IF($H96=99,"Stopped",$D96)),0),"Not required") -> Stopped | M96: 0 | N96: =IF(INTRO!$E$41="Endemic", IF($J96>1, IF($J96=4, "Unknown", IF($J96=99, "Surveillance", E96)), 0),"Not required") -> 35103 | O96: =IF(INTRO!$E$41="Endemic", IF($J96>1, IF($J96=4, "Unknown", IF($J96=99, "Surveillance", F96)), 0),"Not required") -> 74655 | P96: =IF(INTRO!$E$41="Endemic", IF($J96>1, IF($J96=4, "Unknown", IF($J96=99, "Surveillance", ROUND(D96*INTRO!$E$51,0))), 0),"Not required") -> 61059 | Q96: =IF(INTRO!$E$41="Endemic", IF($J96>1, IF($J96=4, "Unknown", IF($J96=99, "Surveillance", SUM($N96:$P96))), 0),"Not required") -> 170817 | R96: 0 | S96: 47247 | T96: 0 | U96: =IF(INTRO!$E$43="Endemic", IF($K96>1, IF($K96=4, "Unknown", IF($K96=99, "Surveillance", SUM($R96:$T96))), 0),"Not required") -> 47247 | V96: 0 | W96: 0 | X96: 1 | Y96: 1
A97: =IF(INTRO!$E$33<>0,INTRO!$E$33, " ") -> Uganda | B97: Northern | C97: Lamwo | D97: 180684 | E97: =IF(INTRO!$E$48="","",ROUND($D97*INTRO!$E$48,0)) -> 25657 | F97: =IF(INTRO!$E$49="","",ROUND($D97*INTRO!$E$49,0)) -> 54567 | G97: =IF(INTRO!$E$50="","",ROUND($D97*INTRO!$E$50,0)) -> 94136 | H97: 99 | I97: 1 | J97: 3 | K97: 11 | L97: =IF(INTRO!$E$37="Endemic",IF($H97>0,IF($H97=4,"Unknown",IF($H97=99,"Stopped",$D97)),0),"Not required") -> Stopped | M97: 149015 | N97: =IF(INTRO!$E$41="Endemic", IF($J97>1, IF($J97=4, "Unknown", IF($J97=99, "Surveillance", E97)), 0),"Not required") -> 25657 | O97: =IF(INTRO!$E$41="Endemic", IF($J97>1, IF($J97=4, "Unknown", IF($J97=99, "Surveillance", F97)), 0),"Not required") -> 54567 | P97: =IF(INTRO!$E$41="Endemic", IF($J97>1, IF($J97=4, "Unknown", IF($J97=99, "Surveillance", ROUND(D97*INTRO!$E$51,0))), 0),"Not required") -> 44629 | Q97: =IF(INTRO!$E$41="Endemic", IF($J97>1, IF($J97=4, "Unknown", IF($J97=99, "Surveillance", SUM($N97:$P97))), 0),"Not required") -> 124853 | R97: 0 | S97: 54567 | T97: 0 | U97: =IF(INTRO!$E$43="Endemic", IF($K97>1, IF($K97=4, "Unknown", IF($K97=99, "Surveillance", SUM($R97:$T97))), 0),"Not required") -> 54567 | V97: 0 | W97: 2 | X97: 1 | Y97: 1
A98: =IF(INTRO!$E$33<>0,INTRO!$E$33, " ") -> Uganda | B98: Northern | C98: Lira | D98: 419795 | E98: =IF(INTRO!$E$48="","",ROUND($D98*INTRO!$E$48,0)) -> 59611 | F98: =IF(INTRO!$E$49="","",ROUND($D98*INTRO!$E$49,0)) -> 126778 | G98: =IF(INTRO!$E$50="","",ROUND($D98*INTRO!$E$50,0)) -> 218713 | H98: 99 | I98: 1 | J98: 3 | K98: 3 | L98: =IF(INTRO!$E$37="Endemic",IF($H98>0,IF($H98=4,"Unknown",IF($H98=99,"Stopped",$D98)),0),"Not required") -> Stopped | M98: 75632 | N98: =IF(INTRO!$E$41="Endemic", IF($J98>1, IF($J98=4, "Unknown", IF($J98=99, "Surveillance", E98)), 0),"Not required") -> 59611 | O98: =IF(INTRO!$E$41="Endemic", IF($J98>1, IF($J98=4, "Unknown", IF($J98=99, "Surveillance", F98)), 0),"Not required") -> 126778 | P98: =IF(INTRO!$E$41="Endemic", IF($J98>1, IF($J98=4, "Unknown", IF($J98=99, "Surveillance", ROUND(D98*INTRO!$E$51,0))), 0),"Not required") -> 103689 | Q98: =IF(INTRO!$E$41="Endemic", IF($J98>1, IF($J98=4, "Unknown", IF($J98=99, "Surveillance", SUM($N98:$P98))), 0),"Not required") -> 290078 | R98: 0 | S98: 86104 | T98: 218713 | U98: =IF(INTRO!$E$43="Endemic", IF($K98>1, IF($K98=4, "Unknown", IF($K98=99, "Surveillance", SUM($R98:$T98))), 0),"Not required") -> 304817 | V98: 0 | W98: 2 | X98: 1 | Y98: 1
A99: =IF(INTRO!$E$33<>0,INTRO!$E$33, " ") -> Uganda | B99: Northern | C99: Lira City | D99: 133511 | E99: =IF(INTRO!$E$48="","",ROUND($D99*INTRO!$E$48,0)) -> 18959 | F99: =IF(INTRO!$E$49="","",ROUND($D99*INTRO!$E$49,0)) -> 40320 | G99: =IF(INTRO!$E$50="","",ROUND($D99*INTRO!$E$50,0)) -> 69559 | H99: 99 | I99: 0 | J99: 3 | K99: 0 | L99: =IF(INTRO!$E$37="Endemic",IF($H99>0,IF($H99=4,"Unknown",IF($H99=99,"Stopped",$D99)),0),"Not required") -> Stopped | M99: 0 | N99: =IF(INTRO!$E$41="Endemic", IF($J99>1, IF($J99=4, "Unknown", IF($J99=99, "Surveillance", E99)), 0),"Not required") -> 18959 | O99: =IF(INTRO!$E$41="Endemic", IF($J99>1, IF($J99=4, "Unknown", IF($J99=99, "Surveillance", F99)), 0),"Not required") -> 40320 | P99: =IF(INTRO!$E$41="Endemic", IF($J99>1, IF($J99=4, "Unknown", IF($J99=99, "Surveillance", ROUND(D99*INTRO!$E$51,0))), 0),"Not required") -> 32977 | Q99: =IF(INTRO!$E$41="Endemic", IF($J99>1, IF($J99=4, "Unknown", IF($J99=99, "Surveillance", SUM($N99:$P99))), 0),"Not required") -> 92256 | R99: 0 | S99: 0 | T99: 0 | U99: =IF(INTRO!$E$43="Endemic", IF($K99>1, IF($K99=4, "Unknown", IF($K99=99, "Surveillance", SUM($R99:$T99))), 0),"Not required") -> 0 | V99: 0 | W99: 0 | X99: 1 | Y99: 0
A100: =IF(INTRO!$E$33<>0,INTRO!$E$33, " ") -> Uganda | B100: Northern | C100: Madi Okollo | D100: 186916 | E100: =IF(INTRO!$E$48="","",ROUND($D100*INTRO!$E$48,0)) -> 26542 | F100: =IF(INTRO!$E$49="","",ROUND($D100*INTRO!$E$49,0)) -> 56449 | G100: =IF(INTRO!$E$50="","",ROUND($D100*INTRO!$E$50,0)) -> 97383 | H100: 99 | I100: 99 | J100: 3 | K100: 21 | L100: =IF(INTRO!$E$37="Endemic",IF($H100>0,IF($H100=4,"Unknown",IF($H100=99,"Stopped",$D100)),0),"Not required") -> Stopped | M100: 0 | N100: =IF(INTRO!$E$41="Endemic", IF($J100>1, IF($J100=4, "Unknown", IF($J100=99, "Surveillance", E100)), 0),"Not required") -> 26542 | O100: =IF(INTRO!$E$41="Endemic", IF($J100>1, IF($J100=4, "Unknown", IF($J100=99, "Surveillance", F100)), 0),"Not required") -> 56449 | P100: =IF(INTRO!$E$41="Endemic", IF($J100>1, IF($J100=4, "Unknown", IF($J100=99, "Surveillance", ROUND(D100*INTRO!$E$51,0))), 0),"Not required") -> 46168 | Q100: =IF(INTRO!$E$41="Endemic", IF($J100>1, IF($J100=4, "Unknown", IF($J100=99, "Surveillance", SUM($N100:$P100))), 0),"Not required") -> 129159 | R100: 0 | S100: 40070 | T100: 19509 | U100: =IF(INTRO!$E$43="Endemic", IF($K100>1, IF($K100=4, "Unknown", IF($K100=99, "Surveillance", SUM($R100:$T100))), 0),"Not required") -> 59579 | V100: 0 | W100: 0 | X100: 1 | Y100: 1
A101: =IF(INTRO!$E$33<>0,INTRO!$E$33, " ") -> Uganda | B101: Northern | C101: Maracha | D101: 250932 | E101: =IF(INTRO!$E$48="","",ROUND($D101*INTRO!$E$48,0)) -> 35632 | F101: =IF(INTRO!$E$49="","",ROUND($D101*INTRO!$E$49,0)) -> 75781 | G101: =IF(INTRO!$E$50="","",ROUND($D101*INTRO!$E$50,0)) -> 130736 | H101: 99 | I101: 99 | J101: 99 | K101: 31 | L101: =IF(INTRO!$E$37="Endemic",IF($H101>0,IF($H101=4,"Unknown",IF($H101=99,"Stopped",$D101)),0),"Not required") -> Stopped | M101: 0 | N101: =IF(INTRO!$E$41="Endemic", IF($J101>1, IF($J101=4, "Unknown", IF($J101=99, "Surveillance", E101)), 0),"Not required") -> Surveillance | O101: =IF(INTRO!$E$41="Endemic", IF($J101>1, IF($J101=4, "Unknown", IF($J101=99, "Surveillance", F101)), 0),"Not required") -> Surveillance | P101: =IF(INTRO!$E$41="Endemic", IF($J101>1, IF($J101=4, "Unknown", IF($J101=99, "Surveillance", ROUND(D101*INTRO!$E$51,0))), 0),"Not required") -> Surveillance | Q101: =IF(INTRO!$E$41="Endemic", IF($J101>1, IF($J101=4, "Unknown", IF($J101=99, "Surveillance", SUM($N101:$P101))), 0),"Not required") -> Surveillance | R101: 0 | S101: 70571 | T101: 130736 | U101: =IF(INTRO!$E$43="Endemic", IF($K101>1, IF($K101=4, "Unknown", IF($K101=99, "Surveillance", SUM($R101:$T101))), 0),"Not required") -> 201307 | V101: 0 | W101: 0 | X101: 1 | Y101: 1
A102: =IF(INTRO!$E$33<>0,INTRO!$E$33, " ") -> Uganda | B102: Northern | C102: Moroto | D102: 140900 | E102: =IF(INTRO!$E$48="","",ROUND($D102*INTRO!$E$48,0)) -> 20008 | F102: =IF(INTRO!$E$49="","",ROUND($D102*INTRO!$E$49,0)) -> 42552 | G102: =IF(INTRO!$E$50="","",ROUND($D102*INTRO!$E$50,0)) -> 73409 | H102: 99 | I102: 0 | J102: 3 | K102: 0 | L102: =IF(INTRO!$E$37="Endemic",IF($H102>0,IF($H102=4,"Unknown",IF($H102=99,"Stopped",$D102)),0),"Not required") -> Stopped | M102: 0 | N102: =IF(INTRO!$E$41="Endemic", IF($J102>1, IF($J102=4, "Unknown", IF($J102=99, "Surveillance", E102)), 0),"Not required") -> 20008 | O102: =IF(INTRO!$E$41="Endemic", IF($J102>1, IF($J102=4, "Unknown", IF($J102=99, "Surveillance", F102)), 0),"Not required") -> 42552 | P102: =IF(INTRO!$E$41="Endemic", IF($J102>1, IF($J102=4, "Unknown", IF($J102=99, "Surveillance", ROUND(D102*INTRO!$E$51,0))), 0),"Not required") -> 34802 | Q102: =IF(INTRO!$E$41="Endemic", IF($J102>1, IF($J102=4, "Unknown", IF($J102=99, "Surveillance", SUM($N102:$P102))), 0),"Not required") -> 97362 | R102: 0 | S102: 0 | T102: 0 | U102: =IF(INTRO!$E$43="Endemic", IF($K102>1, IF($K102=4, "Unknown", IF($K102=99, "Surveillance", SUM($R102:$T102))), 0),"Not required") -> 0 | V102: 0 | W102: 0 | X102: 1 | Y102: 0
A103: =IF(INTRO!$E$33<>0,INTRO!$E$33, " ") -> Uganda | B103: Northern | C103: Moyo | D103: 127161 | E103: =IF(INTRO!$E$48="","",ROUND($D103*INTRO!$E$48,0)) -> 18057 | F103: =IF(INTRO!$E$49="","",ROUND($D103*INTRO!$E$49,0)) -> 38403 | G103: =IF(INTRO!$E$50="","",ROUND($D103*INTRO!$E$50,0)) -> 66251 | H103: 99 | I103: 1 | J103: 3 | K103: 21 | L103: =IF(INTRO!$E$37="Endemic",IF($H103>0,IF($H103=4,"Unknown",IF($H103=99,"Stopped",$D103)),0),"Not required") -> Stopped | M103: 98811 | N103: =IF(INTRO!$E$41="Endemic", IF($J103>1, IF($J103=4, "Unknown", IF($J103=99, "Surveillance", E103)), 0),"Not required") -> 18057 | O103: =IF(INTRO!$E$41="Endemic", IF($J103>1, IF($J103=4, "Unknown", IF($J103=99, "Surveillance", F103)), 0),"Not required") -> 38403 | P103: =IF(INTRO!$E$41="Endemic", IF($J103>1, IF($J103=4, "Unknown", IF($J103=99, "Surveillance", ROUND(D103*INTRO!$E$51,0))), 0),"Not required") -> 31409 | Q103: =IF(INTRO!$E$41="Endemic", IF($J103>1, IF($J103=4, "Unknown", IF($J103=99, "Surveillance", SUM($N103:$P103))), 0),"Not required") -> 87869 | R103: 0 | S103: 10208 | T103: 13272 | U103: =IF(INTRO!$E$43="Endemic", IF($K103>1, IF($K103=4, "Unknown", IF($K103=99, "Surveillance", SUM($R103:$T103))), 0),"Not required") -> 23480 | V103: 0 | W103: 2 | X103: 1 | Y103: 1
A104: =IF(INTRO!$E$33<>0,INTRO!$E$33, " ") -> Uganda | B104: Northern | C104: Nabilatuk | D104: 93908 | E104: =IF(INTRO!$E$48="","",ROUND($D104*INTRO!$E$48,0)) -> 13335 | F104: =IF(INTRO!$E$49="","",ROUND($D104*INTRO!$E$49,0)) -> 28360 | G104: =IF(INTRO!$E$50="","",ROUND($D104*INTRO!$E$50,0)) -> 48926 | H104: 99 | I104: 0 | J104: 3 | K104: 0 | L104: =IF(INTRO!$E$37="Endemic",IF($H104>0,IF($H104=4,"Unknown",IF($H104=99,"Stopped",$D104)),0),"Not required") -> Stopped | M104: 0 | N104: =IF(INTRO!$E$41="Endemic", IF($J104>1, IF($J104=4, "Unknown", IF($J104=99, "Surveillance", E104)), 0),"Not required") -> 13335 | O104: =IF(INTRO!$E$41="Endemic", IF($J104>1, IF($J104=4, "Unknown", IF($J104=99, "Surveillance", F104)), 0),"Not required") -> 28360 | P104: =IF(INTRO!$E$41="Endemic", IF($J104>1, IF($J104=4, "Unknown", IF($J104=99, "Surveillance", ROUND(D104*INTRO!$E$51,0))), 0),"Not required") -> 23195 | Q104: =IF(INTRO!$E$41="Endemic", IF($J104>1, IF($J104=4, "Unknown", IF($J104=99, "Surveillance", SUM($N104:$P104))), 0),"Not required") -> 64890 | R104: 0 | S104: 0 | T104: 0 | U104: =IF(INTRO!$E$43="Endemic", IF($K104>1, IF($K104=4, "Unknown", IF($K104=99, "Surveillance", SUM($R104:$T104))), 0),"Not required") -> 0 | V104: 0 | W104: 0 | X104: 1 | Y104: 0
A105: =IF(INTRO!$E$33<>0,INTRO!$E$33, " ") -> Uganda | B105: Northern | C105: Nakapiripirit | D105: 134799 | E105: =IF(INTRO!$E$48="","",ROUND($D105*INTRO!$E$48,0)) -> 19141 | F105: =IF(INTRO!$E$49="","",ROUND($D105*INTRO!$E$49,0)) -> 40709 | G105: =IF(INTRO!$E$50="","",ROUND($D105*INTRO!$E$50,0)) -> 70230 | H105: 99 | I105: 0 | J105: 99 | K105: 21 | L105: =IF(INTRO!$E$37="Endemic",IF($H105>0,IF($H105=4,"Unknown",IF($H105=99,"Stopped",$D105)),0),"Not required") -> Stopped | M105: 0 | N105: =IF(INTRO!$E$41="Endemic", IF($J105>1, IF($J105=4, "Unknown", IF($J105=99, "Surveillance", E105)), 0),"Not required") -> Surveillance | O105: =IF(INTRO!$E$41="Endemic", IF($J105>1, IF($J105=4, "Unknown", IF($J105=99, "Surveillance", F105)), 0),"Not required") -> Surveillance | P105: =IF(INTRO!$E$41="Endemic", IF($J105>1, IF($J105=4, "Unknown", IF($J105=99, "Surveillance", ROUND(D105*INTRO!$E$51,0))), 0),"Not required") -> Surveillance | Q105: =IF(INTRO!$E$41="Endemic", IF($J105>1, IF($J105=4, "Unknown", IF($J105=99, "Surveillance", SUM($N105:$P105))), 0),"Not required") -> Surveillance | R105: 0 | S105: 10254 | T105: 14069 | U105: =IF(INTRO!$E$43="Endemic", IF($K105>1, IF($K105=4, "Unknown", IF($K105=99, "Surveillance", SUM($R105:$T105))), 0),"Not required") -> 24323 | V105: 0 | W105: 0 | X105: 1 | Y105: 1
A106: =IF(INTRO!$E$33<>0,INTRO!$E$33, " ") -> Uganda | B106: Northern | C106: Napak | D106: 195734 | E106: =IF(INTRO!$E$48="","",ROUND($D106*INTRO!$E$48,0)) -> 27794 | F106: =IF(INTRO!$E$49="","",ROUND($D106*INTRO!$E$49,0)) -> 59112 | G106: =IF(INTRO!$E$50="","",ROUND($D106*INTRO!$E$50,0)) -> 101977 | H106: 99 | I106: 0 | J106: 3 | K106: 0 | L106: =IF(INTRO!$E$37="Endemic",IF($H106>0,IF($H106=4,"Unknown",IF($H106=99,"Stopped",$D106)),0),"Not required") -> Stopped | M106: 0 | N106: =IF(INTRO!$E$41="Endemic", IF($J106>1, IF($J106=4, "Unknown", IF($J106=99, "Surveillance", E106)), 0),"Not required") -> 27794 | O106: =IF(INTRO!$E$41="Endemic", IF($J106>1, IF($J106=4, "Unknown", IF($J106=99, "Surveillance", F106)), 0),"Not required") -> 59112 | P106: =IF(INTRO!$E$41="Endemic", IF($J106>1, IF($J106=4, "Unknown", IF($J106=99, "Surveillance", ROUND(D106*INTRO!$E$51,0))), 0),"Not required") -> 48346 | Q106: =IF(INTRO!$E$41="Endemic", IF($J106>1, IF($J106=4, "Unknown", IF($J106=99, "Surveillance", SUM($N106:$P106))), 0),"Not required") -> 135252 | R106: 0 | S106: 0 | T106: 0 | U106: =IF(INTRO!$E$43="Endemic", IF($K106>1, IF($K106=4, "Unknown", IF($K106=99, "Surveillance", SUM($R106:$T106))), 0),"Not required") -> 0 | V106: 0 | W106: 0 | X106: 1 | Y106: 0
A107: =IF(INTRO!$E$33<>0,INTRO!$E$33, " ") -> Uganda | B107: Northern | C107: Nebbi | D107: 319781 | E107: =IF(INTRO!$E$48="","",ROUND($D107*INTRO!$E$48,0)) -> 45409 | F107: =IF(INTRO!$E$49="","",ROUND($D107*INTRO!$E$49,0)) -> 96574 | G107: =IF(INTRO!$E$50="","",ROUND($D107*INTRO!$E$50,0)) -> 166606 | H107: 99 | I107: 99 | J107: 3 | K107: 0 | L107: =IF(INTRO!$E$37="Endemic",IF($H107>0,IF($H107=4,"Unknown",IF($H107=99,"Stopped",$D107)),0),"Not required") -> Stopped | M107: 0 | N107: =IF(INTRO!$E$41="Endemic", IF($J107>1, IF($J107=4, "Unknown", IF($J107=99, "Surveillance", E107)), 0),"Not required") -> 45409 | O107: =IF(INTRO!$E$41="Endemic", IF($J107>1, IF($J107=4, "Unknown", IF($J107=99, "Surveillance", F107)), 0),"Not required") -> 96574 | P107: =IF(INTRO!$E$41="Endemic", IF($J107>1, IF($J107=4, "Unknown", IF($J107=99, "Surveillance", ROUND(D107*INTRO!$E$51,0))), 0),"Not required") -> 78986 | Q107: =IF(INTRO!$E$41="Endemic", IF($J107>1, IF($J107=4, "Unknown", IF($J107=99, "Surveillance", SUM($N107:$P107))), 0),"Not required") -> 220969 | R107: 0 | S107: 0 | T107: 0 | U107: =IF(INTRO!$E$43="Endemic", IF($K107>1, IF($K107=4, "Unknown", IF($K107=99, "Surveillance", SUM($R107:$T107))), 0),"Not required") -> 0 | V107: 0 | W107: 0 | X107: 1 | Y107: 0
A108: =IF(INTRO!$E$33<>0,INTRO!$E$33, " ") -> Uganda | B108: Northern | C108: Nwoya | D108: 172654 | E108: =IF(INTRO!$E$48="","",ROUND($D108*INTRO!$E$48,0)) -> 24517 | F108: =IF(INTRO!$E$49="","",ROUND($D108*INTRO!$E$49,0)) -> 52142 | G108: =IF(INTRO!$E$50="","",ROUND($D108*INTRO!$E$50,0)) -> 89953 | H108: 99 | I108: 1 | J108: 3 | K108: 21 | L108: =IF(INTRO!$E$37="Endemic",IF($H108>0,IF($H108=4,"Unknown",IF($H108=99,"Stopped",$D108)),0),"Not required") -> Stopped | M108: 170085 | N108: =IF(INTRO!$E$41="Endemic", IF($J108>1, IF($J108=4, "Unknown", IF($J108=99, "Surveillance", E108)), 0),"Not required") -> 24517 | O108: =IF(INTRO!$E$41="Endemic", IF($J108>1, IF($J108=4, "Unknown", IF($J108=99, "Surveillance", F108)), 0),"Not required") -> 52142 | P108: =IF(INTRO!$E$41="Endemic", IF($J108>1, IF($J108=4, "Unknown", IF($J108=99, "Surveillance", ROUND(D108*INTRO!$E$51,0))), 0),"Not required") -> 42646 | Q108: =IF(INTRO!$E$41="Endemic", IF($J108>1, IF($J108=4, "Unknown", IF($J108=99, "Surveillance", SUM($N108:$P108))), 0),"Not required") -> 119305 | R108: 0 | S108: 46750 | T108: 18020 | U108: =IF(INTRO!$E$43="Endemic", IF($K108>1, IF($K108=4, "Unknown", IF($K108=99, "Surveillance", SUM($R108:$T108))), 0),"Not required") -> 64770 | V108: 0 | W108: 2 | X108: 1 | Y108: 1
A109: =IF(INTRO!$E$33<>0,INTRO!$E$33, " ") -> Uganda | B109: Northern | C109: Obongi | D109: 58147 | E109: =IF(INTRO!$E$48="","",ROUND($D109*INTRO!$E$48,0)) -> 8257 | F109: =IF(INTRO!$E$49="","",ROUND($D109*INTRO!$E$49,0)) -> 17560 | G109: =IF(INTRO!$E$50="","",ROUND($D109*INTRO!$E$50,0)) -> 30295 | H109: 99 | I109: 99 | J109: 3 | K109: 21 | L109: =IF(INTRO!$E$37="Endemic",IF($H109>0,IF($H109=4,"Unknown",IF($H109=99,"Stopped",$D109)),0),"Not required") -> Stopped | M109: 0 | N109: =IF(INTRO!$E$41="Endemic", IF($J109>1, IF($J109=4, "Unknown", IF($J109=99, "Surveillance", E109)), 0),"Not required") -> 8257 | O109: =IF(INTRO!$E$41="Endemic", IF($J109>1, IF($J109=4, "Unknown", IF($J109=99, "Surveillance", F109)), 0),"Not required") -> 17560 | P109: =IF(INTRO!$E$41="Endemic", IF($J109>1, IF($J109=4, "Unknown", IF($J109=99, "Surveillance", ROUND(D109*INTRO!$E$51,0))), 0),"Not required") -> 14362 | Q109: =IF(INTRO!$E$41="Endemic", IF($J109>1, IF($J109=4, "Unknown", IF($J109=99, "Surveillance", SUM($N109:$P109))), 0),"Not required") -> 40179 | R109: 0 | S109: 17560 | T109: 6069 | U109: =IF(INTRO!$E$43="Endemic", IF($K109>1, IF($K109=4, "Unknown", IF($K109=99, "Surveillance", SUM($R109:$T109))), 0),"Not required") -> 23629 | V109: 0 | W109: 0 | X109: 1 | Y109: 1
A110: =IF(INTRO!$E$33<>0,INTRO!$E$33, " ") -> Uganda | B110: Northern | C110: Omoro | D110: 223255 | E110: =IF(INTRO!$E$48="","",ROUND($D110*INTRO!$E$48,0)) -> 31702 | F110: =IF(INTRO!$E$49="","",ROUND($D110*INTRO!$E$49,0)) -> 67423 | G110: =IF(INTRO!$E$50="","",ROUND($D110*INTRO!$E$50,0)) -> 116316 | H110: 99 | I110: 1 | J110: 3 | K110: 21 | L110: =IF(INTRO!$E$37="Endemic",IF($H110>0,IF($H110=4,"Unknown",IF($H110=99,"Stopped",$D110)),0),"Not required") -> Stopped | M110: 188926 | N110: =IF(INTRO!$E$41="Endemic", IF($J110>1, IF($J110=4, "Unknown", IF($J110=99, "Surveillance", E110)), 0),"Not required") -> 31702 | O110: =IF(INTRO!$E$41="Endemic", IF($J110>1, IF($J110=4, "Unknown", IF($J110=99, "Surveillance", F110)), 0),"Not required") -> 67423 | P110: =IF(INTRO!$E$41="Endemic", IF($J110>1, IF($J110=4, "Unknown", IF($J110=99, "Surveillance", ROUND(D110*INTRO!$E$51,0))), 0),"Not required") -> 55144 | Q110: =IF(INTRO!$E$41="Endemic", IF($J110>1, IF($J110=4, "Unknown", IF($J110=99, "Surveillance", SUM($N110:$P110))), 0),"Not required") -> 154269 | R110: 0 | S110: 44411 | T110: 23302 | U110: =IF(INTRO!$E$43="Endemic", IF($K110>1, IF($K110=4, "Unknown", IF($K110=99, "Surveillance", SUM($R110:$T110))), 0),"Not required") -> 67713 | V110: 0 | W110: 2 | X110: 1 | Y110: 1
A111: =IF(INTRO!$E$33<>0,INTRO!$E$33, " ") -> Uganda | B111: Northern | C111: Otuke | D111: 142358 | E111: =IF(INTRO!$E$48="","",ROUND($D111*INTRO!$E$48,0)) -> 20215 | F111: =IF(INTRO!$E$49="","",ROUND($D111*INTRO!$E$49,0)) -> 42992 | G111: =IF(INTRO!$E$50="","",ROUND($D111*INTRO!$E$50,0)) -> 74169 | H111: 99 | I111: 0 | J111: 3 | K111: 0 | L111: =IF(INTRO!$E$37="Endemic",IF($H111>0,IF($H111=4,"Unknown",IF($H111=99,"Stopped",$D111)),0),"Not required") -> Stopped | M111: 0 | N111: =IF(INTRO!$E$41="Endemic", IF($J111>1, IF($J111=4, "Unknown", IF($J111=99, "Surveillance", E111)), 0),"Not required") -> 20215 | O111: =IF(INTRO!$E$41="Endemic", IF($J111>1, IF($J111=4, "Unknown", IF($J111=99, "Surveillance", F111)), 0),"Not required") -> 42992 | P111: =IF(INTRO!$E$41="Endemic", IF($J111>1, IF($J111=4, "Unknown", IF($J111=99, "Surveillance", ROUND(D111*INTRO!$E$51,0))), 0),"Not required") -> 35162 | Q111: =IF(INTRO!$E$41="Endemic", IF($J111>1, IF($J111=4, "Unknown", IF($J111=99, "Surveillance", SUM($N111:$P111))), 0),"Not required") -> 98369 | R111: 0 | S111: 0 | T111: 0 | U111: =IF(INTRO!$E$43="Endemic", IF($K111>1, IF($K111=4, "Unknown", IF($K111=99, "Surveillance", SUM($R111:$T111))), 0),"Not required") -> 0 | V111: 0 | W111: 0 | X111: 1 | Y111: 0
A112: =IF(INTRO!$E$33<>0,INTRO!$E$33, " ") -> Uganda | B112: Northern | C112: Oyam | D112: 522978 | E112: =IF(INTRO!$E$48="","",ROUND($D112*INTRO!$E$48,0)) -> 74263 | F112: =IF(INTRO!$E$49="","",ROUND($D112*INTRO!$E$49,0)) -> 157939 | G112: =IF(INTRO!$E$50="","",ROUND($D112*INTRO!$E$50,0)) -> 272472 | H112: 99 | I112: 1 | J112: 3 | K112: 3 | L112: =IF(INTRO!$E$37="Endemic",IF($H112>0,IF($H112=4,"Unknown",IF($H112=99,"Stopped",$D112)),0),"Not required") -> Stopped | M112: 27249 | N112: =IF(INTRO!$E$41="Endemic", IF($J112>1, IF($J112=4, "Unknown", IF($J112=99, "Surveillance", E112)), 0),"Not required") -> 74263 | O112: =IF(INTRO!$E$41="Endemic", IF($J112>1, IF($J112=4, "Unknown", IF($J112=99, "Surveillance", F112)), 0),"Not required") -> 157939 | P112: =IF(INTRO!$E$41="Endemic", IF($J112>1, IF($J112=4, "Unknown", IF($J112=99, "Surveillance", ROUND(D112*INTRO!$E$51,0))), 0),"Not required") -> 129176 | Q112: =IF(INTRO!$E$41="Endemic", IF($J112>1, IF($J112=4, "Unknown", IF($J112=99, "Surveillance", SUM($N112:$P112))), 0),"Not required") -> 361378 | R112: 0 | S112: 111559 | T112: 272472 | U112: =IF(INTRO!$E$43="Endemic", IF($K112>1, IF($K112=4, "Unknown", IF($K112=99, "Surveillance", SUM($R112:$T112))), 0),"Not required") -> 384031 | V112: 0 | W112: 2 | X112: 1 | Y112: 1
A113: =IF(INTRO!$E$33<>0,INTRO!$E$33, " ") -> Uganda | B113: Northern | C113: Pader | D113: 247633 | E113: =IF(INTRO!$E$48="","",ROUND($D113*INTRO!$E$48,0)) -> 35164 | F113: =IF(INTRO!$E$49="","",ROUND($D113*INTRO!$E$49,0)) -> 74785 | G113: =IF(INTRO!$E$50="","",ROUND($D113*INTRO!$E$50,0)) -> 129017 | H113: 99 | I113: 1 | J113: 3 | K113: 21 | L113: =IF(INTRO!$E$37="Endemic",IF($H113>0,IF($H113=4,"Unknown",IF($H113=99,"Stopped",$D113)),0),"Not required") -> Stopped | M113: 199290 | N113: =IF(INTRO!$E$41="Endemic", IF($J113>1, IF($J113=4, "Unknown", IF($J113=99, "Surveillance", E113)), 0),"Not required") -> 35164 | O113: =IF(INTRO!$E$41="Endemic", IF($J113>1, IF($J113=4, "Unknown", IF($J113=99, "Surveillance", F113)), 0),"Not required") -> 74785 | P113: =IF(INTRO!$E$41="Endemic", IF($J113>1, IF($J113=4, "Unknown", IF($J113=99, "Surveillance", ROUND(D113*INTRO!$E$51,0))), 0),"Not required") -> 61165 | Q113: =IF(INTRO!$E$41="Endemic", IF($J113>1, IF($J113=4, "Unknown", IF($J113=99, "Surveillance", SUM($N113:$P113))), 0),"Not required") -> 171114 | R113: 0 | S113: 58294 | T113: 25846 | U113: =IF(INTRO!$E$43="Endemic", IF($K113>1, IF($K113=4, "Unknown", IF($K113=99, "Surveillance", SUM($R113:$T113))), 0),"Not required") -> 84140 | V113: 0 | W113: 2 | X113: 1 | Y113: 1
A114: =IF(INTRO!$E$33<>0,INTRO!$E$33, " ") -> Uganda | B114: Northern | C114: Pakwach | D114: 199426 | E114: =IF(INTRO!$E$48="","",ROUND($D114*INTRO!$E$48,0)) -> 28318 | F114: =IF(INTRO!$E$49="","",ROUND($D114*INTRO!$E$49,0)) -> 60227 | G114: =IF(INTRO!$E$50="","",ROUND($D114*INTRO!$E$50,0)) -> 103901 | H114: 99 | I114: 99 | J114: 99 | K114: 31 | L114: =IF(INTRO!$E$37="Endemic",IF($H114>0,IF($H114=4,"Unknown",IF($H114=99,"Stopped",$D114)),0),"Not required") -> Stopped | M114: 0 | N114: =IF(INTRO!$E$41="Endemic", IF($J114>1, IF($J114=4, "Unknown", IF($J114=99, "Surveillance", E114)), 0),"Not required") -> Surveillance | O114: =IF(INTRO!$E$41="Endemic", IF($J114>1, IF($J114=4, "Unknown", IF($J114=99, "Surveillance", F114)), 0),"Not required") -> Surveillance | P114: =IF(INTRO!$E$41="Endemic", IF($J114>1, IF($J114=4, "Unknown", IF($J114=99, "Surveillance", ROUND(D114*INTRO!$E$51,0))), 0),"Not required") -> Surveillance | Q114: =IF(INTRO!$E$41="Endemic", IF($J114>1, IF($J114=4, "Unknown", IF($J114=99, "Surveillance", SUM($N114:$P114))), 0),"Not required") -> Surveillance | R114: 0 | S114: 60227 | T114: 103901 | U114: =IF(INTRO!$E$43="Endemic", IF($K114>1, IF($K114=4, "Unknown", IF($K114=99, "Surveillance", SUM($R114:$T114))), 0),"Not required") -> 164128 | V114: 0 | W114: 0 | X114: 1 | Y114: 1
A115: =IF(INTRO!$E$33<>0,INTRO!$E$33, " ") -> Uganda | B115: Northern | C115: Terego | D115: 274988 | E115: =IF(INTRO!$E$48="","",ROUND($D115*INTRO!$E$48,0)) -> 39048 | F115: =IF(INTRO!$E$49="","",ROUND($D115*INTRO!$E$49,0)) -> 83046 | G115: =IF(INTRO!$E$50="","",ROUND($D115*INTRO!$E$50,0)) -> 143269 | H115: 99 | I115: 0 | J115: 3 | K115: 3 | L115: =IF(INTRO!$E$37="Endemic",IF($H115>0,IF($H115=4,"Unknown",IF($H115=99,"Stopped",$D115)),0),"Not required") -> Stopped | M115: 0 | N115: =IF(INTRO!$E$41="Endemic", IF($J115>1, IF($J115=4, "Unknown", IF($J115=99, "Surveillance", E115)), 0),"Not required") -> 39048 | O115: =IF(INTRO!$E$41="Endemic", IF($J115>1, IF($J115=4, "Unknown", IF($J115=99, "Surveillance", F115)), 0),"Not required") -> 83046 | P115: =IF(INTRO!$E$41="Endemic", IF($J115>1, IF($J115=4, "Unknown", IF($J115=99, "Surveillance", ROUND(D115*INTRO!$E$51,0))), 0),"Not required") -> 67922 | Q115: =IF(INTRO!$E$41="Endemic", IF($J115>1, IF($J115=4, "Unknown", IF($J115=99, "Surveillance", SUM($N115:$P115))), 0),"Not required") -> 190016 | R115: 0 | S115: 83046 | T115: 143269 | U115: =IF(INTRO!$E$43="Endemic", IF($K115>1, IF($K115=4, "Unknown", IF($K115=99, "Surveillance", SUM($R115:$T115))), 0),"Not required") -> 226315 | V115: 0 | W115: 0 | X115: 1 | Y115: 1
A116: =IF(INTRO!$E$33<>0,INTRO!$E$33, " ") -> Uganda | B116: Northern | C116: Yumbe | D116: 654482 | E116: =IF(INTRO!$E$48="","",ROUND($D116*INTRO!$E$48,0)) -> 92936 | F116: =IF(INTRO!$E$49="","",ROUND($D116*INTRO!$E$49,0)) -> 197654 | G116: =IF(INTRO!$E$50="","",ROUND($D116*INTRO!$E$50,0)) -> 340985 | H116: 99 | I116: 99 | J116: 99 | K116: 21 | L116: =IF(INTRO!$E$37="Endemic",IF($H116>0,IF($H116=4,"Unknown",IF($H116=99,"Stopped",$D116)),0),"Not required") -> Stopped | M116: 0 | N116: =IF(INTRO!$E$41="Endemic", IF($J116>1, IF($J116=4, "Unknown", IF($J116=99, "Surveillance", E116)), 0),"Not required") -> Surveillance | O116: =IF(INTRO!$E$41="Endemic", IF($J116>1, IF($J116=4, "Unknown", IF($J116=99, "Surveillance", F116)), 0),"Not required") -> Surveillance | P116: =IF(INTRO!$E$41="Endemic", IF($J116>1, IF($J116=4, "Unknown", IF($J116=99, "Surveillance", ROUND(D116*INTRO!$E$51,0))), 0),"Not required") -> Surveillance | Q116: =IF(INTRO!$E$41="Endemic", IF($J116>1, IF($J116=4, "Unknown", IF($J116=99, "Surveillance", SUM($N116:$P116))), 0),"Not required") -> Surveillance | R116: 0 | S116: 160854 | T116: 68310 | U116: =IF(INTRO!$E$43="Endemic", IF($K116>1, IF($K116=4, "Unknown", IF($K116=99, "Surveillance", SUM($R116:$T116))), 0),"Not required") -> 229164 | V116: 0 | W116: 0 | X116: 1 | Y116: 1
A117: =IF(INTRO!$E$33<>0,INTRO!$E$33, " ") -> Uganda | B117: Northern | C117: Zombo | D117: 323975 | E117: =IF(INTRO!$E$48="","",ROUND($D117*INTRO!$E$48,0)) -> 46004 | F117: =IF(INTRO!$E$49="","",ROUND($D117*INTRO!$E$49,0)) -> 97840 | G117: =IF(INTRO!$E$50="","",ROUND($D117*INTRO!$E$50,0)) -> 168791 | H117: 99 | I117: 99 | J117: 3 | K117: 11 | L117: =IF(INTRO!$E$37="Endemic",IF($H117>0,IF($H117=4,"Unknown",IF($H117=99,"Stopped",$D117)),0),"Not required") -> Stopped | M117: 0 | N117: =IF(INTRO!$E$41="Endemic", IF($J117>1, IF($J117=4, "Unknown", IF($J117=99, "Surveillance", E117)), 0),"Not required") -> 46004 | O117: =IF(INTRO!$E$41="Endemic", IF($J117>1, IF($J117=4, "Unknown", IF($J117=99, "Surveillance", F117)), 0),"Not required") -> 97840 | P117: =IF(INTRO!$E$41="Endemic", IF($J117>1, IF($J117=4, "Unknown", IF($J117=99, "Surveillance", ROUND(D117*INTRO!$E$51,0))), 0),"Not required") -> 80022 | Q117: =IF(INTRO!$E$41="Endemic", IF($J117>1, IF($J117=4, "Unknown", IF($J117=99, "Surveillance", SUM($N117:$P117))), 0),"Not required") -> 223866 | R117: 0 | S117: 31945 | T117: 0 | U117: =IF(INTRO!$E$43="Endemic", IF($K117>1, IF($K117=4, "Unknown", IF($K117=99, "Surveillance", SUM($R117:$T117))), 0),"Not required") -> 31945 | V117: 0 | W117: 0 | X117: 1 | Y117: 1
A118: =IF(INTRO!$E$33<>0,INTRO!$E$33, " ") -> Uganda | B118: Western | C118: Buhweju | D118: 167199 | E118: =IF(INTRO!$E$48="","",ROUND($D118*INTRO!$E$48,0)) -> 23742 | F118: =IF(INTRO!$E$49="","",ROUND($D118*INTRO!$E$49,0)) -> 50494 | G118: =IF(INTRO!$E$50="","",ROUND($D118*INTRO!$E$50,0)) -> 87111 | H118: 0 | I118: 99 | J118: 3 | K118: 0 | L118: =IF(INTRO!$E$37="Endemic",IF($H118>0,IF($H118=4,"Unknown",IF($H118=99,"Stopped",$D118)),0),"Not required") -> 0 | M118: 0 | N118: =IF(INTRO!$E$41="Endemic", IF($J118>1, IF($J118=4, "Unknown", IF($J118=99, "Surveillance", E118)), 0),"Not required") -> 23742 | O118: =IF(INTRO!$E$41="Endemic", IF($J118>1, IF($J118=4, "Unknown", IF($J118=99, "Surveillance", F118)), 0),"Not required") -> 50494 | P118: =IF(INTRO!$E$41="Endemic", IF($J118>1, IF($J118=4, "Unknown", IF($J118=99, "Surveillance", ROUND(D118*INTRO!$E$51,0))), 0),"Not required") -> 41298 | Q118: =IF(INTRO!$E$41="Endemic", IF($J118>1, IF($J118=4, "Unknown", IF($J118=99, "Surveillance", SUM($N118:$P118))), 0),"Not required") -> 115534 | R118: 0 | S118: 0 | T118: 0 | U118: =IF(INTRO!$E$43="Endemic", IF($K118>1, IF($K118=4, "Unknown", IF($K118=99, "Surveillance", SUM($R118:$T118))), 0),"Not required") -> 0 | V118: 0 | W118: 0 | X118: 1 | Y118: 0
A119: =IF(INTRO!$E$33<>0,INTRO!$E$33, " ") -> Uganda | B119: Western | C119: Buliisa | D119: 153073 | E119: =IF(INTRO!$E$48="","",ROUND($D119*INTRO!$E$48,0)) -> 21736 | F119: =IF(INTRO!$E$49="","",ROUND($D119*INTRO!$E$49,0)) -> 46228 | G119: =IF(INTRO!$E$50="","",ROUND($D119*INTRO!$E$50,0)) -> 79751 | H119: 0 | I119: 99 | J119: 11 | K119: 31 | L119: =IF(INTRO!$E$37="Endemic",IF($H119>0,IF($H119=4,"Unknown",IF($H119=99,"Stopped",$D119)),0),"Not required") -> 0 | M119: 0 | N119: =IF(INTRO!$E$41="Endemic", IF($J119>1, IF($J119=4, "Unknown", IF($J119=99, "Surveillance", E119)), 0),"Not required") -> 21736 | O119: =IF(INTRO!$E$41="Endemic", IF($J119>1, IF($J119=4, "Unknown", IF($J119=99, "Surveillance", F119)), 0),"Not required") -> 46228 | P119: =IF(INTRO!$E$41="Endemic", IF($J119>1, IF($J119=4, "Unknown", IF($J119=99, "Surveillance", ROUND(D119*INTRO!$E$51,0))), 0),"Not required") -> 37809 | Q119: =IF(INTRO!$E$41="Endemic", IF($J119>1, IF($J119=4, "Unknown", IF($J119=99, "Surveillance", SUM($N119:$P119))), 0),"Not required") -> 105773 | R119: 0 | S119: 46228 | T119: 79751 | U119: =IF(INTRO!$E$43="Endemic", IF($K119>1, IF($K119=4, "Unknown", IF($K119=99, "Surveillance", SUM($R119:$T119))), 0),"Not required") -> 125979 | V119: 0 | W119: 0 | X119: 1 | Y119: 1
A120: =IF(INTRO!$E$33<>0,INTRO!$E$33, " ") -> Uganda | B120: Western | C120: Bundibugyo | D120: 302108 | E120: =IF(INTRO!$E$48="","",ROUND($D120*INTRO!$E$48,0)) -> 42899 | F120: =IF(INTRO!$E$49="","",ROUND($D120*INTRO!$E$49,0)) -> 91237 | G120: =IF(INTRO!$E$50="","",ROUND($D120*INTRO!$E$50,0)) -> 157398 | H120: 99 | I120: 0 | J120: 3 | K120: 3 | L120: =IF(INTRO!$E$37="Endemic",IF($H120>0,IF($H120=4,"Unknown",IF($H120=99,"Stopped",$D120)),0),"Not required") -> Stopped | M120: 0 | N120: =IF(INTRO!$E$41="Endemic", IF($J120>1, IF($J120=4, "Unknown", IF($J120=99, "Surveillance", E120)), 0),"Not required") -> 42899 | O120: =IF(INTRO!$E$41="Endemic", IF($J120>1, IF($J120=4, "Unknown", IF($J120=99, "Surveillance", F120)), 0),"Not required") -> 91237 | P120: =IF(INTRO!$E$41="Endemic", IF($J120>1, IF($J120=4, "Unknown", IF($J120=99, "Surveillance", ROUND(D120*INTRO!$E$51,0))), 0),"Not required") -> 74621 | Q120: =IF(INTRO!$E$41="Endemic", IF($J120>1, IF($J120=4, "Unknown", IF($J120=99, "Surveillance", SUM($N120:$P120))), 0),"Not required") -> 208757 | R120: 0 | S120: 42493 | T120: 157398 | U120: =IF(INTRO!$E$43="Endemic", IF($K120>1, IF($K120=4, "Unknown", IF($K120=99, "Surveillance", SUM($R120:$T120))), 0),"Not required") -> 199891 | V120: 0 | W120: 0 | X120: 1 | Y120: 1
A121: =IF(INTRO!$E$33<>0,INTRO!$E$33, " ") -> Uganda | B121: Western | C121: Bunyangabu | D121: 230874 | E121: =IF(INTRO!$E$48="","",ROUND($D121*INTRO!$E$48,0)) -> 32784 | F121: =IF(INTRO!$E$49="","",ROUND($D121*INTRO!$E$49,0)) -> 69724 | G121: =IF(INTRO!$E$50="","",ROUND($D121*INTRO!$E$50,0)) -> 120285 | H121: 0 | I121: 99 | J121: 11 | K121: 11 | L121: =IF(INTRO!$E$37="Endemic",IF($H121>0,IF($H121=4,"Unknown",IF($H121=99,"Stopped",$D121)),0),"Not required") -> 0 | M121: 0 | N121: =IF(INTRO!$E$41="Endemic", IF($J121>1, IF($J121=4, "Unknown", IF($J121=99, "Surveillance", E121)), 0),"Not required") -> 32784 | O121: =IF(INTRO!$E$41="Endemic", IF($J121>1, IF($J121=4, "Unknown", IF($J121=99, "Surveillance", F121)), 0),"Not required") -> 69724 | P121: =IF(INTRO!$E$41="Endemic", IF($J121>1, IF($J121=4, "Unknown", IF($J121=99, "Surveillance", ROUND(D121*INTRO!$E$51,0))), 0),"Not required") -> 57026 | Q121: =IF(INTRO!$E$41="Endemic", IF($J121>1, IF($J121=4, "Unknown", IF($J121=99, "Surveillance", SUM($N121:$P121))), 0),"Not required") -> 159534 | R121: 0 | S121: 17366 | T121: 0 | U121: =IF(INTRO!$E$43="Endemic", IF($K121>1, IF($K121=4, "Unknown", IF($K121=99, "Surveillance", SUM($R121:$T121))), 0),"Not required") -> 17366 | V121: 0 | W121: 0 | X121: 1 | Y121: 1
A122: =IF(INTRO!$E$33<>0,INTRO!$E$33, " ") -> Uganda | B122: Western | C122: Bushenyi | D122: 317584 | E122: =IF(INTRO!$E$48="","",ROUND($D122*INTRO!$E$48,0)) -> 45097 | F122: =IF(INTRO!$E$49="","",ROUND($D122*INTRO!$E$49,0)) -> 95910 | G122: =IF(INTRO!$E$50="","",ROUND($D122*INTRO!$E$50,0)) -> 165461 | H122: 0 | I122: 99 | J122: 3 | K122: 0 | L122: =IF(INTRO!$E$37="Endemic",IF($H122>0,IF($H122=4,"Unknown",IF($H122=99,"Stopped",$D122)),0),"Not required") -> 0 | M122: 0 | N122: =IF(INTRO!$E$41="Endemic", IF($J122>1, IF($J122=4, "Unknown", IF($J122=99, "Surveillance", E122)), 0),"Not required") -> 45097 | O122: =IF(INTRO!$E$41="Endemic", IF($J122>1, IF($J122=4, "Unknown", IF($J122=99, "Surveillance", F122)), 0),"Not required") -> 95910 | P122: =IF(INTRO!$E$41="Endemic", IF($J122>1, IF($J122=4, "Unknown", IF($J122=99, "Surveillance", ROUND(D122*INTRO!$E$51,0))), 0),"Not required") -> 78443 | Q122: =IF(INTRO!$E$41="Endemic", IF($J122>1, IF($J122=4, "Unknown", IF($J122=99, "Surveillance", SUM($N122:$P122))), 0),"Not required") -> 219450 | R122: 0 | S122: 0 | T122: 0 | U122: =IF(INTRO!$E$43="Endemic", IF($K122>1, IF($K122=4, "Unknown", IF($K122=99, "Surveillance", SUM($R122:$T122))), 0),"Not required") -> 0 | V122: 0 | W122: 0 | X122: 1 | Y122: 0
A123: =IF(INTRO!$E$33<>0,INTRO!$E$33, " ") -> Uganda | B123: Western | C123: Fortportal City | D123: 97376 | E123: =IF(INTRO!$E$48="","",ROUND($D123*INTRO!$E$48,0)) -> 13827 | F123: =IF(INTRO!$E$49="","",ROUND($D123*INTRO!$E$49,0)) -> 29408 | G123: =IF(INTRO!$E$50="","",ROUND($D123*INTRO!$E$50,0)) -> 50733 | H123: 0 | I123: 0 | J123: 3 | K123: 0 | L123: =IF(INTRO!$E$37="Endemic",IF($H123>0,IF($H123=4,"Unknown",IF($H123=99,"Stopped",$D123)),0),"Not required") -> 0 | M123: 0 | N123: =IF(INTRO!$E$41="Endemic", IF($J123>1, IF($J123=4, "Unknown", IF($J123=99, "Surveillance", E123)), 0),"Not required") -> 13827 | O123: =IF(INTRO!$E$41="Endemic", IF($J123>1, IF($J123=4, "Unknown", IF($J123=99, "Surveillance", F123)), 0),"Not required") -> 29408 | P123: =IF(INTRO!$E$41="Endemic", IF($J123>1, IF($J123=4, "Unknown", IF($J123=99, "Surveillance", ROUND(D123*INTRO!$E$51,0))), 0),"Not required") -> 24052 | Q123: =IF(INTRO!$E$41="Endemic", IF($J123>1, IF($J123=4, "Unknown", IF($J123=99, "Surveillance", SUM($N123:$P123))), 0),"Not required") -> 67287 | R123: 0 | S123: 0 | T123: 0 | U123: =IF(INTRO!$E$43="Endemic", IF($K123>1, IF($K123=4, "Unknown", IF($K123=99, "Surveillance", SUM($R123:$T123))), 0),"Not required") -> 0 | V123: 0 | W123: 0 | X123: 1 | Y123: 0
A124: =IF(INTRO!$E$33<>0,INTRO!$E$33, " ") -> Uganda | B124: Western | C124: Hoima | D124: 280420 | E124: =IF(INTRO!$E$48="","",ROUND($D124*INTRO!$E$48,0)) -> 39820 | F124: =IF(INTRO!$E$49="","",ROUND($D124*INTRO!$E$49,0)) -> 84687 | G124: =IF(INTRO!$E$50="","",ROUND($D124*INTRO!$E$50,0)) -> 146099 | H124: 0 | I124: 99 | J124: 99 | K124: 31 | L124: =IF(INTRO!$E$37="Endemic",IF($H124>0,IF($H124=4,"Unknown",IF($H124=99,"Stopped",$D124)),0),"Not required") -> 0 | M124: 0 | N124: =IF(INTRO!$E$41="Endemic", IF($J124>1, IF($J124=4, "Unknown", IF($J124=99, "Surveillance", E124)), 0),"Not required") -> Surveillance | O124: =IF(INTRO!$E$41="Endemic", IF($J124>1, IF($J124=4, "Unknown", IF($J124=99, "Surveillance", F124)), 0),"Not required") -> Surveillance | P124: =IF(INTRO!$E$41="Endemic", IF($J124>1, IF($J124=4, "Unknown", IF($J124=99, "Surveillance", ROUND(D124*INTRO!$E$51,0))), 0),"Not required") -> Surveillance | Q124: =IF(INTRO!$E$41="Endemic", IF($J124>1, IF($J124=4, "Unknown", IF($J124=99, "Surveillance", SUM($N124:$P124))), 0),"Not required") -> Surveillance | R124: 0 | S124: 45846 | T124: 146099 | U124: =IF(INTRO!$E$43="Endemic", IF($K124>1, IF($K124=4, "Unknown", IF($K124=99, "Surveillance", SUM($R124:$T124))), 0),"Not required") -> 191945 | V124: 0 | W124: 0 | X124: 1 | Y124: 1
A125: =IF(INTRO!$E$33<>0,INTRO!$E$33, " ") -> Uganda | B125: Western | C125: Hoima City | D125: 135623 | E125: =IF(INTRO!$E$48="","",ROUND($D125*INTRO!$E$48,0)) -> 19258 | F125: =IF(INTRO!$E$49="","",ROUND($D125*INTRO!$E$49,0)) -> 40958 | G125: =IF(INTRO!$E$50="","",ROUND($D125*INTRO!$E$50,0)) -> 70660 | H125: 0 | I125: 0 | J125: 3 | K125: 0 | L125: =IF(INTRO!$E$37="Endemic",IF($H125>0,IF($H125=4,"Unknown",IF($H125=99,"Stopped",$D125)),0),"Not required") -> 0 | M125: 0 | N125: =IF(INTRO!$E$41="Endemic", IF($J125>1, IF($J125=4, "Unknown", IF($J125=99, "Surveillance", E125)), 0),"Not required") -> 19258 | O125: =IF(INTRO!$E$41="Endemic", IF($J125>1, IF($J125=4, "Unknown", IF($J125=99, "Surveillance", F125)), 0),"Not required") -> 40958 | P125: =IF(INTRO!$E$41="Endemic", IF($J125>1, IF($J125=4, "Unknown", IF($J125=99, "Surveillance", ROUND(D125*INTRO!$E$51,0))), 0),"Not required") -> 33499 | Q125: =IF(INTRO!$E$41="Endemic", IF($J125>1, IF($J125=4, "Unknown", IF($J125=99, "Surveillance", SUM($N125:$P125))), 0),"Not required") -> 93715 | R125: 0 | S125: 0 | T125: 0 | U125: =IF(INTRO!$E$43="Endemic", IF($K125>1, IF($K125=4, "Unknown", IF($K125=99, "Surveillance", SUM($R125:$T125))), 0),"Not required") -> 0 | V125: 0 | W125: 0 | X125: 1 | Y125: 0
A126: =IF(INTRO!$E$33<>0,INTRO!$E$33, " ") -> Uganda | B126: Western | C126: Ibanda | D126: 334375 | E126: =IF(INTRO!$E$48="","",ROUND($D126*INTRO!$E$48,0)) -> 47481 | F126: =IF(INTRO!$E$49="","",ROUND($D126*INTRO!$E$49,0)) -> 100981 | G126: =IF(INTRO!$E$50="","",ROUND($D126*INTRO!$E$50,0)) -> 174209 | H126: 0 | I126: 99 | J126: 11 | K126: 11 | L126: =IF(INTRO!$E$37="Endemic",IF($H126>0,IF($H126=4,"Unknown",IF($H126=99,"Stopped",$D126)),0),"Not required") -> 0 | M126: 0 | N126: =IF(INTRO!$E$41="Endemic", IF($J126>1, IF($J126=4, "Unknown", IF($J126=99, "Surveillance", E126)), 0),"Not required") -> 47481 | O126: =IF(INTRO!$E$41="Endemic", IF($J126>1, IF($J126=4, "Unknown", IF($J126=99, "Surveillance", F126)), 0),"Not required") -> 100981 | P126: =IF(INTRO!$E$41="Endemic", IF($J126>1, IF($J126=4, "Unknown", IF($J126=99, "Surveillance", ROUND(D126*INTRO!$E$51,0))), 0),"Not required") -> 82591 | Q126: =IF(INTRO!$E$41="Endemic", IF($J126>1, IF($J126=4, "Unknown", IF($J126=99, "Surveillance", SUM($N126:$P126))), 0),"Not required") -> 231053 | R126: 0 | S126: 11461 | T126: 0 | U126: =IF(INTRO!$E$43="Endemic", IF($K126>1, IF($K126=4, "Unknown", IF($K126=99, "Surveillance", SUM($R126:$T126))), 0),"Not required") -> 11461 | V126: 0 | W126: 0 | X126: 1 | Y126: 1
A127: =IF(INTRO!$E$33<>0,INTRO!$E$33, " ") -> Uganda | B127: Western | C127: Isingiro | D127: 663286 | E127: =IF(INTRO!$E$48="","",ROUND($D127*INTRO!$E$48,0)) -> 94187 | F127: =IF(INTRO!$E$49="","",ROUND($D127*INTRO!$E$49,0)) -> 200312 | G127: =IF(INTRO!$E$50="","",ROUND($D127*INTRO!$E$50,0)) -> 345572 | H127: 0 | I127: 0 | J127: 11 | K127: 21 | L127: =IF(INTRO!$E$37="Endemic",IF($H127>0,IF($H127=4,"Unknown",IF($H127=99,"Stopped",$D127)),0),"Not required") -> 0 | M127: 0 | N127: =IF(INTRO!$E$41="Endemic", IF($J127>1, IF($J127=4, "Unknown", IF($J127=99, "Surveillance", E127)), 0),"Not required") -> 94187 | O127: =IF(INTRO!$E$41="Endemic", IF($J127>1, IF($J127=4, "Unknown", IF($J127=99, "Surveillance", F127)), 0),"Not required") -> 200312 | P127: =IF(INTRO!$E$41="Endemic", IF($J127>1, IF($J127=4, "Unknown", IF($J127=99, "Surveillance", ROUND(D127*INTRO!$E$51,0))), 0),"Not required") -> 163832 | Q127: =IF(INTRO!$E$41="Endemic", IF($J127>1, IF($J127=4, "Unknown", IF($J127=99, "Surveillance", SUM($N127:$P127))), 0),"Not required") -> 458331 | R127: 0 | S127: 38493 | T127: 69228 | U127: =IF(INTRO!$E$43="Endemic", IF($K127>1, IF($K127=4, "Unknown", IF($K127=99, "Surveillance", SUM($R127:$T127))), 0),"Not required") -> 107721 | V127: 0 | W127: 0 | X127: 1 | Y127: 1
A128: =IF(INTRO!$E$33<>0,INTRO!$E$33, " ") -> Uganda | B128: Western | C128: Kabale | D128: 313385 | E128: =IF(INTRO!$E$48="","",ROUND($D128*INTRO!$E$48,0)) -> 44501 | F128: =IF(INTRO!$E$49="","",ROUND($D128*INTRO!$E$49,0)) -> 94642 | G128: =IF(INTRO!$E$50="","",ROUND($D128*INTRO!$E$50,0)) -> 163274 | H128: 0 | I128: 0 | J128: 3 | K128: 0 | L128: =IF(INTRO!$E$37="Endemic",IF($H128>0,IF($H128=4,"Unknown",IF($H128=99,"Stopped",$D128)),0),"Not required") -> 0 | M128: 0 | N128: =IF(INTRO!$E$41="Endemic", IF($J128>1, IF($J128=4, "Unknown", IF($J128=99, "Surveillance", E128)), 0),"Not required") -> 44501 | O128: =IF(INTRO!$E$41="Endemic", IF($J128>1, IF($J128=4, "Unknown", IF($J128=99, "Surveillance", F128)), 0),"Not required") -> 94642 | P128: =IF(INTRO!$E$41="Endemic", IF($J128>1, IF($J128=4, "Unknown", IF($J128=99, "Surveillance", ROUND(D128*INTRO!$E$51,0))), 0),"Not required") -> 77406 | Q128: =IF(INTRO!$E$41="Endemic", IF($J128>1, IF($J128=4, "Unknown", IF($J128=99, "Surveillance", SUM($N128:$P128))), 0),"Not required") -> 216549 | R128: 0 | S128: 0 | T128: 0 | U128: =IF(INTRO!$E$43="Endemic", IF($K128>1, IF($K128=4, "Unknown", IF($K128=99, "Surveillance", SUM($R128:$T128))), 0),"Not required") -> 0 | V128: 0 | W128: 0 | X128: 1 | Y128: 0
A129: =IF(INTRO!$E$33<>0,INTRO!$E$33, " ") -> Uganda | B129: Western | C129: Kabarole | D129: 310922 | E129: =IF(INTRO!$E$48="","",ROUND($D129*INTRO!$E$48,0)) -> 44151 | F129: =IF(INTRO!$E$49="","",ROUND($D129*INTRO!$E$49,0)) -> 93898 | G129: =IF(INTRO!$E$50="","",ROUND($D129*INTRO!$E$50,0)) -> 161990 | H129: 0 | I129: 99 | J129: 3 | K129: 21 | L129: =IF(INTRO!$E$37="Endemic",IF($H129>0,IF($H129=4,"Unknown",IF($H129=99,"Stopped",$D129)),0),"Not required") -> 0 | M129: 0 | N129: =IF(INTRO!$E$41="Endemic", IF($J129>1, IF($J129=4, "Unknown", IF($J129=99, "Surveillance", E129)), 0),"Not required") -> 44151 | O129: =IF(INTRO!$E$41="Endemic", IF($J129>1, IF($J129=4, "Unknown", IF($J129=99, "Surveillance", F129)), 0),"Not required") -> 93898 | P129: =IF(INTRO!$E$41="Endemic", IF($J129>1, IF($J129=4, "Unknown", IF($J129=99, "Surveillance", ROUND(D129*INTRO!$E$51,0))), 0),"Not required") -> 76798 | Q129: =IF(INTRO!$E$41="Endemic", IF($J129>1, IF($J129=4, "Unknown", IF($J129=99, "Surveillance", SUM($N129:$P129))), 0),"Not required") -> 214847 | R129: 0 | S129: 15637 | T129: 32451 | U129: =IF(INTRO!$E$43="Endemic", IF($K129>1, IF($K129=4, "Unknown", IF($K129=99, "Surveillance", SUM($R129:$T129))), 0),"Not required") -> 48088 | V129: 0 | W129: 0 | X129: 1 | Y129: 1
A130: =IF(INTRO!$E$33<>0,INTRO!$E$33, " ") -> Uganda | B130: Western | C130: Kagadi | D130: 475532 | E130: =IF(INTRO!$E$48="","",ROUND($D130*INTRO!$E$48,0)) -> 67526 | F130: =IF(INTRO!$E$49="","",ROUND($D130*INTRO!$E$49,0)) -> 143611 | G130: =IF(INTRO!$E$50="","",ROUND($D130*INTRO!$E$50,0)) -> 247752 | H130: 0 | I130: 99 | J130: 3 | K130: 3 | L130: =IF(INTRO!$E$37="Endemic",IF($H130>0,IF($H130=4,"Unknown",IF($H130=99,"Stopped",$D130)),0),"Not required") -> 0 | M130: 0 | N130: =IF(INTRO!$E$41="Endemic", IF($J130>1, IF($J130=4, "Unknown", IF($J130=99, "Surveillance", E130)), 0),"Not required") -> 67526 | O130: =IF(INTRO!$E$41="Endemic", IF($J130>1, IF($J130=4, "Unknown", IF($J130=99, "Surveillance", F130)), 0),"Not required") -> 143611 | P130: =IF(INTRO!$E$41="Endemic", IF($J130>1, IF($J130=4, "Unknown", IF($J130=99, "Surveillance", ROUND(D130*INTRO!$E$51,0))), 0),"Not required") -> 117456 | Q130: =IF(INTRO!$E$41="Endemic", IF($J130>1, IF($J130=4, "Unknown", IF($J130=99, "Surveillance", SUM($N130:$P130))), 0),"Not required") -> 328593 | R130: 0 | S130: 81071 | T130: 247752 | U130: =IF(INTRO!$E$43="Endemic", IF($K130>1, IF($K130=4, "Unknown", IF($K130=99, "Surveillance", SUM($R130:$T130))), 0),"Not required") -> 328823 | V130: 0 | W130: 0 | X130: 1 | Y130: 1
A131: =IF(INTRO!$E$33<>0,INTRO!$E$33, " ") -> Uganda | B131: Western | C131: Kakumiro | D131: 399468 | E131: =IF(INTRO!$E$48="","",ROUND($D131*INTRO!$E$48,0)) -> 56724 | F131: =IF(INTRO!$E$49="","",ROUND($D131*INTRO!$E$49,0)) -> 120639 | G131: =IF(INTRO!$E$50="","",ROUND($D131*INTRO!$E$50,0)) -> 208123 | H131: 0 | I131: 0 | J131: 3 | K131: 0 | L131: =IF(INTRO!$E$37="Endemic",IF($H131>0,IF($H131=4,"Unknown",IF($H131=99,"Stopped",$D131)),0),"Not required") -> 0 | M131: 0 | N131: =IF(INTRO!$E$41="Endemic", IF($J131>1, IF($J131=4, "Unknown", IF($J131=99, "Surveillance", E131)), 0),"Not required") -> 56724 | O131: =IF(INTRO!$E$41="Endemic", IF($J131>1, IF($J131=4, "Unknown", IF($J131=99, "Surveillance", F131)), 0),"Not required") -> 120639 | P131: =IF(INTRO!$E$41="Endemic", IF($J131>1, IF($J131=4, "Unknown", IF($J131=99, "Surveillance", ROUND(D131*INTRO!$E$51,0))), 0),"Not required") -> 98669 | Q131: =IF(INTRO!$E$41="Endemic", IF($J131>1, IF($J131=4, "Unknown", IF($J131=99, "Surveillance", SUM($N131:$P131))), 0),"Not required") -> 276032 | R131: 0 | S131: 0 | T131: 0 | U131: =IF(INTRO!$E$43="Endemic", IF($K131>1, IF($K131=4, "Unknown", IF($K131=99, "Surveillance", SUM($R131:$T131))), 0),"Not required") -> 0 | V131: 0 | W131: 0 | X131: 1 | Y131: 0
A132: =IF(INTRO!$E$33<>0,INTRO!$E$33, " ") -> Uganda | B132: Western | C132: Kamwenge | D132: 371848 | E132: =IF(INTRO!$E$48="","",ROUND($D132*INTRO!$E$48,0)) -> 52802 | F132: =IF(INTRO!$E$49="","",ROUND($D132*INTRO!$E$49,0)) -> 112298 | G132: =IF(INTRO!$E$50="","",ROUND($D132*INTRO!$E$50,0)) -> 193733 | H132: 0 | I132: 99 | J132: 3 | K132: 0 | L132: =IF(INTRO!$E$37="Endemic",IF($H132>0,IF($H132=4,"Unknown",IF($H132=99,"Stopped",$D132)),0),"Not required") -> 0 | M132: 0 | N132: =IF(INTRO!$E$41="Endemic", IF($J132>1, IF($J132=4, "Unknown", IF($J132=99, "Surveillance", E132)), 0),"Not required") -> 52802 | O132: =IF(INTRO!$E$41="Endemic", IF($J132>1, IF($J132=4, "Unknown", IF($J132=99, "Surveillance", F132)), 0),"Not required") -> 112298 | P132: =IF(INTRO!$E$41="Endemic", IF($J132>1, IF($J132=4, "Unknown", IF($J132=99, "Surveillance", ROUND(D132*INTRO!$E$51,0))), 0),"Not required") -> 91846 | Q132: =IF(INTRO!$E$41="Endemic", IF($J132>1, IF($J132=4, "Unknown", IF($J132=99, "Surveillance", SUM($N132:$P132))), 0),"Not required") -> 256946 | R132: 0 | S132: 0 | T132: 0 | U132: =IF(INTRO!$E$43="Endemic", IF($K132>1, IF($K132=4, "Unknown", IF($K132=99, "Surveillance", SUM($R132:$T132))), 0),"Not required") -> 0 | V132: 0 | W132: 0 | X132: 1 | Y132: 0
A133: =IF(INTRO!$E$33<>0,INTRO!$E$33, " ") -> Uganda | B133: Western | C133: Kanungu | D133: 339748 | E133: =IF(INTRO!$E$48="","",ROUND($D133*INTRO!$E$48,0)) -> 48244 | F133: =IF(INTRO!$E$49="","",ROUND($D133*INTRO!$E$49,0)) -> 102604 | G133: =IF(INTRO!$E$50="","",ROUND($D133*INTRO!$E$50,0)) -> 177009 | H133: 0 | I133: 99 | J133: 3 | K133: 0 | L133: =IF(INTRO!$E$37="Endemic",IF($H133>0,IF($H133=4,"Unknown",IF($H133=99,"Stopped",$D133)),0),"Not required") -> 0 | M133: 0 | N133: =IF(INTRO!$E$41="Endemic", IF($J133>1, IF($J133=4, "Unknown", IF($J133=99, "Surveillance", E133)), 0),"Not required") -> 48244 | O133: =IF(INTRO!$E$41="Endemic", IF($J133>1, IF($J133=4, "Unknown", IF($J133=99, "Surveillance", F133)), 0),"Not required") -> 102604 | P133: =IF(INTRO!$E$41="Endemic", IF($J133>1, IF($J133=4, "Unknown", IF($J133=99, "Surveillance", ROUND(D133*INTRO!$E$51,0))), 0),"Not required") -> 83918 | Q133: =IF(INTRO!$E$41="Endemic", IF($J133>1, IF($J133=4, "Unknown", IF($J133=99, "Surveillance", SUM($N133:$P133))), 0),"Not required") -> 234766 | R133: 0 | S133: 0 | T133: 0 | U133: =IF(INTRO!$E$43="Endemic", IF($K133>1, IF($K133=4, "Unknown", IF($K133=99, "Surveillance", SUM($R133:$T133))), 0),"Not required") -> 0 | V133: 0 | W133: 0 | X133: 1 | Y133: 0
A134: =IF(INTRO!$E$33<>0,INTRO!$E$33, " ") -> Uganda | B134: Western | C134: Kasese | D134: 946224 | E134: =IF(INTRO!$E$48="","",ROUND($D134*INTRO!$E$48,0)) -> 134364 | F134: =IF(INTRO!$E$49="","",ROUND($D134*INTRO!$E$49,0)) -> 285760 | G134: =IF(INTRO!$E$50="","",ROUND($D134*INTRO!$E$50,0)) -> 492983 | H134: 0 | I134: 1 | J134: 3 | K134: 31 | L134: =IF(INTRO!$E$37="Endemic",IF($H134>0,IF($H134=4,"Unknown",IF($H134=99,"Stopped",$D134)),0),"Not required") -> 0 | M134: 136711 | N134: =IF(INTRO!$E$41="Endemic", IF($J134>1, IF($J134=4, "Unknown", IF($J134=99, "Surveillance", E134)), 0),"Not required") -> 134364 | O134: =IF(INTRO!$E$41="Endemic", IF($J134>1, IF($J134=4, "Unknown", IF($J134=99, "Surveillance", F134)), 0),"Not required") -> 285760 | P134: =IF(INTRO!$E$41="Endemic", IF($J134>1, IF($J134=4, "Unknown", IF($J134=99, "Surveillance", ROUND(D134*INTRO!$E$51,0))), 0),"Not required") -> 233717 | Q134: =IF(INTRO!$E$41="Endemic", IF($J134>1, IF($J134=4, "Unknown", IF($J134=99, "Surveillance", SUM($N134:$P134))), 0),"Not required") -> 653841 | R134: 0 | S134: 4508 | T134: 2150 | U134: =IF(INTRO!$E$43="Endemic", IF($K134>1, IF($K134=4, "Unknown", IF($K134=99, "Surveillance", SUM($R134:$T134))), 0),"Not required") -> 6658 | V134: 0 | W134: 2 | X134: 1 | Y134: 1
A135: =IF(INTRO!$E$33<>0,INTRO!$E$33, " ") -> Uganda | B135: Western | C135: Kazo | D135: 238375 | E135: =IF(INTRO!$E$48="","",ROUND($D135*INTRO!$E$48,0)) -> 33849 | F135: =IF(INTRO!$E$49="","",ROUND($D135*INTRO!$E$49,0)) -> 71989 | G135: =IF(INTRO!$E$50="","",ROUND($D135*INTRO!$E$50,0)) -> 124193 | H135: 0 | I135: 0 | J135: 3 | K135: 11 | L135: =IF(INTRO!$E$37="Endemic",IF($H135>0,IF($H135=4,"Unknown",IF($H135=99,"Stopped",$D135)),0),"Not required") -> 0 | M135: 0 | N135: =IF(INTRO!$E$41="Endemic", IF($J135>1, IF($J135=4, "Unknown", IF($J135=99, "Surveillance", E135)), 0),"Not required") -> 33849 | O135: =IF(INTRO!$E$41="Endemic", IF($J135>1, IF($J135=4, "Unknown", IF($J135=99, "Surveillance", F135)), 0),"Not required") -> 71989 | P135: =IF(INTRO!$E$41="Endemic", IF($J135>1, IF($J135=4, "Unknown", IF($J135=99, "Surveillance", ROUND(D135*INTRO!$E$51,0))), 0),"Not required") -> 58879 | Q135: =IF(INTRO!$E$41="Endemic", IF($J135>1, IF($J135=4, "Unknown", IF($J135=99, "Surveillance", SUM($N135:$P135))), 0),"Not required") -> 164717 | R135: 0 | S135: 29141 | T135: 0 | U135: =IF(INTRO!$E$43="Endemic", IF($K135>1, IF($K135=4, "Unknown", IF($K135=99, "Surveillance", SUM($R135:$T135))), 0),"Not required") -> 29141 | V135: 0 | W135: 0 | X135: 1 | Y135: 1
A136: =IF(INTRO!$E$33<>0,INTRO!$E$33, " ") -> Uganda | B136: Western | C136: Kibaale | D136: 188071 | E136: =IF(INTRO!$E$48="","",ROUND($D136*INTRO!$E$48,0)) -> 26706 | F136: =IF(INTRO!$E$49="","",ROUND($D136*INTRO!$E$49,0)) -> 56797 | G136: =IF(INTRO!$E$50="","",ROUND($D136*INTRO!$E$50,0)) -> 97985 | H136: 0 | I136: 99 | J136: 3 | K136: 0 | L136: =IF(INTRO!$E$37="Endemic",IF($H136>0,IF($H136=4,"Unknown",IF($H136=99,"Stopped",$D136)),0),"Not required") -> 0 | M136: 0 | N136: =IF(INTRO!$E$41="Endemic", IF($J136>1, IF($J136=4, "Unknown", IF($J136=99, "Surveillance", E136)), 0),"Not required") -> 26706 | O136: =IF(INTRO!$E$41="Endemic", IF($J136>1, IF($J136=4, "Unknown", IF($J136=99, "Surveillance", F136)), 0),"Not required") -> 56797 | P136: =IF(INTRO!$E$41="Endemic", IF($J136>1, IF($J136=4, "Unknown", IF($J136=99, "Surveillance", ROUND(D136*INTRO!$E$51,0))), 0),"Not required") -> 46454 | Q136: =IF(INTRO!$E$41="Endemic", IF($J136>1, IF($J136=4, "Unknown", IF($J136=99, "Surveillance", SUM($N136:$P136))), 0),"Not required") -> 129957 | R136: 0 | S136: 0 | T136: 0 | U136: =IF(INTRO!$E$43="Endemic", IF($K136>1, IF($K136=4, "Unknown", IF($K136=99, "Surveillance", SUM($R136:$T136))), 0),"Not required") -> 0 | V136: 0 | W136: 0 | X136: 1 | Y136: 0
A137: =IF(INTRO!$E$33<>0,INTRO!$E$33, " ") -> Uganda | B137: Western | C137: Kikuube | D137: 357482 | E137: =IF(INTRO!$E$48="","",ROUND($D137*INTRO!$E$48,0)) -> 50762 | F137: =IF(INTRO!$E$49="","",ROUND($D137*INTRO!$E$49,0)) -> 107960 | G137: =IF(INTRO!$E$50="","",ROUND($D137*INTRO!$E$50,0)) -> 186248 | H137: 0 | I137: 99 | J137: 99 | K137: 3 | L137: =IF(INTRO!$E$37="Endemic",IF($H137>0,IF($H137=4,"Unknown",IF($H137=99,"Stopped",$D137)),0),"Not required") -> 0 | M137: 0 | N137: =IF(INTRO!$E$41="Endemic", IF($J137>1, IF($J137=4, "Unknown", IF($J137=99, "Surveillance", E137)), 0),"Not required") -> Surveillance | O137: =IF(INTRO!$E$41="Endemic", IF($J137>1, IF($J137=4, "Unknown", IF($J137=99, "Surveillance", F137)), 0),"Not required") -> Surveillance | P137: =IF(INTRO!$E$41="Endemic", IF($J137>1, IF($J137=4, "Unknown", IF($J137=99, "Surveillance", ROUND(D137*INTRO!$E$51,0))), 0),"Not required") -> Surveillance | Q137: =IF(INTRO!$E$41="Endemic", IF($J137>1, IF($J137=4, "Unknown", IF($J137=99, "Surveillance", SUM($N137:$P137))), 0),"Not required") -> Surveillance | R137: 0 | S137: 107960 | T137: 186248 | U137: =IF(INTRO!$E$43="Endemic", IF($K137>1, IF($K137=4, "Unknown", IF($K137=99, "Surveillance", SUM($R137:$T137))), 0),"Not required") -> 294208 | V137: 0 | W137: 0 | X137: 1 | Y137: 1
A138: =IF(INTRO!$E$33<>0,INTRO!$E$33, " ") -> Uganda | B138: Western | C138: Kiruhura | D138: 204444 | E138: =IF(INTRO!$E$48="","",ROUND($D138*INTRO!$E$48,0)) -> 29031 | F138: =IF(INTRO!$E$49="","",ROUND($D138*INTRO!$E$49,0)) -> 61742 | G138: =IF(INTRO!$E$50="","",ROUND($D138*INTRO!$E$50,0)) -> 106515 | H138: 0 | I138: 0 | J138: 11 | K138: 11 | L138: =IF(INTRO!$E$37="Endemic",IF($H138>0,IF($H138=4,"Unknown",IF($H138=99,"Stopped",$D138)),0),"Not required") -> 0 | M138: 0 | N138: =IF(INTRO!$E$41="Endemic", IF($J138>1, IF($J138=4, "Unknown", IF($J138=99, "Surveillance", E138)), 0),"Not required") -> 29031 | O138: =IF(INTRO!$E$41="Endemic", IF($J138>1, IF($J138=4, "Unknown", IF($J138=99, "Surveillance", F138)), 0),"Not required") -> 61742 | P138: =IF(INTRO!$E$41="Endemic", IF($J138>1, IF($J138=4, "Unknown", IF($J138=99, "Surveillance", ROUND(D138*INTRO!$E$51,0))), 0),"Not required") -> 50498 | Q138: =IF(INTRO!$E$41="Endemic", IF($J138>1, IF($J138=4, "Unknown", IF($J138=99, "Surveillance", SUM($N138:$P138))), 0),"Not required") -> 141271 | R138: 0 | S138: 0 | T138: 0 | U138: =IF(INTRO!$E$43="Endemic", IF($K138>1, IF($K138=4, "Unknown", IF($K138=99, "Surveillance", SUM($R138:$T138))), 0),"Not required") -> 0 | V138: 0 | W138: 0 | X138: 1 | Y138: 0
A139: =IF(INTRO!$E$33<>0,INTRO!$E$33, " ") -> Uganda | B139: Western | C139: Kiryandongo | D139: 361475 | E139: =IF(INTRO!$E$48="","",ROUND($D139*INTRO!$E$48,0)) -> 51329 | F139: =IF(INTRO!$E$49="","",ROUND($D139*INTRO!$E$49,0)) -> 109165 | G139: =IF(INTRO!$E$50="","",ROUND($D139*INTRO!$E$50,0)) -> 188328 | H139: 0 | I139: 0 | J139: 3 | K139: 3 | L139: =IF(INTRO!$E$37="Endemic",IF($H139>0,IF($H139=4,"Unknown",IF($H139=99,"Stopped",$D139)),0),"Not required") -> 0 | M139: 0 | N139: =IF(INTRO!$E$41="Endemic", IF($J139>1, IF($J139=4, "Unknown", IF($J139=99, "Surveillance", E139)), 0),"Not required") -> 51329 | O139: =IF(INTRO!$E$41="Endemic", IF($J139>1, IF($J139=4, "Unknown", IF($J139=99, "Surveillance", F139)), 0),"Not required") -> 109165 | P139: =IF(INTRO!$E$41="Endemic", IF($J139>1, IF($J139=4, "Unknown", IF($J139=99, "Surveillance", ROUND(D139*INTRO!$E$51,0))), 0),"Not required") -> 89284 | Q139: =IF(INTRO!$E$41="Endemic", IF($J139>1, IF($J139=4, "Unknown", IF($J139=99, "Surveillance", SUM($N139:$P139))), 0),"Not required") -> 249778 | R139: 0 | S139: 52517 | T139: 188328 | U139: =IF(INTRO!$E$43="Endemic", IF($K139>1, IF($K139=4, "Unknown", IF($K139=99, "Surveillance", SUM($R139:$T139))), 0),"Not required") -> 240845 | V139: 0 | W139: 0 | X139: 1 | Y139: 1
A140: =IF(INTRO!$E$33<>0,INTRO!$E$33, " ") -> Uganda | B140: Western | C140: Kisoro | D140: 387071 | E140: =IF(INTRO!$E$48="","",ROUND($D140*INTRO!$E$48,0)) -> 54964 | F140: =IF(INTRO!$E$49="","",ROUND($D140*INTRO!$E$49,0)) -> 116895 | G140: =IF(INTRO!$E$50="","",ROUND($D140*INTRO!$E$50,0)) -> 201664 | H140: 0 | I140: 99 | J140: 3 | K140: 0 | L140: =IF(INTRO!$E$37="Endemic",IF($H140>0,IF($H140=4,"Unknown",IF($H140=99,"Stopped",$D140)),0),"Not required") -> 0 | M140: 0 | N140: =IF(INTRO!$E$41="Endemic", IF($J140>1, IF($J140=4, "Unknown", IF($J140=99, "Surveillance", E140)), 0),"Not required") -> 54964 | O140: =IF(INTRO!$E$41="Endemic", IF($J140>1, IF($J140=4, "Unknown", IF($J140=99, "Surveillance", F140)), 0),"Not required") -> 116895 | P140: =IF(INTRO!$E$41="Endemic", IF($J140>1, IF($J140=4, "Unknown", IF($J140=99, "Surveillance", ROUND(D140*INTRO!$E$51,0))), 0),"Not required") -> 95607 | Q140: =IF(INTRO!$E$41="Endemic", IF($J140>1, IF($J140=4, "Unknown", IF($J140=99, "Surveillance", SUM($N140:$P140))), 0),"Not required") -> 267466 | R140: 0 | S140: 0 | T140: 0 | U140: =IF(INTRO!$E$43="Endemic", IF($K140>1, IF($K140=4, "Unknown", IF($K140=99, "Surveillance", SUM($R140:$T140))), 0),"Not required") -> 0 | V140: 0 | W140: 0 | X140: 1 | Y140: 0
A141: =IF(INTRO!$E$33<>0,INTRO!$E$33, " ") -> Uganda | B141: Western | C141: Kitagwenda | D141: 196233 | E141: =IF(INTRO!$E$48="","",ROUND($D141*INTRO!$E$48,0)) -> 27865 | F141: =IF(INTRO!$E$49="","",ROUND($D141*INTRO!$E$49,0)) -> 59262 | G141: =IF(INTRO!$E$50="","",ROUND($D141*INTRO!$E$50,0)) -> 102237 | H141: 0 | I141: 99 | J141: 11 | K141: 3 | L141: =IF(INTRO!$E$37="Endemic",IF($H141>0,IF($H141=4,"Unknown",IF($H141=99,"Stopped",$D141)),0),"Not required") -> 0 | M141: 0 | N141: =IF(INTRO!$E$41="Endemic", IF($J141>1, IF($J141=4, "Unknown", IF($J141=99, "Surveillance", E141)), 0),"Not required") -> 27865 | O141: =IF(INTRO!$E$41="Endemic", IF($J141>1, IF($J141=4, "Unknown", IF($J141=99, "Surveillance", F141)), 0),"Not required") -> 59262 | P141: =IF(INTRO!$E$41="Endemic", IF($J141>1, IF($J141=4, "Unknown", IF($J141=99, "Surveillance", ROUND(D141*INTRO!$E$51,0))), 0),"Not required") -> 48470 | Q141: =IF(INTRO!$E$41="Endemic", IF($J141>1, IF($J141=4, "Unknown", IF($J141=99, "Surveillance", SUM($N141:$P141))), 0),"Not required") -> 135597 | R141: 0 | S141: 28660 | T141: 102237 | U141: =IF(INTRO!$E$43="Endemic", IF($K141>1, IF($K141=4, "Unknown", IF($K141=99, "Surveillance", SUM($R141:$T141))), 0),"Not required") -> 130897 | V141: 0 | W141: 0 | X141: 1 | Y141: 1
A142: =IF(INTRO!$E$33<>0,INTRO!$E$33, " ") -> Uganda | B142: Western | C142: Kyegegwa | D142: 373867 | E142: =IF(INTRO!$E$48="","",ROUND($D142*INTRO!$E$48,0)) -> 53089 | F142: =IF(INTRO!$E$49="","",ROUND($D142*INTRO!$E$49,0)) -> 112908 | G142: =IF(INTRO!$E$50="","",ROUND($D142*INTRO!$E$50,0)) -> 194785 | H142: 0 | I142: 0 | J142: 3 | K142: 0 | L142: =IF(INTRO!$E$37="Endemic",IF($H142>0,IF($H142=4,"Unknown",IF($H142=99,"Stopped",$D142)),0),"Not required") -> 0 | M142: 0 | N142: =IF(INTRO!$E$41="Endemic", IF($J142>1, IF($J142=4, "Unknown", IF($J142=99, "Surveillance", E142)), 0),"Not required") -> 53089 | O142: =IF(INTRO!$E$41="Endemic", IF($J142>1, IF($J142=4, "Unknown", IF($J142=99, "Surveillance", F142)), 0),"Not required") -> 112908 | P142: =IF(INTRO!$E$41="Endemic", IF($J142>1, IF($J142=4, "Unknown", IF($J142=99, "Surveillance", ROUND(D142*INTRO!$E$51,0))), 0),"Not required") -> 92345 | Q142: =IF(INTRO!$E$41="Endemic", IF($J142>1, IF($J142=4, "Unknown", IF($J142=99, "Surveillance", SUM($N142:$P142))), 0),"Not required") -> 258342 | R142: 0 | S142: 0 | T142: 0 | U142: =IF(INTRO!$E$43="Endemic", IF($K142>1, IF($K142=4, "Unknown", IF($K142=99, "Surveillance", SUM($R142:$T142))), 0),"Not required") -> 0 | V142: 0 | W142: 0 | X142: 1 | Y142: 0
A143: =IF(INTRO!$E$33<>0,INTRO!$E$33, " ") -> Uganda | B143: Western | C143: Kyenjojo | D143: 539279 | E143: =IF(INTRO!$E$48="","",ROUND($D143*INTRO!$E$48,0)) -> 76578 | F143: =IF(INTRO!$E$49="","",ROUND($D143*INTRO!$E$49,0)) -> 162862 | G143: =IF(INTRO!$E$50="","",ROUND($D143*INTRO!$E$50,0)) -> 280964 | H143: 0 | I143: 99 | J143: 3 | K143: 0 | L143: =IF(INTRO!$E$37="Endemic",IF($H143>0,IF($H143=4,"Unknown",IF($H143=99,"Stopped",$D143)),0),"Not required") -> 0 | M143: 0 | N143: =IF(INTRO!$E$41="Endemic", IF($J143>1, IF($J143=4, "Unknown", IF($J143=99, "Surveillance", E143)), 0),"Not required") -> 76578 | O143: =IF(INTRO!$E$41="Endemic", IF($J143>1, IF($J143=4, "Unknown", IF($J143=99, "Surveillance", F143)), 0),"Not required") -> 162862 | P143: =IF(INTRO!$E$41="Endemic", IF($J143>1, IF($J143=4, "Unknown", IF($J143=99, "Surveillance", ROUND(D143*INTRO!$E$51,0))), 0),"Not required") -> 133202 | Q143: =IF(INTRO!$E$41="Endemic", IF($J143>1, IF($J143=4, "Unknown", IF($J143=99, "Surveillance", SUM($N143:$P143))), 0),"Not required") -> 372642 | R143: 0 | S143: 0 | T143: 0 | U143: =IF(INTRO!$E$43="Endemic", IF($K143>1, IF($K143=4, "Unknown", IF($K143=99, "Surveillance", SUM($R143:$T143))), 0),"Not required") -> 0 | V143: 0 | W143: 0 | X143: 1 | Y143: 0
A144: =IF(INTRO!$E$33<>0,INTRO!$E$33, " ") -> Uganda | B144: Western | C144: Masindi | D144: 427036 | E144: =IF(INTRO!$E$48="","",ROUND($D144*INTRO!$E$48,0)) -> 60639 | F144: =IF(INTRO!$E$49="","",ROUND($D144*INTRO!$E$49,0)) -> 128965 | G144: =IF(INTRO!$E$50="","",ROUND($D144*INTRO!$E$50,0)) -> 222486 | H144: 0 | I144: 99 | J144: 3 | K144: 0 | L144: =IF(INTRO!$E$37="Endemic",IF($H144>0,IF($H144=4,"Unknown",IF($H144=99,"Stopped",$D144)),0),"Not required") -> 0 | M144: 0 | N144: =IF(INTRO!$E$41="Endemic", IF($J144>1, IF($J144=4, "Unknown", IF($J144=99, "Surveillance", E144)), 0),"Not required") -> 60639 | O144: =IF(INTRO!$E$41="Endemic", IF($J144>1, IF($J144=4, "Unknown", IF($J144=99, "Surveillance", F144)), 0),"Not required") -> 128965 | P144: =IF(INTRO!$E$41="Endemic", IF($J144>1, IF($J144=4, "Unknown", IF($J144=99, "Surveillance", ROUND(D144*INTRO!$E$51,0))), 0),"Not required") -> 105478 | Q144: =IF(INTRO!$E$41="Endemic", IF($J144>1, IF($J144=4, "Unknown", IF($J144=99, "Surveillance", SUM($N144:$P144))), 0),"Not required") -> 295082 | R144: 0 | S144: 0 | T144: 0 | U144: =IF(INTRO!$E$43="Endemic", IF($K144>1, IF($K144=4, "Unknown", IF($K144=99, "Surveillance", SUM($R144:$T144))), 0),"Not required") -> 0 | V144: 0 | W144: 0 | X144: 1 | Y144: 0
A145: =IF(INTRO!$E$33<>0,INTRO!$E$33, " ") -> Uganda | B145: Western | C145: Mbarara | D145: 203213 | E145: =IF(INTRO!$E$48="","",ROUND($D145*INTRO!$E$48,0)) -> 28856 | F145: =IF(INTRO!$E$49="","",ROUND($D145*INTRO!$E$49,0)) -> 61370 | G145: =IF(INTRO!$E$50="","",ROUND($D145*INTRO!$E$50,0)) -> 105874 | H145: 0 | I145: 0 | J145: 3 | K145: 0 | L145: =IF(INTRO!$E$37="Endemic",IF($H145>0,IF($H145=4,"Unknown",IF($H145=99,"Stopped",$D145)),0),"Not required") -> 0 | M145: 0 | N145: =IF(INTRO!$E$41="Endemic", IF($J145>1, IF($J145=4, "Unknown", IF($J145=99, "Surveillance", E145)), 0),"Not required") -> 28856 | O145: =IF(INTRO!$E$41="Endemic", IF($J145>1, IF($J145=4, "Unknown", IF($J145=99, "Surveillance", F145)), 0),"Not required") -> 61370 | P145: =IF(INTRO!$E$41="Endemic", IF($J145>1, IF($J145=4, "Unknown", IF($J145=99, "Surveillance", ROUND(D145*INTRO!$E$51,0))), 0),"Not required") -> 50194 | Q145: =IF(INTRO!$E$41="Endemic", IF($J145>1, IF($J145=4, "Unknown", IF($J145=99, "Surveillance", SUM($N145:$P145))), 0),"Not required") -> 140420 | R145: 0 | S145: 0 | T145: 0 | U145: =IF(INTRO!$E$43="Endemic", IF($K145>1, IF($K145=4, "Unknown", IF($K145=99, "Surveillance", SUM($R145:$T145))), 0),"Not required") -> 0 | V145: 0 | W145: 0 | X145: 1 | Y145: 0
A146: =IF(INTRO!$E$33<>0,INTRO!$E$33, " ") -> Uganda | B146: Western | C146: Mbarara City | D146: 262849 | E146: =IF(INTRO!$E$48="","",ROUND($D146*INTRO!$E$48,0)) -> 37325 | F146: =IF(INTRO!$E$49="","",ROUND($D146*INTRO!$E$49,0)) -> 79380 | G146: =IF(INTRO!$E$50="","",ROUND($D146*INTRO!$E$50,0)) -> 136944 | H146: 0 | I146: 0 | J146: 3 | K146: 0 | L146: =IF(INTRO!$E$37="Endemic",IF($H146>0,IF($H146=4,"Unknown",IF($H146=99,"Stopped",$D146)),0),"Not required") -> 0 | M146: 0 | N146: =IF(INTRO!$E$41="Endemic", IF($J146>1, IF($J146=4, "Unknown", IF($J146=99, "Surveillance", E146)), 0),"Not required") -> 37325 | O146: =IF(INTRO!$E$41="Endemic", IF($J146>1, IF($J146=4, "Unknown", IF($J146=99, "Surveillance", F146)), 0),"Not required") -> 79380 | P146: =IF(INTRO!$E$41="Endemic", IF($J146>1, IF($J146=4, "Unknown", IF($J146=99, "Surveillance", ROUND(D146*INTRO!$E$51,0))), 0),"Not required") -> 64924 | Q146: =IF(INTRO!$E$41="Endemic", IF($J146>1, IF($J146=4, "Unknown", IF($J146=99, "Surveillance", SUM($N146:$P146))), 0),"Not required") -> 181629 | R146: 0 | S146: 0 | T146: 0 | U146: =IF(INTRO!$E$43="Endemic", IF($K146>1, IF($K146=4, "Unknown", IF($K146=99, "Surveillance", SUM($R146:$T146))), 0),"Not required") -> 0 | V146: 0 | W146: 0 | X146: 1 | Y146: 0
A147: =IF(INTRO!$E$33<>0,INTRO!$E$33, " ") -> Uganda | B147: Western | C147: Mitooma | D147: 250046 | E147: =IF(INTRO!$E$48="","",ROUND($D147*INTRO!$E$48,0)) -> 35507 | F147: =IF(INTRO!$E$49="","",ROUND($D147*INTRO!$E$49,0)) -> 75514 | G147: =IF(INTRO!$E$50="","",ROUND($D147*INTRO!$E$50,0)) -> 130274 | H147: 0 | I147: 99 | J147: 3 | K147: 0 | L147: =IF(INTRO!$E$37="Endemic",IF($H147>0,IF($H147=4,"Unknown",IF($H147=99,"Stopped",$D147)),0),"Not required") -> 0 | M147: 0 | N147: =IF(INTRO!$E$41="Endemic", IF($J147>1, IF($J147=4, "Unknown", IF($J147=99, "Surveillance", E147)), 0),"Not required") -> 35507 | O147: =IF(INTRO!$E$41="Endemic", IF($J147>1, IF($J147=4, "Unknown", IF($J147=99, "Surveillance", F147)), 0),"Not required") -> 75514 | P147: =IF(INTRO!$E$41="Endemic", IF($J147>1, IF($J147=4, "Unknown", IF($J147=99, "Surveillance", ROUND(D147*INTRO!$E$51,0))), 0),"Not required") -> 61761 | Q147: =IF(INTRO!$E$41="Endemic", IF($J147>1, IF($J147=4, "Unknown", IF($J147=99, "Surveillance", SUM($N147:$P147))), 0),"Not required") -> 172782 | R147: 0 | S147: 0 | T147: 0 | U147: =IF(INTRO!$E$43="Endemic", IF($K147>1, IF($K147=4, "Unknown", IF($K147=99, "Surveillance", SUM($R147:$T147))), 0),"Not required") -> 0 | V147: 0 | W147: 0 | X147: 1 | Y147: 0
A148: =IF(INTRO!$E$33<>0,INTRO!$E$33, " ") -> Uganda | B148: Western | C148: Ntoroko | D148: 89521 | E148: =IF(INTRO!$E$48="","",ROUND($D148*INTRO!$E$48,0)) -> 12712 | F148: =IF(INTRO!$E$49="","",ROUND($D148*INTRO!$E$49,0)) -> 27035 | G148: =IF(INTRO!$E$50="","",ROUND($D148*INTRO!$E$50,0)) -> 46640 | H148: 0 | I148: 0 | J148: 3 | K148: 31 | L148: =IF(INTRO!$E$37="Endemic",IF($H148>0,IF($H148=4,"Unknown",IF($H148=99,"Stopped",$D148)),0),"Not required") -> 0 | M148: 0 | N148: =IF(INTRO!$E$41="Endemic", IF($J148>1, IF($J148=4, "Unknown", IF($J148=99, "Surveillance", E148)), 0),"Not required") -> 12712 | O148: =IF(INTRO!$E$41="Endemic", IF($J148>1, IF($J148=4, "Unknown", IF($J148=99, "Surveillance", F148)), 0),"Not required") -> 27035 | P148: =IF(INTRO!$E$41="Endemic", IF($J148>1, IF($J148=4, "Unknown", IF($J148=99, "Surveillance", ROUND(D148*INTRO!$E$51,0))), 0),"Not required") -> 22112 | Q148: =IF(INTRO!$E$41="Endemic", IF($J148>1, IF($J148=4, "Unknown", IF($J148=99, "Surveillance", SUM($N148:$P148))), 0),"Not required") -> 61859 | R148: 0 | S148: 10428 | T148: 46640 | U148: =IF(INTRO!$E$43="Endemic", IF($K148>1, IF($K148=4, "Unknown", IF($K148=99, "Surveillance", SUM($R148:$T148))), 0),"Not required") -> 57068 | V148: 0 | W148: 0 | X148: 1 | Y148: 1
A149: =IF(INTRO!$E$33<>0,INTRO!$E$33, " ") -> Uganda | B149: Western | C149: Ntungamo | D149: 659531 | E149: =IF(INTRO!$E$48="","",ROUND($D149*INTRO!$E$48,0)) -> 93653 | F149: =IF(INTRO!$E$49="","",ROUND($D149*INTRO!$E$49,0)) -> 199178 | G149: =IF(INTRO!$E$50="","",ROUND($D149*INTRO!$E$50,0)) -> 343616 | H149: 0 | I149: 0 | J149: 3 | K149: 0 | L149: =IF(INTRO!$E$37="Endemic",IF($H149>0,IF($H149=4,"Unknown",IF($H149=99,"Stopped",$D149)),0),"Not required") -> 0 | M149: 0 | N149: =IF(INTRO!$E$41="Endemic", IF($J149>1, IF($J149=4, "Unknown", IF($J149=99, "Surveillance", E149)), 0),"Not required") -> 93653 | O149: =IF(INTRO!$E$41="Endemic", IF($J149>1, IF($J149=4, "Unknown", IF($J149=99, "Surveillance", F149)), 0),"Not required") -> 199178 | P149: =IF(INTRO!$E$41="Endemic", IF($J149>1, IF($J149=4, "Unknown", IF($J149=99, "Surveillance", ROUND(D149*INTRO!$E$51,0))), 0),"Not required") -> 162904 | Q149: =IF(INTRO!$E$41="Endemic", IF($J149>1, IF($J149=4, "Unknown", IF($J149=99, "Surveillance", SUM($N149:$P149))), 0),"Not required") -> 455735 | R149: 0 | S149: 0 | T149: 0 | U149: =IF(INTRO!$E$43="Endemic", IF($K149>1, IF($K149=4, "Unknown", IF($K149=99, "Surveillance", SUM($R149:$T149))), 0),"Not required") -> 0 | V149: 0 | W149: 0 | X149: 1 | Y149: 0
A150: =IF(INTRO!$E$33<>0,INTRO!$E$33, " ") -> Uganda | B150: Western | C150: Rubanda | D150: 269049 | E150: =IF(INTRO!$E$48="","",ROUND($D150*INTRO!$E$48,0)) -> 38205 | F150: =IF(INTRO!$E$49="","",ROUND($D150*INTRO!$E$49,0)) -> 81253 | G150: =IF(INTRO!$E$50="","",ROUND($D150*INTRO!$E$50,0)) -> 140175 | H150: 0 | I150: 99 | J150: 3 | K150: 0 | L150: =IF(INTRO!$E$37="Endemic",IF($H150>0,IF($H150=4,"Unknown",IF($H150=99,"Stopped",$D150)),0),"Not required") -> 0 | M150: 0 | N150: =IF(INTRO!$E$41="Endemic", IF($J150>1, IF($J150=4, "Unknown", IF($J150=99, "Surveillance", E150)), 0),"Not required") -> 38205 | O150: =IF(INTRO!$E$41="Endemic", IF($J150>1, IF($J150=4, "Unknown", IF($J150=99, "Surveillance", F150)), 0),"Not required") -> 81253 | P150: =IF(INTRO!$E$41="Endemic", IF($J150>1, IF($J150=4, "Unknown", IF($J150=99, "Surveillance", ROUND(D150*INTRO!$E$51,0))), 0),"Not required") -> 66455 | Q150: =IF(INTRO!$E$41="Endemic", IF($J150>1, IF($J150=4, "Unknown", IF($J150=99, "Surveillance", SUM($N150:$P150))), 0),"Not required") -> 185913 | R150: 0 | S150: 0 | T150: 0 | U150: =IF(INTRO!$E$43="Endemic", IF($K150>1, IF($K150=4, "Unknown", IF($K150=99, "Surveillance", SUM($R150:$T150))), 0),"Not required") -> 0 | V150: 0 | W150: 0 | X150: 1 | Y150: 0
A151: =IF(INTRO!$E$33<>0,INTRO!$E$33, " ") -> Uganda | B151: Western | C151: Rubirizi | D151: 174249 | E151: =IF(INTRO!$E$48="","",ROUND($D151*INTRO!$E$48,0)) -> 24743 | F151: =IF(INTRO!$E$49="","",ROUND($D151*INTRO!$E$49,0)) -> 52623 | G151: =IF(INTRO!$E$50="","",ROUND($D151*INTRO!$E$50,0)) -> 90784 | H151: 0 | I151: 0 | J151: 11 | K151: 3 | L151: =IF(INTRO!$E$37="Endemic",IF($H151>0,IF($H151=4,"Unknown",IF($H151=99,"Stopped",$D151)),0),"Not required") -> 0 | M151: 0 | N151: =IF(INTRO!$E$41="Endemic", IF($J151>1, IF($J151=4, "Unknown", IF($J151=99, "Surveillance", E151)), 0),"Not required") -> 24743 | O151: =IF(INTRO!$E$41="Endemic", IF($J151>1, IF($J151=4, "Unknown", IF($J151=99, "Surveillance", F151)), 0),"Not required") -> 52623 | P151: =IF(INTRO!$E$41="Endemic", IF($J151>1, IF($J151=4, "Unknown", IF($J151=99, "Surveillance", ROUND(D151*INTRO!$E$51,0))), 0),"Not required") -> 43040 | Q151: =IF(INTRO!$E$41="Endemic", IF($J151>1, IF($J151=4, "Unknown", IF($J151=99, "Surveillance", SUM($N151:$P151))), 0),"Not required") -> 120406 | R151: 0 | S151: 2273 | T151: 90784 | U151: =IF(INTRO!$E$43="Endemic", IF($K151>1, IF($K151=4, "Unknown", IF($K151=99, "Surveillance", SUM($R151:$T151))), 0),"Not required") -> 93057 | V151: 0 | W151: 0 | X151: 1 | Y151: 1
A152: =IF(INTRO!$E$33<>0,INTRO!$E$33, " ") -> Uganda | B152: Western | C152: Rukiga | D152: 137530 | E152: =IF(INTRO!$E$48="","",ROUND($D152*INTRO!$E$48,0)) -> 19529 | F152: =IF(INTRO!$E$49="","",ROUND($D152*INTRO!$E$49,0)) -> 41534 | G152: =IF(INTRO!$E$50="","",ROUND($D152*INTRO!$E$50,0)) -> 71653 | H152: 0 | I152: 0 | J152: 3 | K152: 0 | L152: =IF(INTRO!$E$37="Endemic",IF($H152>0,IF($H152=4,"Unknown",IF($H152=99,"Stopped",$D152)),0),"Not required") -> 0 | M152: 0 | N152: =IF(INTRO!$E$41="Endemic", IF($J152>1, IF($J152=4, "Unknown", IF($J152=99, "Surveillance", E152)), 0),"Not required") -> 19529 | O152: =IF(INTRO!$E$41="Endemic", IF($J152>1, IF($J152=4, "Unknown", IF($J152=99, "Surveillance", F152)), 0),"Not required") -> 41534 | P152: =IF(INTRO!$E$41="Endemic", IF($J152>1, IF($J152=4, "Unknown", IF($J152=99, "Surveillance", ROUND(D152*INTRO!$E$51,0))), 0),"Not required") -> 33970 | Q152: =IF(INTRO!$E$41="Endemic", IF($J152>1, IF($J152=4, "Unknown", IF($J152=99, "Surveillance", SUM($N152:$P152))), 0),"Not required") -> 95033 | R152: 0 | S152: 0 | T152: 0 | U152: =IF(INTRO!$E$43="Endemic", IF($K152>1, IF($K152=4, "Unknown", IF($K152=99, "Surveillance", SUM($R152:$T152))), 0),"Not required") -> 0 | V152: 0 | W152: 0 | X152: 1 | Y152: 0
A153: =IF(INTRO!$E$33<>0,INTRO!$E$33, " ") -> Uganda | B153: Western | C153: Rukungiri | D153: 432068 | E153: =IF(INTRO!$E$48="","",ROUND($D153*INTRO!$E$48,0)) -> 61354 | F153: =IF(INTRO!$E$49="","",ROUND($D153*INTRO!$E$49,0)) -> 130485 | G153: =IF(INTRO!$E$50="","",ROUND($D153*INTRO!$E$50,0)) -> 225107 | H153: 0 | I153: 0 | J153: 11 | K153: 99 | L153: =IF(INTRO!$E$37="Endemic",IF($H153>0,IF($H153=4,"Unknown",IF($H153=99,"Stopped",$D153)),0),"Not required") -> 0 | M153: 0 | N153: =IF(INTRO!$E$41="Endemic", IF($J153>1, IF($J153=4, "Unknown", IF($J153=99, "Surveillance", E153)), 0),"Not required") -> 61354 | O153: =IF(INTRO!$E$41="Endemic", IF($J153>1, IF($J153=4, "Unknown", IF($J153=99, "Surveillance", F153)), 0),"Not required") -> 130485 | P153: =IF(INTRO!$E$41="Endemic", IF($J153>1, IF($J153=4, "Unknown", IF($J153=99, "Surveillance", ROUND(D153*INTRO!$E$51,0))), 0),"Not required") -> 106721 | Q153: =IF(INTRO!$E$41="Endemic", IF($J153>1, IF($J153=4, "Unknown", IF($J153=99, "Surveillance", SUM($N153:$P153))), 0),"Not required") -> 298560 | R153: 0 | S153: 0 | T153: 0 | U153: =IF(INTRO!$E$43="Endemic", IF($K153>1, IF($K153=4, "Unknown", IF($K153=99, "Surveillance", SUM($R153:$T153))), 0),"Not required") -> Surveillance | V153: 0 | W153: 0 | X153: 1 | Y153: 0
A154: =IF(INTRO!$E$33<>0,INTRO!$E$33, " ") -> Uganda | B154: Western | C154: Rwampara | D154: 173018 | E154: =IF(INTRO!$E$48="","",ROUND($D154*INTRO!$E$48,0)) -> 24569 | F154: =IF(INTRO!$E$49="","",ROUND($D154*INTRO!$E$49,0)) -> 52251 | G154: =IF(INTRO!$E$50="","",ROUND($D154*INTRO!$E$50,0)) -> 90142 | H154: 0 | I154: 0 | J154: 3 | K154: 0 | L154: =IF(INTRO!$E$37="Endemic",IF($H154>0,IF($H154=4,"Unknown",IF($H154=99,"Stopped",$D154)),0),"Not required") -> 0 | M154: 0 | N154: =IF(INTRO!$E$41="Endemic", IF($J154>1, IF($J154=4, "Unknown", IF($J154=99, "Surveillance", E154)), 0),"Not required") -> 24569 | O154: =IF(INTRO!$E$41="Endemic", IF($J154>1, IF($J154=4, "Unknown", IF($J154=99, "Surveillance", F154)), 0),"Not required") -> 52251 | P154: =IF(INTRO!$E$41="Endemic", IF($J154>1, IF($J154=4, "Unknown", IF($J154=99, "Surveillance", ROUND(D154*INTRO!$E$51,0))), 0),"Not required") -> 42735 | Q154: =IF(INTRO!$E$41="Endemic", IF($J154>1, IF($J154=4, "Unknown", IF($J154=99, "Surveillance", SUM($N154:$P154))), 0),"Not required") -> 119555 | R154: 0 | S154: 0 | T154: 0 | U154: =IF(INTRO!$E$43="Endemic", IF($K154>1, IF($K154=4, "Unknown", IF($K154=99, "Surveillance", SUM($R154:$T154))), 0),"Not required") -> 0 | V154: 0 | W154: 0 | X154: 1 | Y154: 0
A155: =IF(INTRO!$E$33<>0,INTRO!$E$33, " ") -> Uganda | B155: Western | C155: Sheema | D155: 285359 | E155: =IF(INTRO!$E$48="","",ROUND($D155*INTRO!$E$48,0)) -> 40521 | F155: =IF(INTRO!$E$49="","",ROUND($D155*INTRO!$E$49,0)) -> 86178 | G155: =IF(INTRO!$E$50="","",ROUND($D155*INTRO!$E$50,0)) -> 148672 | H155: 0 | I155: 0 | J155: 3 | K155: 0 | L155: =IF(INTRO!$E$37="Endemic",IF($H155>0,IF($H155=4,"Unknown",IF($H155=99,"Stopped",$D155)),0),"Not required") -> 0 | M155: 0 | N155: =IF(INTRO!$E$41="Endemic", IF($J155>1, IF($J155=4, "Unknown", IF($J155=99, "Surveillance", E155)), 0),"Not required") -> 40521 | O155: =IF(INTRO!$E$41="Endemic", IF($J155>1, IF($J155=4, "Unknown", IF($J155=99, "Surveillance", F155)), 0),"Not required") -> 86178 | P155: =IF(INTRO!$E$41="Endemic", IF($J155>1, IF($J155=4, "Unknown", IF($J155=99, "Surveillance", ROUND(D155*INTRO!$E$51,0))), 0),"Not required") -> 70484 | Q155: =IF(INTRO!$E$41="Endemic", IF($J155>1, IF($J155=4, "Unknown", IF($J155=99, "Surveillance", SUM($N155:$P155))), 0),"Not required") -> 197183 | R155: 0 | S155: 0 | T155: 0 | U155: =IF(INTRO!$E$43="Endemic", IF($K155>1, IF($K155=4, "Unknown", IF($K155=99, "Surveillance", SUM($R155:$T155))), 0),"Not required") -> 0 | V155: 0 | W155: 0 | X155: 1 | Y155: 0

Sheet DEC (hidden)
A1: Diethylcarbamazine citrate (DEC)
A2: Administrative structure, eligible population by age group, treatment plan and information about tablets
A4: TOTAL | D4: =SUBTOTAL(9,D$10:D$1010) -> 0 | E4: 0 | F4: 0 | G4: 0 | I4: =SUBTOTAL(9,I$10:I$1010) -> 0 | J4: 0 | K4: 0 | L4: 0
A6: Country administrative structure | D6: Population requiring treatment with DEC | H6: Treatment plan | I6: Target population | J6: Diethylcarbamazine citrate (DEC)
A7: Country | B7: Province/State | C7: District | D7: PreSAC | E7: SAC | F7: Adults | G7: Total | H7: LF | I7: LF | J7: Total required | K7: Remaining in stock | L7: Tablets to be procured
A10: =IF(INTRO!$E$39<>"Non-endemic", " ", IF(INTRO!$E$37="Non-endemic"," ", IF(COUNTRY_INFO!A10=0," ",COUNTRY_INFO!A10))) ->  | B10: =IF(INTRO!$E$39<>"Non-endemic", " ", IF(INTRO!$E$37="Non-endemic"," ", IF(COUNTRY_INFO!B10=0," ",COUNTRY_INFO!B10))) ->  | C10: =IF(INTRO!$E$39<>"Non-endemic", " ", IF(INTRO!$E$37="Non-endemic"," ", IF(COUNTRY_INFO!C10=0," ",COUNTRY_INFO!C10))) ->  | D10: =IF(INTRO!$E$39<>"Non-endemic", 0, IF(INTRO!$E$37="Non-endemic",0,IF(COUNTRY_INFO!$H10=1,COUNTRY_INFO!E10,0))) -> 0 | E10: =IF(INTRO!$E$39<>"Non-endemic", 0, IF(INTRO!$E$37="Non-endemic",0,IF(COUNTRY_INFO!$H10=1,COUNTRY_INFO!F10,0))) -> 0 | F10: =IF(INTRO!$E$39<>"Non-endemic", 0, IF(INTRO!$E$37="Non-endemic",0,IF(COUNTRY_INFO!$H10=1,COUNTRY_INFO!G10,0))) -> 0 | G10: =SUM(D10:F10) -> 0 | H10: =IF(INTRO!$E$39="Non-endemic",IF(INTRO!$E$37="Non-endemic","Not required",COUNTRY_INFO!V10),"Treat with IVM") -> Treat with IVM | I10: =IF(H10=1,G10,0) -> 0 | J10: =IF(I10>0,I10*2.5,0) -> 0 | L10: =IF($J10>$K10,$J10-$K10,0) -> 0
A11: =IF(INTRO!$E$39<>"Non-endemic", " ", IF(INTRO!$E$37="Non-endemic"," ", IF(COUNTRY_INFO!A11=0," ",COUNTRY_INFO!A11))) ->  | B11: =IF(INTRO!$E$39<>"Non-endemic", " ", IF(INTRO!$E$37="Non-endemic"," ", IF(COUNTRY_INFO!B11=0," ",COUNTRY_INFO!B11))) ->  | C11: =IF(INTRO!$E$39<>"Non-endemic", " ", IF(INTRO!$E$37="Non-endemic"," ", IF(COUNTRY_INFO!C11=0," ",COUNTRY_INFO!C11))) ->  | D11: =IF(INTRO!$E$39<>"Non-endemic", 0, IF(INTRO!$E$37="Non-endemic",0,IF(COUNTRY_INFO!$H11=1,COUNTRY_INFO!E11,0))) -> 0 | E11: =IF(INTRO!$E$39<>"Non-endemic", 0, IF(INTRO!$E$37="Non-endemic",0,IF(COUNTRY_INFO!$H11=1,COUNTRY_INFO!F11,0))) -> 0 | F11: =IF(INTRO!$E$39<>"Non-endemic", 0, IF(INTRO!$E$37="Non-endemic",0,IF(COUNTRY_INFO!$H11=1,COUNTRY_INFO!G11,0))) -> 0 | G11: =SUM(D11:F11) -> 0 | H11: =IF(INTRO!$E$39="Non-endemic",IF(INTRO!$E$37="Non-endemic","Not required",COUNTRY_INFO!V11),"Treat with IVM") -> Treat with IVM | I11: =IF(H11=1,G11,0) -> 0 | J11: =IF(I11>0,I11*2.5,0) -> 0 | L11: 0
A12: =IF(INTRO!$E$39<>"Non-endemic", " ", IF(INTRO!$E$37="Non-endemic"," ", IF(COUNTRY_INFO!A12=0," ",COUNTRY_INFO!A12))) ->  | B12: =IF(INTRO!$E$39<>"Non-endemic", " ", IF(INTRO!$E$37="Non-endemic"," ", IF(COUNTRY_INFO!B12=0," ",COUNTRY_INFO!B12))) ->  | C12: =IF(INTRO!$E$39<>"Non-endemic", " ", IF(INTRO!$E$37="Non-endemic"," ", IF(COUNTRY_INFO!C12=0," ",COUNTRY_INFO!C12))) ->  | D12: =IF(INTRO!$E$39<>"Non-endemic", 0, IF(INTRO!$E$37="Non-endemic",0,IF(COUNTRY_INFO!$H12=1,COUNTRY_INFO!E12,0))) -> 0 | E12: =IF(INTRO!$E$39<>"Non-endemic", 0, IF(INTRO!$E$37="Non-endemic",0,IF(COUNTRY_INFO!$H12=1,COUNTRY_INFO!F12,0))) -> 0 | F12: =IF(INTRO!$E$39<>"Non-endemic", 0, IF(INTRO!$E$37="Non-endemic",0,IF(COUNTRY_INFO!$H12=1,COUNTRY_INFO!G12,0))) -> 0 | G12: 0 | H12: =IF(INTRO!$E$39="Non-endemic",IF(INTRO!$E$37="Non-endemic","Not required",COUNTRY_INFO!V12),"Treat with IVM") -> Treat with IVM | I12: 0 | J12: 0 | L12: 0
A13: =IF(INTRO!$E$39<>"Non-endemic", " ", IF(INTRO!$E$37="Non-endemic"," ", IF(COUNTRY_INFO!A13=0," ",COUNTRY_INFO!A13))) ->  | B13: =IF(INTRO!$E$39<>"Non-endemic", " ", IF(INTRO!$E$37="Non-endemic"," ", IF(COUNTRY_INFO!B13=0," ",COUNTRY_INFO!B13))) ->  | C13: =IF(INTRO!$E$39<>"Non-endemic", " ", IF(INTRO!$E$37="Non-endemic"," ", IF(COUNTRY_INFO!C13=0," ",COUNTRY_INFO!C13))) ->  | D13: =IF(INTRO!$E$39<>"Non-endemic", 0, IF(INTRO!$E$37="Non-endemic",0,IF(COUNTRY_INFO!$H13=1,COUNTRY_INFO!E13,0))) -> 0 | E13: =IF(INTRO!$E$39<>"Non-endemic", 0, IF(INTRO!$E$37="Non-endemic",0,IF(COUNTRY_INFO!$H13=1,COUNTRY_INFO!F13,0))) -> 0 | F13: =IF(INTRO!$E$39<>"Non-endemic", 0, IF(INTRO!$E$37="Non-endemic",0,IF(COUNTRY_INFO!$H13=1,COUNTRY_INFO!G13,0))) -> 0 | G13: 0 | H13: =IF(INTRO!$E$39="Non-endemic",IF(INTRO!$E$37="Non-endemic","Not required",COUNTRY_INFO!V13),"Treat with IVM") -> Treat with IVM | I13: 0 | J13: 0 | L13: 0
A14: =IF(INTRO!$E$39<>"Non-endemic", " ", IF(INTRO!$E$37="Non-endemic"," ", IF(COUNTRY_INFO!A14=0," ",COUNTRY_INFO!A14))) ->  | B14: =IF(INTRO!$E$39<>"Non-endemic", " ", IF(INTRO!$E$37="Non-endemic"," ", IF(COUNTRY_INFO!B14=0," ",COUNTRY_INFO!B14))) ->  | C14: =IF(INTRO!$E$39<>"Non-endemic", " ", IF(INTRO!$E$37="Non-endemic"," ", IF(COUNTRY_INFO!C14=0," ",COUNTRY_INFO!C14))) ->  | D14: =IF(INTRO!$E$39<>"Non-endemic", 0, IF(INTRO!$E$37="Non-endemic",0,IF(COUNTRY_INFO!$H14=1,COUNTRY_INFO!E14,0))) -> 0 | E14: =IF(INTRO!$E$39<>"Non-endemic", 0, IF(INTRO!$E$37="Non-endemic",0,IF(COUNTRY_INFO!$H14=1,COUNTRY_INFO!F14,0))) -> 0 | F14: =IF(INTRO!$E$39<>"Non-endemic", 0, IF(INTRO!$E$37="Non-endemic",0,IF(COUNTRY_INFO!$H14=1,COUNTRY_INFO!G14,0))) -> 0 | G14: 0 | H14: =IF(INTRO!$E$39="Non-endemic",IF(INTRO!$E$37="Non-endemic","Not required",COUNTRY_INFO!V14),"Treat with IVM") -> Treat with IVM | I14: 0 | J14: 0 | L14: 0
A15: =IF(INTRO!$E$39<>"Non-endemic", " ", IF(INTRO!$E$37="Non-endemic"," ", IF(COUNTRY_INFO!A15=0," ",COUNTRY_INFO!A15))) ->  | B15: =IF(INTRO!$E$39<>"Non-endemic", " ", IF(INTRO!$E$37="Non-endemic"," ", IF(COUNTRY_INFO!B15=0," ",COUNTRY_INFO!B15))) ->  | C15: =IF(INTRO!$E$39<>"Non-endemic", " ", IF(INTRO!$E$37="Non-endemic"," ", IF(COUNTRY_INFO!C15=0," ",COUNTRY_INFO!C15))) ->  | D15: =IF(INTRO!$E$39<>"Non-endemic", 0, IF(INTRO!$E$37="Non-endemic",0,IF(COUNTRY_INFO!$H15=1,COUNTRY_INFO!E15,0))) -> 0 | E15: =IF(INTRO!$E$39<>"Non-endemic", 0, IF(INTRO!$E$37="Non-endemic",0,IF(COUNTRY_INFO!$H15=1,COUNTRY_INFO!F15,0))) -> 0 | F15: =IF(INTRO!$E$39<>"Non-endemic", 0, IF(INTRO!$E$37="Non-endemic",0,IF(COUNTRY_INFO!$H15=1,COUNTRY_INFO!G15,0))) -> 0 | G15: 0 | H15: =IF(INTRO!$E$39="Non-endemic",IF(INTRO!$E$37="Non-endemic","Not required",COUNTRY_INFO!V15),"Treat with IVM") -> Treat with IVM | I15: 0 | J15: 0 | L15: 0
A16: =IF(INTRO!$E$39<>"Non-endemic", " ", IF(INTRO!$E$37="Non-endemic"," ", IF(COUNTRY_INFO!A16=0," ",COUNTRY_INFO!A16))) ->  | B16: =IF(INTRO!$E$39<>"Non-endemic", " ", IF(INTRO!$E$37="Non-endemic"," ", IF(COUNTRY_INFO!B16=0," ",COUNTRY_INFO!B16))) ->  | C16: =IF(INTRO!$E$39<>"Non-endemic", " ", IF(INTRO!$E$37="Non-endemic"," ", IF(COUNTRY_INFO!C16=0," ",COUNTRY_INFO!C16))) ->  | D16: =IF(INTRO!$E$39<>"Non-endemic", 0, IF(INTRO!$E$37="Non-endemic",0,IF(COUNTRY_INFO!$H16=1,COUNTRY_INFO!E16,0))) -> 0 | E16: =IF(INTRO!$E$39<>"Non-endemic", 0, IF(INTRO!$E$37="Non-endemic",0,IF(COUNTRY_INFO!$H16=1,COUNTRY_INFO!F16,0))) -> 0 | F16: =IF(INTRO!$E$39<>"Non-endemic", 0, IF(INTRO!$E$37="Non-endemic",0,IF(COUNTRY_INFO!$H16=1,COUNTRY_INFO!G16,0))) -> 0 | G16: 0 | H16: =IF(INTRO!$E$39="Non-endemic",IF(INTRO!$E$37="Non-endemic","Not required",COUNTRY_INFO!V16),"Treat with IVM") -> Treat with IVM | I16: 0 | J16: 0 | L16: 0
A17: =IF(INTRO!$E$39<>"Non-endemic", " ", IF(INTRO!$E$37="Non-endemic"," ", IF(COUNTRY_INFO!A17=0," ",COUNTRY_INFO!A17))) ->  | B17: =IF(INTRO!$E$39<>"Non-endemic", " ", IF(INTRO!$E$37="Non-endemic"," ", IF(COUNTRY_INFO!B17=0," ",COUNTRY_INFO!B17))) ->  | C17: =IF(INTRO!$E$39<>"Non-endemic", " ", IF(INTRO!$E$37="Non-endemic"," ", IF(COUNTRY_INFO!C17=0," ",COUNTRY_INFO!C17))) ->  | D17: =IF(INTRO!$E$39<>"Non-endemic", 0, IF(INTRO!$E$37="Non-endemic",0,IF(COUNTRY_INFO!$H17=1,COUNTRY_INFO!E17,0))) -> 0 | E17: =IF(INTRO!$E$39<>"Non-endemic", 0, IF(INTRO!$E$37="Non-endemic",0,IF(COUNTRY_INFO!$H17=1,COUNTRY_INFO!F17,0))) -> 0 | F17: =IF(INTRO!$E$39<>"Non-endemic", 0, IF(INTRO!$E$37="Non-endemic",0,IF(COUNTRY_INFO!$H17=1,COUNTRY_INFO!G17,0))) -> 0 | G17: 0 | H17: =IF(INTRO!$E$39="Non-endemic",IF(INTRO!$E$37="Non-endemic","Not required",COUNTRY_INFO!V17),"Treat with IVM") -> Treat with IVM | I17: 0 | J17: 0 | L17: 0
A18: =IF(INTRO!$E$39<>"Non-endemic", " ", IF(INTRO!$E$37="Non-endemic"," ", IF(COUNTRY_INFO!A18=0," ",COUNTRY_INFO!A18))) ->  | B18: =IF(INTRO!$E$39<>"Non-endemic", " ", IF(INTRO!$E$37="Non-endemic"," ", IF(COUNTRY_INFO!B18=0," ",COUNTRY_INFO!B18))) ->  | C18: =IF(INTRO!$E$39<>"Non-endemic", " ", IF(INTRO!$E$37="Non-endemic"," ", IF(COUNTRY_INFO!C18=0," ",COUNTRY_INFO!C18))) ->  | D18: =IF(INTRO!$E$39<>"Non-endemic", 0, IF(INTRO!$E$37="Non-endemic",0,IF(COUNTRY_INFO!$H18=1,COUNTRY_INFO!E18,0))) -> 0 | E18: =IF(INTRO!$E$39<>"Non-endemic", 0, IF(INTRO!$E$37="Non-endemic",0,IF(COUNTRY_INFO!$H18=1,COUNTRY_INFO!F18,0))) -> 0 | F18: =IF(INTRO!$E$39<>"Non-endemic", 0, IF(INTRO!$E$37="Non-endemic",0,IF(COUNTRY_INFO!$H18=1,COUNTRY_INFO!G18,0))) -> 0 | G18: 0 | H18: =IF(INTRO!$E$39="Non-endemic",IF(INTRO!$E$37="Non-endemic","Not required",COUNTRY_INFO!V18),"Treat with IVM") -> Treat with IVM | I18: 0 | J18: 0 | L18: 0
A19: =IF(INTRO!$E$39<>"Non-endemic", " ", IF(INTRO!$E$37="Non-endemic"," ", IF(COUNTRY_INFO!A19=0," ",COUNTRY_INFO!A19))) ->  | B19: =IF(INTRO!$E$39<>"Non-endemic", " ", IF(INTRO!$E$37="Non-endemic"," ", IF(COUNTRY_INFO!B19=0," ",COUNTRY_INFO!B19))) ->  | C19: =IF(INTRO!$E$39<>"Non-endemic", " ", IF(INTRO!$E$37="Non-endemic"," ", IF(COUNTRY_INFO!C19=0," ",COUNTRY_INFO!C19))) ->  | D19: =IF(INTRO!$E$39<>"Non-endemic", 0, IF(INTRO!$E$37="Non-endemic",0,IF(COUNTRY_INFO!$H19=1,COUNTRY_INFO!E19,0))) -> 0 | E19: =IF(INTRO!$E$39<>"Non-endemic", 0, IF(INTRO!$E$37="Non-endemic",0,IF(COUNTRY_INFO!$H19=1,COUNTRY_INFO!F19,0))) -> 0 | F19: =IF(INTRO!$E$39<>"Non-endemic", 0, IF(INTRO!$E$37="Non-endemic",0,IF(COUNTRY_INFO!$H19=1,COUNTRY_INFO!G19,0))) -> 0 | G19: 0 | H19: =IF(INTRO!$E$39="Non-endemic",IF(INTRO!$E$37="Non-endemic","Not required",COUNTRY_INFO!V19),"Treat with IVM") -> Treat with IVM | I19: 0 | J19: 0 | L19: 0
A20: =IF(INTRO!$E$39<>"Non-endemic", " ", IF(INTRO!$E$37="Non-endemic"," ", IF(COUNTRY_INFO!A20=0," ",COUNTRY_INFO!A20))) ->  | B20: =IF(INTRO!$E$39<>"Non-endemic", " ", IF(INTRO!$E$37="Non-endemic"," ", IF(COUNTRY_INFO!B20=0," ",COUNTRY_INFO!B20))) ->  | C20: =IF(INTRO!$E$39<>"Non-endemic", " ", IF(INTRO!$E$37="Non-endemic"," ", IF(COUNTRY_INFO!C20=0," ",COUNTRY_INFO!C20))) ->  | D20: =IF(INTRO!$E$39<>"Non-endemic", 0, IF(INTRO!$E$37="Non-endemic",0,IF(COUNTRY_INFO!$H20=1,COUNTRY_INFO!E20,0))) -> 0 | E20: =IF(INTRO!$E$39<>"Non-endemic", 0, IF(INTRO!$E$37="Non-endemic",0,IF(COUNTRY_INFO!$H20=1,COUNTRY_INFO!F20,0))) -> 0 | F20: =IF(INTRO!$E$39<>"Non-endemic", 0, IF(INTRO!$E$37="Non-endemic",0,IF(COUNTRY_INFO!$H20=1,COUNTRY_INFO!G20,0))) -> 0 | G20: 0 | H20: =IF(INTRO!$E$39="Non-endemic",IF(INTRO!$E$37="Non-endemic","Not required",COUNTRY_INFO!V20),"Treat with IVM") -> Treat with IVM | I20: 0 | J20: 0 | L20: 0
A21: =IF(INTRO!$E$39<>"Non-endemic", " ", IF(INTRO!$E$37="Non-endemic"," ", IF(COUNTRY_INFO!A21=0," ",COUNTRY_INFO!A21))) ->  | B21: =IF(INTRO!$E$39<>"Non-endemic", " ", IF(INTRO!$E$37="Non-endemic"," ", IF(COUNTRY_INFO!B21=0," ",COUNTRY_INFO!B21))) ->  | C21: =IF(INTRO!$E$39<>"Non-endemic", " ", IF(INTRO!$E$37="Non-endemic"," ", IF(COUNTRY_INFO!C21=0," ",COUNTRY_INFO!C21))) ->  | D21: =IF(INTRO!$E$39<>"Non-endemic", 0, IF(INTRO!$E$37="Non-endemic",0,IF(COUNTRY_INFO!$H21=1,COUNTRY_INFO!E21,0))) -> 0 | E21: =IF(INTRO!$E$39<>"Non-endemic", 0, IF(INTRO!$E$37="Non-endemic",0,IF(COUNTRY_INFO!$H21=1,COUNTRY_INFO!F21,0))) -> 0 | F21: =IF(INTRO!$E$39<>"Non-endemic", 0, IF(INTRO!$E$37="Non-endemic",0,IF(COUNTRY_INFO!$H21=1,COUNTRY_INFO!G21,0))) -> 0 | G21: 0 | H21: =IF(INTRO!$E$39="Non-endemic",IF(INTRO!$E$37="Non-endemic","Not required",COUNTRY_INFO!V21),"Treat with IVM") -> Treat with IVM | I21: 0 | J21: 0 | L21: 0
A22: =IF(INTRO!$E$39<>"Non-endemic", " ", IF(INTRO!$E$37="Non-endemic"," ", IF(COUNTRY_INFO!A22=0," ",COUNTRY_INFO!A22))) ->  | B22: =IF(INTRO!$E$39<>"Non-endemic", " ", IF(INTRO!$E$37="Non-endemic"," ", IF(COUNTRY_INFO!B22=0," ",COUNTRY_INFO!B22))) ->  | C22: =IF(INTRO!$E$39<>"Non-endemic", " ", IF(INTRO!$E$37="Non-endemic"," ", IF(COUNTRY_INFO!C22=0," ",COUNTRY_INFO!C22))) ->  | D22: =IF(INTRO!$E$39<>"Non-endemic", 0, IF(INTRO!$E$37="Non-endemic",0,IF(COUNTRY_INFO!$H22=1,COUNTRY_INFO!E22,0))) -> 0 | E22: =IF(INTRO!$E$39<>"Non-endemic", 0, IF(INTRO!$E$37="Non-endemic",0,IF(COUNTRY_INFO!$H22=1,COUNTRY_INFO!F22,0))) -> 0 | F22: =IF(INTRO!$E$39<>"Non-endemic", 0, IF(INTRO!$E$37="Non-endemic",0,IF(COUNTRY_INFO!$H22=1,COUNTRY_INFO!G22,0))) -> 0 | G22: 0 | H22: =IF(INTRO!$E$39="Non-endemic",IF(INTRO!$E$37="Non-endemic","Not required",COUNTRY_INFO!V22),"Treat with IVM") -> Treat with IVM | I22: 0 | J22: 0 | L22: 0
A23: =IF(INTRO!$E$39<>"Non-endemic", " ", IF(INTRO!$E$37="Non-endemic"," ", IF(COUNTRY_INFO!A23=0," ",COUNTRY_INFO!A23))) ->  | B23: =IF(INTRO!$E$39<>"Non-endemic", " ", IF(INTRO!$E$37="Non-endemic"," ", IF(COUNTRY_INFO!B23=0," ",COUNTRY_INFO!B23))) ->  | C23: =IF(INTRO!$E$39<>"Non-endemic", " ", IF(INTRO!$E$37="Non-endemic"," ", IF(COUNTRY_INFO!C23=0," ",COUNTRY_INFO!C23))) ->  | D23: =IF(INTRO!$E$39<>"Non-endemic", 0, IF(INTRO!$E$37="Non-endemic",0,IF(COUNTRY_INFO!$H23=1,COUNTRY_INFO!E23,0))) -> 0 | E23: =IF(INTRO!$E$39<>"Non-endemic", 0, IF(INTRO!$E$37="Non-endemic",0,IF(COUNTRY_INFO!$H23=1,COUNTRY_INFO!F23,0))) -> 0 | F23: =IF(INTRO!$E$39<>"Non-endemic", 0, IF(INTRO!$E$37="Non-endemic",0,IF(COUNTRY_INFO!$H23=1,COUNTRY_INFO!G23,0))) -> 0 | G23: 0 | H23: =IF(INTRO!$E$39="Non-endemic",IF(INTRO!$E$37="Non-endemic","Not required",COUNTRY_INFO!V23),"Treat with IVM") -> Treat with IVM | I23: 0 | J23: 0 | L23: 0
A24: =IF(INTRO!$E$39<>"Non-endemic", " ", IF(INTRO!$E$37="Non-endemic"," ", IF(COUNTRY_INFO!A24=0," ",COUNTRY_INFO!A24))) ->  | B24: =IF(INTRO!$E$39<>"Non-endemic", " ", IF(INTRO!$E$37="Non-endemic"," ", IF(COUNTRY_INFO!B24=0," ",COUNTRY_INFO!B24))) ->  | C24: =IF(INTRO!$E$39<>"Non-endemic", " ", IF(INTRO!$E$37="Non-endemic"," ", IF(COUNTRY_INFO!C24=0," ",COUNTRY_INFO!C24))) ->  | D24: =IF(INTRO!$E$39<>"Non-endemic", 0, IF(INTRO!$E$37="Non-endemic",0,IF(COUNTRY_INFO!$H24=1,COUNTRY_INFO!E24,0))) -> 0 | E24: =IF(INTRO!$E$39<>"Non-endemic", 0, IF(INTRO!$E$37="Non-endemic",0,IF(COUNTRY_INFO!$H24=1,COUNTRY_INFO!F24,0))) -> 0 | F24: =IF(INTRO!$E$39<>"Non-endemic", 0, IF(INTRO!$E$37="Non-endemic",0,IF(COUNTRY_INFO!$H24=1,COUNTRY_INFO!G24,0))) -> 0 | G24: 0 | H24: =IF(INTRO!$E$39="Non-endemic",IF(INTRO!$E$37="Non-endemic","Not required",COUNTRY_INFO!V24),"Treat with IVM") -> Treat with IVM | I24: 0 | J24: 0 | L24: 0
A25: =IF(INTRO!$E$39<>"Non-endemic", " ", IF(INTRO!$E$37="Non-endemic"," ", IF(COUNTRY_INFO!A25=0," ",COUNTRY_INFO!A25))) ->  | B25: =IF(INTRO!$E$39<>"Non-endemic", " ", IF(INTRO!$E$37="Non-endemic"," ", IF(COUNTRY_INFO!B25=0," ",COUNTRY_INFO!B25))) ->  | C25: =IF(INTRO!$E$39<>"Non-endemic", " ", IF(INTRO!$E$37="Non-endemic"," ", IF(COUNTRY_INFO!C25=0," ",COUNTRY_INFO!C25))) ->  | D25: =IF(INTRO!$E$39<>"Non-endemic", 0, IF(INTRO!$E$37="Non-endemic",0,IF(COUNTRY_INFO!$H25=1,COUNTRY_INFO!E25,0))) -> 0 | E25: =IF(INTRO!$E$39<>"Non-endemic", 0, IF(INTRO!$E$37="Non-endemic",0,IF(COUNTRY_INFO!$H25=1,COUNTRY_INFO!F25,0))) -> 0 | F25: =IF(INTRO!$E$39<>"Non-endemic", 0, IF(INTRO!$E$37="Non-endemic",0,IF(COUNTRY_INFO!$H25=1,COUNTRY_INFO!G25,0))) -> 0 | G25: 0 | H25: =IF(INTRO!$E$39="Non-endemic",IF(INTRO!$E$37="Non-endemic","Not required",COUNTRY_INFO!V25),"Treat with IVM") -> Treat with IVM | I25: 0 | J25: 0 | L25: 0
A26: =IF(INTRO!$E$39<>"Non-endemic", " ", IF(INTRO!$E$37="Non-endemic"," ", IF(COUNTRY_INFO!A26=0," ",COUNTRY_INFO!A26))) ->  | B26: =IF(INTRO!$E$39<>"Non-endemic", " ", IF(INTRO!$E$37="Non-endemic"," ", IF(COUNTRY_INFO!B26=0," ",COUNTRY_INFO!B26))) ->  | C26: =IF(INTRO!$E$39<>"Non-endemic", " ", IF(INTRO!$E$37="Non-endemic"," ", IF(COUNTRY_INFO!C26=0," ",COUNTRY_INFO!C26))) ->  | D26: =IF(INTRO!$E$39<>"Non-endemic", 0, IF(INTRO!$E$37="Non-endemic",0,IF(COUNTRY_INFO!$H26=1,COUNTRY_INFO!E26,0))) -> 0 | E26: =IF(INTRO!$E$39<>"Non-endemic", 0, IF(INTRO!$E$37="Non-endemic",0,IF(COUNTRY_INFO!$H26=1,COUNTRY_INFO!F26,0))) -> 0 | F26: =IF(INTRO!$E$39<>"Non-endemic", 0, IF(INTRO!$E$37="Non-endemic",0,IF(COUNTRY_INFO!$H26=1,COUNTRY_INFO!G26,0))) -> 0 | G26: 0 | H26: =IF(INTRO!$E$39="Non-endemic",IF(INTRO!$E$37="Non-endemic","Not required",COUNTRY_INFO!V26),"Treat with IVM") -> Treat with IVM | I26: 0 | J26: 0 | L26: 0
A27: =IF(INTRO!$E$39<>"Non-endemic", " ", IF(INTRO!$E$37="Non-endemic"," ", IF(COUNTRY_INFO!A27=0," ",COUNTRY_INFO!A27))) ->  | B27: =IF(INTRO!$E$39<>"Non-endemic", " ", IF(INTRO!$E$37="Non-endemic"," ", IF(COUNTRY_INFO!B27=0," ",COUNTRY_INFO!B27))) ->  | C27: =IF(INTRO!$E$39<>"Non-endemic", " ", IF(INTRO!$E$37="Non-endemic"," ", IF(COUNTRY_INFO!C27=0," ",COUNTRY_INFO!C27))) ->  | D27: =IF(INTRO!$E$39<>"Non-endemic", 0, IF(INTRO!$E$37="Non-endemic",0,IF(COUNTRY_INFO!$H27=1,COUNTRY_INFO!E27,0))) -> 0 | E27: =IF(INTRO!$E$39<>"Non-endemic", 0, IF(INTRO!$E$37="Non-endemic",0,IF(COUNTRY_INFO!$H27=1,COUNTRY_INFO!F27,0))) -> 0 | F27: =IF(INTRO!$E$39<>"Non-endemic", 0, IF(INTRO!$E$37="Non-endemic",0,IF(COUNTRY_INFO!$H27=1,COUNTRY_INFO!G27,0))) -> 0 | G27: 0 | H27: =IF(INTRO!$E$39="Non-endemic",IF(INTRO!$E$37="Non-endemic","Not required",COUNTRY_INFO!V27),"Treat with IVM") -> Treat with IVM | I27: 0 | J27: 0 | L27: 0
A28: =IF(INTRO!$E$39<>"Non-endemic", " ", IF(INTRO!$E$37="Non-endemic"," ", IF(COUNTRY_INFO!A28=0," ",COUNTRY_INFO!A28))) ->  | B28: =IF(INTRO!$E$39<>"Non-endemic", " ", IF(INTRO!$E$37="Non-endemic"," ", IF(COUNTRY_INFO!B28=0," ",COUNTRY_INFO!B28))) ->  | C28: =IF(INTRO!$E$39<>"Non-endemic", " ", IF(INTRO!$E$37="Non-endemic"," ", IF(COUNTRY_INFO!C28=0," ",COUNTRY_INFO!C28))) ->  | D28: =IF(INTRO!$E$39<>"Non-endemic", 0, IF(INTRO!$E$37="Non-endemic",0,IF(COUNTRY_INFO!$H28=1,COUNTRY_INFO!E28,0))) -> 0 | E28: =IF(INTRO!$E$39<>"Non-endemic", 0, IF(INTRO!$E$37="Non-endemic",0,IF(COUNTRY_INFO!$H28=1,COUNTRY_INFO!F28,0))) -> 0 | F28: =IF(INTRO!$E$39<>"Non-endemic", 0, IF(INTRO!$E$37="Non-endemic",0,IF(COUNTRY_INFO!$H28=1,COUNTRY_INFO!G28,0))) -> 0 | G28: 0 | H28: =IF(INTRO!$E$39="Non-endemic",IF(INTRO!$E$37="Non-endemic","Not required",COUNTRY_INFO!V28),"Treat with IVM") -> Treat with IVM | I28: 0 | J28: 0 | L28: 0
A29: =IF(INTRO!$E$39<>"Non-endemic", " ", IF(INTRO!$E$37="Non-endemic"," ", IF(COUNTRY_INFO!A29=0," ",COUNTRY_INFO!A29))) ->  | B29: =IF(INTRO!$E$39<>"Non-endemic", " ", IF(INTRO!$E$37="Non-endemic"," ", IF(COUNTRY_INFO!B29=0," ",COUNTRY_INFO!B29))) ->  | C29: =IF(INTRO!$E$39<>"Non-endemic", " ", IF(INTRO!$E$37="Non-endemic"," ", IF(COUNTRY_INFO!C29=0," ",COUNTRY_INFO!C29))) ->  | D29: =IF(INTRO!$E$39<>"Non-endemic", 0, IF(INTRO!$E$37="Non-endemic",0,IF(COUNTRY_INFO!$H29=1,COUNTRY_INFO!E29,0))) -> 0 | E29: =IF(INTRO!$E$39<>"Non-endemic", 0, IF(INTRO!$E$37="Non-endemic",0,IF(COUNTRY_INFO!$H29=1,COUNTRY_INFO!F29,0))) -> 0 | F29: =IF(INTRO!$E$39<>"Non-endemic", 0, IF(INTRO!$E$37="Non-endemic",0,IF(COUNTRY_INFO!$H29=1,COUNTRY_INFO!G29,0))) -> 0 | G29: 0 | H29: =IF(INTRO!$E$39="Non-endemic",IF(INTRO!$E$37="Non-endemic","Not required",COUNTRY_INFO!V29),"Treat with IVM") -> Treat with IVM | I29: 0 | J29: 0 | L29: 0
A30: =IF(INTRO!$E$39<>"Non-endemic", " ", IF(INTRO!$E$37="Non-endemic"," ", IF(COUNTRY_INFO!A30=0," ",COUNTRY_INFO!A30))) ->  | B30: =IF(INTRO!$E$39<>"Non-endemic", " ", IF(INTRO!$E$37="Non-endemic"," ", IF(COUNTRY_INFO!B30=0," ",COUNTRY_INFO!B30))) ->  | C30: =IF(INTRO!$E$39<>"Non-endemic", " ", IF(INTRO!$E$37="Non-endemic"," ", IF(COUNTRY_INFO!C30=0," ",COUNTRY_INFO!C30))) ->  | D30: =IF(INTRO!$E$39<>"Non-endemic", 0, IF(INTRO!$E$37="Non-endemic",0,IF(COUNTRY_INFO!$H30=1,COUNTRY_INFO!E30,0))) -> 0 | E30: =IF(INTRO!$E$39<>"Non-endemic", 0, IF(INTRO!$E$37="Non-endemic",0,IF(COUNTRY_INFO!$H30=1,COUNTRY_INFO!F30,0))) -> 0 | F30: =IF(INTRO!$E$39<>"Non-endemic", 0, IF(INTRO!$E$37="Non-endemic",0,IF(COUNTRY_INFO!$H30=1,COUNTRY_INFO!G30,0))) -> 0 | G30: 0 | H30: =IF(INTRO!$E$39="Non-endemic",IF(INTRO!$E$37="Non-endemic","Not required",COUNTRY_INFO!V30),"Treat with IVM") -> Treat with IVM | I30: 0 | J30: 0 | L30: 0
A31: =IF(INTRO!$E$39<>"Non-endemic", " ", IF(INTRO!$E$37="Non-endemic"," ", IF(COUNTRY_INFO!A31=0," ",COUNTRY_INFO!A31))) ->  | B31: =IF(INTRO!$E$39<>"Non-endemic", " ", IF(INTRO!$E$37="Non-endemic"," ", IF(COUNTRY_INFO!B31=0," ",COUNTRY_INFO!B31))) ->  | C31: =IF(INTRO!$E$39<>"Non-endemic", " ", IF(INTRO!$E$37="Non-endemic"," ", IF(COUNTRY_INFO!C31=0," ",COUNTRY_INFO!C31))) ->  | D31: =IF(INTRO!$E$39<>"Non-endemic", 0, IF(INTRO!$E$37="Non-endemic",0,IF(COUNTRY_INFO!$H31=1,COUNTRY_INFO!E31,0))) -> 0 | E31: =IF(INTRO!$E$39<>"Non-endemic", 0, IF(INTRO!$E$37="Non-endemic",0,IF(COUNTRY_INFO!$H31=1,COUNTRY_INFO!F31,0))) -> 0 | F31: =IF(INTRO!$E$39<>"Non-endemic", 0, IF(INTRO!$E$37="Non-endemic",0,IF(COUNTRY_INFO!$H31=1,COUNTRY_INFO!G31,0))) -> 0 | G31: 0 | H31: =IF(INTRO!$E$39="Non-endemic",IF(INTRO!$E$37="Non-endemic","Not required",COUNTRY_INFO!V31),"Treat with IVM") -> Treat with IVM | I31: 0 | J31: 0 | L31: 0
A32: =IF(INTRO!$E$39<>"Non-endemic", " ", IF(INTRO!$E$37="Non-endemic"," ", IF(COUNTRY_INFO!A32=0," ",COUNTRY_INFO!A32))) ->  | B32: =IF(INTRO!$E$39<>"Non-endemic", " ", IF(INTRO!$E$37="Non-endemic"," ", IF(COUNTRY_INFO!B32=0," ",COUNTRY_INFO!B32))) ->  | C32: =IF(INTRO!$E$39<>"Non-endemic", " ", IF(INTRO!$E$37="Non-endemic"," ", IF(COUNTRY_INFO!C32=0," ",COUNTRY_INFO!C32))) ->  | D32: =IF(INTRO!$E$39<>"Non-endemic", 0, IF(INTRO!$E$37="Non-endemic",0,IF(COUNTRY_INFO!$H32=1,COUNTRY_INFO!E32,0))) -> 0 | E32: =IF(INTRO!$E$39<>"Non-endemic", 0, IF(INTRO!$E$37="Non-endemic",0,IF(COUNTRY_INFO!$H32=1,COUNTRY_INFO!F32,0))) -> 0 | F32: =IF(INTRO!$E$39<>"Non-endemic", 0, IF(INTRO!$E$37="Non-endemic",0,IF(COUNTRY_INFO!$H32=1,COUNTRY_INFO!G32,0))) -> 0 | G32: 0 | H32: =IF(INTRO!$E$39="Non-endemic",IF(INTRO!$E$37="Non-endemic","Not required",COUNTRY_INFO!V32),"Treat with IVM") -> Treat with IVM | I32: 0 | J32: 0 | L32: 0
A33: =IF(INTRO!$E$39<>"Non-endemic", " ", IF(INTRO!$E$37="Non-endemic"," ", IF(COUNTRY_INFO!A33=0," ",COUNTRY_INFO!A33))) ->  | B33: =IF(INTRO!$E$39<>"Non-endemic", " ", IF(INTRO!$E$37="Non-endemic"," ", IF(COUNTRY_INFO!B33=0," ",COUNTRY_INFO!B33))) ->  | C33: =IF(INTRO!$E$39<>"Non-endemic", " ", IF(INTRO!$E$37="Non-endemic"," ", IF(COUNTRY_INFO!C33=0," ",COUNTRY_INFO!C33))) ->  | D33: =IF(INTRO!$E$39<>"Non-endemic", 0, IF(INTRO!$E$37="Non-endemic",0,IF(COUNTRY_INFO!$H33=1,COUNTRY_INFO!E33,0))) -> 0 | E33: =IF(INTRO!$E$39<>"Non-endemic", 0, IF(INTRO!$E$37="Non-endemic",0,IF(COUNTRY_INFO!$H33=1,COUNTRY_INFO!F33,0))) -> 0 | F33: =IF(INTRO!$E$39<>"Non-endemic", 0, IF(INTRO!$E$37="Non-endemic",0,IF(COUNTRY_INFO!$H33=1,COUNTRY_INFO!G33,0))) -> 0 | G33: 0 | H33: =IF(INTRO!$E$39="Non-endemic",IF(INTRO!$E$37="Non-endemic","Not required",COUNTRY_INFO!V33),"Treat with IVM") -> Treat with IVM | I33: 0 | J33: 0 | L33: 0
A34: =IF(INTRO!$E$39<>"Non-endemic", " ", IF(INTRO!$E$37="Non-endemic"," ", IF(COUNTRY_INFO!A34=0," ",COUNTRY_INFO!A34))) ->  | B34: =IF(INTRO!$E$39<>"Non-endemic", " ", IF(INTRO!$E$37="Non-endemic"," ", IF(COUNTRY_INFO!B34=0," ",COUNTRY_INFO!B34))) ->  | C34: =IF(INTRO!$E$39<>"Non-endemic", " ", IF(INTRO!$E$37="Non-endemic"," ", IF(COUNTRY_INFO!C34=0," ",COUNTRY_INFO!C34))) ->  | D34: =IF(INTRO!$E$39<>"Non-endemic", 0, IF(INTRO!$E$37="Non-endemic",0,IF(COUNTRY_INFO!$H34=1,COUNTRY_INFO!E34,0))) -> 0 | E34: =IF(INTRO!$E$39<>"Non-endemic", 0, IF(INTRO!$E$37="Non-endemic",0,IF(COUNTRY_INFO!$H34=1,COUNTRY_INFO!F34,0))) -> 0 | F34: =IF(INTRO!$E$39<>"Non-endemic", 0, IF(INTRO!$E$37="Non-endemic",0,IF(COUNTRY_INFO!$H34=1,COUNTRY_INFO!G34,0))) -> 0 | G34: 0 | H34: =IF(INTRO!$E$39="Non-endemic",IF(INTRO!$E$37="Non-endemic","Not required",COUNTRY_INFO!V34),"Treat with IVM") -> Treat with IVM | I34: 0 | J34: 0 | L34: 0
A35: =IF(INTRO!$E$39<>"Non-endemic", " ", IF(INTRO!$E$37="Non-endemic"," ", IF(COUNTRY_INFO!A35=0," ",COUNTRY_INFO!A35))) ->  | B35: =IF(INTRO!$E$39<>"Non-endemic", " ", IF(INTRO!$E$37="Non-endemic"," ", IF(COUNTRY_INFO!B35=0," ",COUNTRY_INFO!B35))) ->  | C35: =IF(INTRO!$E$39<>"Non-endemic", " ", IF(INTRO!$E$37="Non-endemic"," ", IF(COUNTRY_INFO!C35=0," ",COUNTRY_INFO!C35))) ->  | D35: =IF(INTRO!$E$39<>"Non-endemic", 0, IF(INTRO!$E$37="Non-endemic",0,IF(COUNTRY_INFO!$H35=1,COUNTRY_INFO!E35,0))) -> 0 | E35: =IF(INTRO!$E$39<>"Non-endemic", 0, IF(INTRO!$E$37="Non-endemic",0,IF(COUNTRY_INFO!$H35=1,COUNTRY_INFO!F35,0))) -> 0 | F35: =IF(INTRO!$E$39<>"Non-endemic", 0, IF(INTRO!$E$37="Non-endemic",0,IF(COUNTRY_INFO!$H35=1,COUNTRY_INFO!G35,0))) -> 0 | G35: 0 | H35: =IF(INTRO!$E$39="Non-endemic",IF(INTRO!$E$37="Non-endemic","Not required",COUNTRY_INFO!V35),"Treat with IVM") -> Treat with IVM | I35: 0 | J35: 0 | L35: 0
A36: =IF(INTRO!$E$39<>"Non-endemic", " ", IF(INTRO!$E$37="Non-endemic"," ", IF(COUNTRY_INFO!A36=0," ",COUNTRY_INFO!A36))) ->  | B36: =IF(INTRO!$E$39<>"Non-endemic", " ", IF(INTRO!$E$37="Non-endemic"," ", IF(COUNTRY_INFO!B36=0," ",COUNTRY_INFO!B36))) ->  | C36: =IF(INTRO!$E$39<>"Non-endemic", " ", IF(INTRO!$E$37="Non-endemic"," ", IF(COUNTRY_INFO!C36=0," ",COUNTRY_INFO!C36))) ->  | D36: =IF(INTRO!$E$39<>"Non-endemic", 0, IF(INTRO!$E$37="Non-endemic",0,IF(COUNTRY_INFO!$H36=1,COUNTRY_INFO!E36,0))) -> 0 | E36: =IF(INTRO!$E$39<>"Non-endemic", 0, IF(INTRO!$E$37="Non-endemic",0,IF(COUNTRY_INFO!$H36=1,COUNTRY_INFO!F36,0))) -> 0 | F36: =IF(INTRO!$E$39<>"Non-endemic", 0, IF(INTRO!$E$37="Non-endemic",0,IF(COUNTRY_INFO!$H36=1,COUNTRY_INFO!G36,0))) -> 0 | G36: 0 | H36: =IF(INTRO!$E$39="Non-endemic",IF(INTRO!$E$37="Non-endemic","Not required",COUNTRY_INFO!V36),"Treat with IVM") -> Treat with IVM | I36: 0 | J36: 0 | L36: 0
A37: =IF(INTRO!$E$39<>"Non-endemic", " ", IF(INTRO!$E$37="Non-endemic"," ", IF(COUNTRY_INFO!A37=0," ",COUNTRY_INFO!A37))) ->  | B37: =IF(INTRO!$E$39<>"Non-endemic", " ", IF(INTRO!$E$37="Non-endemic"," ", IF(COUNTRY_INFO!B37=0," ",COUNTRY_INFO!B37))) ->  | C37: =IF(INTRO!$E$39<>"Non-endemic", " ", IF(INTRO!$E$37="Non-endemic"," ", IF(COUNTRY_INFO!C37=0," ",COUNTRY_INFO!C37))) ->  | D37: =IF(INTRO!$E$39<>"Non-endemic", 0, IF(INTRO!$E$37="Non-endemic",0,IF(COUNTRY_INFO!$H37=1,COUNTRY_INFO!E37,0))) -> 0 | E37: =IF(INTRO!$E$39<>"Non-endemic", 0, IF(INTRO!$E$37="Non-endemic",0,IF(COUNTRY_INFO!$H37=1,COUNTRY_INFO!F37,0))) -> 0 | F37: =IF(INTRO!$E$39<>"Non-endemic", 0, IF(INTRO!$E$37="Non-endemic",0,IF(COUNTRY_INFO!$H37=1,COUNTRY_INFO!G37,0))) -> 0 | G37: 0 | H37: =IF(INTRO!$E$39="Non-endemic",IF(INTRO!$E$37="Non-endemic","Not required",COUNTRY_INFO!V37),"Treat with IVM") -> Treat with IVM | I37: 0 | J37: 0 | L37: 0
A38: =IF(INTRO!$E$39<>"Non-endemic", " ", IF(INTRO!$E$37="Non-endemic"," ", IF(COUNTRY_INFO!A38=0," ",COUNTRY_INFO!A38))) ->  | B38: =IF(INTRO!$E$39<>"Non-endemic", " ", IF(INTRO!$E$37="Non-endemic"," ", IF(COUNTRY_INFO!B38=0," ",COUNTRY_INFO!B38))) ->  | C38: =IF(INTRO!$E$39<>"Non-endemic", " ", IF(INTRO!$E$37="Non-endemic"," ", IF(COUNTRY_INFO!C38=0," ",COUNTRY_INFO!C38))) ->  | D38: =IF(INTRO!$E$39<>"Non-endemic", 0, IF(INTRO!$E$37="Non-endemic",0,IF(COUNTRY_INFO!$H38=1,COUNTRY_INFO!E38,0))) -> 0 | E38: =IF(INTRO!$E$39<>"Non-endemic", 0, IF(INTRO!$E$37="Non-endemic",0,IF(COUNTRY_INFO!$H38=1,COUNTRY_INFO!F38,0))) -> 0 | F38: =IF(INTRO!$E$39<>"Non-endemic", 0, IF(INTRO!$E$37="Non-endemic",0,IF(COUNTRY_INFO!$H38=1,COUNTRY_INFO!G38,0))) -> 0 | G38: 0 | H38: =IF(INTRO!$E$39="Non-endemic",IF(INTRO!$E$37="Non-endemic","Not required",COUNTRY_INFO!V38),"Treat with IVM") -> Treat with IVM | I38: 0 | J38: 0 | L38: 0
A39: =IF(INTRO!$E$39<>"Non-endemic", " ", IF(INTRO!$E$37="Non-endemic"," ", IF(COUNTRY_INFO!A39=0," ",COUNTRY_INFO!A39))) ->  | B39: =IF(INTRO!$E$39<>"Non-endemic", " ", IF(INTRO!$E$37="Non-endemic"," ", IF(COUNTRY_INFO!B39=0," ",COUNTRY_INFO!B39))) ->  | C39: =IF(INTRO!$E$39<>"Non-endemic", " ", IF(INTRO!$E$37="Non-endemic"," ", IF(COUNTRY_INFO!C39=0," ",COUNTRY_INFO!C39))) ->  | D39: =IF(INTRO!$E$39<>"Non-endemic", 0, IF(INTRO!$E$37="Non-endemic",0,IF(COUNTRY_INFO!$H39=1,COUNTRY_INFO!E39,0))) -> 0 | E39: =IF(INTRO!$E$39<>"Non-endemic", 0, IF(INTRO!$E$37="Non-endemic",0,IF(COUNTRY_INFO!$H39=1,COUNTRY_INFO!F39,0))) -> 0 | F39: =IF(INTRO!$E$39<>"Non-endemic", 0, IF(INTRO!$E$37="Non-endemic",0,IF(COUNTRY_INFO!$H39=1,COUNTRY_INFO!G39,0))) -> 0 | G39: 0 | H39: =IF(INTRO!$E$39="Non-endemic",IF(INTRO!$E$37="Non-endemic","Not required",COUNTRY_INFO!V39),"Treat with IVM") -> Treat with IVM | I39: 0 | J39: 0 | L39: 0
A40: =IF(INTRO!$E$39<>"Non-endemic", " ", IF(INTRO!$E$37="Non-endemic"," ", IF(COUNTRY_INFO!A40=0," ",COUNTRY_INFO!A40))) ->  | B40: =IF(INTRO!$E$39<>"Non-endemic", " ", IF(INTRO!$E$37="Non-endemic"," ", IF(COUNTRY_INFO!B40=0," ",COUNTRY_INFO!B40))) ->  | C40: =IF(INTRO!$E$39<>"Non-endemic", " ", IF(INTRO!$E$37="Non-endemic"," ", IF(COUNTRY_INFO!C40=0," ",COUNTRY_INFO!C40))) ->  | D40: =IF(INTRO!$E$39<>"Non-endemic", 0, IF(INTRO!$E$37="Non-endemic",0,IF(COUNTRY_INFO!$H40=1,COUNTRY_INFO!E40,0))) -> 0 | E40: =IF(INTRO!$E$39<>"Non-endemic", 0, IF(INTRO!$E$37="Non-endemic",0,IF(COUNTRY_INFO!$H40=1,COUNTRY_INFO!F40,0))) -> 0 | F40: =IF(INTRO!$E$39<>"Non-endemic", 0, IF(INTRO!$E$37="Non-endemic",0,IF(COUNTRY_INFO!$H40=1,COUNTRY_INFO!G40,0))) -> 0 | G40: 0 | H40: =IF(INTRO!$E$39="Non-endemic",IF(INTRO!$E$37="Non-endemic","Not required",COUNTRY_INFO!V40),"Treat with IVM") -> Treat with IVM | I40: 0 | J40: 0 | L40: 0
A41: =IF(INTRO!$E$39<>"Non-endemic", " ", IF(INTRO!$E$37="Non-endemic"," ", IF(COUNTRY_INFO!A41=0," ",COUNTRY_INFO!A41))) ->  | B41: =IF(INTRO!$E$39<>"Non-endemic", " ", IF(INTRO!$E$37="Non-endemic"," ", IF(COUNTRY_INFO!B41=0," ",COUNTRY_INFO!B41))) ->  | C41: =IF(INTRO!$E$39<>"Non-endemic", " ", IF(INTRO!$E$37="Non-endemic"," ", IF(COUNTRY_INFO!C41=0," ",COUNTRY_INFO!C41))) ->  | D41: =IF(INTRO!$E$39<>"Non-endemic", 0, IF(INTRO!$E$37="Non-endemic",0,IF(COUNTRY_INFO!$H41=1,COUNTRY_INFO!E41,0))) -> 0 | E41: =IF(INTRO!$E$39<>"Non-endemic", 0, IF(INTRO!$E$37="Non-endemic",0,IF(COUNTRY_INFO!$H41=1,COUNTRY_INFO!F41,0))) -> 0 | F41: =IF(INTRO!$E$39<>"Non-endemic", 0, IF(INTRO!$E$37="Non-endemic",0,IF(COUNTRY_INFO!$H41=1,COUNTRY_INFO!G41,0))) -> 0 | G41: 0 | H41: =IF(INTRO!$E$39="Non-endemic",IF(INTRO!$E$37="Non-endemic","Not required",COUNTRY_INFO!V41),"Treat with IVM") -> Treat with IVM | I41: 0 | J41: 0 | L41: 0
A42: =IF(INTRO!$E$39<>"Non-endemic", " ", IF(INTRO!$E$37="Non-endemic"," ", IF(COUNTRY_INFO!A42=0," ",COUNTRY_INFO!A42))) ->  | B42: =IF(INTRO!$E$39<>"Non-endemic", " ", IF(INTRO!$E$37="Non-endemic"," ", IF(COUNTRY_INFO!B42=0," ",COUNTRY_INFO!B42))) ->  | C42: =IF(INTRO!$E$39<>"Non-endemic", " ", IF(INTRO!$E$37="Non-endemic"," ", IF(COUNTRY_INFO!C42=0," ",COUNTRY_INFO!C42))) ->  | D42: =IF(INTRO!$E$39<>"Non-endemic", 0, IF(INTRO!$E$37="Non-endemic",0,IF(COUNTRY_INFO!$H42=1,COUNTRY_INFO!E42,0))) -> 0 | E42: =IF(INTRO!$E$39<>"Non-endemic", 0, IF(INTRO!$E$37="Non-endemic",0,IF(COUNTRY_INFO!$H42=1,COUNTRY_INFO!F42,0))) -> 0 | F42: =IF(INTRO!$E$39<>"Non-endemic", 0, IF(INTRO!$E$37="Non-endemic",0,IF(COUNTRY_INFO!$H42=1,COUNTRY_INFO!G42,0))) -> 0 | G42: 0 | H42: =IF(INTRO!$E$39="Non-endemic",IF(INTRO!$E$37="Non-endemic","Not required",COUNTRY_INFO!V42),"Treat with IVM") -> Treat with IVM | I42: 0 | J42: 0 | L42: 0
A43: =IF(INTRO!$E$39<>"Non-endemic", " ", IF(INTRO!$E$37="Non-endemic"," ", IF(COUNTRY_INFO!A43=0," ",COUNTRY_INFO!A43))) ->  | B43: =IF(INTRO!$E$39<>"Non-endemic", " ", IF(INTRO!$E$37="Non-endemic"," ", IF(COUNTRY_INFO!B43=0," ",COUNTRY_INFO!B43))) ->  | C43: =IF(INTRO!$E$39<>"Non-endemic", " ", IF(INTRO!$E$37="Non-endemic"," ", IF(COUNTRY_INFO!C43=0," ",COUNTRY_INFO!C43))) ->  | D43: =IF(INTRO!$E$39<>"Non-endemic", 0, IF(INTRO!$E$37="Non-endemic",0,IF(COUNTRY_INFO!$H43=1,COUNTRY_INFO!E43,0))) -> 0 | E43: =IF(INTRO!$E$39<>"Non-endemic", 0, IF(INTRO!$E$37="Non-endemic",0,IF(COUNTRY_INFO!$H43=1,COUNTRY_INFO!F43,0))) -> 0 | F43: =IF(INTRO!$E$39<>"Non-endemic", 0, IF(INTRO!$E$37="Non-endemic",0,IF(COUNTRY_INFO!$H43=1,COUNTRY_INFO!G43,0))) -> 0 | G43: 0 | H43: =IF(INTRO!$E$39="Non-endemic",IF(INTRO!$E$37="Non-endemic","Not required",COUNTRY_INFO!V43),"Treat with IVM") -> Treat with IVM | I43: 0 | J43: 0 | L43: 0
A44: =IF(INTRO!$E$39<>"Non-endemic", " ", IF(INTRO!$E$37="Non-endemic"," ", IF(COUNTRY_INFO!A44=0," ",COUNTRY_INFO!A44))) ->  | B44: =IF(INTRO!$E$39<>"Non-endemic", " ", IF(INTRO!$E$37="Non-endemic"," ", IF(COUNTRY_INFO!B44=0," ",COUNTRY_INFO!B44))) ->  | C44: =IF(INTRO!$E$39<>"Non-endemic", " ", IF(INTRO!$E$37="Non-endemic"," ", IF(COUNTRY_INFO!C44=0," ",COUNTRY_INFO!C44))) ->  | D44: =IF(INTRO!$E$39<>"Non-endemic", 0, IF(INTRO!$E$37="Non-endemic",0,IF(COUNTRY_INFO!$H44=1,COUNTRY_INFO!E44,0))) -> 0 | E44: =IF(INTRO!$E$39<>"Non-endemic", 0, IF(INTRO!$E$37="Non-endemic",0,IF(COUNTRY_INFO!$H44=1,COUNTRY_INFO!F44,0))) -> 0 | F44: =IF(INTRO!$E$39<>"Non-endemic", 0, IF(INTRO!$E$37="Non-endemic",0,IF(COUNTRY_INFO!$H44=1,COUNTRY_INFO!G44,0))) -> 0 | G44: 0 | H44: =IF(INTRO!$E$39="Non-endemic",IF(INTRO!$E$37="Non-endemic","Not required",COUNTRY_INFO!V44),"Treat with IVM") -> Treat with IVM | I44: 0 | J44: 0 | L44: 0
A45: =IF(INTRO!$E$39<>"Non-endemic", " ", IF(INTRO!$E$37="Non-endemic"," ", IF(COUNTRY_INFO!A45=0," ",COUNTRY_INFO!A45))) ->  | B45: =IF(INTRO!$E$39<>"Non-endemic", " ", IF(INTRO!$E$37="Non-endemic"," ", IF(COUNTRY_INFO!B45=0," ",COUNTRY_INFO!B45))) ->  | C45: =IF(INTRO!$E$39<>"Non-endemic", " ", IF(INTRO!$E$37="Non-endemic"," ", IF(COUNTRY_INFO!C45=0," ",COUNTRY_INFO!C45))) ->  | D45: =IF(INTRO!$E$39<>"Non-endemic", 0, IF(INTRO!$E$37="Non-endemic",0,IF(COUNTRY_INFO!$H45=1,COUNTRY_INFO!E45,0))) -> 0 | E45: =IF(INTRO!$E$39<>"Non-endemic", 0, IF(INTRO!$E$37="Non-endemic",0,IF(COUNTRY_INFO!$H45=1,COUNTRY_INFO!F45,0))) -> 0 | F45: =IF(INTRO!$E$39<>"Non-endemic", 0, IF(INTRO!$E$37="Non-endemic",0,IF(COUNTRY_INFO!$H45=1,COUNTRY_INFO!G45,0))) -> 0 | G45: 0 | H45: =IF(INTRO!$E$39="Non-endemic",IF(INTRO!$E$37="Non-endemic","Not required",COUNTRY_INFO!V45),"Treat with IVM") -> Treat with IVM | I45: 0 | J45: 0 | L45: 0
A46: =IF(INTRO!$E$39<>"Non-endemic", " ", IF(INTRO!$E$37="Non-endemic"," ", IF(COUNTRY_INFO!A46=0," ",COUNTRY_INFO!A46))) ->  | B46: =IF(INTRO!$E$39<>"Non-endemic", " ", IF(INTRO!$E$37="Non-endemic"," ", IF(COUNTRY_INFO!B46=0," ",COUNTRY_INFO!B46))) ->  | C46: =IF(INTRO!$E$39<>"Non-endemic", " ", IF(INTRO!$E$37="Non-endemic"," ", IF(COUNTRY_INFO!C46=0," ",COUNTRY_INFO!C46))) ->  | D46: =IF(INTRO!$E$39<>"Non-endemic", 0, IF(INTRO!$E$37="Non-endemic",0,IF(COUNTRY_INFO!$H46=1,COUNTRY_INFO!E46,0))) -> 0 | E46: =IF(INTRO!$E$39<>"Non-endemic", 0, IF(INTRO!$E$37="Non-endemic",0,IF(COUNTRY_INFO!$H46=1,COUNTRY_INFO!F46,0))) -> 0 | F46: =IF(INTRO!$E$39<>"Non-endemic", 0, IF(INTRO!$E$37="Non-endemic",0,IF(COUNTRY_INFO!$H46=1,COUNTRY_INFO!G46,0))) -> 0 | G46: 0 | H46: =IF(INTRO!$E$39="Non-endemic",IF(INTRO!$E$37="Non-endemic","Not required",COUNTRY_INFO!V46),"Treat with IVM") -> Treat with IVM | I46: 0 | J46: 0 | L46: 0
A47: =IF(INTRO!$E$39<>"Non-endemic", " ", IF(INTRO!$E$37="Non-endemic"," ", IF(COUNTRY_INFO!A47=0," ",COUNTRY_INFO!A47))) ->  | B47: =IF(INTRO!$E$39<>"Non-endemic", " ", IF(INTRO!$E$37="Non-endemic"," ", IF(COUNTRY_INFO!B47=0," ",COUNTRY_INFO!B47))) ->  | C47: =IF(INTRO!$E$39<>"Non-endemic", " ", IF(INTRO!$E$37="Non-endemic"," ", IF(COUNTRY_INFO!C47=0," ",COUNTRY_INFO!C47))) ->  | D47: =IF(INTRO!$E$39<>"Non-endemic", 0, IF(INTRO!$E$37="Non-endemic",0,IF(COUNTRY_INFO!$H47=1,COUNTRY_INFO!E47,0))) -> 0 | E47: =IF(INTRO!$E$39<>"Non-endemic", 0, IF(INTRO!$E$37="Non-endemic",0,IF(COUNTRY_INFO!$H47=1,COUNTRY_INFO!F47,0))) -> 0 | F47: =IF(INTRO!$E$39<>"Non-endemic", 0, IF(INTRO!$E$37="Non-endemic",0,IF(COUNTRY_INFO!$H47=1,COUNTRY_INFO!G47,0))) -> 0 | G47: 0 | H47: =IF(INTRO!$E$39="Non-endemic",IF(INTRO!$E$37="Non-endemic","Not required",COUNTRY_INFO!V47),"Treat with IVM") -> Treat with IVM | I47: 0 | J47: 0 | L47: 0
A48: =IF(INTRO!$E$39<>"Non-endemic", " ", IF(INTRO!$E$37="Non-endemic"," ", IF(COUNTRY_INFO!A48=0," ",COUNTRY_INFO!A48))) ->  | B48: =IF(INTRO!$E$39<>"Non-endemic", " ", IF(INTRO!$E$37="Non-endemic"," ", IF(COUNTRY_INFO!B48=0," ",COUNTRY_INFO!B48))) ->  | C48: =IF(INTRO!$E$39<>"Non-endemic", " ", IF(INTRO!$E$37="Non-endemic"," ", IF(COUNTRY_INFO!C48=0," ",COUNTRY_INFO!C48))) ->  | D48: =IF(INTRO!$E$39<>"Non-endemic", 0, IF(INTRO!$E$37="Non-endemic",0,IF(COUNTRY_INFO!$H48=1,COUNTRY_INFO!E48,0))) -> 0 | E48: =IF(INTRO!$E$39<>"Non-endemic", 0, IF(INTRO!$E$37="Non-endemic",0,IF(COUNTRY_INFO!$H48=1,COUNTRY_INFO!F48,0))) -> 0 | F48: =IF(INTRO!$E$39<>"Non-endemic", 0, IF(INTRO!$E$37="Non-endemic",0,IF(COUNTRY_INFO!$H48=1,COUNTRY_INFO!G48,0))) -> 0 | G48: 0 | H48: =IF(INTRO!$E$39="Non-endemic",IF(INTRO!$E$37="Non-endemic","Not required",COUNTRY_INFO!V48),"Treat with IVM") -> Treat with IVM | I48: 0 | J48: 0 | L48: 0
A49: =IF(INTRO!$E$39<>"Non-endemic", " ", IF(INTRO!$E$37="Non-endemic"," ", IF(COUNTRY_INFO!A49=0," ",COUNTRY_INFO!A49))) ->  | B49: =IF(INTRO!$E$39<>"Non-endemic", " ", IF(INTRO!$E$37="Non-endemic"," ", IF(COUNTRY_INFO!B49=0," ",COUNTRY_INFO!B49))) ->  | C49: =IF(INTRO!$E$39<>"Non-endemic", " ", IF(INTRO!$E$37="Non-endemic"," ", IF(COUNTRY_INFO!C49=0," ",COUNTRY_INFO!C49))) ->  | D49: =IF(INTRO!$E$39<>"Non-endemic", 0, IF(INTRO!$E$37="Non-endemic",0,IF(COUNTRY_INFO!$H49=1,COUNTRY_INFO!E49,0))) -> 0 | E49: =IF(INTRO!$E$39<>"Non-endemic", 0, IF(INTRO!$E$37="Non-endemic",0,IF(COUNTRY_INFO!$H49=1,COUNTRY_INFO!F49,0))) -> 0 | F49: =IF(INTRO!$E$39<>"Non-endemic", 0, IF(INTRO!$E$37="Non-endemic",0,IF(COUNTRY_INFO!$H49=1,COUNTRY_INFO!G49,0))) -> 0 | G49: 0 | H49: =IF(INTRO!$E$39="Non-endemic",IF(INTRO!$E$37="Non-endemic","Not required",COUNTRY_INFO!V49),"Treat with IVM") -> Treat with IVM | I49: 0 | J49: 0 | L49: 0
A50: =IF(INTRO!$E$39<>"Non-endemic", " ", IF(INTRO!$E$37="Non-endemic"," ", IF(COUNTRY_INFO!A50=0," ",COUNTRY_INFO!A50))) ->  | B50: =IF(INTRO!$E$39<>"Non-endemic", " ", IF(INTRO!$E$37="Non-endemic"," ", IF(COUNTRY_INFO!B50=0," ",COUNTRY_INFO!B50))) ->  | C50: =IF(INTRO!$E$39<>"Non-endemic", " ", IF(INTRO!$E$37="Non-endemic"," ", IF(COUNTRY_INFO!C50=0," ",COUNTRY_INFO!C50))) ->  | D50: =IF(INTRO!$E$39<>"Non-endemic", 0, IF(INTRO!$E$37="Non-endemic",0,IF(COUNTRY_INFO!$H50=1,COUNTRY_INFO!E50,0))) -> 0 | E50: =IF(INTRO!$E$39<>"Non-endemic", 0, IF(INTRO!$E$37="Non-endemic",0,IF(COUNTRY_INFO!$H50=1,COUNTRY_INFO!F50,0))) -> 0 | F50: =IF(INTRO!$E$39<>"Non-endemic", 0, IF(INTRO!$E$37="Non-endemic",0,IF(COUNTRY_INFO!$H50=1,COUNTRY_INFO!G50,0))) -> 0 | G50: 0 | H50: =IF(INTRO!$E$39="Non-endemic",IF(INTRO!$E$37="Non-endemic","Not required",COUNTRY_INFO!V50),"Treat with IVM") -> Treat with IVM | I50: 0 | J50: 0 | L50: 0
A51: =IF(INTRO!$E$39<>"Non-endemic", " ", IF(INTRO!$E$37="Non-endemic"," ", IF(COUNTRY_INFO!A51=0," ",COUNTRY_INFO!A51))) ->  | B51: =IF(INTRO!$E$39<>"Non-endemic", " ", IF(INTRO!$E$37="Non-endemic"," ", IF(COUNTRY_INFO!B51=0," ",COUNTRY_INFO!B51))) ->  | C51: =IF(INTRO!$E$39<>"Non-endemic", " ", IF(INTRO!$E$37="Non-endemic"," ", IF(COUNTRY_INFO!C51=0," ",COUNTRY_INFO!C51))) ->  | D51: =IF(INTRO!$E$39<>"Non-endemic", 0, IF(INTRO!$E$37="Non-endemic",0,IF(COUNTRY_INFO!$H51=1,COUNTRY_INFO!E51,0))) -> 0 | E51: =IF(INTRO!$E$39<>"Non-endemic", 0, IF(INTRO!$E$37="Non-endemic",0,IF(COUNTRY_INFO!$H51=1,COUNTRY_INFO!F51,0))) -> 0 | F51: =IF(INTRO!$E$39<>"Non-endemic", 0, IF(INTRO!$E$37="Non-endemic",0,IF(COUNTRY_INFO!$H51=1,COUNTRY_INFO!G51,0))) -> 0 | G51: 0 | H51: =IF(INTRO!$E$39="Non-endemic",IF(INTRO!$E$37="Non-endemic","Not required",COUNTRY_INFO!V51),"Treat with IVM") -> Treat with IVM | I51: 0 | J51: 0 | L51: 0
A52: =IF(INTRO!$E$39<>"Non-endemic", " ", IF(INTRO!$E$37="Non-endemic"," ", IF(COUNTRY_INFO!A52=0," ",COUNTRY_INFO!A52))) ->  | B52: =IF(INTRO!$E$39<>"Non-endemic", " ", IF(INTRO!$E$37="Non-endemic"," ", IF(COUNTRY_INFO!B52=0," ",COUNTRY_INFO!B52))) ->  | C52: =IF(INTRO!$E$39<>"Non-endemic", " ", IF(INTRO!$E$37="Non-endemic"," ", IF(COUNTRY_INFO!C52=0," ",COUNTRY_INFO!C52))) ->  | D52: =IF(INTRO!$E$39<>"Non-endemic", 0, IF(INTRO!$E$37="Non-endemic",0,IF(COUNTRY_INFO!$H52=1,COUNTRY_INFO!E52,0))) -> 0 | E52: =IF(INTRO!$E$39<>"Non-endemic", 0, IF(INTRO!$E$37="Non-endemic",0,IF(COUNTRY_INFO!$H52=1,COUNTRY_INFO!F52,0))) -> 0 | F52: =IF(INTRO!$E$39<>"Non-endemic", 0, IF(INTRO!$E$37="Non-endemic",0,IF(COUNTRY_INFO!$H52=1,COUNTRY_INFO!G52,0))) -> 0 | G52: 0 | H52: =IF(INTRO!$E$39="Non-endemic",IF(INTRO!$E$37="Non-endemic","Not required",COUNTRY_INFO!V52),"Treat with IVM") -> Treat with IVM | I52: 0 | J52: 0 | L52: 0
A53: =IF(INTRO!$E$39<>"Non-endemic", " ", IF(INTRO!$E$37="Non-endemic"," ", IF(COUNTRY_INFO!A53=0," ",COUNTRY_INFO!A53))) ->  | B53: =IF(INTRO!$E$39<>"Non-endemic", " ", IF(INTRO!$E$37="Non-endemic"," ", IF(COUNTRY_INFO!B53=0," ",COUNTRY_INFO!B53))) ->  | C53: =IF(INTRO!$E$39<>"Non-endemic", " ", IF(INTRO!$E$37="Non-endemic"," ", IF(COUNTRY_INFO!C53=0," ",COUNTRY_INFO!C53))) ->  | D53: =IF(INTRO!$E$39<>"Non-endemic", 0, IF(INTRO!$E$37="Non-endemic",0,IF(COUNTRY_INFO!$H53=1,COUNTRY_INFO!E53,0))) -> 0 | E53: =IF(INTRO!$E$39<>"Non-endemic", 0, IF(INTRO!$E$37="Non-endemic",0,IF(COUNTRY_INFO!$H53=1,COUNTRY_INFO!F53,0))) -> 0 | F53: =IF(INTRO!$E$39<>"Non-endemic", 0, IF(INTRO!$E$37="Non-endemic",0,IF(COUNTRY_INFO!$H53=1,COUNTRY_INFO!G53,0))) -> 0 | G53: 0 | H53: =IF(INTRO!$E$39="Non-endemic",IF(INTRO!$E$37="Non-endemic","Not required",COUNTRY_INFO!V53),"Treat with IVM") -> Treat with IVM | I53: 0 | J53: 0 | L53: 0
A54: =IF(INTRO!$E$39<>"Non-endemic", " ", IF(INTRO!$E$37="Non-endemic"," ", IF(COUNTRY_INFO!A54=0," ",COUNTRY_INFO!A54))) ->  | B54: =IF(INTRO!$E$39<>"Non-endemic", " ", IF(INTRO!$E$37="Non-endemic"," ", IF(COUNTRY_INFO!B54=0," ",COUNTRY_INFO!B54))) ->  | C54: =IF(INTRO!$E$39<>"Non-endemic", " ", IF(INTRO!$E$37="Non-endemic"," ", IF(COUNTRY_INFO!C54=0," ",COUNTRY_INFO!C54))) ->  | D54: =IF(INTRO!$E$39<>"Non-endemic", 0, IF(INTRO!$E$37="Non-endemic",0,IF(COUNTRY_INFO!$H54=1,COUNTRY_INFO!E54,0))) -> 0 | E54: =IF(INTRO!$E$39<>"Non-endemic", 0, IF(INTRO!$E$37="Non-endemic",0,IF(COUNTRY_INFO!$H54=1,COUNTRY_INFO!F54,0))) -> 0 | F54: =IF(INTRO!$E$39<>"Non-endemic", 0, IF(INTRO!$E$37="Non-endemic",0,IF(COUNTRY_INFO!$H54=1,COUNTRY_INFO!G54,0))) -> 0 | G54: 0 | H54: =IF(INTRO!$E$39="Non-endemic",IF(INTRO!$E$37="Non-endemic","Not required",COUNTRY_INFO!V54),"Treat with IVM") -> Treat with IVM | I54: 0 | J54: 0 | L54: 0
A55: =IF(INTRO!$E$39<>"Non-endemic", " ", IF(INTRO!$E$37="Non-endemic"," ", IF(COUNTRY_INFO!A55=0," ",COUNTRY_INFO!A55))) ->  | B55: =IF(INTRO!$E$39<>"Non-endemic", " ", IF(INTRO!$E$37="Non-endemic"," ", IF(COUNTRY_INFO!B55=0," ",COUNTRY_INFO!B55))) ->  | C55: =IF(INTRO!$E$39<>"Non-endemic", " ", IF(INTRO!$E$37="Non-endemic"," ", IF(COUNTRY_INFO!C55=0," ",COUNTRY_INFO!C55))) ->  | D55: =IF(INTRO!$E$39<>"Non-endemic", 0, IF(INTRO!$E$37="Non-endemic",0,IF(COUNTRY_INFO!$H55=1,COUNTRY_INFO!E55,0))) -> 0 | E55: =IF(INTRO!$E$39<>"Non-endemic", 0, IF(INTRO!$E$37="Non-endemic",0,IF(COUNTRY_INFO!$H55=1,COUNTRY_INFO!F55,0))) -> 0 | F55: =IF(INTRO!$E$39<>"Non-endemic", 0, IF(INTRO!$E$37="Non-endemic",0,IF(COUNTRY_INFO!$H55=1,COUNTRY_INFO!G55,0))) -> 0 | G55: 0 | H55: =IF(INTRO!$E$39="Non-endemic",IF(INTRO!$E$37="Non-endemic","Not required",COUNTRY_INFO!V55),"Treat with IVM") -> Treat with IVM | I55: 0 | J55: 0 | L55: 0
A56: =IF(INTRO!$E$39<>"Non-endemic", " ", IF(INTRO!$E$37="Non-endemic"," ", IF(COUNTRY_INFO!A56=0," ",COUNTRY_INFO!A56))) ->  | B56: =IF(INTRO!$E$39<>"Non-endemic", " ", IF(INTRO!$E$37="Non-endemic"," ", IF(COUNTRY_INFO!B56=0," ",COUNTRY_INFO!B56))) ->  | C56: =IF(INTRO!$E$39<>"Non-endemic", " ", IF(INTRO!$E$37="Non-endemic"," ", IF(COUNTRY_INFO!C56=0," ",COUNTRY_INFO!C56))) ->  | D56: =IF(INTRO!$E$39<>"Non-endemic", 0, IF(INTRO!$E$37="Non-endemic",0,IF(COUNTRY_INFO!$H56=1,COUNTRY_INFO!E56,0))) -> 0 | E56: =IF(INTRO!$E$39<>"Non-endemic", 0, IF(INTRO!$E$37="Non-endemic",0,IF(COUNTRY_INFO!$H56=1,COUNTRY_INFO!F56,0))) -> 0 | F56: =IF(INTRO!$E$39<>"Non-endemic", 0, IF(INTRO!$E$37="Non-endemic",0,IF(COUNTRY_INFO!$H56=1,COUNTRY_INFO!G56,0))) -> 0 | G56: 0 | H56: =IF(INTRO!$E$39="Non-endemic",IF(INTRO!$E$37="Non-endemic","Not required",COUNTRY_INFO!V56),"Treat with IVM") -> Treat with IVM | I56: 0 | J56: 0 | L56: 0
A57: =IF(INTRO!$E$39<>"Non-endemic", " ", IF(INTRO!$E$37="Non-endemic"," ", IF(COUNTRY_INFO!A57=0," ",COUNTRY_INFO!A57))) ->  | B57: =IF(INTRO!$E$39<>"Non-endemic", " ", IF(INTRO!$E$37="Non-endemic"," ", IF(COUNTRY_INFO!B57=0," ",COUNTRY_INFO!B57))) ->  | C57: =IF(INTRO!$E$39<>"Non-endemic", " ", IF(INTRO!$E$37="Non-endemic"," ", IF(COUNTRY_INFO!C57=0," ",COUNTRY_INFO!C57))) ->  | D57: =IF(INTRO!$E$39<>"Non-endemic", 0, IF(INTRO!$E$37="Non-endemic",0,IF(COUNTRY_INFO!$H57=1,COUNTRY_INFO!E57,0))) -> 0 | E57: =IF(INTRO!$E$39<>"Non-endemic", 0, IF(INTRO!$E$37="Non-endemic",0,IF(COUNTRY_INFO!$H57=1,COUNTRY_INFO!F57,0))) -> 0 | F57: =IF(INTRO!$E$39<>"Non-endemic", 0, IF(INTRO!$E$37="Non-endemic",0,IF(COUNTRY_INFO!$H57=1,COUNTRY_INFO!G57,0))) -> 0 | G57: 0 | H57: =IF(INTRO!$E$39="Non-endemic",IF(INTRO!$E$37="Non-endemic","Not required",COUNTRY_INFO!V57),"Treat with IVM") -> Treat with IVM | I57: 0 | J57: 0 | L57: 0
A58: =IF(INTRO!$E$39<>"Non-endemic", " ", IF(INTRO!$E$37="Non-endemic"," ", IF(COUNTRY_INFO!A58=0," ",COUNTRY_INFO!A58))) ->  | B58: =IF(INTRO!$E$39<>"Non-endemic", " ", IF(INTRO!$E$37="Non-endemic"," ", IF(COUNTRY_INFO!B58=0," ",COUNTRY_INFO!B58))) ->  | C58: =IF(INTRO!$E$39<>"Non-endemic", " ", IF(INTRO!$E$37="Non-endemic"," ", IF(COUNTRY_INFO!C58=0," ",COUNTRY_INFO!C58))) ->  | D58: =IF(INTRO!$E$39<>"Non-endemic", 0, IF(INTRO!$E$37="Non-endemic",0,IF(COUNTRY_INFO!$H58=1,COUNTRY_INFO!E58,0))) -> 0 | E58: =IF(INTRO!$E$39<>"Non-endemic", 0, IF(INTRO!$E$37="Non-endemic",0,IF(COUNTRY_INFO!$H58=1,COUNTRY_INFO!F58,0))) -> 0 | F58: =IF(INTRO!$E$39<>"Non-endemic", 0, IF(INTRO!$E$37="Non-endemic",0,IF(COUNTRY_INFO!$H58=1,COUNTRY_INFO!G58,0))) -> 0 | G58: 0 | H58: =IF(INTRO!$E$39="Non-endemic",IF(INTRO!$E$37="Non-endemic","Not required",COUNTRY_INFO!V58),"Treat with IVM") -> Treat with IVM | I58: 0 | J58: 0 | L58: 0
A59: =IF(INTRO!$E$39<>"Non-endemic", " ", IF(INTRO!$E$37="Non-endemic"," ", IF(COUNTRY_INFO!A59=0," ",COUNTRY_INFO!A59))) ->  | B59: =IF(INTRO!$E$39<>"Non-endemic", " ", IF(INTRO!$E$37="Non-endemic"," ", IF(COUNTRY_INFO!B59=0," ",COUNTRY_INFO!B59))) ->  | C59: =IF(INTRO!$E$39<>"Non-endemic", " ", IF(INTRO!$E$37="Non-endemic"," ", IF(COUNTRY_INFO!C59=0," ",COUNTRY_INFO!C59))) ->  | D59: =IF(INTRO!$E$39<>"Non-endemic", 0, IF(INTRO!$E$37="Non-endemic",0,IF(COUNTRY_INFO!$H59=1,COUNTRY_INFO!E59,0))) -> 0 | E59: =IF(INTRO!$E$39<>"Non-endemic", 0, IF(INTRO!$E$37="Non-endemic",0,IF(COUNTRY_INFO!$H59=1,COUNTRY_INFO!F59,0))) -> 0 | F59: =IF(INTRO!$E$39<>"Non-endemic", 0, IF(INTRO!$E$37="Non-endemic",0,IF(COUNTRY_INFO!$H59=1,COUNTRY_INFO!G59,0))) -> 0 | G59: 0 | H59: =IF(INTRO!$E$39="Non-endemic",IF(INTRO!$E$37="Non-endemic","Not required",COUNTRY_INFO!V59),"Treat with IVM") -> Treat with IVM | I59: 0 | J59: 0 | L59: 0
A60: =IF(INTRO!$E$39<>"Non-endemic", " ", IF(INTRO!$E$37="Non-endemic"," ", IF(COUNTRY_INFO!A60=0," ",COUNTRY_INFO!A60))) ->  | B60: =IF(INTRO!$E$39<>"Non-endemic", " ", IF(INTRO!$E$37="Non-endemic"," ", IF(COUNTRY_INFO!B60=0," ",COUNTRY_INFO!B60))) ->  | C60: =IF(INTRO!$E$39<>"Non-endemic", " ", IF(INTRO!$E$37="Non-endemic"," ", IF(COUNTRY_INFO!C60=0," ",COUNTRY_INFO!C60))) ->  | D60: =IF(INTRO!$E$39<>"Non-endemic", 0, IF(INTRO!$E$37="Non-endemic",0,IF(COUNTRY_INFO!$H60=1,COUNTRY_INFO!E60,0))) -> 0 | E60: =IF(INTRO!$E$39<>"Non-endemic", 0, IF(INTRO!$E$37="Non-endemic",0,IF(COUNTRY_INFO!$H60=1,COUNTRY_INFO!F60,0))) -> 0 | F60: =IF(INTRO!$E$39<>"Non-endemic", 0, IF(INTRO!$E$37="Non-endemic",0,IF(COUNTRY_INFO!$H60=1,COUNTRY_INFO!G60,0))) -> 0 | G60: 0 | H60: =IF(INTRO!$E$39="Non-endemic",IF(INTRO!$E$37="Non-endemic","Not required",COUNTRY_INFO!V60),"Treat with IVM") -> Treat with IVM | I60: 0 | J60: 0 | L60: 0
A61: =IF(INTRO!$E$39<>"Non-endemic", " ", IF(INTRO!$E$37="Non-endemic"," ", IF(COUNTRY_INFO!A61=0," ",COUNTRY_INFO!A61))) ->  | B61: =IF(INTRO!$E$39<>"Non-endemic", " ", IF(INTRO!$E$37="Non-endemic"," ", IF(COUNTRY_INFO!B61=0," ",COUNTRY_INFO!B61))) ->  | C61: =IF(INTRO!$E$39<>"Non-endemic", " ", IF(INTRO!$E$37="Non-endemic"," ", IF(COUNTRY_INFO!C61=0," ",COUNTRY_INFO!C61))) ->  | D61: =IF(INTRO!$E$39<>"Non-endemic", 0, IF(INTRO!$E$37="Non-endemic",0,IF(COUNTRY_INFO!$H61=1,COUNTRY_INFO!E61,0))) -> 0 | E61: =IF(INTRO!$E$39<>"Non-endemic", 0, IF(INTRO!$E$37="Non-endemic",0,IF(COUNTRY_INFO!$H61=1,COUNTRY_INFO!F61,0))) -> 0 | F61: =IF(INTRO!$E$39<>"Non-endemic", 0, IF(INTRO!$E$37="Non-endemic",0,IF(COUNTRY_INFO!$H61=1,COUNTRY_INFO!G61,0))) -> 0 | G61: 0 | H61: =IF(INTRO!$E$39="Non-endemic",IF(INTRO!$E$37="Non-endemic","Not required",COUNTRY_INFO!V61),"Treat with IVM") -> Treat with IVM | I61: 0 | J61: 0 | L61: 0
A62: =IF(INTRO!$E$39<>"Non-endemic", " ", IF(INTRO!$E$37="Non-endemic"," ", IF(COUNTRY_INFO!A62=0," ",COUNTRY_INFO!A62))) ->  | B62: =IF(INTRO!$E$39<>"Non-endemic", " ", IF(INTRO!$E$37="Non-endemic"," ", IF(COUNTRY_INFO!B62=0," ",COUNTRY_INFO!B62))) ->  | C62: =IF(INTRO!$E$39<>"Non-endemic", " ", IF(INTRO!$E$37="Non-endemic"," ", IF(COUNTRY_INFO!C62=0," ",COUNTRY_INFO!C62))) ->  | D62: =IF(INTRO!$E$39<>"Non-endemic", 0, IF(INTRO!$E$37="Non-endemic",0,IF(COUNTRY_INFO!$H62=1,COUNTRY_INFO!E62,0))) -> 0 | E62: =IF(INTRO!$E$39<>"Non-endemic", 0, IF(INTRO!$E$37="Non-endemic",0,IF(COUNTRY_INFO!$H62=1,COUNTRY_INFO!F62,0))) -> 0 | F62: =IF(INTRO!$E$39<>"Non-endemic", 0, IF(INTRO!$E$37="Non-endemic",0,IF(COUNTRY_INFO!$H62=1,COUNTRY_INFO!G62,0))) -> 0 | G62: 0 | H62: =IF(INTRO!$E$39="Non-endemic",IF(INTRO!$E$37="Non-endemic","Not required",COUNTRY_INFO!V62),"Treat with IVM") -> Treat with IVM | I62: 0 | J62: 0 | L62: 0
A63: =IF(INTRO!$E$39<>"Non-endemic", " ", IF(INTRO!$E$37="Non-endemic"," ", IF(COUNTRY_INFO!A63=0," ",COUNTRY_INFO!A63))) ->  | B63: =IF(INTRO!$E$39<>"Non-endemic", " ", IF(INTRO!$E$37="Non-endemic"," ", IF(COUNTRY_INFO!B63=0," ",COUNTRY_INFO!B63))) ->  | C63: =IF(INTRO!$E$39<>"Non-endemic", " ", IF(INTRO!$E$37="Non-endemic"," ", IF(COUNTRY_INFO!C63=0," ",COUNTRY_INFO!C63))) ->  | D63: =IF(INTRO!$E$39<>"Non-endemic", 0, IF(INTRO!$E$37="Non-endemic",0,IF(COUNTRY_INFO!$H63=1,COUNTRY_INFO!E63,0))) -> 0 | E63: =IF(INTRO!$E$39<>"Non-endemic", 0, IF(INTRO!$E$37="Non-endemic",0,IF(COUNTRY_INFO!$H63=1,COUNTRY_INFO!F63,0))) -> 0 | F63: =IF(INTRO!$E$39<>"Non-endemic", 0, IF(INTRO!$E$37="Non-endemic",0,IF(COUNTRY_INFO!$H63=1,COUNTRY_INFO!G63,0))) -> 0 | G63: 0 | H63: =IF(INTRO!$E$39="Non-endemic",IF(INTRO!$E$37="Non-endemic","Not required",COUNTRY_INFO!V63),"Treat with IVM") -> Treat with IVM | I63: 0 | J63: 0 | L63: 0
A64: =IF(INTRO!$E$39<>"Non-endemic", " ", IF(INTRO!$E$37="Non-endemic"," ", IF(COUNTRY_INFO!A64=0," ",COUNTRY_INFO!A64))) ->  | B64: =IF(INTRO!$E$39<>"Non-endemic", " ", IF(INTRO!$E$37="Non-endemic"," ", IF(COUNTRY_INFO!B64=0," ",COUNTRY_INFO!B64))) ->  | C64: =IF(INTRO!$E$39<>"Non-endemic", " ", IF(INTRO!$E$37="Non-endemic"," ", IF(COUNTRY_INFO!C64=0," ",COUNTRY_INFO!C64))) ->  | D64: =IF(INTRO!$E$39<>"Non-endemic", 0, IF(INTRO!$E$37="Non-endemic",0,IF(COUNTRY_INFO!$H64=1,COUNTRY_INFO!E64,0))) -> 0 | E64: =IF(INTRO!$E$39<>"Non-endemic", 0, IF(INTRO!$E$37="Non-endemic",0,IF(COUNTRY_INFO!$H64=1,COUNTRY_INFO!F64,0))) -> 0 | F64: =IF(INTRO!$E$39<>"Non-endemic", 0, IF(INTRO!$E$37="Non-endemic",0,IF(COUNTRY_INFO!$H64=1,COUNTRY_INFO!G64,0))) -> 0 | G64: 0 | H64: =IF(INTRO!$E$39="Non-endemic",IF(INTRO!$E$37="Non-endemic","Not required",COUNTRY_INFO!V64),"Treat with IVM") -> Treat with IVM | I64: 0 | J64: 0 | L64: 0
A65: =IF(INTRO!$E$39<>"Non-endemic", " ", IF(INTRO!$E$37="Non-endemic"," ", IF(COUNTRY_INFO!A65=0," ",COUNTRY_INFO!A65))) ->  | B65: =IF(INTRO!$E$39<>"Non-endemic", " ", IF(INTRO!$E$37="Non-endemic"," ", IF(COUNTRY_INFO!B65=0," ",COUNTRY_INFO!B65))) ->  | C65: =IF(INTRO!$E$39<>"Non-endemic", " ", IF(INTRO!$E$37="Non-endemic"," ", IF(COUNTRY_INFO!C65=0," ",COUNTRY_INFO!C65))) ->  | D65: =IF(INTRO!$E$39<>"Non-endemic", 0, IF(INTRO!$E$37="Non-endemic",0,IF(COUNTRY_INFO!$H65=1,COUNTRY_INFO!E65,0))) -> 0 | E65: =IF(INTRO!$E$39<>"Non-endemic", 0, IF(INTRO!$E$37="Non-endemic",0,IF(COUNTRY_INFO!$H65=1,COUNTRY_INFO!F65,0))) -> 0 | F65: =IF(INTRO!$E$39<>"Non-endemic", 0, IF(INTRO!$E$37="Non-endemic",0,IF(COUNTRY_INFO!$H65=1,COUNTRY_INFO!G65,0))) -> 0 | G65: 0 | H65: =IF(INTRO!$E$39="Non-endemic",IF(INTRO!$E$37="Non-endemic","Not required",COUNTRY_INFO!V65),"Treat with IVM") -> Treat with IVM | I65: 0 | J65: 0 | L65: 0
A66: =IF(INTRO!$E$39<>"Non-endemic", " ", IF(INTRO!$E$37="Non-endemic"," ", IF(COUNTRY_INFO!A66=0," ",COUNTRY_INFO!A66))) ->  | B66: =IF(INTRO!$E$39<>"Non-endemic", " ", IF(INTRO!$E$37="Non-endemic"," ", IF(COUNTRY_INFO!B66=0," ",COUNTRY_INFO!B66))) ->  | C66: =IF(INTRO!$E$39<>"Non-endemic", " ", IF(INTRO!$E$37="Non-endemic"," ", IF(COUNTRY_INFO!C66=0," ",COUNTRY_INFO!C66))) ->  | D66: =IF(INTRO!$E$39<>"Non-endemic", 0, IF(INTRO!$E$37="Non-endemic",0,IF(COUNTRY_INFO!$H66=1,COUNTRY_INFO!E66,0))) -> 0 | E66: =IF(INTRO!$E$39<>"Non-endemic", 0, IF(INTRO!$E$37="Non-endemic",0,IF(COUNTRY_INFO!$H66=1,COUNTRY_INFO!F66,0))) -> 0 | F66: =IF(INTRO!$E$39<>"Non-endemic", 0, IF(INTRO!$E$37="Non-endemic",0,IF(COUNTRY_INFO!$H66=1,COUNTRY_INFO!G66,0))) -> 0 | G66: 0 | H66: =IF(INTRO!$E$39="Non-endemic",IF(INTRO!$E$37="Non-endemic","Not required",COUNTRY_INFO!V66),"Treat with IVM") -> Treat with IVM | I66: 0 | J66: 0 | L66: 0
A67: =IF(INTRO!$E$39<>"Non-endemic", " ", IF(INTRO!$E$37="Non-endemic"," ", IF(COUNTRY_INFO!A67=0," ",COUNTRY_INFO!A67))) ->  | B67: =IF(INTRO!$E$39<>"Non-endemic", " ", IF(INTRO!$E$37="Non-endemic"," ", IF(COUNTRY_INFO!B67=0," ",COUNTRY_INFO!B67))) ->  | C67: =IF(INTRO!$E$39<>"Non-endemic", " ", IF(INTRO!$E$37="Non-endemic"," ", IF(COUNTRY_INFO!C67=0," ",COUNTRY_INFO!C67))) ->  | D67: =IF(INTRO!$E$39<>"Non-endemic", 0, IF(INTRO!$E$37="Non-endemic",0,IF(COUNTRY_INFO!$H67=1,COUNTRY_INFO!E67,0))) -> 0 | E67: =IF(INTRO!$E$39<>"Non-endemic", 0, IF(INTRO!$E$37="Non-endemic",0,IF(COUNTRY_INFO!$H67=1,COUNTRY_INFO!F67,0))) -> 0 | F67: =IF(INTRO!$E$39<>"Non-endemic", 0, IF(INTRO!$E$37="Non-endemic",0,IF(COUNTRY_INFO!$H67=1,COUNTRY_INFO!G67,0))) -> 0 | G67: 0 | H67: =IF(INTRO!$E$39="Non-endemic",IF(INTRO!$E$37="Non-endemic","Not required",COUNTRY_INFO!V67),"Treat with IVM") -> Treat with IVM | I67: 0 | J67: 0 | L67: 0
A68: =IF(INTRO!$E$39<>"Non-endemic", " ", IF(INTRO!$E$37="Non-endemic"," ", IF(COUNTRY_INFO!A68=0," ",COUNTRY_INFO!A68))) ->  | B68: =IF(INTRO!$E$39<>"Non-endemic", " ", IF(INTRO!$E$37="Non-endemic"," ", IF(COUNTRY_INFO!B68=0," ",COUNTRY_INFO!B68))) ->  | C68: =IF(INTRO!$E$39<>"Non-endemic", " ", IF(INTRO!$E$37="Non-endemic"," ", IF(COUNTRY_INFO!C68=0," ",COUNTRY_INFO!C68))) ->  | D68: =IF(INTRO!$E$39<>"Non-endemic", 0, IF(INTRO!$E$37="Non-endemic",0,IF(COUNTRY_INFO!$H68=1,COUNTRY_INFO!E68,0))) -> 0 | E68: =IF(INTRO!$E$39<>"Non-endemic", 0, IF(INTRO!$E$37="Non-endemic",0,IF(COUNTRY_INFO!$H68=1,COUNTRY_INFO!F68,0))) -> 0 | F68: =IF(INTRO!$E$39<>"Non-endemic", 0, IF(INTRO!$E$37="Non-endemic",0,IF(COUNTRY_INFO!$H68=1,COUNTRY_INFO!G68,0))) -> 0 | G68: 0 | H68: =IF(INTRO!$E$39="Non-endemic",IF(INTRO!$E$37="Non-endemic","Not required",COUNTRY_INFO!V68),"Treat with IVM") -> Treat with IVM | I68: 0 | J68: 0 | L68: 0
A69: =IF(INTRO!$E$39<>"Non-endemic", " ", IF(INTRO!$E$37="Non-endemic"," ", IF(COUNTRY_INFO!A69=0," ",COUNTRY_INFO!A69))) ->  | B69: =IF(INTRO!$E$39<>"Non-endemic", " ", IF(INTRO!$E$37="Non-endemic"," ", IF(COUNTRY_INFO!B69=0," ",COUNTRY_INFO!B69))) ->  | C69: =IF(INTRO!$E$39<>"Non-endemic", " ", IF(INTRO!$E$37="Non-endemic"," ", IF(COUNTRY_INFO!C69=0," ",COUNTRY_INFO!C69))) ->  | D69: =IF(INTRO!$E$39<>"Non-endemic", 0, IF(INTRO!$E$37="Non-endemic",0,IF(COUNTRY_INFO!$H69=1,COUNTRY_INFO!E69,0))) -> 0 | E69: =IF(INTRO!$E$39<>"Non-endemic", 0, IF(INTRO!$E$37="Non-endemic",0,IF(COUNTRY_INFO!$H69=1,COUNTRY_INFO!F69,0))) -> 0 | F69: =IF(INTRO!$E$39<>"Non-endemic", 0, IF(INTRO!$E$37="Non-endemic",0,IF(COUNTRY_INFO!$H69=1,COUNTRY_INFO!G69,0))) -> 0 | G69: 0 | H69: =IF(INTRO!$E$39="Non-endemic",IF(INTRO!$E$37="Non-endemic","Not required",COUNTRY_INFO!V69),"Treat with IVM") -> Treat with IVM | I69: 0 | J69: 0 | L69: 0
A70: =IF(INTRO!$E$39<>"Non-endemic", " ", IF(INTRO!$E$37="Non-endemic"," ", IF(COUNTRY_INFO!A70=0," ",COUNTRY_INFO!A70))) ->  | B70: =IF(INTRO!$E$39<>"Non-endemic", " ", IF(INTRO!$E$37="Non-endemic"," ", IF(COUNTRY_INFO!B70=0," ",COUNTRY_INFO!B70))) ->  | C70: =IF(INTRO!$E$39<>"Non-endemic", " ", IF(INTRO!$E$37="Non-endemic"," ", IF(COUNTRY_INFO!C70=0," ",COUNTRY_INFO!C70))) ->  | D70: =IF(INTRO!$E$39<>"Non-endemic", 0, IF(INTRO!$E$37="Non-endemic",0,IF(COUNTRY_INFO!$H70=1,COUNTRY_INFO!E70,0))) -> 0 | E70: =IF(INTRO!$E$39<>"Non-endemic", 0, IF(INTRO!$E$37="Non-endemic",0,IF(COUNTRY_INFO!$H70=1,COUNTRY_INFO!F70,0))) -> 0 | F70: =IF(INTRO!$E$39<>"Non-endemic", 0, IF(INTRO!$E$37="Non-endemic",0,IF(COUNTRY_INFO!$H70=1,COUNTRY_INFO!G70,0))) -> 0 | G70: 0 | H70: =IF(INTRO!$E$39="Non-endemic",IF(INTRO!$E$37="Non-endemic","Not required",COUNTRY_INFO!V70),"Treat with IVM") -> Treat with IVM | I70: 0 | J70: 0 | L70: 0
A71: =IF(INTRO!$E$39<>"Non-endemic", " ", IF(INTRO!$E$37="Non-endemic"," ", IF(COUNTRY_INFO!A71=0," ",COUNTRY_INFO!A71))) ->  | B71: =IF(INTRO!$E$39<>"Non-endemic", " ", IF(INTRO!$E$37="Non-endemic"," ", IF(COUNTRY_INFO!B71=0," ",COUNTRY_INFO!B71))) ->  | C71: =IF(INTRO!$E$39<>"Non-endemic", " ", IF(INTRO!$E$37="Non-endemic"," ", IF(COUNTRY_INFO!C71=0," ",COUNTRY_INFO!C71))) ->  | D71: =IF(INTRO!$E$39<>"Non-endemic", 0, IF(INTRO!$E$37="Non-endemic",0,IF(COUNTRY_INFO!$H71=1,COUNTRY_INFO!E71,0))) -> 0 | E71: =IF(INTRO!$E$39<>"Non-endemic", 0, IF(INTRO!$E$37="Non-endemic",0,IF(COUNTRY_INFO!$H71=1,COUNTRY_INFO!F71,0))) -> 0 | F71: =IF(INTRO!$E$39<>"Non-endemic", 0, IF(INTRO!$E$37="Non-endemic",0,IF(COUNTRY_INFO!$H71=1,COUNTRY_INFO!G71,0))) -> 0 | G71: 0 | H71: =IF(INTRO!$E$39="Non-endemic",IF(INTRO!$E$37="Non-endemic","Not required",COUNTRY_INFO!V71),"Treat with IVM") -> Treat with IVM | I71: 0 | J71: 0 | L71: 0
A72: =IF(INTRO!$E$39<>"Non-endemic", " ", IF(INTRO!$E$37="Non-endemic"," ", IF(COUNTRY_INFO!A72=0," ",COUNTRY_INFO!A72))) ->  | B72: =IF(INTRO!$E$39<>"Non-endemic", " ", IF(INTRO!$E$37="Non-endemic"," ", IF(COUNTRY_INFO!B72=0," ",COUNTRY_INFO!B72))) ->  | C72: =IF(INTRO!$E$39<>"Non-endemic", " ", IF(INTRO!$E$37="Non-endemic"," ", IF(COUNTRY_INFO!C72=0," ",COUNTRY_INFO!C72))) ->  | D72: =IF(INTRO!$E$39<>"Non-endemic", 0, IF(INTRO!$E$37="Non-endemic",0,IF(COUNTRY_INFO!$H72=1,COUNTRY_INFO!E72,0))) -> 0 | E72: =IF(INTRO!$E$39<>"Non-endemic", 0, IF(INTRO!$E$37="Non-endemic",0,IF(COUNTRY_INFO!$H72=1,COUNTRY_INFO!F72,0))) -> 0 | F72: =IF(INTRO!$E$39<>"Non-endemic", 0, IF(INTRO!$E$37="Non-endemic",0,IF(COUNTRY_INFO!$H72=1,COUNTRY_INFO!G72,0))) -> 0 | G72: 0 | H72: =IF(INTRO!$E$39="Non-endemic",IF(INTRO!$E$37="Non-endemic","Not required",COUNTRY_INFO!V72),"Treat with IVM") -> Treat with IVM | I72: 0 | J72: 0 | L72: 0
A73: =IF(INTRO!$E$39<>"Non-endemic", " ", IF(INTRO!$E$37="Non-endemic"," ", IF(COUNTRY_INFO!A73=0," ",COUNTRY_INFO!A73))) ->  | B73: =IF(INTRO!$E$39<>"Non-endemic", " ", IF(INTRO!$E$37="Non-endemic"," ", IF(COUNTRY_INFO!B73=0," ",COUNTRY_INFO!B73))) ->  | C73: =IF(INTRO!$E$39<>"Non-endemic", " ", IF(INTRO!$E$37="Non-endemic"," ", IF(COUNTRY_INFO!C73=0," ",COUNTRY_INFO!C73))) ->  | D73: =IF(INTRO!$E$39<>"Non-endemic", 0, IF(INTRO!$E$37="Non-endemic",0,IF(COUNTRY_INFO!$H73=1,COUNTRY_INFO!E73,0))) -> 0 | E73: =IF(INTRO!$E$39<>"Non-endemic", 0, IF(INTRO!$E$37="Non-endemic",0,IF(COUNTRY_INFO!$H73=1,COUNTRY_INFO!F73,0))) -> 0 | F73: =IF(INTRO!$E$39<>"Non-endemic", 0, IF(INTRO!$E$37="Non-endemic",0,IF(COUNTRY_INFO!$H73=1,COUNTRY_INFO!G73,0))) -> 0 | G73: 0 | H73: =IF(INTRO!$E$39="Non-endemic",IF(INTRO!$E$37="Non-endemic","Not required",COUNTRY_INFO!V73),"Treat with IVM") -> Treat with IVM | I73: 0 | J73: 0 | L73: 0
A74: =IF(INTRO!$E$39<>"Non-endemic", " ", IF(INTRO!$E$37="Non-endemic"," ", IF(COUNTRY_INFO!A74=0," ",COUNTRY_INFO!A74))) ->  | B74: =IF(INTRO!$E$39<>"Non-endemic", " ", IF(INTRO!$E$37="Non-endemic"," ", IF(COUNTRY_INFO!B74=0," ",COUNTRY_INFO!B74))) ->  | C74: =IF(INTRO!$E$39<>"Non-endemic", " ", IF(INTRO!$E$37="Non-endemic"," ", IF(COUNTRY_INFO!C74=0," ",COUNTRY_INFO!C74))) ->  | D74: =IF(INTRO!$E$39<>"Non-endemic", 0, IF(INTRO!$E$37="Non-endemic",0,IF(COUNTRY_INFO!$H74=1,COUNTRY_INFO!E74,0))) -> 0 | E74: =IF(INTRO!$E$39<>"Non-endemic", 0, IF(INTRO!$E$37="Non-endemic",0,IF(COUNTRY_INFO!$H74=1,COUNTRY_INFO!F74,0))) -> 0 | F74: =IF(INTRO!$E$39<>"Non-endemic", 0, IF(INTRO!$E$37="Non-endemic",0,IF(COUNTRY_INFO!$H74=1,COUNTRY_INFO!G74,0))) -> 0 | G74: 0 | H74: =IF(INTRO!$E$39="Non-endemic",IF(INTRO!$E$37="Non-endemic","Not required",COUNTRY_INFO!V74),"Treat with IVM") -> Treat with IVM | I74: 0 | J74: 0 | L74: 0
A75: =IF(INTRO!$E$39<>"Non-endemic", " ", IF(INTRO!$E$37="Non-endemic"," ", IF(COUNTRY_INFO!A75=0," ",COUNTRY_INFO!A75))) ->  | B75: =IF(INTRO!$E$39<>"Non-endemic", " ", IF(INTRO!$E$37="Non-endemic"," ", IF(COUNTRY_INFO!B75=0," ",COUNTRY_INFO!B75))) ->  | C75: =IF(INTRO!$E$39<>"Non-endemic", " ", IF(INTRO!$E$37="Non-endemic"," ", IF(COUNTRY_INFO!C75=0," ",COUNTRY_INFO!C75))) ->  | D75: =IF(INTRO!$E$39<>"Non-endemic", 0, IF(INTRO!$E$37="Non-endemic",0,IF(COUNTRY_INFO!$H75=1,COUNTRY_INFO!E75,0))) -> 0 | E75: =IF(INTRO!$E$39<>"Non-endemic", 0, IF(INTRO!$E$37="Non-endemic",0,IF(COUNTRY_INFO!$H75=1,COUNTRY_INFO!F75,0))) -> 0 | F75: =IF(INTRO!$E$39<>"Non-endemic", 0, IF(INTRO!$E$37="Non-endemic",0,IF(COUNTRY_INFO!$H75=1,COUNTRY_INFO!G75,0))) -> 0 | G75: =SUM(D75:F75) -> 0 | H75: =IF(INTRO!$E$39="Non-endemic",IF(INTRO!$E$37="Non-endemic","Not required",COUNTRY_INFO!V75),"Treat with IVM") -> Treat with IVM | I75: =IF(H75=1,G75,0) -> 0 | J75: =IF(I75>0,I75*2.5,0) -> 0 | L75: 0
A76: =IF(INTRO!$E$39<>"Non-endemic", " ", IF(INTRO!$E$37="Non-endemic"," ", IF(COUNTRY_INFO!A76=0," ",COUNTRY_INFO!A76))) ->  | B76: =IF(INTRO!$E$39<>"Non-endemic", " ", IF(INTRO!$E$37="Non-endemic"," ", IF(COUNTRY_INFO!B76=0," ",COUNTRY_INFO!B76))) ->  | C76: =IF(INTRO!$E$39<>"Non-endemic", " ", IF(INTRO!$E$37="Non-endemic"," ", IF(COUNTRY_INFO!C76=0," ",COUNTRY_INFO!C76))) ->  | D76: =IF(INTRO!$E$39<>"Non-endemic", 0, IF(INTRO!$E$37="Non-endemic",0,IF(COUNTRY_INFO!$H76=1,COUNTRY_INFO!E76,0))) -> 0 | E76: =IF(INTRO!$E$39<>"Non-endemic", 0, IF(INTRO!$E$37="Non-endemic",0,IF(COUNTRY_INFO!$H76=1,COUNTRY_INFO!F76,0))) -> 0 | F76: =IF(INTRO!$E$39<>"Non-endemic", 0, IF(INTRO!$E$37="Non-endemic",0,IF(COUNTRY_INFO!$H76=1,COUNTRY_INFO!G76,0))) -> 0 | G76: 0 | H76: =IF(INTRO!$E$39="Non-endemic",IF(INTRO!$E$37="Non-endemic","Not required",COUNTRY_INFO!V76),"Treat with IVM") -> Treat with IVM | I76: 0 | J76: 0 | L76: 0
A77: =IF(INTRO!$E$39<>"Non-endemic", " ", IF(INTRO!$E$37="Non-endemic"," ", IF(COUNTRY_INFO!A77=0," ",COUNTRY_INFO!A77))) ->  | B77: =IF(INTRO!$E$39<>"Non-endemic", " ", IF(INTRO!$E$37="Non-endemic"," ", IF(COUNTRY_INFO!B77=0," ",COUNTRY_INFO!B77))) ->  | C77: =IF(INTRO!$E$39<>"Non-endemic", " ", IF(INTRO!$E$37="Non-endemic"," ", IF(COUNTRY_INFO!C77=0," ",COUNTRY_INFO!C77))) ->  | D77: =IF(INTRO!$E$39<>"Non-endemic", 0, IF(INTRO!$E$37="Non-endemic",0,IF(COUNTRY_INFO!$H77=1,COUNTRY_INFO!E77,0))) -> 0 | E77: =IF(INTRO!$E$39<>"Non-endemic", 0, IF(INTRO!$E$37="Non-endemic",0,IF(COUNTRY_INFO!$H77=1,COUNTRY_INFO!F77,0))) -> 0 | F77: =IF(INTRO!$E$39<>"Non-endemic", 0, IF(INTRO!$E$37="Non-endemic",0,IF(COUNTRY_INFO!$H77=1,COUNTRY_INFO!G77,0))) -> 0 | G77: 0 | H77: =IF(INTRO!$E$39="Non-endemic",IF(INTRO!$E$37="Non-endemic","Not required",COUNTRY_INFO!V77),"Treat with IVM") -> Treat with IVM | I77: 0 | J77: 0 | L77: 0
A78: =IF(INTRO!$E$39<>"Non-endemic", " ", IF(INTRO!$E$37="Non-endemic"," ", IF(COUNTRY_INFO!A78=0," ",COUNTRY_INFO!A78))) ->  | B78: =IF(INTRO!$E$39<>"Non-endemic", " ", IF(INTRO!$E$37="Non-endemic"," ", IF(COUNTRY_INFO!B78=0," ",COUNTRY_INFO!B78))) ->  | C78: =IF(INTRO!$E$39<>"Non-endemic", " ", IF(INTRO!$E$37="Non-endemic"," ", IF(COUNTRY_INFO!C78=0," ",COUNTRY_INFO!C78))) ->  | D78: =IF(INTRO!$E$39<>"Non-endemic", 0, IF(INTRO!$E$37="Non-endemic",0,IF(COUNTRY_INFO!$H78=1,COUNTRY_INFO!E78,0))) -> 0 | E78: =IF(INTRO!$E$39<>"Non-endemic", 0, IF(INTRO!$E$37="Non-endemic",0,IF(COUNTRY_INFO!$H78=1,COUNTRY_INFO!F78,0))) -> 0 | F78: =IF(INTRO!$E$39<>"Non-endemic", 0, IF(INTRO!$E$37="Non-endemic",0,IF(COUNTRY_INFO!$H78=1,COUNTRY_INFO!G78,0))) -> 0 | G78: 0 | H78: =IF(INTRO!$E$39="Non-endemic",IF(INTRO!$E$37="Non-endemic","Not required",COUNTRY_INFO!V78),"Treat with IVM") -> Treat with IVM | I78: 0 | J78: 0 | L78: 0
A79: =IF(INTRO!$E$39<>"Non-endemic", " ", IF(INTRO!$E$37="Non-endemic"," ", IF(COUNTRY_INFO!A79=0," ",COUNTRY_INFO!A79))) ->  | B79: =IF(INTRO!$E$39<>"Non-endemic", " ", IF(INTRO!$E$37="Non-endemic"," ", IF(COUNTRY_INFO!B79=0," ",COUNTRY_INFO!B79))) ->  | C79: =IF(INTRO!$E$39<>"Non-endemic", " ", IF(INTRO!$E$37="Non-endemic"," ", IF(COUNTRY_INFO!C79=0," ",COUNTRY_INFO!C79))) ->  | D79: =IF(INTRO!$E$39<>"Non-endemic", 0, IF(INTRO!$E$37="Non-endemic",0,IF(COUNTRY_INFO!$H79=1,COUNTRY_INFO!E79,0))) -> 0 | E79: =IF(INTRO!$E$39<>"Non-endemic", 0, IF(INTRO!$E$37="Non-endemic",0,IF(COUNTRY_INFO!$H79=1,COUNTRY_INFO!F79,0))) -> 0 | F79: =IF(INTRO!$E$39<>"Non-endemic", 0, IF(INTRO!$E$37="Non-endemic",0,IF(COUNTRY_INFO!$H79=1,COUNTRY_INFO!G79,0))) -> 0 | G79: 0 | H79: =IF(INTRO!$E$39="Non-endemic",IF(INTRO!$E$37="Non-endemic","Not required",COUNTRY_INFO!V79),"Treat with IVM") -> Treat with IVM | I79: 0 | J79: 0 | L79: 0
A80: =IF(INTRO!$E$39<>"Non-endemic", " ", IF(INTRO!$E$37="Non-endemic"," ", IF(COUNTRY_INFO!A80=0," ",COUNTRY_INFO!A80))) ->  | B80: =IF(INTRO!$E$39<>"Non-endemic", " ", IF(INTRO!$E$37="Non-endemic"," ", IF(COUNTRY_INFO!B80=0," ",COUNTRY_INFO!B80))) ->  | C80: =IF(INTRO!$E$39<>"Non-endemic", " ", IF(INTRO!$E$37="Non-endemic"," ", IF(COUNTRY_INFO!C80=0," ",COUNTRY_INFO!C80))) ->  | D80: =IF(INTRO!$E$39<>"Non-endemic", 0, IF(INTRO!$E$37="Non-endemic",0,IF(COUNTRY_INFO!$H80=1,COUNTRY_INFO!E80,0))) -> 0 | E80: =IF(INTRO!$E$39<>"Non-endemic", 0, IF(INTRO!$E$37="Non-endemic",0,IF(COUNTRY_INFO!$H80=1,COUNTRY_INFO!F80,0))) -> 0 | F80: =IF(INTRO!$E$39<>"Non-endemic", 0, IF(INTRO!$E$37="Non-endemic",0,IF(COUNTRY_INFO!$H80=1,COUNTRY_INFO!G80,0))) -> 0 | G80: 0 | H80: =IF(INTRO!$E$39="Non-endemic",IF(INTRO!$E$37="Non-endemic","Not required",COUNTRY_INFO!V80),"Treat with IVM") -> Treat with IVM | I80: 0 | J80: 0 | L80: 0
A81: =IF(INTRO!$E$39<>"Non-endemic", " ", IF(INTRO!$E$37="Non-endemic"," ", IF(COUNTRY_INFO!A81=0," ",COUNTRY_INFO!A81))) ->  | B81: =IF(INTRO!$E$39<>"Non-endemic", " ", IF(INTRO!$E$37="Non-endemic"," ", IF(COUNTRY_INFO!B81=0," ",COUNTRY_INFO!B81))) ->  | C81: =IF(INTRO!$E$39<>"Non-endemic", " ", IF(INTRO!$E$37="Non-endemic"," ", IF(COUNTRY_INFO!C81=0," ",COUNTRY_INFO!C81))) ->  | D81: =IF(INTRO!$E$39<>"Non-endemic", 0, IF(INTRO!$E$37="Non-endemic",0,IF(COUNTRY_INFO!$H81=1,COUNTRY_INFO!E81,0))) -> 0 | E81: =IF(INTRO!$E$39<>"Non-endemic", 0, IF(INTRO!$E$37="Non-endemic",0,IF(COUNTRY_INFO!$H81=1,COUNTRY_INFO!F81,0))) -> 0 | F81: =IF(INTRO!$E$39<>"Non-endemic", 0, IF(INTRO!$E$37="Non-endemic",0,IF(COUNTRY_INFO!$H81=1,COUNTRY_INFO!G81,0))) -> 0 | G81: 0 | H81: =IF(INTRO!$E$39="Non-endemic",IF(INTRO!$E$37="Non-endemic","Not required",COUNTRY_INFO!V81),"Treat with IVM") -> Treat with IVM | I81: 0 | J81: 0 | L81: 0
A82: =IF(INTRO!$E$39<>"Non-endemic", " ", IF(INTRO!$E$37="Non-endemic"," ", IF(COUNTRY_INFO!A82=0," ",COUNTRY_INFO!A82))) ->  | B82: =IF(INTRO!$E$39<>"Non-endemic", " ", IF(INTRO!$E$37="Non-endemic"," ", IF(COUNTRY_INFO!B82=0," ",COUNTRY_INFO!B82))) ->  | C82: =IF(INTRO!$E$39<>"Non-endemic", " ", IF(INTRO!$E$37="Non-endemic"," ", IF(COUNTRY_INFO!C82=0," ",COUNTRY_INFO!C82))) ->  | D82: =IF(INTRO!$E$39<>"Non-endemic", 0, IF(INTRO!$E$37="Non-endemic",0,IF(COUNTRY_INFO!$H82=1,COUNTRY_INFO!E82,0))) -> 0 | E82: =IF(INTRO!$E$39<>"Non-endemic", 0, IF(INTRO!$E$37="Non-endemic",0,IF(COUNTRY_INFO!$H82=1,COUNTRY_INFO!F82,0))) -> 0 | F82: =IF(INTRO!$E$39<>"Non-endemic", 0, IF(INTRO!$E$37="Non-endemic",0,IF(COUNTRY_INFO!$H82=1,COUNTRY_INFO!G82,0))) -> 0 | G82: 0 | H82: =IF(INTRO!$E$39="Non-endemic",IF(INTRO!$E$37="Non-endemic","Not required",COUNTRY_INFO!V82),"Treat with IVM") -> Treat with IVM | I82: 0 | J82: 0 | L82: 0
A83: =IF(INTRO!$E$39<>"Non-endemic", " ", IF(INTRO!$E$37="Non-endemic"," ", IF(COUNTRY_INFO!A83=0," ",COUNTRY_INFO!A83))) ->  | B83: =IF(INTRO!$E$39<>"Non-endemic", " ", IF(INTRO!$E$37="Non-endemic"," ", IF(COUNTRY_INFO!B83=0," ",COUNTRY_INFO!B83))) ->  | C83: =IF(INTRO!$E$39<>"Non-endemic", " ", IF(INTRO!$E$37="Non-endemic"," ", IF(COUNTRY_INFO!C83=0," ",COUNTRY_INFO!C83))) ->  | D83: =IF(INTRO!$E$39<>"Non-endemic", 0, IF(INTRO!$E$37="Non-endemic",0,IF(COUNTRY_INFO!$H83=1,COUNTRY_INFO!E83,0))) -> 0 | E83: =IF(INTRO!$E$39<>"Non-endemic", 0, IF(INTRO!$E$37="Non-endemic",0,IF(COUNTRY_INFO!$H83=1,COUNTRY_INFO!F83,0))) -> 0 | F83: =IF(INTRO!$E$39<>"Non-endemic", 0, IF(INTRO!$E$37="Non-endemic",0,IF(COUNTRY_INFO!$H83=1,COUNTRY_INFO!G83,0))) -> 0 | G83: 0 | H83: =IF(INTRO!$E$39="Non-endemic",IF(INTRO!$E$37="Non-endemic","Not required",COUNTRY_INFO!V83),"Treat with IVM") -> Treat with IVM | I83: 0 | J83: 0 | L83: 0
A84: =IF(INTRO!$E$39<>"Non-endemic", " ", IF(INTRO!$E$37="Non-endemic"," ", IF(COUNTRY_INFO!A84=0," ",COUNTRY_INFO!A84))) ->  | B84: =IF(INTRO!$E$39<>"Non-endemic", " ", IF(INTRO!$E$37="Non-endemic"," ", IF(COUNTRY_INFO!B84=0," ",COUNTRY_INFO!B84))) ->  | C84: =IF(INTRO!$E$39<>"Non-endemic", " ", IF(INTRO!$E$37="Non-endemic"," ", IF(COUNTRY_INFO!C84=0," ",COUNTRY_INFO!C84))) ->  | D84: =IF(INTRO!$E$39<>"Non-endemic", 0, IF(INTRO!$E$37="Non-endemic",0,IF(COUNTRY_INFO!$H84=1,COUNTRY_INFO!E84,0))) -> 0 | E84: =IF(INTRO!$E$39<>"Non-endemic", 0, IF(INTRO!$E$37="Non-endemic",0,IF(COUNTRY_INFO!$H84=1,COUNTRY_INFO!F84,0))) -> 0 | F84: =IF(INTRO!$E$39<>"Non-endemic", 0, IF(INTRO!$E$37="Non-endemic",0,IF(COUNTRY_INFO!$H84=1,COUNTRY_INFO!G84,0))) -> 0 | G84: 0 | H84: =IF(INTRO!$E$39="Non-endemic",IF(INTRO!$E$37="Non-endemic","Not required",COUNTRY_INFO!V84),"Treat with IVM") -> Treat with IVM | I84: 0 | J84: 0 | L84: 0
A85: =IF(INTRO!$E$39<>"Non-endemic", " ", IF(INTRO!$E$37="Non-endemic"," ", IF(COUNTRY_INFO!A85=0," ",COUNTRY_INFO!A85))) ->  | B85: =IF(INTRO!$E$39<>"Non-endemic", " ", IF(INTRO!$E$37="Non-endemic"," ", IF(COUNTRY_INFO!B85=0," ",COUNTRY_INFO!B85))) ->  | C85: =IF(INTRO!$E$39<>"Non-endemic", " ", IF(INTRO!$E$37="Non-endemic"," ", IF(COUNTRY_INFO!C85=0," ",COUNTRY_INFO!C85))) ->  | D85: =IF(INTRO!$E$39<>"Non-endemic", 0, IF(INTRO!$E$37="Non-endemic",0,IF(COUNTRY_INFO!$H85=1,COUNTRY_INFO!E85,0))) -> 0 | E85: =IF(INTRO!$E$39<>"Non-endemic", 0, IF(INTRO!$E$37="Non-endemic",0,IF(COUNTRY_INFO!$H85=1,COUNTRY_INFO!F85,0))) -> 0 | F85: =IF(INTRO!$E$39<>"Non-endemic", 0, IF(INTRO!$E$37="Non-endemic",0,IF(COUNTRY_INFO!$H85=1,COUNTRY_INFO!G85,0))) -> 0 | G85: 0 | H85: =IF(INTRO!$E$39="Non-endemic",IF(INTRO!$E$37="Non-endemic","Not required",COUNTRY_INFO!V85),"Treat with IVM") -> Treat with IVM | I85: 0 | J85: 0 | L85: 0
A86: =IF(INTRO!$E$39<>"Non-endemic", " ", IF(INTRO!$E$37="Non-endemic"," ", IF(COUNTRY_INFO!A86=0," ",COUNTRY_INFO!A86))) ->  | B86: =IF(INTRO!$E$39<>"Non-endemic", " ", IF(INTRO!$E$37="Non-endemic"," ", IF(COUNTRY_INFO!B86=0," ",COUNTRY_INFO!B86))) ->  | C86: =IF(INTRO!$E$39<>"Non-endemic", " ", IF(INTRO!$E$37="Non-endemic"," ", IF(COUNTRY_INFO!C86=0," ",COUNTRY_INFO!C86))) ->  | D86: =IF(INTRO!$E$39<>"Non-endemic", 0, IF(INTRO!$E$37="Non-endemic",0,IF(COUNTRY_INFO!$H86=1,COUNTRY_INFO!E86,0))) -> 0 | E86: =IF(INTRO!$E$39<>"Non-endemic", 0, IF(INTRO!$E$37="Non-endemic",0,IF(COUNTRY_INFO!$H86=1,COUNTRY_INFO!F86,0))) -> 0 | F86: =IF(INTRO!$E$39<>"Non-endemic", 0, IF(INTRO!$E$37="Non-endemic",0,IF(COUNTRY_INFO!$H86=1,COUNTRY_INFO!G86,0))) -> 0 | G86: 0 | H86: =IF(INTRO!$E$39="Non-endemic",IF(INTRO!$E$37="Non-endemic","Not required",COUNTRY_INFO!V86),"Treat with IVM") -> Treat with IVM | I86: 0 | J86: 0 | L86: 0
A87: =IF(INTRO!$E$39<>"Non-endemic", " ", IF(INTRO!$E$37="Non-endemic"," ", IF(COUNTRY_INFO!A87=0," ",COUNTRY_INFO!A87))) ->  | B87: =IF(INTRO!$E$39<>"Non-endemic", " ", IF(INTRO!$E$37="Non-endemic"," ", IF(COUNTRY_INFO!B87=0," ",COUNTRY_INFO!B87))) ->  | C87: =IF(INTRO!$E$39<>"Non-endemic", " ", IF(INTRO!$E$37="Non-endemic"," ", IF(COUNTRY_INFO!C87=0," ",COUNTRY_INFO!C87))) ->  | D87: =IF(INTRO!$E$39<>"Non-endemic", 0, IF(INTRO!$E$37="Non-endemic",0,IF(COUNTRY_INFO!$H87=1,COUNTRY_INFO!E87,0))) -> 0 | E87: =IF(INTRO!$E$39<>"Non-endemic", 0, IF(INTRO!$E$37="Non-endemic",0,IF(COUNTRY_INFO!$H87=1,COUNTRY_INFO!F87,0))) -> 0 | F87: =IF(INTRO!$E$39<>"Non-endemic", 0, IF(INTRO!$E$37="Non-endemic",0,IF(COUNTRY_INFO!$H87=1,COUNTRY_INFO!G87,0))) -> 0 | G87: 0 | H87: =IF(INTRO!$E$39="Non-endemic",IF(INTRO!$E$37="Non-endemic","Not required",COUNTRY_INFO!V87),"Treat with IVM") -> Treat with IVM | I87: 0 | J87: 0 | L87: 0
A88: =IF(INTRO!$E$39<>"Non-endemic", " ", IF(INTRO!$E$37="Non-endemic"," ", IF(COUNTRY_INFO!A88=0," ",COUNTRY_INFO!A88))) ->  | B88: =IF(INTRO!$E$39<>"Non-endemic", " ", IF(INTRO!$E$37="Non-endemic"," ", IF(COUNTRY_INFO!B88=0," ",COUNTRY_INFO!B88))) ->  | C88: =IF(INTRO!$E$39<>"Non-endemic", " ", IF(INTRO!$E$37="Non-endemic"," ", IF(COUNTRY_INFO!C88=0," ",COUNTRY_INFO!C88))) ->  | D88: =IF(INTRO!$E$39<>"Non-endemic", 0, IF(INTRO!$E$37="Non-endemic",0,IF(COUNTRY_INFO!$H88=1,COUNTRY_INFO!E88,0))) -> 0 | E88: =IF(INTRO!$E$39<>"Non-endemic", 0, IF(INTRO!$E$37="Non-endemic",0,IF(COUNTRY_INFO!$H88=1,COUNTRY_INFO!F88,0))) -> 0 | F88: =IF(INTRO!$E$39<>"Non-endemic", 0, IF(INTRO!$E$37="Non-endemic",0,IF(COUNTRY_INFO!$H88=1,COUNTRY_INFO!G88,0))) -> 0 | G88: 0 | H88: =IF(INTRO!$E$39="Non-endemic",IF(INTRO!$E$37="Non-endemic","Not required",COUNTRY_INFO!V88),"Treat with IVM") -> Treat with IVM | I88: 0 | J88: 0 | L88: 0
A89: =IF(INTRO!$E$39<>"Non-endemic", " ", IF(INTRO!$E$37="Non-endemic"," ", IF(COUNTRY_INFO!A89=0," ",COUNTRY_INFO!A89))) ->  | B89: =IF(INTRO!$E$39<>"Non-endemic", " ", IF(INTRO!$E$37="Non-endemic"," ", IF(COUNTRY_INFO!B89=0," ",COUNTRY_INFO!B89))) ->  | C89: =IF(INTRO!$E$39<>"Non-endemic", " ", IF(INTRO!$E$37="Non-endemic"," ", IF(COUNTRY_INFO!C89=0," ",COUNTRY_INFO!C89))) ->  | D89: =IF(INTRO!$E$39<>"Non-endemic", 0, IF(INTRO!$E$37="Non-endemic",0,IF(COUNTRY_INFO!$H89=1,COUNTRY_INFO!E89,0))) -> 0 | E89: =IF(INTRO!$E$39<>"Non-endemic", 0, IF(INTRO!$E$37="Non-endemic",0,IF(COUNTRY_INFO!$H89=1,COUNTRY_INFO!F89,0))) -> 0 | F89: =IF(INTRO!$E$39<>"Non-endemic", 0, IF(INTRO!$E$37="Non-endemic",0,IF(COUNTRY_INFO!$H89=1,COUNTRY_INFO!G89,0))) -> 0 | G89: 0 | H89: =IF(INTRO!$E$39="Non-endemic",IF(INTRO!$E$37="Non-endemic","Not required",COUNTRY_INFO!V89),"Treat with IVM") -> Treat with IVM | I89: 0 | J89: 0 | L89: 0
A90: =IF(INTRO!$E$39<>"Non-endemic", " ", IF(INTRO!$E$37="Non-endemic"," ", IF(COUNTRY_INFO!A90=0," ",COUNTRY_INFO!A90))) ->  | B90: =IF(INTRO!$E$39<>"Non-endemic", " ", IF(INTRO!$E$37="Non-endemic"," ", IF(COUNTRY_INFO!B90=0," ",COUNTRY_INFO!B90))) ->  | C90: =IF(INTRO!$E$39<>"Non-endemic", " ", IF(INTRO!$E$37="Non-endemic"," ", IF(COUNTRY_INFO!C90=0," ",COUNTRY_INFO!C90))) ->  | D90: =IF(INTRO!$E$39<>"Non-endemic", 0, IF(INTRO!$E$37="Non-endemic",0,IF(COUNTRY_INFO!$H90=1,COUNTRY_INFO!E90,0))) -> 0 | E90: =IF(INTRO!$E$39<>"Non-endemic", 0, IF(INTRO!$E$37="Non-endemic",0,IF(COUNTRY_INFO!$H90=1,COUNTRY_INFO!F90,0))) -> 0 | F90: =IF(INTRO!$E$39<>"Non-endemic", 0, IF(INTRO!$E$37="Non-endemic",0,IF(COUNTRY_INFO!$H90=1,COUNTRY_INFO!G90,0))) -> 0 | G90: 0 | H90: =IF(INTRO!$E$39="Non-endemic",IF(INTRO!$E$37="Non-endemic","Not required",COUNTRY_INFO!V90),"Treat with IVM") -> Treat with IVM | I90: 0 | J90: 0 | L90: 0
A91: =IF(INTRO!$E$39<>"Non-endemic", " ", IF(INTRO!$E$37="Non-endemic"," ", IF(COUNTRY_INFO!A91=0," ",COUNTRY_INFO!A91))) ->  | B91: =IF(INTRO!$E$39<>"Non-endemic", " ", IF(INTRO!$E$37="Non-endemic"," ", IF(COUNTRY_INFO!B91=0," ",COUNTRY_INFO!B91))) ->  | C91: =IF(INTRO!$E$39<>"Non-endemic", " ", IF(INTRO!$E$37="Non-endemic"," ", IF(COUNTRY_INFO!C91=0," ",COUNTRY_INFO!C91))) ->  | D91: =IF(INTRO!$E$39<>"Non-endemic", 0, IF(INTRO!$E$37="Non-endemic",0,IF(COUNTRY_INFO!$H91=1,COUNTRY_INFO!E91,0))) -> 0 | E91: =IF(INTRO!$E$39<>"Non-endemic", 0, IF(INTRO!$E$37="Non-endemic",0,IF(COUNTRY_INFO!$H91=1,COUNTRY_INFO!F91,0))) -> 0 | F91: =IF(INTRO!$E$39<>"Non-endemic", 0, IF(INTRO!$E$37="Non-endemic",0,IF(COUNTRY_INFO!$H91=1,COUNTRY_INFO!G91,0))) -> 0 | G91: 0 | H91: =IF(INTRO!$E$39="Non-endemic",IF(INTRO!$E$37="Non-endemic","Not required",COUNTRY_INFO!V91),"Treat with IVM") -> Treat with IVM | I91: 0 | J91: 0 | L91: 0
A92: =IF(INTRO!$E$39<>"Non-endemic", " ", IF(INTRO!$E$37="Non-endemic"," ", IF(COUNTRY_INFO!A92=0," ",COUNTRY_INFO!A92))) ->  | B92: =IF(INTRO!$E$39<>"Non-endemic", " ", IF(INTRO!$E$37="Non-endemic"," ", IF(COUNTRY_INFO!B92=0," ",COUNTRY_INFO!B92))) ->  | C92: =IF(INTRO!$E$39<>"Non-endemic", " ", IF(INTRO!$E$37="Non-endemic"," ", IF(COUNTRY_INFO!C92=0," ",COUNTRY_INFO!C92))) ->  | D92: =IF(INTRO!$E$39<>"Non-endemic", 0, IF(INTRO!$E$37="Non-endemic",0,IF(COUNTRY_INFO!$H92=1,COUNTRY_INFO!E92,0))) -> 0 | E92: =IF(INTRO!$E$39<>"Non-endemic", 0, IF(INTRO!$E$37="Non-endemic",0,IF(COUNTRY_INFO!$H92=1,COUNTRY_INFO!F92,0))) -> 0 | F92: =IF(INTRO!$E$39<>"Non-endemic", 0, IF(INTRO!$E$37="Non-endemic",0,IF(COUNTRY_INFO!$H92=1,COUNTRY_INFO!G92,0))) -> 0 | G92: 0 | H92: =IF(INTRO!$E$39="Non-endemic",IF(INTRO!$E$37="Non-endemic","Not required",COUNTRY_INFO!V92),"Treat with IVM") -> Treat with IVM | I92: 0 | J92: 0 | L92: 0
A93: =IF(INTRO!$E$39<>"Non-endemic", " ", IF(INTRO!$E$37="Non-endemic"," ", IF(COUNTRY_INFO!A93=0," ",COUNTRY_INFO!A93))) ->  | B93: =IF(INTRO!$E$39<>"Non-endemic", " ", IF(INTRO!$E$37="Non-endemic"," ", IF(COUNTRY_INFO!B93=0," ",COUNTRY_INFO!B93))) ->  | C93: =IF(INTRO!$E$39<>"Non-endemic", " ", IF(INTRO!$E$37="Non-endemic"," ", IF(COUNTRY_INFO!C93=0," ",COUNTRY_INFO!C93))) ->  | D93: =IF(INTRO!$E$39<>"Non-endemic", 0, IF(INTRO!$E$37="Non-endemic",0,IF(COUNTRY_INFO!$H93=1,COUNTRY_INFO!E93,0))) -> 0 | E93: =IF(INTRO!$E$39<>"Non-endemic", 0, IF(INTRO!$E$37="Non-endemic",0,IF(COUNTRY_INFO!$H93=1,COUNTRY_INFO!F93,0))) -> 0 | F93: =IF(INTRO!$E$39<>"Non-endemic", 0, IF(INTRO!$E$37="Non-endemic",0,IF(COUNTRY_INFO!$H93=1,COUNTRY_INFO!G93,0))) -> 0 | G93: 0 | H93: =IF(INTRO!$E$39="Non-endemic",IF(INTRO!$E$37="Non-endemic","Not required",COUNTRY_INFO!V93),"Treat with IVM") -> Treat with IVM | I93: 0 | J93: 0 | L93: 0
A94: =IF(INTRO!$E$39<>"Non-endemic", " ", IF(INTRO!$E$37="Non-endemic"," ", IF(COUNTRY_INFO!A94=0," ",COUNTRY_INFO!A94))) ->  | B94: =IF(INTRO!$E$39<>"Non-endemic", " ", IF(INTRO!$E$37="Non-endemic"," ", IF(COUNTRY_INFO!B94=0," ",COUNTRY_INFO!B94))) ->  | C94: =IF(INTRO!$E$39<>"Non-endemic", " ", IF(INTRO!$E$37="Non-endemic"," ", IF(COUNTRY_INFO!C94=0," ",COUNTRY_INFO!C94))) ->  | D94: =IF(INTRO!$E$39<>"Non-endemic", 0, IF(INTRO!$E$37="Non-endemic",0,IF(COUNTRY_INFO!$H94=1,COUNTRY_INFO!E94,0))) -> 0 | E94: =IF(INTRO!$E$39<>"Non-endemic", 0, IF(INTRO!$E$37="Non-endemic",0,IF(COUNTRY_INFO!$H94=1,COUNTRY_INFO!F94,0))) -> 0 | F94: =IF(INTRO!$E$39<>"Non-endemic", 0, IF(INTRO!$E$37="Non-endemic",0,IF(COUNTRY_INFO!$H94=1,COUNTRY_INFO!G94,0))) -> 0 | G94: 0 | H94: =IF(INTRO!$E$39="Non-endemic",IF(INTRO!$E$37="Non-endemic","Not required",COUNTRY_INFO!V94),"Treat with IVM") -> Treat with IVM | I94: 0 | J94: 0 | L94: 0
A95: =IF(INTRO!$E$39<>"Non-endemic", " ", IF(INTRO!$E$37="Non-endemic"," ", IF(COUNTRY_INFO!A95=0," ",COUNTRY_INFO!A95))) ->  | B95: =IF(INTRO!$E$39<>"Non-endemic", " ", IF(INTRO!$E$37="Non-endemic"," ", IF(COUNTRY_INFO!B95=0," ",COUNTRY_INFO!B95))) ->  | C95: =IF(INTRO!$E$39<>"Non-endemic", " ", IF(INTRO!$E$37="Non-endemic"," ", IF(COUNTRY_INFO!C95=0," ",COUNTRY_INFO!C95))) ->  | D95: =IF(INTRO!$E$39<>"Non-endemic", 0, IF(INTRO!$E$37="Non-endemic",0,IF(COUNTRY_INFO!$H95=1,COUNTRY_INFO!E95,0))) -> 0 | E95: =IF(INTRO!$E$39<>"Non-endemic", 0, IF(INTRO!$E$37="Non-endemic",0,IF(COUNTRY_INFO!$H95=1,COUNTRY_INFO!F95,0))) -> 0 | F95: =IF(INTRO!$E$39<>"Non-endemic", 0, IF(INTRO!$E$37="Non-endemic",0,IF(COUNTRY_INFO!$H95=1,COUNTRY_INFO!G95,0))) -> 0 | G95: 0 | H95: =IF(INTRO!$E$39="Non-endemic",IF(INTRO!$E$37="Non-endemic","Not required",COUNTRY_INFO!V95),"Treat with IVM") -> Treat with IVM | I95: 0 | J95: 0 | L95: 0
A96: =IF(INTRO!$E$39<>"Non-endemic", " ", IF(INTRO!$E$37="Non-endemic"," ", IF(COUNTRY_INFO!A96=0," ",COUNTRY_INFO!A96))) ->  | B96: =IF(INTRO!$E$39<>"Non-endemic", " ", IF(INTRO!$E$37="Non-endemic"," ", IF(COUNTRY_INFO!B96=0," ",COUNTRY_INFO!B96))) ->  | C96: =IF(INTRO!$E$39<>"Non-endemic", " ", IF(INTRO!$E$37="Non-endemic"," ", IF(COUNTRY_INFO!C96=0," ",COUNTRY_INFO!C96))) ->  | D96: =IF(INTRO!$E$39<>"Non-endemic", 0, IF(INTRO!$E$37="Non-endemic",0,IF(COUNTRY_INFO!$H96=1,COUNTRY_INFO!E96,0))) -> 0 | E96: =IF(INTRO!$E$39<>"Non-endemic", 0, IF(INTRO!$E$37="Non-endemic",0,IF(COUNTRY_INFO!$H96=1,COUNTRY_INFO!F96,0))) -> 0 | F96: =IF(INTRO!$E$39<>"Non-endemic", 0, IF(INTRO!$E$37="Non-endemic",0,IF(COUNTRY_INFO!$H96=1,COUNTRY_INFO!G96,0))) -> 0 | G96: 0 | H96: =IF(INTRO!$E$39="Non-endemic",IF(INTRO!$E$37="Non-endemic","Not required",COUNTRY_INFO!V96),"Treat with IVM") -> Treat with IVM | I96: 0 | J96: 0 | L96: 0
A97: =IF(INTRO!$E$39<>"Non-endemic", " ", IF(INTRO!$E$37="Non-endemic"," ", IF(COUNTRY_INFO!A97=0," ",COUNTRY_INFO!A97))) ->  | B97: =IF(INTRO!$E$39<>"Non-endemic", " ", IF(INTRO!$E$37="Non-endemic"," ", IF(COUNTRY_INFO!B97=0," ",COUNTRY_INFO!B97))) ->  | C97: =IF(INTRO!$E$39<>"Non-endemic", " ", IF(INTRO!$E$37="Non-endemic"," ", IF(COUNTRY_INFO!C97=0," ",COUNTRY_INFO!C97))) ->  | D97: =IF(INTRO!$E$39<>"Non-endemic", 0, IF(INTRO!$E$37="Non-endemic",0,IF(COUNTRY_INFO!$H97=1,COUNTRY_INFO!E97,0))) -> 0 | E97: =IF(INTRO!$E$39<>"Non-endemic", 0, IF(INTRO!$E$37="Non-endemic",0,IF(COUNTRY_INFO!$H97=1,COUNTRY_INFO!F97,0))) -> 0 | F97: =IF(INTRO!$E$39<>"Non-endemic", 0, IF(INTRO!$E$37="Non-endemic",0,IF(COUNTRY_INFO!$H97=1,COUNTRY_INFO!G97,0))) -> 0 | G97: 0 | H97: =IF(INTRO!$E$39="Non-endemic",IF(INTRO!$E$37="Non-endemic","Not required",COUNTRY_INFO!V97),"Treat with IVM") -> Treat with IVM | I97: 0 | J97: 0 | L97: 0
A98: =IF(INTRO!$E$39<>"Non-endemic", " ", IF(INTRO!$E$37="Non-endemic"," ", IF(COUNTRY_INFO!A98=0," ",COUNTRY_INFO!A98))) ->  | B98: =IF(INTRO!$E$39<>"Non-endemic", " ", IF(INTRO!$E$37="Non-endemic"," ", IF(COUNTRY_INFO!B98=0," ",COUNTRY_INFO!B98))) ->  | C98: =IF(INTRO!$E$39<>"Non-endemic", " ", IF(INTRO!$E$37="Non-endemic"," ", IF(COUNTRY_INFO!C98=0," ",COUNTRY_INFO!C98))) ->  | D98: =IF(INTRO!$E$39<>"Non-endemic", 0, IF(INTRO!$E$37="Non-endemic",0,IF(COUNTRY_INFO!$H98=1,COUNTRY_INFO!E98,0))) -> 0 | E98: =IF(INTRO!$E$39<>"Non-endemic", 0, IF(INTRO!$E$37="Non-endemic",0,IF(COUNTRY_INFO!$H98=1,COUNTRY_INFO!F98,0))) -> 0 | F98: =IF(INTRO!$E$39<>"Non-endemic", 0, IF(INTRO!$E$37="Non-endemic",0,IF(COUNTRY_INFO!$H98=1,COUNTRY_INFO!G98,0))) -> 0 | G98: 0 | H98: =IF(INTRO!$E$39="Non-endemic",IF(INTRO!$E$37="Non-endemic","Not required",COUNTRY_INFO!V98),"Treat with IVM") -> Treat with IVM | I98: 0 | J98: 0 | L98: 0
A99: =IF(INTRO!$E$39<>"Non-endemic", " ", IF(INTRO!$E$37="Non-endemic"," ", IF(COUNTRY_INFO!A99=0," ",COUNTRY_INFO!A99))) ->  | B99: =IF(INTRO!$E$39<>"Non-endemic", " ", IF(INTRO!$E$37="Non-endemic"," ", IF(COUNTRY_INFO!B99=0," ",COUNTRY_INFO!B99))) ->  | C99: =IF(INTRO!$E$39<>"Non-endemic", " ", IF(INTRO!$E$37="Non-endemic"," ", IF(COUNTRY_INFO!C99=0," ",COUNTRY_INFO!C99))) ->  | D99: =IF(INTRO!$E$39<>"Non-endemic", 0, IF(INTRO!$E$37="Non-endemic",0,IF(COUNTRY_INFO!$H99=1,COUNTRY_INFO!E99,0))) -> 0 | E99: =IF(INTRO!$E$39<>"Non-endemic", 0, IF(INTRO!$E$37="Non-endemic",0,IF(COUNTRY_INFO!$H99=1,COUNTRY_INFO!F99,0))) -> 0 | F99: =IF(INTRO!$E$39<>"Non-endemic", 0, IF(INTRO!$E$37="Non-endemic",0,IF(COUNTRY_INFO!$H99=1,COUNTRY_INFO!G99,0))) -> 0 | G99: 0 | H99: =IF(INTRO!$E$39="Non-endemic",IF(INTRO!$E$37="Non-endemic","Not required",COUNTRY_INFO!V99),"Treat with IVM") -> Treat with IVM | I99: 0 | J99: 0 | L99: 0
A100: =IF(INTRO!$E$39<>"Non-endemic", " ", IF(INTRO!$E$37="Non-endemic"," ", IF(COUNTRY_INFO!A100=0," ",COUNTRY_INFO!A100))) ->  | B100: =IF(INTRO!$E$39<>"Non-endemic", " ", IF(INTRO!$E$37="Non-endemic"," ", IF(COUNTRY_INFO!B100=0," ",COUNTRY_INFO!B100))) ->  | C100: =IF(INTRO!$E$39<>"Non-endemic", " ", IF(INTRO!$E$37="Non-endemic"," ", IF(COUNTRY_INFO!C100=0," ",COUNTRY_INFO!C100))) ->  | D100: =IF(INTRO!$E$39<>"Non-endemic", 0, IF(INTRO!$E$37="Non-endemic",0,IF(COUNTRY_INFO!$H100=1,COUNTRY_INFO!E100,0))) -> 0 | E100: =IF(INTRO!$E$39<>"Non-endemic", 0, IF(INTRO!$E$37="Non-endemic",0,IF(COUNTRY_INFO!$H100=1,COUNTRY_INFO!F100,0))) -> 0 | F100: =IF(INTRO!$E$39<>"Non-endemic", 0, IF(INTRO!$E$37="Non-endemic",0,IF(COUNTRY_INFO!$H100=1,COUNTRY_INFO!G100,0))) -> 0 | G100: 0 | H100: =IF(INTRO!$E$39="Non-endemic",IF(INTRO!$E$37="Non-endemic","Not required",COUNTRY_INFO!V100),"Treat with IVM") -> Treat with IVM | I100: 0 | J100: 0 | L100: 0
A101: =IF(INTRO!$E$39<>"Non-endemic", " ", IF(INTRO!$E$37="Non-endemic"," ", IF(COUNTRY_INFO!A101=0," ",COUNTRY_INFO!A101))) ->  | B101: =IF(INTRO!$E$39<>"Non-endemic", " ", IF(INTRO!$E$37="Non-endemic"," ", IF(COUNTRY_INFO!B101=0," ",COUNTRY_INFO!B101))) ->  | C101: =IF(INTRO!$E$39<>"Non-endemic", " ", IF(INTRO!$E$37="Non-endemic"," ", IF(COUNTRY_INFO!C101=0," ",COUNTRY_INFO!C101))) ->  | D101: =IF(INTRO!$E$39<>"Non-endemic", 0, IF(INTRO!$E$37="Non-endemic",0,IF(COUNTRY_INFO!$H101=1,COUNTRY_INFO!E101,0))) -> 0 | E101: =IF(INTRO!$E$39<>"Non-endemic", 0, IF(INTRO!$E$37="Non-endemic",0,IF(COUNTRY_INFO!$H101=1,COUNTRY_INFO!F101,0))) -> 0 | F101: =IF(INTRO!$E$39<>"Non-endemic", 0, IF(INTRO!$E$37="Non-endemic",0,IF(COUNTRY_INFO!$H101=1,COUNTRY_INFO!G101,0))) -> 0 | G101: 0 | H101: =IF(INTRO!$E$39="Non-endemic",IF(INTRO!$E$37="Non-endemic","Not required",COUNTRY_INFO!V101),"Treat with IVM") -> Treat with IVM | I101: 0 | J101: 0 | L101: 0
A102: =IF(INTRO!$E$39<>"Non-endemic", " ", IF(INTRO!$E$37="Non-endemic"," ", IF(COUNTRY_INFO!A102=0," ",COUNTRY_INFO!A102))) ->  | B102: =IF(INTRO!$E$39<>"Non-endemic", " ", IF(INTRO!$E$37="Non-endemic"," ", IF(COUNTRY_INFO!B102=0," ",COUNTRY_INFO!B102))) ->  | C102: =IF(INTRO!$E$39<>"Non-endemic", " ", IF(INTRO!$E$37="Non-endemic"," ", IF(COUNTRY_INFO!C102=0," ",COUNTRY_INFO!C102))) ->  | D102: =IF(INTRO!$E$39<>"Non-endemic", 0, IF(INTRO!$E$37="Non-endemic",0,IF(COUNTRY_INFO!$H102=1,COUNTRY_INFO!E102,0))) -> 0 | E102: =IF(INTRO!$E$39<>"Non-endemic", 0, IF(INTRO!$E$37="Non-endemic",0,IF(COUNTRY_INFO!$H102=1,COUNTRY_INFO!F102,0))) -> 0 | F102: =IF(INTRO!$E$39<>"Non-endemic", 0, IF(INTRO!$E$37="Non-endemic",0,IF(COUNTRY_INFO!$H102=1,COUNTRY_INFO!G102,0))) -> 0 | G102: 0 | H102: =IF(INTRO!$E$39="Non-endemic",IF(INTRO!$E$37="Non-endemic","Not required",COUNTRY_INFO!V102),"Treat with IVM") -> Treat with IVM | I102: 0 | J102: 0 | L102: 0
A103: =IF(INTRO!$E$39<>"Non-endemic", " ", IF(INTRO!$E$37="Non-endemic"," ", IF(COUNTRY_INFO!A103=0," ",COUNTRY_INFO!A103))) ->  | B103: =IF(INTRO!$E$39<>"Non-endemic", " ", IF(INTRO!$E$37="Non-endemic"," ", IF(COUNTRY_INFO!B103=0," ",COUNTRY_INFO!B103))) ->  | C103: =IF(INTRO!$E$39<>"Non-endemic", " ", IF(INTRO!$E$37="Non-endemic"," ", IF(COUNTRY_INFO!C103=0," ",COUNTRY_INFO!C103))) ->  | D103: =IF(INTRO!$E$39<>"Non-endemic", 0, IF(INTRO!$E$37="Non-endemic",0,IF(COUNTRY_INFO!$H103=1,COUNTRY_INFO!E103,0))) -> 0 | E103: =IF(INTRO!$E$39<>"Non-endemic", 0, IF(INTRO!$E$37="Non-endemic",0,IF(COUNTRY_INFO!$H103=1,COUNTRY_INFO!F103,0))) -> 0 | F103: =IF(INTRO!$E$39<>"Non-endemic", 0, IF(INTRO!$E$37="Non-endemic",0,IF(COUNTRY_INFO!$H103=1,COUNTRY_INFO!G103,0))) -> 0 | G103: 0 | H103: =IF(INTRO!$E$39="Non-endemic",IF(INTRO!$E$37="Non-endemic","Not required",COUNTRY_INFO!V103),"Treat with IVM") -> Treat with IVM | I103: 0 | J103: 0 | L103: 0
A104: =IF(INTRO!$E$39<>"Non-endemic", " ", IF(INTRO!$E$37="Non-endemic"," ", IF(COUNTRY_INFO!A104=0," ",COUNTRY_INFO!A104))) ->  | B104: =IF(INTRO!$E$39<>"Non-endemic", " ", IF(INTRO!$E$37="Non-endemic"," ", IF(COUNTRY_INFO!B104=0," ",COUNTRY_INFO!B104))) ->  | C104: =IF(INTRO!$E$39<>"Non-endemic", " ", IF(INTRO!$E$37="Non-endemic"," ", IF(COUNTRY_INFO!C104=0," ",COUNTRY_INFO!C104))) ->  | D104: =IF(INTRO!$E$39<>"Non-endemic", 0, IF(INTRO!$E$37="Non-endemic",0,IF(COUNTRY_INFO!$H104=1,COUNTRY_INFO!E104,0))) -> 0 | E104: =IF(INTRO!$E$39<>"Non-endemic", 0, IF(INTRO!$E$37="Non-endemic",0,IF(COUNTRY_INFO!$H104=1,COUNTRY_INFO!F104,0))) -> 0 | F104: =IF(INTRO!$E$39<>"Non-endemic", 0, IF(INTRO!$E$37="Non-endemic",0,IF(COUNTRY_INFO!$H104=1,COUNTRY_INFO!G104,0))) -> 0 | G104: 0 | H104: =IF(INTRO!$E$39="Non-endemic",IF(INTRO!$E$37="Non-endemic","Not required",COUNTRY_INFO!V104),"Treat with IVM") -> Treat with IVM | I104: 0 | J104: 0 | L104: 0
A105: =IF(INTRO!$E$39<>"Non-endemic", " ", IF(INTRO!$E$37="Non-endemic"," ", IF(COUNTRY_INFO!A105=0," ",COUNTRY_INFO!A105))) ->  | B105: =IF(INTRO!$E$39<>"Non-endemic", " ", IF(INTRO!$E$37="Non-endemic"," ", IF(COUNTRY_INFO!B105=0," ",COUNTRY_INFO!B105))) ->  | C105: =IF(INTRO!$E$39<>"Non-endemic", " ", IF(INTRO!$E$37="Non-endemic"," ", IF(COUNTRY_INFO!C105=0," ",COUNTRY_INFO!C105))) ->  | D105: =IF(INTRO!$E$39<>"Non-endemic", 0, IF(INTRO!$E$37="Non-endemic",0,IF(COUNTRY_INFO!$H105=1,COUNTRY_INFO!E105,0))) -> 0 | E105: =IF(INTRO!$E$39<>"Non-endemic", 0, IF(INTRO!$E$37="Non-endemic",0,IF(COUNTRY_INFO!$H105=1,COUNTRY_INFO!F105,0))) -> 0 | F105: =IF(INTRO!$E$39<>"Non-endemic", 0, IF(INTRO!$E$37="Non-endemic",0,IF(COUNTRY_INFO!$H105=1,COUNTRY_INFO!G105,0))) -> 0 | G105: 0 | H105: =IF(INTRO!$E$39="Non-endemic",IF(INTRO!$E$37="Non-endemic","Not required",COUNTRY_INFO!V105),"Treat with IVM") -> Treat with IVM | I105: 0 | J105: 0 | L105: 0
A106: =IF(INTRO!$E$39<>"Non-endemic", " ", IF(INTRO!$E$37="Non-endemic"," ", IF(COUNTRY_INFO!A106=0," ",COUNTRY_INFO!A106))) ->  | B106: =IF(INTRO!$E$39<>"Non-endemic", " ", IF(INTRO!$E$37="Non-endemic"," ", IF(COUNTRY_INFO!B106=0," ",COUNTRY_INFO!B106))) ->  | C106: =IF(INTRO!$E$39<>"Non-endemic", " ", IF(INTRO!$E$37="Non-endemic"," ", IF(COUNTRY_INFO!C106=0," ",COUNTRY_INFO!C106))) ->  | D106: =IF(INTRO!$E$39<>"Non-endemic", 0, IF(INTRO!$E$37="Non-endemic",0,IF(COUNTRY_INFO!$H106=1,COUNTRY_INFO!E106,0))) -> 0 | E106: =IF(INTRO!$E$39<>"Non-endemic", 0, IF(INTRO!$E$37="Non-endemic",0,IF(COUNTRY_INFO!$H106=1,COUNTRY_INFO!F106,0))) -> 0 | F106: =IF(INTRO!$E$39<>"Non-endemic", 0, IF(INTRO!$E$37="Non-endemic",0,IF(COUNTRY_INFO!$H106=1,COUNTRY_INFO!G106,0))) -> 0 | G106: 0 | H106: =IF(INTRO!$E$39="Non-endemic",IF(INTRO!$E$37="Non-endemic","Not required",COUNTRY_INFO!V106),"Treat with IVM") -> Treat with IVM | I106: 0 | J106: 0 | L106: 0
A107: =IF(INTRO!$E$39<>"Non-endemic", " ", IF(INTRO!$E$37="Non-endemic"," ", IF(COUNTRY_INFO!A107=0," ",COUNTRY_INFO!A107))) ->  | B107: =IF(INTRO!$E$39<>"Non-endemic", " ", IF(INTRO!$E$37="Non-endemic"," ", IF(COUNTRY_INFO!B107=0," ",COUNTRY_INFO!B107))) ->  | C107: =IF(INTRO!$E$39<>"Non-endemic", " ", IF(INTRO!$E$37="Non-endemic"," ", IF(COUNTRY_INFO!C107=0," ",COUNTRY_INFO!C107))) ->  | D107: =IF(INTRO!$E$39<>"Non-endemic", 0, IF(INTRO!$E$37="Non-endemic",0,IF(COUNTRY_INFO!$H107=1,COUNTRY_INFO!E107,0))) -> 0 | E107: =IF(INTRO!$E$39<>"Non-endemic", 0, IF(INTRO!$E$37="Non-endemic",0,IF(COUNTRY_INFO!$H107=1,COUNTRY_INFO!F107,0))) -> 0 | F107: =IF(INTRO!$E$39<>"Non-endemic", 0, IF(INTRO!$E$37="Non-endemic",0,IF(COUNTRY_INFO!$H107=1,COUNTRY_INFO!G107,0))) -> 0 | G107: 0 | H107: =IF(INTRO!$E$39="Non-endemic",IF(INTRO!$E$37="Non-endemic","Not required",COUNTRY_INFO!V107),"Treat with IVM") -> Treat with IVM | I107: 0 | J107: 0 | L107: 0
A108: =IF(INTRO!$E$39<>"Non-endemic", " ", IF(INTRO!$E$37="Non-endemic"," ", IF(COUNTRY_INFO!A108=0," ",COUNTRY_INFO!A108))) ->  | B108: =IF(INTRO!$E$39<>"Non-endemic", " ", IF(INTRO!$E$37="Non-endemic"," ", IF(COUNTRY_INFO!B108=0," ",COUNTRY_INFO!B108))) ->  | C108: =IF(INTRO!$E$39<>"Non-endemic", " ", IF(INTRO!$E$37="Non-endemic"," ", IF(COUNTRY_INFO!C108=0," ",COUNTRY_INFO!C108))) ->  | D108: =IF(INTRO!$E$39<>"Non-endemic", 0, IF(INTRO!$E$37="Non-endemic",0,IF(COUNTRY_INFO!$H108=1,COUNTRY_INFO!E108,0))) -> 0 | E108: =IF(INTRO!$E$39<>"Non-endemic", 0, IF(INTRO!$E$37="Non-endemic",0,IF(COUNTRY_INFO!$H108=1,COUNTRY_INFO!F108,0))) -> 0 | F108: =IF(INTRO!$E$39<>"Non-endemic", 0, IF(INTRO!$E$37="Non-endemic",0,IF(COUNTRY_INFO!$H108=1,COUNTRY_INFO!G108,0))) -> 0 | G108: 0 | H108: =IF(INTRO!$E$39="Non-endemic",IF(INTRO!$E$37="Non-endemic","Not required",COUNTRY_INFO!V108),"Treat with IVM") -> Treat with IVM | I108: 0 | J108: 0 | L108: 0
A109: =IF(INTRO!$E$39<>"Non-endemic", " ", IF(INTRO!$E$37="Non-endemic"," ", IF(COUNTRY_INFO!A109=0," ",COUNTRY_INFO!A109))) ->  | B109: =IF(INTRO!$E$39<>"Non-endemic", " ", IF(INTRO!$E$37="Non-endemic"," ", IF(COUNTRY_INFO!B109=0," ",COUNTRY_INFO!B109))) ->  | C109: =IF(INTRO!$E$39<>"Non-endemic", " ", IF(INTRO!$E$37="Non-endemic"," ", IF(COUNTRY_INFO!C109=0," ",COUNTRY_INFO!C109))) ->  | D109: =IF(INTRO!$E$39<>"Non-endemic", 0, IF(INTRO!$E$37="Non-endemic",0,IF(COUNTRY_INFO!$H109=1,COUNTRY_INFO!E109,0))) -> 0 | E109: =IF(INTRO!$E$39<>"Non-endemic", 0, IF(INTRO!$E$37="Non-endemic",0,IF(COUNTRY_INFO!$H109=1,COUNTRY_INFO!F109,0))) -> 0 | F109: =IF(INTRO!$E$39<>"Non-endemic", 0, IF(INTRO!$E$37="Non-endemic",0,IF(COUNTRY_INFO!$H109=1,COUNTRY_INFO!G109,0))) -> 0 | G109: 0 | H109: =IF(INTRO!$E$39="Non-endemic",IF(INTRO!$E$37="Non-endemic","Not required",COUNTRY_INFO!V109),"Treat with IVM") -> Treat with IVM | I109: 0 | J109: 0 | L109: 0
A110: =IF(INTRO!$E$39<>"Non-endemic", " ", IF(INTRO!$E$37="Non-endemic"," ", IF(COUNTRY_INFO!A110=0," ",COUNTRY_INFO!A110))) ->  | B110: =IF(INTRO!$E$39<>"Non-endemic", " ", IF(INTRO!$E$37="Non-endemic"," ", IF(COUNTRY_INFO!B110=0," ",COUNTRY_INFO!B110))) ->  | C110: =IF(INTRO!$E$39<>"Non-endemic", " ", IF(INTRO!$E$37="Non-endemic"," ", IF(COUNTRY_INFO!C110=0," ",COUNTRY_INFO!C110))) ->  | D110: =IF(INTRO!$E$39<>"Non-endemic", 0, IF(INTRO!$E$37="Non-endemic",0,IF(COUNTRY_INFO!$H110=1,COUNTRY_INFO!E110,0))) -> 0 | E110: =IF(INTRO!$E$39<>"Non-endemic", 0, IF(INTRO!$E$37="Non-endemic",0,IF(COUNTRY_INFO!$H110=1,COUNTRY_INFO!F110,0))) -> 0 | F110: =IF(INTRO!$E$39<>"Non-endemic", 0, IF(INTRO!$E$37="Non-endemic",0,IF(COUNTRY_INFO!$H110=1,COUNTRY_INFO!G110,0))) -> 0 | G110: 0 | H110: =IF(INTRO!$E$39="Non-endemic",IF(INTRO!$E$37="Non-endemic","Not required",COUNTRY_INFO!V110),"Treat with IVM") -> Treat with IVM | I110: 0 | J110: 0 | L110: 0
A111: =IF(INTRO!$E$39<>"Non-endemic", " ", IF(INTRO!$E$37="Non-endemic"," ", IF(COUNTRY_INFO!A111=0," ",COUNTRY_INFO!A111))) ->  | B111: =IF(INTRO!$E$39<>"Non-endemic", " ", IF(INTRO!$E$37="Non-endemic"," ", IF(COUNTRY_INFO!B111=0," ",COUNTRY_INFO!B111))) ->  | C111: =IF(INTRO!$E$39<>"Non-endemic", " ", IF(INTRO!$E$37="Non-endemic"," ", IF(COUNTRY_INFO!C111=0," ",COUNTRY_INFO!C111))) ->  | D111: =IF(INTRO!$E$39<>"Non-endemic", 0, IF(INTRO!$E$37="Non-endemic",0,IF(COUNTRY_INFO!$H111=1,COUNTRY_INFO!E111,0))) -> 0 | E111: =IF(INTRO!$E$39<>"Non-endemic", 0, IF(INTRO!$E$37="Non-endemic",0,IF(COUNTRY_INFO!$H111=1,COUNTRY_INFO!F111,0))) -> 0 | F111: =IF(INTRO!$E$39<>"Non-endemic", 0, IF(INTRO!$E$37="Non-endemic",0,IF(COUNTRY_INFO!$H111=1,COUNTRY_INFO!G111,0))) -> 0 | G111: 0 | H111: =IF(INTRO!$E$39="Non-endemic",IF(INTRO!$E$37="Non-endemic","Not required",COUNTRY_INFO!V111),"Treat with IVM") -> Treat with IVM | I111: 0 | J111: 0 | L111: 0
A112: =IF(INTRO!$E$39<>"Non-endemic", " ", IF(INTRO!$E$37="Non-endemic"," ", IF(COUNTRY_INFO!A112=0," ",COUNTRY_INFO!A112))) ->  | B112: =IF(INTRO!$E$39<>"Non-endemic", " ", IF(INTRO!$E$37="Non-endemic"," ", IF(COUNTRY_INFO!B112=0," ",COUNTRY_INFO!B112))) ->  | C112: =IF(INTRO!$E$39<>"Non-endemic", " ", IF(INTRO!$E$37="Non-endemic"," ", IF(COUNTRY_INFO!C112=0," ",COUNTRY_INFO!C112))) ->  | D112: =IF(INTRO!$E$39<>"Non-endemic", 0, IF(INTRO!$E$37="Non-endemic",0,IF(COUNTRY_INFO!$H112=1,COUNTRY_INFO!E112,0))) -> 0 | E112: =IF(INTRO!$E$39<>"Non-endemic", 0, IF(INTRO!$E$37="Non-endemic",0,IF(COUNTRY_INFO!$H112=1,COUNTRY_INFO!F112,0))) -> 0 | F112: =IF(INTRO!$E$39<>"Non-endemic", 0, IF(INTRO!$E$37="Non-endemic",0,IF(COUNTRY_INFO!$H112=1,COUNTRY_INFO!G112,0))) -> 0 | G112: 0 | H112: =IF(INTRO!$E$39="Non-endemic",IF(INTRO!$E$37="Non-endemic","Not required",COUNTRY_INFO!V112),"Treat with IVM") -> Treat with IVM | I112: 0 | J112: 0 | L112: 0
A113: =IF(INTRO!$E$39<>"Non-endemic", " ", IF(INTRO!$E$37="Non-endemic"," ", IF(COUNTRY_INFO!A113=0," ",COUNTRY_INFO!A113))) ->  | B113: =IF(INTRO!$E$39<>"Non-endemic", " ", IF(INTRO!$E$37="Non-endemic"," ", IF(COUNTRY_INFO!B113=0," ",COUNTRY_INFO!B113))) ->  | C113: =IF(INTRO!$E$39<>"Non-endemic", " ", IF(INTRO!$E$37="Non-endemic"," ", IF(COUNTRY_INFO!C113=0," ",COUNTRY_INFO!C113))) ->  | D113: =IF(INTRO!$E$39<>"Non-endemic", 0, IF(INTRO!$E$37="Non-endemic",0,IF(COUNTRY_INFO!$H113=1,COUNTRY_INFO!E113,0))) -> 0 | E113: =IF(INTRO!$E$39<>"Non-endemic", 0, IF(INTRO!$E$37="Non-endemic",0,IF(COUNTRY_INFO!$H113=1,COUNTRY_INFO!F113,0))) -> 0 | F113: =IF(INTRO!$E$39<>"Non-endemic", 0, IF(INTRO!$E$37="Non-endemic",0,IF(COUNTRY_INFO!$H113=1,COUNTRY_INFO!G113,0))) -> 0 | G113: 0 | H113: =IF(INTRO!$E$39="Non-endemic",IF(INTRO!$E$37="Non-endemic","Not required",COUNTRY_INFO!V113),"Treat with IVM") -> Treat with IVM | I113: 0 | J113: 0 | L113: 0
A114: =IF(INTRO!$E$39<>"Non-endemic", " ", IF(INTRO!$E$37="Non-endemic"," ", IF(COUNTRY_INFO!A114=0," ",COUNTRY_INFO!A114))) ->  | B114: =IF(INTRO!$E$39<>"Non-endemic", " ", IF(INTRO!$E$37="Non-endemic"," ", IF(COUNTRY_INFO!B114=0," ",COUNTRY_INFO!B114))) ->  | C114: =IF(INTRO!$E$39<>"Non-endemic", " ", IF(INTRO!$E$37="Non-endemic"," ", IF(COUNTRY_INFO!C114=0," ",COUNTRY_INFO!C114))) ->  | D114: =IF(INTRO!$E$39<>"Non-endemic", 0, IF(INTRO!$E$37="Non-endemic",0,IF(COUNTRY_INFO!$H114=1,COUNTRY_INFO!E114,0))) -> 0 | E114: =IF(INTRO!$E$39<>"Non-endemic", 0, IF(INTRO!$E$37="Non-endemic",0,IF(COUNTRY_INFO!$H114=1,COUNTRY_INFO!F114,0))) -> 0 | F114: =IF(INTRO!$E$39<>"Non-endemic", 0, IF(INTRO!$E$37="Non-endemic",0,IF(COUNTRY_INFO!$H114=1,COUNTRY_INFO!G114,0))) -> 0 | G114: 0 | H114: =IF(INTRO!$E$39="Non-endemic",IF(INTRO!$E$37="Non-endemic","Not required",COUNTRY_INFO!V114),"Treat with IVM") -> Treat with IVM | I114: 0 | J114: 0 | L114: 0
A115: =IF(INTRO!$E$39<>"Non-endemic", " ", IF(INTRO!$E$37="Non-endemic"," ", IF(COUNTRY_INFO!A115=0," ",COUNTRY_INFO!A115))) ->  | B115: =IF(INTRO!$E$39<>"Non-endemic", " ", IF(INTRO!$E$37="Non-endemic"," ", IF(COUNTRY_INFO!B115=0," ",COUNTRY_INFO!B115))) ->  | C115: =IF(INTRO!$E$39<>"Non-endemic", " ", IF(INTRO!$E$37="Non-endemic"," ", IF(COUNTRY_INFO!C115=0," ",COUNTRY_INFO!C115))) ->  | D115: =IF(INTRO!$E$39<>"Non-endemic", 0, IF(INTRO!$E$37="Non-endemic",0,IF(COUNTRY_INFO!$H115=1,COUNTRY_INFO!E115,0))) -> 0 | E115: =IF(INTRO!$E$39<>"Non-endemic", 0, IF(INTRO!$E$37="Non-endemic",0,IF(COUNTRY_INFO!$H115=1,COUNTRY_INFO!F115,0))) -> 0 | F115: =IF(INTRO!$E$39<>"Non-endemic", 0, IF(INTRO!$E$37="Non-endemic",0,IF(COUNTRY_INFO!$H115=1,COUNTRY_INFO!G115,0))) -> 0 | G115: 0 | H115: =IF(INTRO!$E$39="Non-endemic",IF(INTRO!$E$37="Non-endemic","Not required",COUNTRY_INFO!V115),"Treat with IVM") -> Treat with IVM | I115: 0 | J115: 0 | L115: 0
A116: =IF(INTRO!$E$39<>"Non-endemic", " ", IF(INTRO!$E$37="Non-endemic"," ", IF(COUNTRY_INFO!A116=0," ",COUNTRY_INFO!A116))) ->  | B116: =IF(INTRO!$E$39<>"Non-endemic", " ", IF(INTRO!$E$37="Non-endemic"," ", IF(COUNTRY_INFO!B116=0," ",COUNTRY_INFO!B116))) ->  | C116: =IF(INTRO!$E$39<>"Non-endemic", " ", IF(INTRO!$E$37="Non-endemic"," ", IF(COUNTRY_INFO!C116=0," ",COUNTRY_INFO!C116))) ->  | D116: =IF(INTRO!$E$39<>"Non-endemic", 0, IF(INTRO!$E$37="Non-endemic",0,IF(COUNTRY_INFO!$H116=1,COUNTRY_INFO!E116,0))) -> 0 | E116: =IF(INTRO!$E$39<>"Non-endemic", 0, IF(INTRO!$E$37="Non-endemic",0,IF(COUNTRY_INFO!$H116=1,COUNTRY_INFO!F116,0))) -> 0 | F116: =IF(INTRO!$E$39<>"Non-endemic", 0, IF(INTRO!$E$37="Non-endemic",0,IF(COUNTRY_INFO!$H116=1,COUNTRY_INFO!G116,0))) -> 0 | G116: 0 | H116: =IF(INTRO!$E$39="Non-endemic",IF(INTRO!$E$37="Non-endemic","Not required",COUNTRY_INFO!V116),"Treat with IVM") -> Treat with IVM | I116: 0 | J116: 0 | L116: 0
A117: =IF(INTRO!$E$39<>"Non-endemic", " ", IF(INTRO!$E$37="Non-endemic"," ", IF(COUNTRY_INFO!A117=0," ",COUNTRY_INFO!A117))) ->  | B117: =IF(INTRO!$E$39<>"Non-endemic", " ", IF(INTRO!$E$37="Non-endemic"," ", IF(COUNTRY_INFO!B117=0," ",COUNTRY_INFO!B117))) ->  | C117: =IF(INTRO!$E$39<>"Non-endemic", " ", IF(INTRO!$E$37="Non-endemic"," ", IF(COUNTRY_INFO!C117=0," ",COUNTRY_INFO!C117))) ->  | D117: =IF(INTRO!$E$39<>"Non-endemic", 0, IF(INTRO!$E$37="Non-endemic",0,IF(COUNTRY_INFO!$H117=1,COUNTRY_INFO!E117,0))) -> 0 | E117: =IF(INTRO!$E$39<>"Non-endemic", 0, IF(INTRO!$E$37="Non-endemic",0,IF(COUNTRY_INFO!$H117=1,COUNTRY_INFO!F117,0))) -> 0 | F117: =IF(INTRO!$E$39<>"Non-endemic", 0, IF(INTRO!$E$37="Non-endemic",0,IF(COUNTRY_INFO!$H117=1,COUNTRY_INFO!G117,0))) -> 0 | G117: 0 | H117: =IF(INTRO!$E$39="Non-endemic",IF(INTRO!$E$37="Non-endemic","Not required",COUNTRY_INFO!V117),"Treat with IVM") -> Treat with IVM | I117: 0 | J117: 0 | L117: 0
A118: =IF(INTRO!$E$39<>"Non-endemic", " ", IF(INTRO!$E$37="Non-endemic"," ", IF(COUNTRY_INFO!A118=0," ",COUNTRY_INFO!A118))) ->  | B118: =IF(INTRO!$E$39<>"Non-endemic", " ", IF(INTRO!$E$37="Non-endemic"," ", IF(COUNTRY_INFO!B118=0," ",COUNTRY_INFO!B118))) ->  | C118: =IF(INTRO!$E$39<>"Non-endemic", " ", IF(INTRO!$E$37="Non-endemic"," ", IF(COUNTRY_INFO!C118=0," ",COUNTRY_INFO!C118))) ->  | D118: =IF(INTRO!$E$39<>"Non-endemic", 0, IF(INTRO!$E$37="Non-endemic",0,IF(COUNTRY_INFO!$H118=1,COUNTRY_INFO!E118,0))) -> 0 | E118: =IF(INTRO!$E$39<>"Non-endemic", 0, IF(INTRO!$E$37="Non-endemic",0,IF(COUNTRY_INFO!$H118=1,COUNTRY_INFO!F118,0))) -> 0 | F118: =IF(INTRO!$E$39<>"Non-endemic", 0, IF(INTRO!$E$37="Non-endemic",0,IF(COUNTRY_INFO!$H118=1,COUNTRY_INFO!G118,0))) -> 0 | G118: 0 | H118: =IF(INTRO!$E$39="Non-endemic",IF(INTRO!$E$37="Non-endemic","Not required",COUNTRY_INFO!V118),"Treat with IVM") -> Treat with IVM | I118: 0 | J118: 0 | L118: 0
A119: =IF(INTRO!$E$39<>"Non-endemic", " ", IF(INTRO!$E$37="Non-endemic"," ", IF(COUNTRY_INFO!A119=0," ",COUNTRY_INFO!A119))) ->  | B119: =IF(INTRO!$E$39<>"Non-endemic", " ", IF(INTRO!$E$37="Non-endemic"," ", IF(COUNTRY_INFO!B119=0," ",COUNTRY_INFO!B119))) ->  | C119: =IF(INTRO!$E$39<>"Non-endemic", " ", IF(INTRO!$E$37="Non-endemic"," ", IF(COUNTRY_INFO!C119=0," ",COUNTRY_INFO!C119))) ->  | D119: =IF(INTRO!$E$39<>"Non-endemic", 0, IF(INTRO!$E$37="Non-endemic",0,IF(COUNTRY_INFO!$H119=1,COUNTRY_INFO!E119,0))) -> 0 | E119: =IF(INTRO!$E$39<>"Non-endemic", 0, IF(INTRO!$E$37="Non-endemic",0,IF(COUNTRY_INFO!$H119=1,COUNTRY_INFO!F119,0))) -> 0 | F119: =IF(INTRO!$E$39<>"Non-endemic", 0, IF(INTRO!$E$37="Non-endemic",0,IF(COUNTRY_INFO!$H119=1,COUNTRY_INFO!G119,0))) -> 0 | G119: 0 | H119: =IF(INTRO!$E$39="Non-endemic",IF(INTRO!$E$37="Non-endemic","Not required",COUNTRY_INFO!V119),"Treat with IVM") -> Treat with IVM | I119: 0 | J119: 0 | L119: 0
A120: =IF(INTRO!$E$39<>"Non-endemic", " ", IF(INTRO!$E$37="Non-endemic"," ", IF(COUNTRY_INFO!A120=0," ",COUNTRY_INFO!A120))) ->  | B120: =IF(INTRO!$E$39<>"Non-endemic", " ", IF(INTRO!$E$37="Non-endemic"," ", IF(COUNTRY_INFO!B120=0," ",COUNTRY_INFO!B120))) ->  | C120: =IF(INTRO!$E$39<>"Non-endemic", " ", IF(INTRO!$E$37="Non-endemic"," ", IF(COUNTRY_INFO!C120=0," ",COUNTRY_INFO!C120))) ->  | D120: =IF(INTRO!$E$39<>"Non-endemic", 0, IF(INTRO!$E$37="Non-endemic",0,IF(COUNTRY_INFO!$H120=1,COUNTRY_INFO!E120,0))) -> 0 | E120: =IF(INTRO!$E$39<>"Non-endemic", 0, IF(INTRO!$E$37="Non-endemic",0,IF(COUNTRY_INFO!$H120=1,COUNTRY_INFO!F120,0))) -> 0 | F120: =IF(INTRO!$E$39<>"Non-endemic", 0, IF(INTRO!$E$37="Non-endemic",0,IF(COUNTRY_INFO!$H120=1,COUNTRY_INFO!G120,0))) -> 0 | G120: 0 | H120: =IF(INTRO!$E$39="Non-endemic",IF(INTRO!$E$37="Non-endemic","Not required",COUNTRY_INFO!V120),"Treat with IVM") -> Treat with IVM | I120: 0 | J120: 0 | L120: 0
A121: =IF(INTRO!$E$39<>"Non-endemic", " ", IF(INTRO!$E$37="Non-endemic"," ", IF(COUNTRY_INFO!A121=0," ",COUNTRY_INFO!A121))) ->  | B121: =IF(INTRO!$E$39<>"Non-endemic", " ", IF(INTRO!$E$37="Non-endemic"," ", IF(COUNTRY_INFO!B121=0," ",COUNTRY_INFO!B121))) ->  | C121: =IF(INTRO!$E$39<>"Non-endemic", " ", IF(INTRO!$E$37="Non-endemic"," ", IF(COUNTRY_INFO!C121=0," ",COUNTRY_INFO!C121))) ->  | D121: =IF(INTRO!$E$39<>"Non-endemic", 0, IF(INTRO!$E$37="Non-endemic",0,IF(COUNTRY_INFO!$H121=1,COUNTRY_INFO!E121,0))) -> 0 | E121: =IF(INTRO!$E$39<>"Non-endemic", 0, IF(INTRO!$E$37="Non-endemic",0,IF(COUNTRY_INFO!$H121=1,COUNTRY_INFO!F121,0))) -> 0 | F121: =IF(INTRO!$E$39<>"Non-endemic", 0, IF(INTRO!$E$37="Non-endemic",0,IF(COUNTRY_INFO!$H121=1,COUNTRY_INFO!G121,0))) -> 0 | G121: 0 | H121: =IF(INTRO!$E$39="Non-endemic",IF(INTRO!$E$37="Non-endemic","Not required",COUNTRY_INFO!V121),"Treat with IVM") -> Treat with IVM | I121: 0 | J121: 0 | L121: 0
A122: =IF(INTRO!$E$39<>"Non-endemic", " ", IF(INTRO!$E$37="Non-endemic"," ", IF(COUNTRY_INFO!A122=0," ",COUNTRY_INFO!A122))) ->  | B122: =IF(INTRO!$E$39<>"Non-endemic", " ", IF(INTRO!$E$37="Non-endemic"," ", IF(COUNTRY_INFO!B122=0," ",COUNTRY_INFO!B122))) ->  | C122: =IF(INTRO!$E$39<>"Non-endemic", " ", IF(INTRO!$E$37="Non-endemic"," ", IF(COUNTRY_INFO!C122=0," ",COUNTRY_INFO!C122))) ->  | D122: =IF(INTRO!$E$39<>"Non-endemic", 0, IF(INTRO!$E$37="Non-endemic",0,IF(COUNTRY_INFO!$H122=1,COUNTRY_INFO!E122,0))) -> 0 | E122: =IF(INTRO!$E$39<>"Non-endemic", 0, IF(INTRO!$E$37="Non-endemic",0,IF(COUNTRY_INFO!$H122=1,COUNTRY_INFO!F122,0))) -> 0 | F122: =IF(INTRO!$E$39<>"Non-endemic", 0, IF(INTRO!$E$37="Non-endemic",0,IF(COUNTRY_INFO!$H122=1,COUNTRY_INFO!G122,0))) -> 0 | G122: 0 | H122: =IF(INTRO!$E$39="Non-endemic",IF(INTRO!$E$37="Non-endemic","Not required",COUNTRY_INFO!V122),"Treat with IVM") -> Treat with IVM | I122: 0 | J122: 0 | L122: 0
A123: =IF(INTRO!$E$39<>"Non-endemic", " ", IF(INTRO!$E$37="Non-endemic"," ", IF(COUNTRY_INFO!A123=0," ",COUNTRY_INFO!A123))) ->  | B123: =IF(INTRO!$E$39<>"Non-endemic", " ", IF(INTRO!$E$37="Non-endemic"," ", IF(COUNTRY_INFO!B123=0," ",COUNTRY_INFO!B123))) ->  | C123: =IF(INTRO!$E$39<>"Non-endemic", " ", IF(INTRO!$E$37="Non-endemic"," ", IF(COUNTRY_INFO!C123=0," ",COUNTRY_INFO!C123))) ->  | D123: =IF(INTRO!$E$39<>"Non-endemic", 0, IF(INTRO!$E$37="Non-endemic",0,IF(COUNTRY_INFO!$H123=1,COUNTRY_INFO!E123,0))) -> 0 | E123: =IF(INTRO!$E$39<>"Non-endemic", 0, IF(INTRO!$E$37="Non-endemic",0,IF(COUNTRY_INFO!$H123=1,COUNTRY_INFO!F123,0))) -> 0 | F123: =IF(INTRO!$E$39<>"Non-endemic", 0, IF(INTRO!$E$37="Non-endemic",0,IF(COUNTRY_INFO!$H123=1,COUNTRY_INFO!G123,0))) -> 0 | G123: 0 | H123: =IF(INTRO!$E$39="Non-endemic",IF(INTRO!$E$37="Non-endemic","Not required",COUNTRY_INFO!V123),"Treat with IVM") -> Treat with IVM | I123: 0 | J123: 0 | L123: 0
A124: =IF(INTRO!$E$39<>"Non-endemic", " ", IF(INTRO!$E$37="Non-endemic"," ", IF(COUNTRY_INFO!A124=0," ",COUNTRY_INFO!A124))) ->  | B124: =IF(INTRO!$E$39<>"Non-endemic", " ", IF(INTRO!$E$37="Non-endemic"," ", IF(COUNTRY_INFO!B124=0," ",COUNTRY_INFO!B124))) ->  | C124: =IF(INTRO!$E$39<>"Non-endemic", " ", IF(INTRO!$E$37="Non-endemic"," ", IF(COUNTRY_INFO!C124=0," ",COUNTRY_INFO!C124))) ->  | D124: =IF(INTRO!$E$39<>"Non-endemic", 0, IF(INTRO!$E$37="Non-endemic",0,IF(COUNTRY_INFO!$H124=1,COUNTRY_INFO!E124,0))) -> 0 | E124: =IF(INTRO!$E$39<>"Non-endemic", 0, IF(INTRO!$E$37="Non-endemic",0,IF(COUNTRY_INFO!$H124=1,COUNTRY_INFO!F124,0))) -> 0 | F124: =IF(INTRO!$E$39<>"Non-endemic", 0, IF(INTRO!$E$37="Non-endemic",0,IF(COUNTRY_INFO!$H124=1,COUNTRY_INFO!G124,0))) -> 0 | G124: 0 | H124: =IF(INTRO!$E$39="Non-endemic",IF(INTRO!$E$37="Non-endemic","Not required",COUNTRY_INFO!V124),"Treat with IVM") -> Treat with IVM | I124: 0 | J124: 0 | L124: 0
A125: =IF(INTRO!$E$39<>"Non-endemic", " ", IF(INTRO!$E$37="Non-endemic"," ", IF(COUNTRY_INFO!A125=0," ",COUNTRY_INFO!A125))) ->  | B125: =IF(INTRO!$E$39<>"Non-endemic", " ", IF(INTRO!$E$37="Non-endemic"," ", IF(COUNTRY_INFO!B125=0," ",COUNTRY_INFO!B125))) ->  | C125: =IF(INTRO!$E$39<>"Non-endemic", " ", IF(INTRO!$E$37="Non-endemic"," ", IF(COUNTRY_INFO!C125=0," ",COUNTRY_INFO!C125))) ->  | D125: =IF(INTRO!$E$39<>"Non-endemic", 0, IF(INTRO!$E$37="Non-endemic",0,IF(COUNTRY_INFO!$H125=1,COUNTRY_INFO!E125,0))) -> 0 | E125: =IF(INTRO!$E$39<>"Non-endemic", 0, IF(INTRO!$E$37="Non-endemic",0,IF(COUNTRY_INFO!$H125=1,COUNTRY_INFO!F125,0))) -> 0 | F125: =IF(INTRO!$E$39<>"Non-endemic", 0, IF(INTRO!$E$37="Non-endemic",0,IF(COUNTRY_INFO!$H125=1,COUNTRY_INFO!G125,0))) -> 0 | G125: 0 | H125: =IF(INTRO!$E$39="Non-endemic",IF(INTRO!$E$37="Non-endemic","Not required",COUNTRY_INFO!V125),"Treat with IVM") -> Treat with IVM | I125: 0 | J125: 0 | L125: 0
A126: =IF(INTRO!$E$39<>"Non-endemic", " ", IF(INTRO!$E$37="Non-endemic"," ", IF(COUNTRY_INFO!A126=0," ",COUNTRY_INFO!A126))) ->  | B126: =IF(INTRO!$E$39<>"Non-endemic", " ", IF(INTRO!$E$37="Non-endemic"," ", IF(COUNTRY_INFO!B126=0," ",COUNTRY_INFO!B126))) ->  | C126: =IF(INTRO!$E$39<>"Non-endemic", " ", IF(INTRO!$E$37="Non-endemic"," ", IF(COUNTRY_INFO!C126=0," ",COUNTRY_INFO!C126))) ->  | D126: =IF(INTRO!$E$39<>"Non-endemic", 0, IF(INTRO!$E$37="Non-endemic",0,IF(COUNTRY_INFO!$H126=1,COUNTRY_INFO!E126,0))) -> 0 | E126: =IF(INTRO!$E$39<>"Non-endemic", 0, IF(INTRO!$E$37="Non-endemic",0,IF(COUNTRY_INFO!$H126=1,COUNTRY_INFO!F126,0))) -> 0 | F126: =IF(INTRO!$E$39<>"Non-endemic", 0, IF(INTRO!$E$37="Non-endemic",0,IF(COUNTRY_INFO!$H126=1,COUNTRY_INFO!G126,0))) -> 0 | G126: 0 | H126: =IF(INTRO!$E$39="Non-endemic",IF(INTRO!$E$37="Non-endemic","Not required",COUNTRY_INFO!V126),"Treat with IVM") -> Treat with IVM | I126: 0 | J126: 0 | L126: 0
A127: =IF(INTRO!$E$39<>"Non-endemic", " ", IF(INTRO!$E$37="Non-endemic"," ", IF(COUNTRY_INFO!A127=0," ",COUNTRY_INFO!A127))) ->  | B127: =IF(INTRO!$E$39<>"Non-endemic", " ", IF(INTRO!$E$37="Non-endemic"," ", IF(COUNTRY_INFO!B127=0," ",COUNTRY_INFO!B127))) ->  | C127: =IF(INTRO!$E$39<>"Non-endemic", " ", IF(INTRO!$E$37="Non-endemic"," ", IF(COUNTRY_INFO!C127=0," ",COUNTRY_INFO!C127))) ->  | D127: =IF(INTRO!$E$39<>"Non-endemic", 0, IF(INTRO!$E$37="Non-endemic",0,IF(COUNTRY_INFO!$H127=1,COUNTRY_INFO!E127,0))) -> 0 | E127: =IF(INTRO!$E$39<>"Non-endemic", 0, IF(INTRO!$E$37="Non-endemic",0,IF(COUNTRY_INFO!$H127=1,COUNTRY_INFO!F127,0))) -> 0 | F127: =IF(INTRO!$E$39<>"Non-endemic", 0, IF(INTRO!$E$37="Non-endemic",0,IF(COUNTRY_INFO!$H127=1,COUNTRY_INFO!G127,0))) -> 0 | G127: 0 | H127: =IF(INTRO!$E$39="Non-endemic",IF(INTRO!$E$37="Non-endemic","Not required",COUNTRY_INFO!V127),"Treat with IVM") -> Treat with IVM | I127: 0 | J127: 0 | L127: 0
A128: =IF(INTRO!$E$39<>"Non-endemic", " ", IF(INTRO!$E$37="Non-endemic"," ", IF(COUNTRY_INFO!A128=0," ",COUNTRY_INFO!A128))) ->  | B128: =IF(INTRO!$E$39<>"Non-endemic", " ", IF(INTRO!$E$37="Non-endemic"," ", IF(COUNTRY_INFO!B128=0," ",COUNTRY_INFO!B128))) ->  | C128: =IF(INTRO!$E$39<>"Non-endemic", " ", IF(INTRO!$E$37="Non-endemic"," ", IF(COUNTRY_INFO!C128=0," ",COUNTRY_INFO!C128))) ->  | D128: =IF(INTRO!$E$39<>"Non-endemic", 0, IF(INTRO!$E$37="Non-endemic",0,IF(COUNTRY_INFO!$H128=1,COUNTRY_INFO!E128,0))) -> 0 | E128: =IF(INTRO!$E$39<>"Non-endemic", 0, IF(INTRO!$E$37="Non-endemic",0,IF(COUNTRY_INFO!$H128=1,COUNTRY_INFO!F128,0))) -> 0 | F128: =IF(INTRO!$E$39<>"Non-endemic", 0, IF(INTRO!$E$37="Non-endemic",0,IF(COUNTRY_INFO!$H128=1,COUNTRY_INFO!G128,0))) -> 0 | G128: 0 | H128: =IF(INTRO!$E$39="Non-endemic",IF(INTRO!$E$37="Non-endemic","Not required",COUNTRY_INFO!V128),"Treat with IVM") -> Treat with IVM | I128: 0 | J128: 0 | L128: 0
A129: =IF(INTRO!$E$39<>"Non-endemic", " ", IF(INTRO!$E$37="Non-endemic"," ", IF(COUNTRY_INFO!A129=0," ",COUNTRY_INFO!A129))) ->  | B129: =IF(INTRO!$E$39<>"Non-endemic", " ", IF(INTRO!$E$37="Non-endemic"," ", IF(COUNTRY_INFO!B129=0," ",COUNTRY_INFO!B129))) ->  | C129: =IF(INTRO!$E$39<>"Non-endemic", " ", IF(INTRO!$E$37="Non-endemic"," ", IF(COUNTRY_INFO!C129=0," ",COUNTRY_INFO!C129))) ->  | D129: =IF(INTRO!$E$39<>"Non-endemic", 0, IF(INTRO!$E$37="Non-endemic",0,IF(COUNTRY_INFO!$H129=1,COUNTRY_INFO!E129,0))) -> 0 | E129: =IF(INTRO!$E$39<>"Non-endemic", 0, IF(INTRO!$E$37="Non-endemic",0,IF(COUNTRY_INFO!$H129=1,COUNTRY_INFO!F129,0))) -> 0 | F129: =IF(INTRO!$E$39<>"Non-endemic", 0, IF(INTRO!$E$37="Non-endemic",0,IF(COUNTRY_INFO!$H129=1,COUNTRY_INFO!G129,0))) -> 0 | G129: 0 | H129: =IF(INTRO!$E$39="Non-endemic",IF(INTRO!$E$37="Non-endemic","Not required",COUNTRY_INFO!V129),"Treat with IVM") -> Treat with IVM | I129: 0 | J129: 0 | L129: 0
A130: =IF(INTRO!$E$39<>"Non-endemic", " ", IF(INTRO!$E$37="Non-endemic"," ", IF(COUNTRY_INFO!A130=0," ",COUNTRY_INFO!A130))) ->  | B130: =IF(INTRO!$E$39<>"Non-endemic", " ", IF(INTRO!$E$37="Non-endemic"," ", IF(COUNTRY_INFO!B130=0," ",COUNTRY_INFO!B130))) ->  | C130: =IF(INTRO!$E$39<>"Non-endemic", " ", IF(INTRO!$E$37="Non-endemic"," ", IF(COUNTRY_INFO!C130=0," ",COUNTRY_INFO!C130))) ->  | D130: =IF(INTRO!$E$39<>"Non-endemic", 0, IF(INTRO!$E$37="Non-endemic",0,IF(COUNTRY_INFO!$H130=1,COUNTRY_INFO!E130,0))) -> 0 | E130: =IF(INTRO!$E$39<>"Non-endemic", 0, IF(INTRO!$E$37="Non-endemic",0,IF(COUNTRY_INFO!$H130=1,COUNTRY_INFO!F130,0))) -> 0 | F130: =IF(INTRO!$E$39<>"Non-endemic", 0, IF(INTRO!$E$37="Non-endemic",0,IF(COUNTRY_INFO!$H130=1,COUNTRY_INFO!G130,0))) -> 0 | G130: 0 | H130: =IF(INTRO!$E$39="Non-endemic",IF(INTRO!$E$37="Non-endemic","Not required",COUNTRY_INFO!V130),"Treat with IVM") -> Treat with IVM | I130: 0 | J130: 0 | L130: 0
